{"text_format":"1","workbook":"xlsx","n_sheets":5,"sheets":["SISFV","Divipola","UC","NdS","Parámetros"],"not_rendered":{"charts":0,"images":0,"macros":1,"external_links":0,"defined_names":123,"comments":1,"pivot_tables":0},"unopened":[],"bounds":{"document_bytes":16777216,"sheet_cells":100000,"rows_first":2000,"rows_last":500,"rows_between":2000,"halvings":0,"cell_chars":16384,"cell_head_chars":4096},"cells_cut":0,"cells_raw":0,"read":"whole","date_system":"1900"}

{"sheet":"SISFV","index":0,"n_rows":161,"n_cols":8,"rows_kept":161,"cut":false,"hidden":false,"merged":[]}
[null,"Versión: 04","Fecha:","2023-10-03"]
[]
[null,"1. PARÁMETROS DE CÁLCULO DE LA SISFV"]
[]
[null,"Ubicación de la SISFV"]
[null,"Departamento","Municipio","DIVIPOLA","Radiación"]
[null,"LA GUAJIRA","URIBIA",{"$f":"TEXT(SUM((Tabla_Municipios[Municipio]=MUN)*(Tabla_Municipios[Codigo_D]=INDEX(Tabla_Departamentos[[Codigo ]],MATCH(DEP,Tabla_Departamentos[Departamento],0)))*Tabla_Municipios[Codigo_M]),\"00000\")","v":"44847"},{"$f":"IFERROR(INDEX(Tabla_Municipios[Radiación minima (kWh/m2)],MATCH(Punto_Instalacion,Tabla_Municipios[Codigo_M],0)),\"\")","v":5}]
[]
[null,"Nivel de servicio"]
[null,"Tipo de sistema","AC"]
[null,"Almacenamiento","SI"]
[null,"Whd",2156]
[]
[null,"IPPm-1",175.01]
[]
[]
[null,"2. COSTOS DE INVERSIÓN"]
[]
[null,"Unidad Constructiva","VIj,0","VUj","Ij,0","Ij,m","ISj,m"]
[null,"1. PANEL",{"$f":"INDEX(Tabla_Costos_Transporte[VI+CT],MATCH(Tabla_SISFV[[#This Row],[Unidad Constructiva]],Tabla_Costos_Transporte[Unidad constructiva],0))+INDEX(Tabla_Costos_Transporte[% VI+CT],MATCH(Tabla_SISFV[[#This Row],[Unidad Constructiva]],Tabla_Costos_Transporte[Unidad constructiva],0))*Costo_visita_instalacion","v":1701763.8316537805},{"$f":"IFERROR(INDEX(Tabla_UCPA[VU],MATCH(INDEX(Tabla_Costos_Transporte[Codigo],MATCH(Tabla_SISFV[[#This Row],[Unidad Constructiva]],Tabla_Costos_Transporte[Unidad constructiva],0)),Tabla_UCPA[Codigo],0)),\"NA\")","v":25},{"$f":"Tabla_SISFV[[#This Row],[VIj,0]]*Tasa_descuento/(1-POWER(1+Tasa_descuento,-IF(Tabla_SISFV[[#This Row],[VUj]]=\"NA\",1,Tabla_SISFV[[#This Row],[VUj]])))/365","v":579.65450621524747},{"$f":"Tabla_SISFV[[#This Row],[Ij,0]]*IPP_m1/IPP_0","v":687.0662724871687},"NO"]
[null,"2. INVERSOR",{"$f":"INDEX(Tabla_Costos_Transporte[VI+CT],MATCH(Tabla_SISFV[[#This Row],[Unidad Constructiva]],Tabla_Costos_Transporte[Unidad constructiva],0))+INDEX(Tabla_Costos_Transporte[% VI+CT],MATCH(Tabla_SISFV[[#This Row],[Unidad Constructiva]],Tabla_Costos_Transporte[Unidad constructiva],0))*Costo_visita_instalacion","v":940371.72904443287},{"$f":"IFERROR(INDEX(Tabla_UCIN[VU],MATCH(INDEX(Tabla_Costos_Transporte[Codigo],MATCH(Tabla_SISFV[[#This Row],[Unidad Constructiva]],Tabla_Costos_Transporte[Unidad constructiva],0)),Tabla_UCIN[Codigo],0)),\"NA\")","v":10},{"$f":"Tabla_SISFV[[#This Row],[VIj,0]]*Tasa_descuento/(1-POWER(1+Tasa_descuento,-IF(Tabla_SISFV[[#This Row],[VUj]]=\"NA\",1,Tabla_SISFV[[#This Row],[VUj]])))/365","v":449.27621499367939},{"$f":"Tabla_SISFV[[#This Row],[Ij,0]]*IPP_m1/IPP_0","v":532.52848212694767},"NO"]
[null,"3. REGULADOR",{"$f":"INDEX(Tabla_Costos_Transporte[VI+CT],MATCH(Tabla_SISFV[[#This Row],[Unidad Constructiva]],Tabla_Costos_Transporte[Unidad constructiva],0))+INDEX(Tabla_Costos_Transporte[% VI+CT],MATCH(Tabla_SISFV[[#This Row],[Unidad Constructiva]],Tabla_Costos_Transporte[Unidad constructiva],0))*Costo_visita_instalacion","v":1113803.8378939722},{"$f":"IFERROR(INDEX(Tabla_UCRG[VU],MATCH(INDEX(Tabla_Costos_Transporte[Codigo],MATCH(Tabla_SISFV[[#This Row],[Unidad Constructiva]],Tabla_Costos_Transporte[Unidad constructiva],0)),Tabla_UCRG[Codigo],0)),\"NA\")","v":10},{"$f":"Tabla_SISFV[[#This Row],[VIj,0]]*Tasa_descuento/(1-POWER(1+Tasa_descuento,-IF(Tabla_SISFV[[#This Row],[VUj]]=\"NA\",1,Tabla_SISFV[[#This Row],[VUj]])))/365","v":532.13591718982138},{"$f":"Tabla_SISFV[[#This Row],[Ij,0]]*IPP_m1/IPP_0","v":630.74234248148082},"NO"]
[null,"4. BANCO DE BATERIAS",{"$f":"INDEX(Tabla_Costos_Transporte[VI+CT],MATCH(Tabla_SISFV[[#This Row],[Unidad Constructiva]],Tabla_Costos_Transporte[Unidad constructiva],0))+INDEX(Tabla_Costos_Transporte[% VI+CT],MATCH(Tabla_SISFV[[#This Row],[Unidad Constructiva]],Tabla_Costos_Transporte[Unidad constructiva],0))*Costo_visita_instalacion","v":3120053.4506350523},{"$f":"IFERROR(INDEX(Tabla_UCBB[VU],MATCH(INDEX(Tabla_Costos_Transporte[Codigo],MATCH(Tabla_SISFV[[#This Row],[Unidad Constructiva]],Tabla_Costos_Transporte[Unidad constructiva],0)),Tabla_UCBB[Codigo],0)),\"NA\")","v":4.2465753424657535},{"$f":"Tabla_SISFV[[#This Row],[VIj,0]]*Tasa_descuento/(1-POWER(1+Tasa_descuento,-IF(Tabla_SISFV[[#This Row],[VUj]]=\"NA\",1,Tabla_SISFV[[#This Row],[VUj]])))/365","v":2664.0702497472453},{"$f":"Tabla_SISFV[[#This Row],[Ij,0]]*IPP_m1/IPP_0","v":3157.7306766560473},"SI"]
[null,"5. ESTRUCTURA SOPORTE",{"$f":"INDEX(Tabla_Costos_Transporte[VI+CT],MATCH(Tabla_SISFV[[#This Row],[Unidad Constructiva]],Tabla_Costos_Transporte[Unidad constructiva],0))+INDEX(Tabla_Costos_Transporte[% VI+CT],MATCH(Tabla_SISFV[[#This Row],[Unidad Constructiva]],Tabla_Costos_Transporte[Unidad constructiva],0))*Costo_visita_instalacion","v":1745960.0605552385},{"$f":"IFERROR(INDEX(Tabla_UCES[VU],MATCH(INDEX(Tabla_Costos_Transporte[Codigo],MATCH(Tabla_SISFV[[#This Row],[Unidad Constructiva]],Tabla_Costos_Transporte[Unidad constructiva],0)),Tabla_UCES[Codigo],0)),\"NA\")","v":20},{"$f":"Tabla_SISFV[[#This Row],[VIj,0]]*Tasa_descuento/(1-POWER(1+Tasa_descuento,-IF(Tabla_SISFV[[#This Row],[VUj]]=\"NA\",1,Tabla_SISFV[[#This Row],[VUj]])))/365","v":626.00591522488605},{"$f":"Tabla_SISFV[[#This Row],[Ij,0]]*IPP_m1/IPP_0","v":742.00674042334776},"NO"]
[null,"6. RED PANEL GABINETE",{"$f":"INDEX(Tabla_Costos_Transporte[VI+CT],MATCH(Tabla_SISFV[[#This Row],[Unidad Constructiva]],Tabla_Costos_Transporte[Unidad constructiva],0))+INDEX(Tabla_Costos_Transporte[% VI+CT],MATCH(Tabla_SISFV[[#This Row],[Unidad Constructiva]],Tabla_Costos_Transporte[Unidad constructiva],0))*Costo_visita_instalacion","v":405070.70592282392},{"$f":"IFERROR(INDEX(Tabla_UCRP[VU],MATCH(INDEX(Tabla_Costos_Transporte[Codigo],MATCH(Tabla_SISFV[[#This Row],[Unidad Constructiva]],Tabla_Costos_Transporte[Unidad constructiva],0)),Tabla_UCRP[Codigo],0)),\"NA\")","v":25},{"$f":"Tabla_SISFV[[#This Row],[VIj,0]]*Tasa_descuento/(1-POWER(1+Tasa_descuento,-IF(Tabla_SISFV[[#This Row],[VUj]]=\"NA\",1,Tabla_SISFV[[#This Row],[VUj]])))/365","v":137.97511479355845},{"$f":"Tabla_SISFV[[#This Row],[Ij,0]]*IPP_m1/IPP_0","v":163.54232875056323},"NO"]
[null,"7. GABINETE Y ACCESORIOS",{"$f":"INDEX(Tabla_Costos_Transporte[VI+CT],MATCH(Tabla_SISFV[[#This Row],[Unidad Constructiva]],Tabla_Costos_Transporte[Unidad constructiva],0))+INDEX(Tabla_Costos_Transporte[% VI+CT],MATCH(Tabla_SISFV[[#This Row],[Unidad Constructiva]],Tabla_Costos_Transporte[Unidad constructiva],0))*Costo_visita_instalacion","v":1225977.1955128876},{"$f":"IFERROR(INDEX(Tabla_UCGP[VU],MATCH(INDEX(Tabla_Costos_Transporte[Codigo],MATCH(Tabla_SISFV[[#This Row],[Unidad Constructiva]],Tabla_Costos_Transporte[Unidad constructiva],0)),Tabla_UCGP[Codigo],0)),\"NA\")","v":25},{"$f":"Tabla_SISFV[[#This Row],[VIj,0]]*Tasa_descuento/(1-POWER(1+Tasa_descuento,-IF(Tabla_SISFV[[#This Row],[VUj]]=\"NA\",1,Tabla_SISFV[[#This Row],[VUj]])))/365","v":417.59214332671007},{"$f":"Tabla_SISFV[[#This Row],[Ij,0]]*IPP_m1/IPP_0","v":494.97325434207602},"NO"]
[null,"8. RED BATERÍA A GABINETE Y ACCESORIOS",{"$f":"INDEX(Tabla_Costos_Transporte[VI+CT],MATCH(Tabla_SISFV[[#This Row],[Unidad Constructiva]],Tabla_Costos_Transporte[Unidad constructiva],0))+INDEX(Tabla_Costos_Transporte[% VI+CT],MATCH(Tabla_SISFV[[#This Row],[Unidad Constructiva]],Tabla_Costos_Transporte[Unidad constructiva],0))*Costo_visita_instalacion","v":977323.48468260467},{"$f":"IFERROR(INDEX(Tabla_UCRB[VU],MATCH(INDEX(Tabla_Costos_Transporte[Codigo],MATCH(Tabla_SISFV[[#This Row],[Unidad Constructiva]],Tabla_Costos_Transporte[Unidad constructiva],0)),Tabla_UCRB[Codigo],0)),\"NA\")","v":25},{"$f":"Tabla_SISFV[[#This Row],[VIj,0]]*Tasa_descuento/(1-POWER(1+Tasa_descuento,-IF(Tabla_SISFV[[#This Row],[VUj]]=\"NA\",1,Tabla_SISFV[[#This Row],[VUj]])))/365","v":332.89575873505532},{"$f":"Tabla_SISFV[[#This Row],[Ij,0]]*IPP_m1/IPP_0","v":394.58236868419931},"NO"]
[null,"9. PUESTA A TIERRA",{"$f":"INDEX(Tabla_Costos_Transporte[VI+CT],MATCH(Tabla_SISFV[[#This Row],[Unidad Constructiva]],Tabla_Costos_Transporte[Unidad constructiva],0))+INDEX(Tabla_Costos_Transporte[% VI+CT],MATCH(Tabla_SISFV[[#This Row],[Unidad Constructiva]],Tabla_Costos_Transporte[Unidad constructiva],0))*Costo_visita_instalacion","v":383664.6188672501},{"$f":"IFERROR(INDEX(Tabla_UCPT[VU],MATCH(INDEX(Tabla_Costos_Transporte[Codigo],MATCH(Tabla_SISFV[[#This Row],[Unidad Constructiva]],Tabla_Costos_Transporte[Unidad constructiva],0)),Tabla_UCPT[Codigo],0)),\"NA\")","v":25},{"$f":"Tabla_SISFV[[#This Row],[VIj,0]]*Tasa_descuento/(1-POWER(1+Tasa_descuento,-IF(Tabla_SISFV[[#This Row],[VUj]]=\"NA\",1,Tabla_SISFV[[#This Row],[VUj]])))/365","v":130.68377707007363},{"$f":"Tabla_SISFV[[#This Row],[Ij,0]]*IPP_m1/IPP_0","v":154.89988367784343},"NO"]
[null,"10. RED DOMICILIARIA",{"$f":"INDEX(Tabla_Costos_Transporte[VI+CT],MATCH(Tabla_SISFV[[#This Row],[Unidad Constructiva]],Tabla_Costos_Transporte[Unidad constructiva],0))+INDEX(Tabla_Costos_Transporte[% VI+CT],MATCH(Tabla_SISFV[[#This Row],[Unidad Constructiva]],Tabla_Costos_Transporte[Unidad constructiva],0))*Costo_visita_instalacion","v":1594858.3458673891},{"$f":"IFERROR(INDEX(Tabla_UCRD[VU],MATCH(INDEX(Tabla_Costos_Transporte[Codigo],MATCH(Tabla_SISFV[[#This Row],[Unidad Constructiva]],Tabla_Costos_Transporte[Unidad constructiva],0)),Tabla_UCRD[Codigo],0)),\"NA\")","v":25},{"$f":"Tabla_SISFV[[#This Row],[VIj,0]]*Tasa_descuento/(1-POWER(1+Tasa_descuento,-IF(Tabla_SISFV[[#This Row],[VUj]]=\"NA\",1,Tabla_SISFV[[#This Row],[VUj]])))/365","v":543.24037787230873},{"$f":"Tabla_SISFV[[#This Row],[Ij,0]]*IPP_m1/IPP_0","v":643.90449394807138},"NO"]
[null,"11. ELEMENTO DE MEDICIÓN",{"$f":"INDEX(Tabla_Costos_Transporte[VI+CT],MATCH(Tabla_SISFV[[#This Row],[Unidad Constructiva]],Tabla_Costos_Transporte[Unidad constructiva],0))+INDEX(Tabla_Costos_Transporte[% VI+CT],MATCH(Tabla_SISFV[[#This Row],[Unidad Constructiva]],Tabla_Costos_Transporte[Unidad constructiva],0))*Costo_visita_instalacion","v":387762.6514638816},{"$f":"IFERROR(INDEX(Tabla_UCMD[VU],MATCH(INDEX(Tabla_Costos_Transporte[Codigo],MATCH(Tabla_SISFV[[#This Row],[Unidad Constructiva]],Tabla_Costos_Transporte[Unidad constructiva],0)),Tabla_UCMD[Codigo],0)),\"NA\")","v":10},{"$f":"Tabla_SISFV[[#This Row],[VIj,0]]*Tasa_descuento/(1-POWER(1+Tasa_descuento,-IF(Tabla_SISFV[[#This Row],[VUj]]=\"NA\",1,Tabla_SISFV[[#This Row],[VUj]])))/365","v":185.25922354411236},{"$f":"Tabla_SISFV[[#This Row],[Ij,0]]*IPP_m1/IPP_0","v":219.58832856386795},"NO"]
[]
[]
[null,"3. GASTOS DE ADMINISTRACIÓN, MANTENIMIENTO Y GESTIÓN COMERCIAL"]
[]
[null,"Gastos que dependen del número de usuarios atendidos por el prestador del servicio"]
[]
[null,"Mes de prestación del servicio","NUi"]
[null,"m-2",321]
[null,"m-3",{"$f":"C38","v":321}]
[null,"m-4",{"$f":"C39","v":321}]
[null,"m-5",{"$f":"C40","v":321}]
[null,"m-6",321]
[null,"m-7",321]
[null,"m-8",321]
[null,"m-9",321]
[null,"m-10",321]
[null,"m-11",321]
[null,"m-12",321]
[null,"m-13",321]
[]
[null,"AMGCNU,m,0",{"$f":"Var_NU_K   *   POWER(MAX(50,AVERAGE(Tabla_Usuarios[NUi])),   Var_NU_Alfa)","v":1634.6377642895293}]
[]
[null,"Gastos que dependen del valor de las inversiones"]
[]
[null,"AMGCVI,0",{"$f":"SUM(Tabla_SISFV[VIj,0]   *   (Tabla_Tasa_Falla[Tasa de falla anual]   +   PAI))   /   365","v":444.07628304670919}]
[]
[null,"Gastos asociados a la atención de usuarios"]
[]
[null,"MPNS,u,0",{"$f":"Visitas_usuario_año_preventivo   *   Costo_visita_preventivo   /   365","v":1728.2362966282362}]
[null,"MCNS,u,0",{"$f":"Visitas_usuario_año_correctivo   *   Costo_visita_correctivo   /   365","v":102.93008413117869}]
[null,"GC0",{"$f":"Costo_gestion_C","v":51.96}]
[null,"AMGCAU,0",{"$f":"MP_NSu0   +   MC_NSu0   +   GC0","v":1883.126380759415}]
[]
[null,"Gastos que dependen del nivel de facturación"]
[]
[null,"Mes de prestación del servicio","FSISFVm"]
[null,"m-2",30500000]
[null,"m-3",30500000]
[null,"m-4",30500000]
[null,"m-5",30500000]
[null,"m-6",30500000]
[null,"m-7",30500000]
[null,"m-8",30500000]
[null,"m-9",30500000]
[null,"m-10",30500000]
[null,"m-11",30500000]
[null,"m-12",30500000]
[null,"m-13",30500000]
[]
[null,"Cartera vencida con usuarios SISFV m ($)",0]
[null,"Cartera subsidios SISFV m ($)",0]
[null,"Facturación SISFV últimos 12 meses m ($)",{"$f":"SUM(Tabla_Facturacion[FSISFVm])","v":366000000}]
[null,"Tasa costo financiero capital de trabajo (m-1)",0.18940000000000001]
[]
[null,"TNFm",{"$f":"TSIC   +   IF(FSISFVm=0,  0,  ((CVUm  +  (CSm*CFCTm))  /  FSISFVm))","v":2.64E-2}]
[null,"AMGCNF,m,0",{"$f":"(SUM(Tabla_SISFV[Ij,0]*(Tabla_SISFV[ISj,m]=\"SI\"))   +   AMGC_NUm0   +   AMGC_VI0   +   AMGC_AU0)   *   TNFm","v":174.92404189505251}]
[]
[null,"Remuneración prestador del servicio"]
[]
[null,"AI0",{"$f":"SUM(IFERROR(Tabla_SISFV[VIj,0]/(Tabla_SISFV[VUj]*365),0))","v":3610.3025105481165}]
[null,"PPm",{"$f":"SUM(Tabla_SISFV[Ij,0]*(Tabla_SISFV[ISj,m]=\"SI\"))   /   SUM(Tabla_SISFV[Ij,0])","v":0.40372107208197472}]
[null,"RPm,0",{"$f":"(AI0*(1-PPm)   +   AMGC_NUm0   +   AMGC_VI0   +   AMGC_AU0   +   AMGC_NFm0)   *   MP","v":677.38041875339786}]
[]
[]
[null,"4. RESUMEN CU"]
[]
[null,"COMPONENTE ($ / Usuario / Día)","Ij,0","Ij,m",null,"IPRj,m ($/kWh)"]
[null,"1. Panel",{"$f":"Tabla_SISFV[Ij,0]","v":579.65450621524747},{"$f":"Tabla_SISFV[Ij,0]*IPP_m1/IPP_0","v":687.0662724871687},null,{"$f":"D98*1000/NdS_Whd","v":318.67637870462369}]
[null,"2. Inversor",449.27621499367939,532.52848212694767,null,{"$f":"D99*1000/NdS_Whd","v":246.99836833346365}]
[null,"3. Regulador",532.13591718982138,630.74234248148082,null,292.55210690235657]
[null,"4. Banco baterías",2664.0702497472453,3157.7306766560473,null,1464.6246181150498]
[null,"5. Estructura soporte",626.00591522488605,742.00674042334776,null,344.15897051175688]
[null,"6. Red panel gabinete",137.97511479355845,163.54232875056323,null,75.854512407496856]
[null,"7. Gabinete y accesorios",417.59214332671007,494.97325434207602,null,229.57943151302229]
[null,"8. Red batería a gabiente y accesorios",332.89575873505532,394.58236868419931,null,183.01594094814439]
[null,"9. Puesta a tierra",130.68377707007363,154.89988367784343,null,71.845957178962635]
[null,"10. Red domiciliaria",543.24037787230873,643.90449394807138,null,298.65700090355813]
[null,"11. Elemento de medición",185.25922354411236,219.58832856386795,null,101.84987410197957]
[null,"TOTAL I",{"$f":"SUM(Tabla_SISFV[Ij,0])","v":6598.7891987126977},{"$f":"SUM(Tabla_SISFV[Ij,0])   *    IPP_m1    /    IPP_0","v":7821.5651721416134},null,{"$f":"Im*1000/NdS_Whd","v":3627.8131596204144}]
[]
[null,"AMGC ($ / Usuario / Día)","AMGC0","AMGCm",null,"AMGCPR,m ($/kWh)"]
[null,"Número de usuarios",{"$f":"AMGC_NUm0","v":1634.6377642895293},{"$f":"AMGC_NUm0*IPP_m1/IPP_0","v":1937.5411793315982},null,{"$f":"D112*1000/NdS_Whd","v":898.67401638756871}]
[null,"Valor de las inversiones",{"$f":"AMGC_VI0","v":444.07628304670919},{"$f":"AMGC_VI0*IPP_m1/IPP_0","v":526.36498676603162},null,244.13960425140613]
[null,"Atención de usuarios",{"$f":"AMGC_AU0","v":1883.126380759415},{"$f":"AMGC_AU0*IPP_m1/IPP_0","v":2232.0755021788364},null,1035.2854833853601]
[null,"Nivel de facturación",{"$f":"AMGC_NFm0","v":174.92404189505251},{"$f":"AMGC_NFm0*IPP_m1/IPP_0","v":207.33800590621834},null,96.167906264479754]
[null,"Remuneración operador",{"$f":"RPm0","v":677.38041875339786},{"$f":"RPm0*IPP_m1/IPP_0","v":802.90109777197529},null,372.4031065732724]
[null,"TOTAL AMGC",{"$f":"AMGC_NUm0   +   AMGC_VI0   +   AMGC_AU0   +   AMGC_NFm0   +   RPm0","v":4814.1448887441038},{"$f":"(AMGC_NUm0   +   AMGC_VI0   +   AMGC_AU0   +   AMGC_NFm0   +   RPm0)   *   IPP_m1   /   IPP_0","v":5706.2207719546595},null,{"$f":"AMGCm*1000/NdS_Whd","v":2646.6701168620871}]
[]
[null,"TOTAL CU ($ / Usuario / Día)",{"$f":"I0   +   AMGC0","v":11412.934087456801},{"$f":"Im   +   AMGCm","v":13527.785944096273},null,{"$f":"CUm * 1000 / NdS_Whd","v":6274.4832764825014}]
[]
[]
[null,"5. TRASLADO DE COSTOS AL USUARIO EN ESQUEMAS DE FACTURACIÓN POSPAGO"]
[]
[null,"Inversiónm  S(Ij,i x ISj,i)  ($ / día)",{"$f":"SUM(Tabla_SISFV[Ij,m]   *   (Tabla_SISFV[ISj,m]=\"SI\"))","v":3157.7306766560473}]
[null,"AMGCm ($ / día)",{"$f":"AMGCm","v":5706.2207719546595}]
[null,"Suma disponibilidad del mes m (SDk,i)",14]
[null,"Subtotalm ($ / factura)",{"$f":"(Im_al_usuario   +   AMGCm_al_usuario)   *   Disponibilidad_m","v":124095.3202805499}]
[]
[null,"Scf,m  ($ / mes)",0]
[]
[null,"Tcf,m  ($ / mes)",{"$f":"CUm_al_usuario   -   Scfm","v":124095.3202805499}]
[]
[null,"Mes","Inversión\n($ / día)","AMGC\n ($ / día)","Disponibilidad cf","Subtotales cf\n($ / factura)","Scf\n($ / factura)","Tcf\n($ / factura)"]
[null,"m",{"$f":"Im_al_usuario","v":3157.7306766560473},{"$f":"AMGCm_al_usuario","v":5706.2207719546595},{"$f":"Disponibilidad_m","v":14},{"$f":"(Tabla_Traslado_Costos_Pospago[[#This Row],[Inversión\n($ / día)]]   +   Tabla_Traslado_Costos_Pospago[[#This Row],[AMGC\n ($ / día)]])   *   Tabla_Traslado_Costos_Pospago[[#This Row],[Disponibilidad cf]]","v":124095.3202805499},{"$f":"Scfm","v":0},{"$f":"Tabla_Traslado_Costos_Pospago[[#This Row],[Subtotales cf\n($ / factura)]]   -   Tabla_Traslado_Costos_Pospago[[#This Row],[Scf\n($ / factura)]]","v":124095.3202805499}]
[null,"m-1",3202.1168115316195,5786.4293491731532,30,{"$f":"(Tabla_Traslado_Costos_Pospago[[#This Row],[Inversión\n($ / día)]]   +   Tabla_Traslado_Costos_Pospago[[#This Row],[AMGC\n ($ / día)]])   *   Tabla_Traslado_Costos_Pospago[[#This Row],[Disponibilidad cf]]","v":269656.38482114318},0,{"$f":"Tabla_Traslado_Costos_Pospago[[#This Row],[Subtotales cf\n($ / factura)]]   -   Tabla_Traslado_Costos_Pospago[[#This Row],[Scf\n($ / factura)]]","v":269656.38482114318}]
[null,"m-2",3234.4140397540882,5844.7925008890479,31,{"$f":"(Tabla_Traslado_Costos_Pospago[[#This Row],[Inversión\n($ / día)]]   +   Tabla_Traslado_Costos_Pospago[[#This Row],[AMGC\n ($ / día)]])   *   Tabla_Traslado_Costos_Pospago[[#This Row],[Disponibilidad cf]]","v":281455.40275993722},0,{"$f":"Tabla_Traslado_Costos_Pospago[[#This Row],[Subtotales cf\n($ / factura)]]   -   Tabla_Traslado_Costos_Pospago[[#This Row],[Scf\n($ / factura)]]","v":281455.40275993722}]
[null,"m-3",0,6005.0863433481709,30,{"$f":"(Tabla_Traslado_Costos_Pospago[[#This Row],[Inversión\n($ / día)]]   +   Tabla_Traslado_Costos_Pospago[[#This Row],[AMGC\n ($ / día)]])   *   Tabla_Traslado_Costos_Pospago[[#This Row],[Disponibilidad cf]]","v":180152.59030044512},0,{"$f":"Tabla_Traslado_Costos_Pospago[[#This Row],[Subtotales cf\n($ / factura)]]   -   Tabla_Traslado_Costos_Pospago[[#This Row],[Scf\n($ / factura)]]","v":180152.59030044512}]
[null,"m-4",0,6006.0805629414417,31,{"$f":"(Tabla_Traslado_Costos_Pospago[[#This Row],[Inversión\n($ / día)]]   +   Tabla_Traslado_Costos_Pospago[[#This Row],[AMGC\n ($ / día)]])   *   Tabla_Traslado_Costos_Pospago[[#This Row],[Disponibilidad cf]]","v":186188.4974511847},0,{"$f":"Tabla_Traslado_Costos_Pospago[[#This Row],[Subtotales cf\n($ / factura)]]   -   Tabla_Traslado_Costos_Pospago[[#This Row],[Scf\n($ / factura)]]","v":186188.4974511847}]
[null,"m-5",0,5937.1480044747514,28,{"$f":"(Tabla_Traslado_Costos_Pospago[[#This Row],[Inversión\n($ / día)]]   +   Tabla_Traslado_Costos_Pospago[[#This Row],[AMGC\n ($ / día)]])   *   Tabla_Traslado_Costos_Pospago[[#This Row],[Disponibilidad cf]]","v":166240.14412529304},0,{"$f":"Tabla_Traslado_Costos_Pospago[[#This Row],[Subtotales cf\n($ / factura)]]   -   Tabla_Traslado_Costos_Pospago[[#This Row],[Scf\n($ / factura)]]","v":166240.14412529304}]
[null,"m-6",0,5827.7838492150995,17,{"$f":"(Tabla_Traslado_Costos_Pospago[[#This Row],[Inversión\n($ / día)]]   +   Tabla_Traslado_Costos_Pospago[[#This Row],[AMGC\n ($ / día)]])   *   Tabla_Traslado_Costos_Pospago[[#This Row],[Disponibilidad cf]]","v":99072.325436656698},0,{"$f":"Tabla_Traslado_Costos_Pospago[[#This Row],[Subtotales cf\n($ / factura)]]   -   Tabla_Traslado_Costos_Pospago[[#This Row],[Scf\n($ / factura)]]","v":99072.325436656698}]
[]
[null,"Inversión promedio cf ($ / día)",{"$f":"SUMPRODUCT(Tabla_Traslado_Costos_Pospago[Inversión\n($ / día)],Tabla_Traslado_Costos_Pospago[Disponibilidad cf])/SUM(Tabla_Traslado_Costos_Pospago[Disponibilidad cf])","v":1328.9423704503315}]
[null,"AMGC promedio cf ($ / día)",{"$f":"SUMPRODUCT(Tabla_Traslado_Costos_Pospago[AMGC\n ($ / día)],Tabla_Traslado_Costos_Pospago[Disponibilidad cf])/SUM(Tabla_Traslado_Costos_Pospago[Disponibilidad cf])","v":5891.2822990259656}]
[null,"Disponibilidad del cf",{"$f":"SUM(Tabla_Traslado_Costos_Pospago[Disponibilidad cf])","v":181}]
[null,"Subtotal del cf ($ / factura)",{"$f":"SUM(Tabla_Traslado_Costos_Pospago[Subtotales cf\n($ / factura)])","v":1306860.6651752098}]
[null,"S del cf ($ / factura)",{"$f":"SUM(Tabla_Traslado_Costos_Pospago[Scf\n($ / factura)])","v":0}]
[null,"Total a facturar en el cf ($ / factura)",{"$f":"SUM(Tabla_Traslado_Costos_Pospago[Tcf\n($ / factura)])","v":1306860.6651752098}]
[]
[]
[null,"6. TRASLADO DE COSTOS AL USUARIO EN ESQUEMAS DE FACURACIÓN PREPAGO"]
[]
[null,"Inversión ($ / kWh)",{"$f":"SUM(Tabla_SISFV[Ij,m]   *   (Tabla_SISFV[ISj,m]=\"SI\")) *1000 /NdS_Whd","v":1464.6246181150498}]
[null,"AMGC ($ / kWh)",{"$f":"AMGCm * 1000 / NdS_Whd","v":2646.6701168620871}]
[null,"S  ($ / kWh)",0]
[null,"Subtotal ($ / kWh)",{"$f":"Im_PR_al_usuario   +   AMGCm_PR_al_usuario - S_PR","v":4111.2947349771366}]
[]
[null,"EPR  (kWh)",30.184000000000001]
[]
[null,"%RCA",0]
[]
[null,"TPR,NdS  ($ / factura)",{"$f":"E_PR   *   (Im_PR_al_usuario+AMGCm_PR_al_usuario-S_PR) / (1-RCA)","v":124095.3202805499}]

{"sheet":"Divipola","index":1,"n_rows":1123,"n_cols":15,"rows_kept":1123,"cut":false,"hidden":false,"merged":[]}
[]
[null,"Codigo ","Departamento",null,"Codigo_M","Codigo_D","Municipio","CD","Tramo 1 Modalidad (CD-M) ","Tramo 1 Distancia (Km)","Tramo 2 Modalidad (CD-M) ","Tramo 2 Distancia (Km)","Distancia promedio a PI (km)","Radiación minima (kWh/m2)","Velocidad cuadrilla (km/h)"]
[null,"91","AMAZONAS",null,"05001",{"$f":"TEXT(MID(E3,1,2),\"00\")","v":"05"},"MEDELLÍN","05001","NA",0,"NA",0,10.431809536482467,3.5,15]
[null,"05","ANTIOQUIA",null,"05002","05","ABEJORRAL","05001","Vía Tipo 3",80.899999999999991,"NA",0,8.112641779824429,4,15]
[null,"81","ARAUCA",null,"05004","05","ABRIAQUÍ","05001","Vía Tipo 4",161.60000000000002,"NA",0,6.9365322742621824,3.5,15]
[null,"08","ATLÁNTICO",null,"05021","05","ALEJANDRÍA","05001","Vía Tipo 3",71.5,"NA",0,6.4443511204972586,3.5,15]
[null,"11","BOGOTÁ",null,"05030","05","AMAGÁ","05001","Vía Tipo 3",33.099999999999994,"NA",0,4.199179844001617,3.5,15]
[null,"13","BOLÍVAR",null,"05031","05","AMALFI","05001","Vía Tipo 3",136.4,"NA",0,19.183015032849926,4,15]
[null,"15","BOYACÁ",null,"05034","05","ANDES","05001","Vía Tipo 3",107.4,"NA",0,7.9732693337482203,3.5,15]
[null,"17","CALDAS",null,"05036","05","ANGELÓPOLIS","05001","Vía Tipo 4",31.9,"NA",0,3.0344980363137561,3.5,15]
[null,"18","CAQUETÁ",null,"05038","05","ANGOSTURA","05001","Vía Tipo 3",129.24,"NA",0,7.8451016688183675,3.5,15]
[null,"85","CASANARE",null,"05040","05","ANORÍ","05001","Vía Tipo 4",166.6,"NA",0,19.291360185973712,3.5,15]
[null,"19","CAUCA",null,"05042","05","SANTA FÉ DE ANTIOQUIA","05001","Vía Tipo 3",73.965000000000003,"NA",0,11.510944932808478,4,15]
[null,"20","CESAR",null,"05044","05","ANZÁ","05001","Vía Tipo 3",303.83,"NA",0,7.0018863315404154,4,15]
[null,"27","CHOCÓ",null,"05045","05","APARTADÓ","05001","Vía Tipo 3",461.82000000000005,"NA",0,12.089481494246691,3.5,15]
[null,"23","CÓRDOBA",null,"05051","05","ARBOLETES","05001","Vía Tipo 3",135.4,"NA",0,29.609463436397082,4,15]
[null,"25","CUNDINAMARCA",null,"05055","05","ARGELIA","05001","Vía Tipo 4",30.7,"NA",0,7.1424354934611243,3.5,15]
[null,"94","GUAINÍA",null,"05059","05","ARMENIA","05001","Vía Tipo 4",33.5,"NA",0,1.7687021447768021,3.5,15]
[null,"95","GUAVIARE",null,"05079","05","BARBOSA","05001","Vía Tipo 3",2,"NA",0,10.431809536482467,4,15]
[null,"41","HUILA",null,"05086","05","BELMIRA","05001","Vía Tipo 3",56.4,"NA",0,8.3510131308130031,4,15]
[null,"44","LA GUAJIRA",null,"05088","05","BELLO","05001","Vía Tipo 3",11.03,"NA",0,10.431809536482467,4,15]
[null,"47","MAGDALENA",null,"05091","05","BETANIA","05001","Vía Tipo 3",110.1,"NA",0,3.7943731230143798,3.5,15]
[null,"50","META",null,"05093","05","BETULIA","05001","Vía Tipo 4",167.23999999999998,"NA",0,6.1022220093042474,4,15]
[null,"52","NARIÑO",null,"05101","05","CIUDAD BOLÍVAR","05001","Vía Tipo 3",86.9,"NA",0,6.5361702284537708,4,15]
[null,"54","NORTE DE SANTANDER",null,"05107","05","BRICEÑO","05001","Vía Tipo 7",219.84,"NA",0,6.5760640471412231,3.5,15]
[null,"86","PUTUMAYO",null,"05113","05","BURITICÁ","05001","Vía Tipo 3",89.664999999999992,"NA",0,7.427177751384737,3.5,15]
[null,"63","QUINDÍO",null,"05120","05","CÁCERES","05001","Vía Tipo 3",16.200000000000003,"NA",0,23.783068386188678,4,15]
[null,"66","RISARALDA",null,"05125","05","CAICEDO","05001","Vía Tipo 4",129.74,"NA",0,6.6731683354959586,4,15]
[null,"88","SAN ANDRÉS",null,"05129","05","CALDAS","05001","Vía Tipo 3",109.80000000000001,"NA",0,10.431809536482467,3.5,15]
[null,"68","SANTANDER",null,"05134","05","CAMPAMENTO","05001","Vía Tipo 4",134.12,"NA",0,9.1922883271430909,3,15]
[null,"70","SUCRE",null,"05138","05","CAÑASGORDAS","05001","Vía Tipo 4",111.7,"NA",0,10.369565757836765,3.5,15]
[null,"73","TOLIMA",null,"05142","05","CARACOLÍ","05001","Vía Tipo 3",289.33,"NA",0,6.2972344092968422,4,15]
[null,"76","VALLE DEL CAUCA",null,"05145","05","CARAMANTA","05001","Vía Tipo 3",94.2,"NA",0,2.5766361735737995,4,15]
[null,"97","VAUPÉS",null,"05147","05","CAREPA","05001","Vía Tipo 3",275.14,"NA",0,10.431809536482467,3.5,15]
[null,"99","VICHADA",null,"05148","05","EL CARMEN DE VIBORAL","05001","Vía Tipo 3",280.49,"NA",0,14.583532319295033,4,15]
[null,null,null,null,"05150","05","CAROLINA","05001","Vía Tipo 3",79.12,"NA",0,10.431809536482467,4,15]
[null,null,null,null,"05154","05","CAUCASIA","05001","Vía Tipo 3",96.8,"NA",0,9.5028284342899081,4,15]
[null,null,null,null,"05172","05","CHIGORODÓ","05001","Vía Tipo 3",174.1,"NA",0,11.838743942880196,3.5,15]
[null,null,null,null,"05190","05","CISNEROS","05001","Vía Tipo 3",54.6,"NA",0,10.431809536482467,4,15]
[null,null,null,null,"05197","05","COCORNÁ","05001","Vía Tipo 3",86.199999999999989,"NA",0,7.7968214070225601,4,15]
[null,null,null,null,"05206","05","CONCEPCIÓN","05001","Vía Tipo 3",10.6,"NA",0,3.6839095907281685,3,15]
[null,null,null,null,"05209","05","CONCORDIA","05001","Vía Tipo 3",170.3,"NA",0,8.1871205566755751,4,15]
[null,null,null,null,"05212","05","COPACABANA","05001","Vía Tipo 3",40.9,"NA",0,10.431809536482467,3.5,15]
[null,null,null,null,"05234","05","DABEIBA","05001","Vía Tipo 3",35.93,"NA",0,15.678582375907474,3.5,15]
[null,null,null,null,"05237","05","DONMATÍAS","05001","Vía Tipo 3",355.94,"NA",0,10.431809536482467,4,15]
[null,null,null,null,"05240","05","EBÉJICO","05001","Vía Tipo 4",49.6,"NA",0,4.8018044801247086,4,15]
[null,null,null,null,"05250","05","EL BAGRE","05001","Vía Tipo 4",55.9,"NA",0,21.928945062682203,4,15]
[null,null,null,null,"05264","05","ENTRERRÍOS","05001","Vía Tipo 3",31.9,"NA",0,10.431809536482467,4,15]
[null,null,null,null,"05266","05","ENVIGADO","05001","Vía Tipo 3",12.4,"NA",0,10.431809536482467,3.5,15]
[null,null,null,null,"05282","05","FREDONIA","05001","Vía Tipo 3",42.8,"NA",0,7.573048618300386,4,15]
[null,null,null,null,"05284","05","FRONTINO","05001","Vía Tipo 3",5,"NA",0,26.95775213404508,4,15]
[null,null,null,null,"05306","05","GIRALDO","05001","Vía Tipo 3",51.2,"NA",0,2.2824118270080804,3.5,15]
[null,null,null,null,"05308","05","GIRARDOTA","05001","Vía Tipo 3",137.10000000000002,"NA",0,10.431809536482467,3.5,15]
[null,null,null,null,"05310","05","GÓMEZ PLATA","05001","Vía Tipo 3",90.9,"NA",0,8.72274551305083,4,15]
[null,null,null,null,"05313","05","GRANADA","05001","Vía Tipo 3",17.8,"NA",0,7.0615572549706576,4,15]
[null,null,null,null,"05315","05","GUADALUPE","05001","Vía Tipo 3",81.400000000000006,"NA",0,6.9741244972947873,4,15]
[null,null,null,null,"05318","05","GUARNE","05001","Vía Tipo 3",67,"NA",0,4.3921911746455669,3.5,15]
[null,null,null,null,"05321","05","GUATAPÉ","05001","Vía Tipo 3",114.2,"NA",0,4.956061665316204,4,15]
[null,null,null,null,"05347","05","HELICONIA","05001","Vía Tipo 4",23.1,"NA",0,10.431809536482467,3.5,15]
[null,null,null,null,"05353","05","HISPANIA","05001","Vía Tipo 3",70.900000000000006,"NA",0,2.956182581931643,4,15]
[null,null,null,null,"05360","05","ITAGÜÍ","05001","Vía Tipo 3",12.8,"NA",0,10.431809536482467,4,15]
[null,null,null,null,"05361","05","ITUANGO","05001","Vía Tipo 3",91.3,"NA",0,15.151327997409521,3.5,15]
[null,null,null,null,"05364","05","JARDÍN","05001","Vía Tipo 4",5,"NA",0,3.2400629774065659,4,15]
[null,null,null,null,"05368","05","JERICÓ","05001","Vía Tipo 3",187.24,"NA",0,5.2162022936598529,4,15]
[null,null,null,null,"05376","05","LA CEJA","05001","Vía Tipo 3",124.9,"NA",0,10.431809536482467,4,15]
[null,null,null,null,"05380","05","LA ESTRELLA","05001","Vía Tipo 3",15,"NA",0,10.431809536482467,3.5,15]
[null,null,null,null,"05390",{"$f":"TEXT(MID(E67,1,2),\"00\")","v":"05"},"LA PINTADA","05001","Vía Tipo 3",40.1,"NA",0,10.431809536482467,4,15]
[null,null,null,null,"05400","05","LA UNIÓN","05001","Vía Tipo 3",9.5,"NA",0,10.431809536482467,4,15]
[null,null,null,null,"05411","05","LIBORINA","05001","Vía Tipo 3",73.5,"NA",0,8.0266488641592879,3.5,15]
[null,null,null,null,"05425","05","MACEO","05001","Vía Tipo 3",54.8,"NA",0,6.6364180597578564,4,15]
[null,null,null,null,"05440","05","MARINILLA","05001","Vía Tipo 3",72.400000000000006,"NA",0,6.5816555542592656,4,15]
[null,null,null,null,"05467","05","MONTEBELLO","05001","Vía Tipo 3",126.52,"NA",0,4.5610126495241099,4,15]
[null,null,null,null,"05475","05","MURINDÓ","05001","Vía Tipo 1",265,"Fluvial",115,26.853333379854995,3.5,15]
[null,null,null,null,"05480","05","MUTATÁ","05001","Vía Tipo 3",46.2,"NA",0,11.81641445651781,3.5,15]
[null,null,null,null,"05483","05","NARIÑO","05001","Vía Tipo 4",144,"NA",0,6.5373388492839535,4,15]
[null,null,null,null,"05490","05","NECOCLÍ","05001","Vía Tipo 3",220.99,"NA",0,18.3749018648092,3.5,15]
[null,null,null,null,"05495","05","NECHÍ","05001","Vía Tipo 4",135.9,"NA",0,15.146955612553525,4.5,15]
[null,null,null,null,"05501","05","OLAYA","05001","Vía Tipo 3",349.74,"NA",0,5.835011340068343,4,15]
[null,null,null,null,"05541","05","PEÑOL","05001","Vía Tipo 3",380.32000000000005,"NA",0,3.0024554321711614,4,15]
[null,null,null,null,"05543","05","PEQUE","05001","Vía Tipo 4",64.900000000000006,"NA",0,7.0192189292442828,3.5,15]
[null,null,null,null,"05576","05","PUEBLORRICO","05001","Vía Tipo 3",199,"NA",0,2.3381150665794963,4,15]
[null,null,null,null,"05579","05","PUERTO BERRÍO","05001","Vía Tipo 3",108.54,"NA",0,20.651615541640822,4,15]
[null,null,null,null,"05585","05","PUERTO NARE","05001","Vía Tipo 4",177.25,"NA",0,11.362717733249848,4,15]
[null,null,null,null,"05591","05","PUERTO TRIUNFO","05001","Vía Tipo 3",219.69999999999996,"NA",0,5.3807648126072634,4.5,15]
[null,null,null,null,"05604","05","REMEDIOS","05001","Vía Tipo 4",179.09999999999997,"NA",0,20.568875280507175,4,15]
[null,null,null,null,"05607","05","RETIRO","05001","Vía Tipo 3",181.6,"NA",0,8.5583624623573389,3.5,15]
[null,null,null,null,"05615","05","RIONEGRO","05001","Vía Tipo 3",40.1,"NA",0,7.4638719691886273,4,15]
[null,null,null,null,"05628","05","SABANALARGA","05001","Vía Tipo 4",107.10000000000001,"NA",0,8.6373499535818432,3,15]
[null,null,null,null,"05631","05","SABANETA","05001","Vía Tipo 3",7.5,"NA",0,10.431809536482467,3.5,15]
[null,null,null,null,"05642","05","SALGAR","05001","Vía Tipo 3",89.9,"NA",0,4.7855986725816493,3.5,15]
[null,null,null,null,"05647","05","SAN ANDRÉS DE CUERQUÍA","05001","Vía Tipo 3",127.24,"NA",0,6.1684565023726643,3,15]
[null,null,null,null,"05649","05","SAN CARLOS","05001","Vía Tipo 3",137.6,"NA",0,10.707368240062365,4,15]
[null,null,null,null,"05652","05","SAN FRANCISCO","05001","Vía Tipo 4",94.699999999999989,"NA",0,17.095316865027545,3.5,15]
[null,null,null,null,"05656","05","SAN JERÓNIMO","05001","Vía Tipo 3",30.330000000000002,"NA",0,5.8390414461505813,4,15]
[null,null,null,null,"05658","05","SAN JOSÉ DE LA MONTAÑA","05001","Vía Tipo 3",118.03999999999999,"NA",0,2.6905548944005555,3.5,15]
[null,null,null,null,"05659","05","SAN JUAN DE URABÁ","05001","Vía Tipo 3",442.52000000000004,"NA",0,10.596952122486279,4,15]
[null,null,null,null,"05660","05","SAN LUIS","05001","Vía Tipo 3",126.27,"NA",0,7.5799197616833274,4,15]
[null,null,null,null,"05664","05","SAN PEDRO DE LOS MILAGROS","05001","Vía Tipo 3",32.299999999999997,"NA",0,6.0261424810424433,4,15]
[null,null,null,null,"05665","05","SAN PEDRO DE URABÁ","05001","Vía Tipo 4",377.33000000000004,"NA",0,18.404900878850363,4,15]
[null,null,null,null,"05667","05","SAN RAFAEL","05001","Vía Tipo 3",95.5,"NA",0,8.3267419780790313,4,15]
[null,null,null,null,"05670","05","SAN ROQUE","05001","Vía Tipo 3",100.12,"NA",0,8.9826618306544397,4,15]
[null,null,null,null,"05674","05","SAN VICENTE FERRER","05001","Vía Tipo 3",42.599999999999994,"NA",0,5.695059532515609,4,15]
[null,null,null,null,"05679","05","SANTA BÁRBARA","05001","Vía Tipo 3",45.2,"NA",0,7.4517883849413717,3,15]
[null,null,null,null,"05686","05","SANTA ROSA DE OSOS","05001","Vía Tipo 3",51.03,"NA",0,23.768320043764707,3.5,15]
[null,null,null,null,"05690","05","SANTO DOMINGO","05001","Vía Tipo 3",68,"NA",0,7.2710764651531044,4,15]
[null,null,null,null,"05697","05","EL SANTUARIO","05001","Vía Tipo 3",63.2,"NA",0,3.7562868526559376,4,15]
[null,null,null,null,"05736","05","SEGOVIA","05001","Vía Tipo 4",190.6,"NA",0,27.367523100868272,4,15]
[null,null,null,null,"05756","05","SONSÓN","05001","Vía Tipo 4",104,"NA",0,20.650813864663473,4,15]
[null,null,null,null,"05761","05","SOPETRÁN","05001","Vía Tipo 3",42.300000000000004,"NA",0,7.0047445855432846,4,15]
[null,null,null,null,"05789","05","TÁMESIS","05001","Vía Tipo 3",103.5,"NA",0,5.1671520419574266,4,15]
[null,null,null,null,"05790","05","TARAZÁ","05001","Vía Tipo 3",212.34,"NA",0,15.999836709068163,4,15]
[null,null,null,null,"05792","05","TARSO","05001","Vía Tipo 3",94.34,"NA",0,4.0796938986605076,4,15]
[null,null,null,null,"05809","05","TITIRIBÍ","05001","Vía Tipo 3",51.25,"NA",0,4.88063669251087,3.5,15]
[null,null,null,null,"05819","05","TOLEDO","05001","Vía Tipo 4",164.04,"NA",0,2.7112750786034128,3,15]
[null,null,null,null,"05837","05","TURBO","05001","Vía Tipo 3",333.83000000000004,"NA",0,30.766813294325456,3.5,15]
[null,null,null,null,"05842","05","URAMITA","05001","Vía Tipo 3",135.9,"NA",0,5.1588362682620126,4,15]
[null,null,null,null,"05847","05","URRAO","05001","Vía Tipo 4",148.89999999999998,"NA",0,16.208489174876888,4,15]
[null,null,null,null,"05854","05","VALDIVIA","05001","Vía Tipo 3",150.04,"NA",0,14.16228632147482,3.5,15]
[null,null,null,null,"05856","05","VALPARAÍSO","05001","Vía Tipo 3",95.2,"NA",0,3.9909864890720343,4,15]
[null,null,null,null,"05858","05","VEGACHÍ","05001","Vía Tipo 3",138.1,"NA",0,6.7842031430623697,4,15]
[null,null,null,null,"05861","05","VENECIA","05001","Vía Tipo 3",51.6,"NA",0,2.2880166594132376,4,15]
[null,null,null,null,"05873","05","VIGÍA DEL FUERTE","05001","Fluvial",182,"NA",0,18.966783550713785,3.5,15]
[null,null,null,null,"05885","05","YALÍ","05001","Vía Tipo 4",123.6,"NA",0,7.9266299530368629,4,15]
[null,null,null,null,"05887","05","YARUMAL","05001","Vía Tipo 3",111.24000000000001,"NA",0,13.466682898884709,3.5,15]
[null,null,null,null,"05890","05","YOLOMBÓ","05001","Vía Tipo 3",89.5,"NA",0,11.424619202644706,4,15]
[null,null,null,null,"05893","05","YONDÓ","05001","Vía Tipo 3",330.4,"NA",0,20.626332644889132,4,15]
[null,null,null,null,"05895","05","ZARAGOZA","05001","Vía Tipo 4",360.03999999999996,"NA",0,15.868823816499736,4,15]
[null,null,null,null,"08001","08","BARRANQUILLA","08001","NA",0,"NA",0,5.9697836452679942,5,15]
[null,null,null,null,"08078","08","BARANOA","08001","Vía Tipo 3",30,"NA",0,4.0705581495179981,5,15]
[null,null,null,null,"08137","08","CAMPO DE LA CRUZ","08001","Vía Tipo 3",83.1,"NA",0,4.8681666629766722,5,15]
[null,null,null,null,"08141",{"$f":"TEXT(MID(E131,1,2),\"00\")","v":"08"},"CANDELARIA","08001","Vía Tipo 3",74.400000000000006,"NA",0,6.3540689353769668,4.5,15]
[null,null,null,null,"08296","08","GALAPA","08001","Vía Tipo 3",17.8,"NA",0,5.0016485708920717,5.5,15]
[null,null,null,null,"08372","08","JUAN DE ACOSTA","08001","Vía Tipo 3",43,"NA",0,4.5837443263079454,5,15]
[null,null,null,null,"08421","08","LURUACO","08001","Vía Tipo 3",69,"NA",0,6.1547161287718399,5,15]
[null,null,null,null,"08433","08","MALAMBO","08001","Vía Tipo 3",21.7,"NA",0,5.0664263640435241,5.5,15]
[null,null,null,null,"08436","08","MANATÍ","08001","Vía Tipo 3",74.900000000000006,"NA",0,6.5814425496243256,5,15]
[null,null,null,null,"08520","08","PALMAR DE VARELA","08001","Vía Tipo 3",35.1,"NA",0,6.4983822962641851,5,15]
[null,null,null,null,"08549","08","PIOJÓ","08001","Vía Tipo 3",61.4,"NA",0,6.6274716972024583,5,15]
[null,null,null,null,"08558","08","POLONUEVO","08001","Vía Tipo 3",37.5,"NA",0,4.3880970041956155,5,15]
[null,null,null,null,"08560","08","PONEDERA","08001","Vía Tipo 3",50.8,"NA",0,7.7029324156264298,4.5,15]
[null,null,null,null,"08573","08","PUERTO COLOMBIA","08001","Vía Tipo 3",18.399999999999999,"NA",0,7.1844594384044855,4,15]
[null,null,null,null,"08606","08","REPELÓN","08001","Vía Tipo 3",86.4,"NA",0,8.5222599614050321,5,15]
[null,null,null,null,"08634","08","SABANAGRANDE","08001","Vía Tipo 3",29.4,"NA",0,4.0074956716470833,5.5,15]
[null,null,null,null,"08638","08","SABANALARGA","08001","Vía Tipo 3",50.6,"NA",0,6.6490066195364674,4.5,15]
[null,null,null,null,"08675","08","SANTA LUCÍA","08001","Vía Tipo 3",95.3,"NA",0,5.6559018323354229,5,15]
[null,null,null,null,"08685","08","SANTO TOMÁS","08001","Vía Tipo 3",32.4,"NA",0,7.3356099094095351,5,15]
[null,null,null,null,"08758","08","SOLEDAD","08001","Vía Tipo 3",12.5,"NA",0,3.2334614126453931,5.5,15]
[null,null,null,null,"08770","08","SUAN","08001","Vía Tipo 3",87.3,"NA",0,4.2226348381324144,4.5,15]
[null,null,null,null,"08832","08","TUBARÁ","08001","Vía Tipo 3",28.6,"NA",0,5.4021620679687192,5,15]
[null,null,null,null,"08849","08","USIACURÍ","08001","Vía Tipo 3",40.799999999999997,"NA",0,4.0772669817796796,5,15]
[null,null,null,null,"11001","11","BOGOTÁ D.C.","11001","NA",0,"NA",0,5.108556748607298,3.5,15]
[null,null,null,null,"13001","13","CARTAGENA DE INDIAS","13001","NA",0,"NA",0,22.167494304052806,4.5,15]
[null,null,null,null,"13006","13","ACHÍ","70001","Vía Tipo 6",231.4,"NA",0,13.937172850477886,4.5,15]
[null,null,null,null,"13030","13","ALTOS DEL ROSARIO","13001","Vía Tipo 5",589,"NA",0,7.8578349563190537,4.5,15]
[null,null,null,null,"13042","13","ARENAL","13001","Vía Tipo 5",527,"NA",0,16.390263571076467,4,15]
[null,null,null,null,"13052","13","ARJONA","13001","Vía Tipo 3",53.4,"NA",0,10.507565622271649,5,15]
[null,null,null,null,"13062","13","ARROYOHONDO","13001","Vía Tipo 4",87.9,"NA",0,20.83010525335504,5,15]
[null,null,null,null,"13074","13","BARRANCO DE LOBA","13001","Vía Tipo 5",529,"NA",0,10.940986861693629,4.5,15]
[null,null,null,null,"13140","13","CALAMAR","13001","Vía Tipo 3",94.5,"NA",0,10.177966144345032,4,15]
[null,null,null,null,"13160","13","CANTAGALLO","68081","Fluvial",50,"NA",0,33.59650056745069,4.5,15]
[null,null,null,null,"13188","13","CICUCO","13001","Vía Tipo 5",273,"NA",0,11.327472871659429,5.5,15]
[null,null,null,null,"13212","13","CÓRDOBA","13001","Vía Tipo 4",200,"NA",0,17.07342362855578,4.5,15]
[null,null,null,null,"13222","13","CLEMENCIA","13001","Vía Tipo 3",25,"NA",0,4.8338411230993117,5,15]
[null,null,null,null,"13244","13","EL CARMEN DE BOLÍVAR","13001","Vía Tipo 3",148,"NA",0,14.229686793109503,5,15]
[null,null,null,null,"13248","13","EL GUAMO","13001","Vía Tipo 4",130,"NA",0,13.859004457549826,5,15]
[null,null,null,null,"13268","13","EL PEÑÓN","47001","Vía Tipo 5",594,"NA",0,11.911779035288259,4,15]
[null,null,null,null,"13300","13","HATILLO DE LOBA","13001","Vía Tipo 5",338,"NA",0,14.903233162351107,5,15]
[null,null,null,null,"13430","13","MAGANGUÉ","13001","Vía Tipo 3",216,"NA",0,22.80701514328705,5,15]
[null,null,null,null,"13433","13","MAHATES","13001","Vía Tipo 3",87.1,"NA",0,10.873850135034075,4.5,15]
[null,null,null,null,"13440","13","MARGARITA","13001","Vía Tipo 5",306,"NA",0,13.53216050251056,5,15]
[null,null,null,null,"13442","13","MARÍA LA BAJA","13001","Vía Tipo 3",95.2,"NA",0,7.2035863004788885,5,15]
[null,null,null,null,"13458","13","MONTECRISTO","13001","Vía Tipo 3",252,"Fluvial",140,26.451605995997646,4,15]
[null,null,null,null,"13468","13","SANTA CRUZ DE MOMPOX","13001","Vía Tipo 5",272,"NA",0,25.244576381941389,5,15]
[null,null,null,null,"13473","13","MORALES","68081","Fluvial",219,"NA",0,28.755630867139782,4,15]
[null,null,null,null,"13490","13","NOROSÍ","13001","Vía Tipo 5",453,"NA",0,9.3489906711079183,4.5,15]
[null,null,null,null,"13549","13","PINILLOS","13001","Fluvial",253.2,"NA",0,13.779144834873359,4.5,15]
[null,null,null,null,"13580","13","REGIDOR","13001","Vía Tipo 6",547,"NA",0,10.390654048225832,4.5,15]
[null,null,null,null,"13600","13","RÍO VIEJO","13001","Vía Tipo 5",508,"NA",0,13.714016251486857,4,15]
[null,null,null,null,"13620","13","SAN CRISTÓBAL","13001","Vía Tipo 5",70.099999999999994,"NA",0,2.2357381872903583,5.5,15]
[null,null,null,null,"13647","13","SAN ESTANISLAO","13001","Vía Tipo 3",56.6,"NA",0,9.0869530794592279,5,15]
[null,null,null,null,"13650","13","SAN FERNANDO","13001","Vía Tipo 3",284,"NA",0,15.162738197576518,5,15]
[null,null,null,null,"13654","13","SAN JACINTO","13001","Vía Tipo 3",134,"NA",0,8.2849937242883911,5,15]
[null,null,null,null,"13655","13","SAN JACINTO DEL CAUCA","13001","Vía Tipo 5",436.8,"NA",0,12.952678544569233,4.5,15]
[null,null,null,null,"13657","13","SAN JUAN NEPOMUCENO","13001","Vía Tipo 3",112,"NA",0,11.607837946142681,5,15]
[null,null,null,null,"13667","13","SAN MARTÍN DE LOBA","13001","Vía Tipo 5",525,"NA",0,15.389577368120502,4.5,15]
[null,null,null,null,"13670","13","SAN PABLO","68081","Fluvial",58,"NA",0,21.1433126114134,4.5,15]
[null,null,null,null,"13673","13","SANTA CATALINA","13001","Vía Tipo 3",31.2,"NA",0,5.8523053749071261,5,15]
[null,null,null,null,"13683","13","SANTA ROSA","13001","Vía Tipo 3",26,"NA",0,4.7512001156547443,3.5,15]
[null,null,null,null,"13688","13","SANTA ROSA DEL SUR","13001","Fluvial",398,"NA",0,23.542804031112055,4,15]
[null,null,null,null,"13744","13","SIMITÍ","68081","Fluvial",146,"NA",0,19.141188300455873,4,15]
[null,null,null,null,"13760","13","SOPLAVIENTO","13001","Vía Tipo 5",57.9,"NA",0,8.2837019321687091,5,15]
[null,null,null,null,"13780","13","TALAIGUA NUEVO","13001","Vía Tipo 5",315,"NA",0,9.3130712687138377,5.5,15]
[null,null,null,null,"13810","13","TIQUISIO","13001","Vía Tipo 5",443,"NA",0,13.462238247031335,4.5,15]
[null,null,null,null,"13836","13","TURBACO","13001","Vía Tipo 3",40.5,"NA",0,8.8909484273901942,5,15]
[null,null,null,null,"13838",{"$f":"TEXT(MID(E195,1,2),\"00\")","v":"13"},"TURBANÁ","13001","Vía Tipo 3",44.1,"NA",0,8.2151913016870761,4.5,15]
[null,null,null,null,"13873","13","VILLANUEVA","13001","Vía Tipo 3",40,"NA",0,4.6378265754314763,5,15]
[null,null,null,null,"13894","13","ZAMBRANO","13001","Vía Tipo 3",186,"NA",0,7.9724944387929284,5.5,15]
[null,null,null,null,"15001","15","TUNJA","15001","NA",0,"NA",0,5.4520385728561207,4.5,15]
[null,null,null,null,"15022","15","ALMEIDA","15001","Vía Tipo 4",99.8,"NA",0,2.564264158872656,4,15]
[null,null,null,null,"15047","15","AQUITANIA","15001","Vía Tipo 3",89,"NA",0,11.394756844174308,4.5,15]
[null,null,null,null,"15051","15","ARCABUCO","15001","Vía Tipo 1",34,"NA",0,6.4062519747054854,4.5,15]
[null,null,null,null,"15087","15","BELÉN","15001","Vía Tipo 3",78.8,"NA",0,5.4711429008413548,4,15]
[null,null,null,null,"15090","15","BERBEO","15001","Vía Tipo 4",86.4,"NA",0,2.4786584214668776,4,15]
[null,null,null,null,"15092","15","BETÉITIVA","15001","Vía Tipo 3",102,"NA",0,5.3921236374795791,4,15]
[null,null,null,null,"15097","15","BOAVITA","15001","Vía Tipo 4",181,"NA",0,5.7460716951803157,4,15]
[null,null,null,null,"15104","15","BOYACÁ","15001","Vía Tipo 1",18.600000000000001,"NA",0,3.4801885845777996,4.5,15]
[null,null,null,null,"15106","15","BRICEÑO","15001","Vía Tipo 3",120,"NA",0,2.6378626758865154,3,15]
[null,null,null,null,"15109","15","BUENAVISTA","15001","Vía Tipo 4",112,"NA",0,4.2476118507374938,4,15]
[null,null,null,null,"15114","15","BUSBANZÁ","15001","Vía Tipo 3",83.7,"NA",0,0.73814157705004546,4,15]
[null,null,null,null,"15131","15","CALDAS","15001","Vía Tipo 3",89.3,"NA",0,5.5267043522324721,4.5,15]
[null,null,null,null,"15135","15","CAMPOHERMOSO","15001","Vía Tipo 4",131,"NA",0,6.6856749432456688,4,15]
[null,null,null,null,"15162","15","CERINZA","15001","Vía Tipo 3",73.099999999999994,"NA",0,1.5805706877604599,4.5,15]
[null,null,null,null,"15172","15","CHINAVITA","15001","Vía Tipo 3",65.2,"NA",0,3.8510477402191809,4.5,15]
[null,null,null,null,"15176","15","CHIQUINQUIRÁ","15001","Vía Tipo 1",77.2,"NA",0,4.8677375661018383,4,15]
[null,null,null,null,"15180","15","CHISCAS","15001","Vía Tipo 5",230,"NA",0,4.7497538661406233,4,15]
[null,null,null,null,"15183","15","CHITA","15001","Vía Tipo 4",180,"NA",0,11.200983723163302,4,15]
[null,null,null,null,"15185","15","CHITARAQUE","15001","Vía Tipo 4",105,"NA",0,4.8170577220213895,4,15]
[null,null,null,null,"15187","15","CHIVATÁ","15001","Vía Tipo 1",11.8,"NA",0,3.0814370517155441,4.5,15]
[null,null,null,null,"15189","15","CIÉNEGA","15001","Vía Tipo 4",36.9,"NA",0,2.5209391070969924,4.5,15]
[null,null,null,null,"15204","15","CÓMBITA","15001","Vía Tipo 1",15,"NA",0,5.1382793426408409,4.5,15]
[null,null,null,null,"15212","15","COPER","15001","Vía Tipo 4",142,"NA",0,4.4451660858870543,4,15]
[null,null,null,null,"15215","15","CORRALES","15001","Vía Tipo 1",84.8,"NA",0,2.7222748866214732,4.5,15]
[null,null,null,null,"15218","15","COVARACHÍA","15001","Vía Tipo 4",192,"NA",0,3.4288566969969594,4,15]
[null,null,null,null,"15223","15","CUBARÁ","15001","Vía Tipo 3",393,"NA",0,14.930807372324935,4,15]
[null,null,null,null,"15224","15","CUCAITA","15001","Vía Tipo 1",17.8,"NA",0,1.5193314392020003,5,15]
[null,null,null,null,"15226","15","CUÍTIVA","15001","Vía Tipo 3",72.900000000000006,"NA",0,2.8975518129283442,5,15]
[null,null,null,null,"15232","15","CHÍQUIZA","15001","Vía Tipo 4",36.299999999999997,"NA",0,4.3622305982000755,4.5,15]
[null,null,null,null,"15236","15","CHIVOR","15001","Vía Tipo 5",169,"NA",0,3.1639499632974846,3.5,15]
[null,null,null,null,"15238","15","DUITAMA","15001","Vía Tipo 1",54,"NA",0,5.5467601642484761,4,15]
[null,null,null,null,"15244","15","EL COCUY","15001","Vía Tipo 4",245,"NA",0,2.1835820633756824,4,15]
[null,null,null,null,"15248","15","EL ESPINO","15001","Vía Tipo 4",226,"NA",0,4.1036234258175792,4,15]
[null,null,null,null,"15272","15","FIRAVITOBA","15001","Vía Tipo 3",80.7,"NA",0,4.5924254168076057,4.5,15]
[null,null,null,null,"15276","15","FLORESTA","15001","Vía Tipo 4",75.8,"NA",0,3.1979984659110858,4.5,15]
[null,null,null,null,"15293","15","GACHANTIVÁ","15001","Vía Tipo 1",50.2,"NA",0,3.7160243418804817,4.5,15]
[null,null,null,null,"15296","15","GÁMEZA","15001","Vía Tipo 1",85.6,"NA",0,3.0654757263206767,4.5,15]
[null,null,null,null,"15299","15","GARAGOA","15001","Vía Tipo 1",77.8,"NA",0,4.7676122212949492,4,15]
[null,null,null,null,"15317","15","GUACAMAYAS","15001","Vía Tipo 4",231,"NA",0,1.2847318497231661,4,15]
[null,null,null,null,"15322","15","GUATEQUE","15001","Vía Tipo 1",101,"NA",0,2.946749404616662,4.5,15]
[null,null,null,null,"15325","15","GUAYATÁ","15001","Vía Tipo 3",134,"NA",0,2.9063852385282547,4,15]
[null,null,null,null,"15332","15","GÜICÁN DE LA SIERRA","15001","Vía Tipo 4",248,"NA",0,14.280361393890987,4,15]
[null,null,null,null,"15362","15","IZA","15001","Vía Tipo 3",84.8,"NA",0,2.8808801560381494,5,15]
[null,null,null,null,"15367","15","JENESANO","15001","Vía Tipo 1",30.5,"NA",0,4.3797227992277747,4.5,15]
[null,null,null,null,"15368","15","JERICÓ","15001","Vía Tipo 4",152,"NA",0,3.3386732112564115,4,15]
[null,null,null,null,"15377","15","LABRANZAGRANDE","15001","Vía Tipo 5",161,"NA",0,7.2779990459164665,4,15]
[null,null,null,null,"15380","15","LA CAPILLA","15001","Vía Tipo 3",93.2,"NA",0,1.8991704948393715,4.5,15]
[null,null,null,null,"15401","15","LA VICTORIA","15001","Vía Tipo 5",160,"NA",0,1.9130137531431457,4,15]
[null,null,null,null,"15403","15","LA UVITA","15001","Vía Tipo 4",199,"NA",0,6.3751061675126195,4,15]
[null,null,null,null,"15407","15","VILLA DE LEYVA","15001","Vía Tipo 1",38.299999999999997,"NA",0,4.4519824699553601,4.5,15]
[null,null,null,null,"15425","15","MACANAL","15001","Vía Tipo 3",101,"NA",0,5.6376178265892509,4,15]
[null,null,null,null,"15442","15","MARIPÍ","15001","Vía Tipo 4",114,"NA",0,5.2214921982859632,4,15]
[null,null,null,null,"15455","15","MIRAFLORES","15001","Vía Tipo 3",98.6,"NA",0,4.232116628912423,4,15]
[null,null,null,null,"15464","15","MONGUA","15001","Vía Tipo 1",90,"NA",0,10.54283584935123,4.5,15]
[null,null,null,null,"15466","15","MONGUÍ","15001","Vía Tipo 1",84,"NA",0,2.3047234293502261,4.5,15]
[null,null,null,null,"15469","15","MONIQUIRÁ","15001","Vía Tipo 1",60.5,"NA",0,5.2765259453153339,4,15]
[null,null,null,null,"15476","15","MOTAVITA","15001","Vía Tipo 1",4.5999999999999996,"NA",0,4.5067894171163863,4.5,15]
[null,null,null,null,"15480","15","MUZO","15001","Vía Tipo 4",144,"NA",0,4.6292137431673632,3.5,15]
[null,null,null,null,"15491","15","NOBSA","15001","Vía Tipo 1",68.099999999999994,"NA",0,2.3467688507259776,4.5,15]
[null,null,null,null,"15494","15","NUEVO COLÓN","15001","Vía Tipo 1",31.5,"NA",0,3.1362540758904567,4.5,15]
[null,null,null,null,"15500",{"$f":"TEXT(MID(E259,1,2),\"00\")","v":"15"},"OICATÁ","15001","Vía Tipo 1",13.2,"NA",0,2.9460935680394442,4.5,15]
[null,null,null,null,"15507","15","OTANCHE","15001","Vía Tipo 4",167,"NA",0,10.69133677844132,3.5,15]
[null,null,null,null,"15511","15","PACHAVITA","15001","Vía Tipo 4",79.099999999999994,"NA",0,2.9291558337394927,4.5,15]
[null,null,null,null,"15514","15","PÁEZ","15001","Vía Tipo 4",113,"NA",0,5.6443518734063378,3.5,15]
[null,null,null,null,"15516","15","PAIPA","15001","Vía Tipo 1",41.5,"NA",0,6.8779876546652732,4,15]
[null,null,null,null,"15518","15","PAJARITO","15001","Vía Tipo 3",129,"NA",0,9.554516087215184,4,15]
[null,null,null,null,"15522","15","PANQUEBA","15001","Vía Tipo 4",238,"NA",0,1.9419355558057585,4,15]
[null,null,null,null,"15531","15","PAUNA","15001","Vía Tipo 1",118,"NA",0,4.3834730461797147,4,15]
[null,null,null,null,"15533","15","PAYA","15001","Vía Tipo 5",188,"NA",0,8.3942034945803474,4,15]
[null,null,null,null,"15537","15","PAZ DE RÍO","15001","Vía Tipo 3",104,"NA",0,4.003790291563913,4.5,15]
[null,null,null,null,"15542","15","PESCA","15001","Vía Tipo 3",65.099999999999994,"NA",0,6.156826103046499,4.5,15]
[null,null,null,null,"15550","15","PISBA","15001","Vía Tipo 5",194,"NA",0,9.9596526811170207,4,15]
[null,null,null,null,"15572","15","PUERTO BOYACÁ","15001","Vía Tipo 3",272,"NA",0,18.488762841292377,4,15]
[null,null,null,null,"15580","15","QUÍPAMA","15001","Vía Tipo 4",177,"NA",0,5.4549055368765975,4,15]
[null,null,null,null,"15599","15","RAMIRIQUÍ","15001","Vía Tipo 1",30,"NA",0,5.9944986831598284,4,15]
[null,null,null,null,"15600","15","RÁQUIRA","15001","Vía Tipo 3",30.3,"NA",0,5.1118132088617712,4.5,15]
[null,null,null,null,"15621","15","RONDÓN","15001","Vía Tipo 4",56.1,"NA",0,2.6446539744495907,4,15]
[null,null,null,null,"15632","15","SABOYÁ","15001","Vía Tipo 4",84.6,"NA",0,6.0543214452765932,4,15]
[null,null,null,null,"15638","15","SÁCHICA","15001","Vía Tipo 3",33.200000000000003,"NA",0,3.245614254307013,4.5,15]
[null,null,null,null,"15646","15","SAMACÁ","15001","Vía Tipo 1",28.1,"NA",0,3.7012872017199605,4.5,15]
[null,null,null,null,"15660","15","SAN EDUARDO","15001","Vía Tipo 4",99.2,"NA",0,2.2013034048428195,4,15]
[null,null,null,null,"15664","15","SAN JOSÉ DE PARE","15001","Vía Tipo 3",85.3,"NA",0,4.233996927193715,4,15]
[null,null,null,null,"15667","15","SAN LUIS DE GACENO","15001","Vía Tipo 3",140,"NA",0,11.827370460162159,4,15]
[null,null,null,null,"15673","15","SAN MATEO","15001","Vía Tipo 4",205,"NA",0,3.9952545028461133,4,15]
[null,null,null,null,"15676","15","SAN MIGUEL DE SEMA","15001","Vía Tipo 3",86.3,"NA",0,3.8095415502577858,4.5,15]
[null,null,null,null,"15681","15","SAN PABLO DE BORBUR","15001","Vía Tipo 4",140,"NA",0,5.915963225478782,3.5,15]
[null,null,null,null,"15686","15","SANTANA","15001","Vía Tipo 3",94.4,"NA",0,3.2173384923539037,4,15]
[null,null,null,null,"15690","15","SANTA MARÍA","15001","Vía Tipo 3",120,"NA",0,6.9181994258010171,4,15]
[null,null,null,null,"15693","15","SANTA ROSA DE VITERBO","15001","Vía Tipo 3",62.4,"NA",0,3.6735692609339718,4,15]
[null,null,null,null,"15696","15","SANTA SOFÍA","15001","Vía Tipo 3",52.4,"NA",0,3.1133234972622779,4.5,15]
[null,null,null,null,"15720","15","SATIVANORTE","15001","Vía Tipo 4",144,"NA",0,3.6531950637406116,4.5,15]
[null,null,null,null,"15723","15","SATIVASUR","15001","Vía Tipo 5",128,"NA",0,2.4479226645903363,4.5,15]
[null,null,null,null,"15740","15","SIACHOQUE","15001","Vía Tipo 1",16.3,"NA",0,3.5974138133340254,4.5,15]
[null,null,null,null,"15753","15","SOATÁ","15001","Vía Tipo 3",160,"NA",0,2.9872587396002537,4,15]
[null,null,null,null,"15755","15","SOCOTÁ","15001","Vía Tipo 3",136,"NA",0,6.444875589204444,4,15]
[null,null,null,null,"15757","15","SOCHA","15001","Vía Tipo 3",114,"NA",0,3.8741822887082451,4.5,15]
[null,null,null,null,"15759","15","SOGAMOSO","15001","Vía Tipo 1",70.599999999999994,"NA",0,7.3235503878239019,4.5,15]
[null,null,null,null,"15761","15","SOMONDOCO","15001","Vía Tipo 3",99.8,"NA",0,3.1873087532964544,4,15]
[null,null,null,null,"15762","15","SORA","15001","Vía Tipo 3",14.4,"NA",0,3.7851151278070034,5,15]
[null,null,null,null,"15763","15","SOTAQUIRÁ","15001","Vía Tipo 1",36.5,"NA",0,4.9876760153361417,4,15]
[null,null,null,null,"15764","15","SORACÁ","15001","Vía Tipo 1",8.5,"NA",0,3.0198035424376872,4.5,15]
[null,null,null,null,"15774","15","SUSACÓN","15001","Vía Tipo 6",137,"NA",0,5.2796325987576056,4,15]
[null,null,null,null,"15776","15","SUTAMARCHÁN","15001","Vía Tipo 3",44.3,"NA",0,3.9800010813264612,4.5,15]
[null,null,null,null,"15778","15","SUTATENZA","15001","Vía Tipo 3",103,"NA",0,2.7526580199749424,4.5,15]
[null,null,null,null,"15790","15","TASCO","15001","Vía Tipo 2",104,"NA",0,4.3288649652871278,4.5,15]
[null,null,null,null,"15798","15","TENZA","15001","Vía Tipo 3",88.9,"NA",0,2.2174208920869609,4.5,15]
[null,null,null,null,"15804","15","TIBANÁ","15001","Vía Tipo 1",40.700000000000003,"NA",0,4.0681585096604902,4.5,15]
[null,null,null,null,"15806","15","TIBASOSA","15001","Vía Tipo 1",62,"NA",0,3.7838651605938125,4.5,15]
[null,null,null,null,"15808","15","TINJACÁ","15001","Vía Tipo 3",49.9,"NA",0,3.6123847021963194,4.5,15]
[null,null,null,null,"15810","15","TIPACOQUE","15001","Vía Tipo 3",170,"NA",0,2.9335299558637953,4,15]
[null,null,null,null,"15814","15","TOCA","15001","Vía Tipo 1",26.1,"NA",0,4.4091333134315471,4.5,15]
[null,null,null,null,"15816","15","TOGÜÍ","15001","Vía Tipo 4",69.3,"NA",0,3.3444324732659036,4,15]
[null,null,null,null,"15820","15","TÓPAGA","15001","Vía Tipo 1",83.5,"NA",0,1.9957531297189532,4.5,15]
[null,null,null,null,"15822","15","TOTA","15001","Vía Tipo 3",87,"NA",0,5.5797864726348889,4.5,15]
[null,null,null,null,"15832","15","TUNUNGUÁ","15001","Vía Tipo 4",129,"NA",0,2.399376626874357,3.5,15]
[null,null,null,null,"15835","15","TURMEQUÉ","15001","Vía Tipo 3",42.4,"NA",0,4.0834154754867935,4.5,15]
[null,null,null,null,"15837","15","TUTA","15001","Vía Tipo 3",24.6,"NA",0,5.96505721161608,4.5,15]
[null,null,null,null,"15839","15","TUTAZÁ","15001","Vía Tipo 3",96.8,"NA",0,6.0709534571491908,4.5,15]
[null,null,null,null,"15842","15","ÚMBITA","15001","Vía Tipo 4",78.7,"NA",0,3.6685076251091693,4,15]
[null,null,null,null,"15861","15","VENTAQUEMADA","15001","Vía Tipo 1",35.200000000000003,"NA",0,5.0125013428315102,4,15]
[null,null,null,null,"15879","15","VIRACACHÁ","15001","Vía Tipo 4",23.7,"NA",0,2.5521349722782842,4.5,15]
[null,null,null,null,"15897","15","ZETAQUIRA","15001","Vía Tipo 3",72.599999999999994,"NA",0,4.1873589010540595,4,15]
[null,null,null,null,"17001","17","MANIZALES","76001","Vía Tipo 1",261,"NA",0,8.9338421937469068,4,15]
[null,null,null,null,"17013","17","AGUADAS","17001","Vía Tipo 4",121,"NA",0,6.1171861076853569,4,15]
[null,null,null,null,"17042",{"$f":"TEXT(MID(E323,1,2),\"00\")","v":"17"},"ANSERMA","17001","Vía Tipo 3",71.3,"NA",0,5.7418989396100271,4,15]
[null,null,null,null,"17050","17","ARANZAZU","17001","Vía Tipo 4",50.5,"NA",0,4.0891351200898214,3.5,15]
[null,null,null,null,"17088","17","BELALCÁZAR","17001","Vía Tipo 3",69.7,"NA",0,5.2803976088285225,4.5,15]
[null,null,null,null,"17174","17","CHINCHINÁ","17001","Vía Tipo 3",25.5,"NA",0,7.0106868067073798,4,15]
[null,null,null,null,"17272","17","FILADELFIA","17001","Vía Tipo 3",85.2,"NA",0,6.3034727595507247,4,15]
[null,null,null,null,"17380","17","LA DORADA","17001","Vía Tipo 3",171,"NA",0,15.220917498561564,4,15]
[null,null,null,null,"17388","17","LA MERCED","17001","Vía Tipo 4",63.4,"NA",0,3.0680178455688778,4,15]
[null,null,null,null,"17433","17","MANZANARES","17001","Vía Tipo 3",107,"NA",0,6.9088811092632598,3.5,15]
[null,null,null,null,"17442","17","MARMATO","17001","Vía Tipo 5",88.1,"NA",0,4.4219569682591242,4.5,15]
[null,null,null,null,"17444","17","MARQUETALIA","17001","Vía Tipo 5",133,"NA",0,5.1371565357230624,3.5,15]
[null,null,null,null,"17446","17","MARULANDA","17001","Vía Tipo 4",127,"NA",0,5.7617415318595917,3.5,15]
[null,null,null,null,"17486","17","NEIRA","17001","Vía Tipo 3",20.399999999999999,"NA",0,10.454590071205052,3.5,15]
[null,null,null,null,"17495","17","NORCASIA","17001","Vía Tipo 5",213,"NA",0,7.6154952043357946,3.5,15]
[null,null,null,null,"17513","17","PÁCORA","17001","Vía Tipo 4",106,"NA",0,7.0106868067073798,4,15]
[null,null,null,null,"17524","17","PALESTINA","17001","Vía Tipo 3",30.3,"NA",0,7.0106868067073798,3.5,15]
[null,null,null,null,"17541","17","PENSILVANIA","17001","Vía Tipo 4",138,"NA",0,11.503974664243554,3.5,15]
[null,null,null,null,"17614","17","RIOSUCIO","17001","Vía Tipo 3",93.3,"NA",0,8.951150584153309,4,15]
[null,null,null,null,"17616","17","RISARALDA","17001","Vía Tipo 3",340.786,"NA",0,2.7163406863278179,4,15]
[null,null,null,null,"17653","17","SALAMINA","17001","Vía Tipo 4",72.5,"NA",0,6.4032288951247178,3,15]
[null,null,null,null,"17662","17","SAMANÁ","17001","Vía Tipo 4",171,"NA",0,17.316915982488492,4,15]
[null,null,null,null,"17665","17","SAN JOSÉ","17001","Vía Tipo 3",63.4,"NA",0,2.4583762369868705,4.5,15]
[null,null,null,null,"17777","17","SUPÍA","17001","Vía Tipo 3",80.900000000000006,"NA",0,3.525243992513071,4,15]
[null,null,null,null,"17867","17","VICTORIA","17001","Vía Tipo 5",135,"NA",0,7.8962108183534623,3.5,15]
[null,null,null,null,"17873","17","VILLAMARÍA","17001","Vía Tipo 3",5.9,"NA",0,6.6210075004853408,3.5,15]
[null,null,null,null,"17877","17","VITERBO","17001","Vía Tipo 3",74.8,"NA",0,3.5902360175180972,4,15]
[null,null,null,null,"18001","18","FLORENCIA","41001","Vía Tipo 1",67,"NA",0,16.67398109978225,4,15]
[null,null,null,null,"18029","18","ALBANIA","18001","Vía Tipo 4",69.599999999999994,"NA",0,12.486235771333847,4,15]
[null,null,null,null,"18094","18","BELÉN DE LOS ANDAQUÍES","18001","Vía Tipo 3",43,"NA",0,13.083793765701493,3.5,15]
[null,null,null,null,"18150","18","CARTAGENA DEL CHAIRÁ","18001","Vía Tipo 5",120.5,"NA",0,46.151122046977953,4,15]
[null,null,null,null,"18205","18","CURILLO","18001","Vía Tipo 4",106.3,"NA",0,12.069054461981274,3.5,15]
[null,null,null,null,"18247","18","EL DONCELLO","18001","Vía Tipo 3",67,"NA",0,13.30492922090033,4,15]
[null,null,null,null,"18256","18","EL PAUJÍL","18001","Vía Tipo 3",52,"NA",0,22.652643128816923,4,15]
[null,null,null,null,"18410","18","LA MONTAÑITA","18001","Vía Tipo 3",32,"NA",0,27.618408726271049,4,15]
[null,null,null,null,"18460","18","MILÁN","18001","Vía Tipo 4",70,"NA",0,27.08523503211979,4,15]
[null,null,null,null,"18479","18","MORELIA","18001","Vía Tipo 3",23,"NA",0,12.72123386226435,4,15]
[null,null,null,null,"18592","18","PUERTO RICO","18001","Vía Tipo 3",96.8,"NA",0,20.862517698146561,4,15]
[null,null,null,null,"18610","18","SAN JOSÉ DEL FRAGUA","18001","Vía Tipo 4",59.2,"NA",0,18.711871843817693,3.5,15]
[null,null,null,null,"18753","18","SAN VICENTE DEL CAGUÁN","18001","Vía Tipo 5",150.19999999999999,"NA",0,49.792431056466235,4,15]
[null,null,null,null,"18756","18","SOLANO","18001","Fluvial",130,"NA",0,118.41876433906899,4,15]
[null,null,null,null,"18785","18","SOLITA","18001","Vía Tipo 5",108.5,"NA",0,12.060355251374812,4,15]
[null,null,null,null,"18860","18","VALPARAÍSO","18001","Vía Tipo 5",66.5,"NA",0,17.972257870042387,4,15]
[null,null,null,null,"19001","19","POPAYÁN","76001","Vía Tipo 1",140,"NA",0,11.518849579619957,3.5,15]
[null,null,null,null,"19022","19","ALMAGUER","19001","Vía Tipo 4",144,"NA",0,6.1116755264843015,3.5,15]
[null,null,null,null,"19050","19","ARGELIA","19001","Vía Tipo 5",170,"NA",0,13.048512280502639,4,15]
[null,null,null,null,"19075","19","BALBOA","19001","Vía Tipo 5",132,"NA",0,8.852510310012736,4,15]
[null,null,null,null,"19100","19","BOLÍVAR","19001","Vía Tipo 4",107,"NA",0,15.914232214533785,4,15]
[null,null,null,null,"19110","19","BUENOS AIRES","19001","Vía Tipo 4",112,"NA",0,15.392354213674267,4,15]
[null,null,null,null,"19130","19","CAJIBÍO","19001","Vía Tipo 3",34.299999999999997,"NA",0,19.477877081950428,4,15]
[null,null,null,null,"19137","19","CALDONO","19001","Vía Tipo 3",81.5,"NA",0,8.1420123445102011,4,15]
[null,null,null,null,"19142","19","CALOTO","19001","Vía Tipo 3",95.2,"NA",0,3.9432775894083902,4,15]
[null,null,null,null,"19212","19","CORINTO","19001","Vía Tipo 3",121,"NA",0,14.836421891064219,4,15]
[null,null,null,null,"19256","19","EL TAMBO","19001","Vía Tipo 3",35.1,"NA",0,40.531406453642511,3.5,15]
[null,null,null,null,"19290","19","FLORENCIA","19001","Vía Tipo 4",296,"NA",0,19.477877081950428,4,15]
[null,null,null,null,"19300","19","GUACHENÉ","19001","Vía Tipo 4",115,"NA",0,19.477877081950428,4,15]
[null,null,null,null,"19318","19","GUAPI","76109","Marítimo",172.6,"NA",0,20.890843837440595,3.5,15]
[null,null,null,null,"19355","19","INZÁ","19001","Vía Tipo 3",102,"NA",0,13.889972945206912,3.5,15]
[null,null,null,null,"19364","19","JAMBALÓ","19001","Vía Tipo 3",88.1,"NA",0,7.6476411951309871,4,15]
[null,null,null,null,"19392","19","LA SIERRA","19001","Vía Tipo 4",56,"NA",0,12.998940548047978,4,15]
[null,null,null,null,"19397","19","LA VEGA","19001","Vía Tipo 3",98.7,"NA",0,15.751065774572679,3,15]
[null,null,null,null,"19418","19","LÓPEZ DE MICAY","76109","Marítimo",189.2,"NA",0,28.962219706073547,3.5,15]
[null,null,null,null,"19450","19","MERCADERES","19001","Vía Tipo 3",139,"NA",0,9.9622584646322796,4.5,15]
[null,null,null,null,"19455","19","MIRANDA","19001","Vía Tipo 3",135,"NA",0,14.854742170005924,4,15]
[null,null,null,null,"19473","19","MORALES","19001","Vía Tipo 3",51.8,"NA",0,25.115678794826689,4,15]
[null,null,null,null,"19513","19","PADILLA","19001","Vía Tipo 3",123,"NA",0,19.477877081950428,4,15]
[null,null,null,null,"19517",{"$f":"TEXT(MID(E387,1,2),\"00\")","v":"19"},"PÁEZ","19001","Vía Tipo 4",138,"NA",0,19.29069293831996,3,15]
[null,null,null,null,"19532","19","PATÍA","19001","Vía Tipo 3",81.7,"NA",0,26.270189729663819,4,15]
[null,null,null,null,"19533","19","PIAMONTE","19001","Vía Tipo 5",385.8,"NA",0,16.948708660422678,3.5,15]
[null,null,null,null,"19548","19","PIENDAMÓ - TUNÍA","19001","Vía Tipo 6",34.5,"NA",0,19.477877081950428,4,15]
[null,null,null,null,"19573","19","PUERTO TEJADA","19001","Vía Tipo 3",111,"NA",0,19.477877081950428,4,15]
[null,null,null,null,"19585","19","PURACÉ","19001","Vía Tipo 3",44.4,"NA",0,19.459479655852331,3.5,15]
[null,null,null,null,"19622","19","ROSAS","19001","Vía Tipo 3",40,"NA",0,9.3013625878388879,3.5,15]
[null,null,null,null,"19693","19","SAN SEBASTIÁN","19001","Vía Tipo 4",143,"NA",0,6.7942679689331387,3.5,15]
[null,null,null,null,"19698","19","SANTANDER DE QUILICHAO","19001","Vía Tipo 3",83.9,"NA",0,19.477877081950428,4,15]
[null,null,null,null,"19701","19","SANTA ROSA","19001","Vía Tipo 3",182,"NA",0,36.415149734623299,3,15]
[null,null,null,null,"19743","19","SILVIA","19001","Vía Tipo 3",59,"NA",0,10.303028487847582,4,15]
[null,null,null,null,"19760","19","SOTARÁ PAISPAMBA","19001","Vía Tipo 4",34.9,"NA",0,7.0383349797566384,3.5,15]
[null,null,null,null,"19780","19","SUÁREZ","19001","Vía Tipo 3",80.8,"NA",0,16.326086447241934,4,15]
[null,null,null,null,"19785","19","SUCRE","19001","Vía Tipo 4",101,"NA",0,4.485112243217432,4,15]
[null,null,null,null,"19807","19","TIMBÍO","19001","Vía Tipo 3",14.4,"NA",0,19.477877081950428,4,15]
[null,null,null,null,"19809","19","TIMBIQUÍ","76109","Marítimo",165,"NA",0,17.573924814178142,3.5,15]
[null,null,null,null,"19821","19","TORIBÍO","19001","Vía Tipo 4",128,"NA",0,6.4018898877007731,4,15]
[null,null,null,null,"19824","19","TOTORÓ","19001","Vía Tipo 3",35.5,"NA",0,18.900826023510433,3.5,15]
[null,null,null,null,"19845","19","VILLA RICA","19001","Vía Tipo 3",106,"NA",0,19.477877081950428,4.5,15]
[null,null,null,null,"20001","20","VALLEDUPAR","08001","Vía Tipo 1",301,"NA",0,31.661141988248801,5,15]
[null,null,null,null,"20011","20","AGUACHICA","68001","Vía Tipo 1",169,"NA",0,12.999039236228445,4.5,15]
[null,null,null,null,"20013","20","AGUSTÍN CODAZZI","20001","Vía Tipo 3",260,"NA",0,18.338979786959765,5,15]
[null,null,null,null,"20032","20","ASTREA","20001","Vía Tipo 3",170,"NA",0,9.6181562191019605,5,15]
[null,null,null,null,"20045","20","BECERRIL","20001","Vía Tipo 3",270,"NA",0,13.647310937206548,5,15]
[null,null,null,null,"20060","20","BOSCONIA","20001","Vía Tipo 3",95.5,"NA",0,8.9727823991585076,5.5,15]
[null,null,null,null,"20175","20","CHIMICHAGUA","20001","Vía Tipo 3",160,"NA",0,14.266711432210768,5,15]
[null,null,null,null,"20178","20","CHIRIGUANÁ","20001","Vía Tipo 3",158,"NA",0,10.841293966777538,5,15]
[null,null,null,null,"20228","20","CURUMANÍ","20001","Vía Tipo 3",172,"NA",0,9.8661655950825828,5,15]
[null,null,null,null,"20238","20","EL COPEY","20001","Vía Tipo 3",117,"NA",0,12.433877428526134,5,15]
[null,null,null,null,"20250","20","EL PASO","20001","Vía Tipo 3",137,"NA",0,13.336365903473505,5.5,15]
[null,null,null,null,"20295","20","GAMARRA","68001","Vía Tipo 1",184,"NA",0,7.2115453258747904,4.5,15]
[null,null,null,null,"20310","20","GONZÁLEZ","68001","Vía Tipo 4",228,"NA",0,3.641072136262725,4,15]
[null,null,null,null,"20383","20","LA GLORIA","68001","Vía Tipo 4",225,"NA",0,26.908647245546689,4,15]
[null,null,null,null,"20400","20","LA JAGUA DE IBIRICO","20001","Vía Tipo 3",125,"NA",0,10.565941902688575,5,15]
[null,null,null,null,"20443","20","MANAURE BALCÓN DEL CESAR","20001","Vía Tipo 3",250,"NA",0,3.1208969993744868,4.5,15]
[null,null,null,null,"20517","20","PAILITAS","20001","Vía Tipo 3",205,"NA",0,10.657295515077223,4.5,15]
[null,null,null,null,"20550","20","PELAYA","68001","Vía Tipo 1",213,"NA",0,12.004001518509913,4,15]
[null,null,null,null,"20570","20","PUEBLO BELLO","20001","Vía Tipo 5",56.3,"NA",0,12.098108716097173,5,15]
[null,null,null,null,"20614","20","RÍO DE ORO","68001","Vía Tipo 1",208,"NA",0,13.377891406672591,4,15]
[null,null,null,null,"20621","20","LA PAZ","20001","Vía Tipo 3",250,"NA",0,21.454284540407304,4.5,15]
[null,null,null,null,"20710","20","SAN ALBERTO","68001","Vía Tipo 1",99.6,"NA",0,13.607538780221518,4,15]
[null,null,null,null,"20750","20","SAN DIEGO","20001","Vía Tipo 3",17.2,"NA",0,19.511967754304727,5,15]
[null,null,null,null,"20770","20","SAN MARTÍN","20001","Vía Tipo 3",92.8,"NA",0,11.701630802207006,4.5,15]
[null,null,null,null,"20787","20","TAMALAMEQUE","20001","Vía Tipo 3",232,"NA",0,10.676807531413885,4.5,15]
[null,null,null,null,"23001","23","MONTERÍA","08001","Vía Tipo 1",354,"NA",0,27.442014422909292,4.5,15]
[null,null,null,null,"23068","23","AYAPEL","23001","Vía Tipo 3",142,"NA",0,20.86947864845942,4.5,15]
[null,null,null,null,"23079","23","BUENAVISTA","23001","Vía Tipo 3",77.3,"NA",0,10.069365130991782,5,15]
[null,null,null,null,"23090","23","CANALETE","23001","Vía Tipo 5",49.8,"NA",0,10.905640941952612,4.5,15]
[null,null,null,null,"23162","23","CERETÉ","23001","Vía Tipo 3",20.3,"NA",0,8.8531739009754649,5,15]
[null,null,null,null,"23168","23","CHIMÁ","23001","Vía Tipo 3",74.900000000000006,"NA",0,10.522862155928776,4.5,15]
[null,null,null,null,"23182","23","CHINÚ","23001","Vía Tipo 3",94.2,"NA",0,11.863882115198981,5,15]
[null,null,null,null,"23189","23","CIÉNAGA DE ORO","23001","Vía Tipo 3",41.7,"NA",0,12.29200171531377,5,15]
[null,null,null,null,"23300","23","COTORRA","23001","Vía Tipo 3",45.3,"NA",0,4.9088829578736064,5,15]
[null,null,null,null,"23350","23","LA APARTADA","23001","Vía Tipo 3",103,"NA",0,5.6051505261312728,4.5,15]
[null,null,null,null,"23417","23","LORICA","23001","Vía Tipo 3",64.099999999999994,"NA",0,14.051574172139404,5,15]
[null,null,null,null,"23419","23","LOS CÓRDOBAS","23001","Vía Tipo 3",60.4,"NA",0,10.10842174226693,4,15]
[null,null,null,null,"23464","23","MOMIL","23001","Vía Tipo 3",80.2,"NA",0,5.6599352708481891,5,15]
[null,null,null,null,"23466","23","MONTELÍBANO","23001","Vía Tipo 3",116,"NA",0,39.297633096059876,4.5,15]
[null,null,null,null,"23500","23","MOÑITOS","23001","Vía Tipo 4",75.8,"NA",0,7.4179000757657585,4.5,15]
[null,null,null,null,"23555","23","PLANETA RICA","23001","Vía Tipo 3",53.8,"NA",0,15.016498271307428,4.5,15]
[null,null,null,null,"23570","23","PUEBLO NUEVO","23001","Vía Tipo 3",66.599999999999994,"NA",0,14.497629168779962,5,15]
[null,null,null,null,"23574","23","PUERTO ESCONDIDO","23001","Vía Tipo 3",67,"NA",0,10.274791365864134,4.5,15]
[null,null,null,null,"23580","23","PUERTO LIBERTADOR","23001","Vía Tipo 4",153,"NA",0,18.516391885216844,4,15]
[null,null,null,null,"23586","23","PURÍSIMA DE LA CONCEPCIÓN","23001","Vía Tipo 3",74.900000000000006,"NA",0,6.7496028648560085,4.5,15]
[null,null,null,null,"23660",{"$f":"TEXT(MID(E451,1,2),\"00\")","v":"23"},"SAHAGÚN","23001","Vía Tipo 3",74,"NA",0,16.29426608563919,5,15]
[null,null,null,null,"23670","23","SAN ANDRÉS DE SOTAVENTO","23001","Vía Tipo 3",89.8,"NA",0,5.3562416003211304,5,15]
[null,null,null,null,"23672","23","SAN ANTERO","23001","Vía Tipo 3",83.3,"NA",0,5.0846784141633101,4.5,15]
[null,null,null,null,"23675","23","SAN BERNARDO DEL VIENTO","23001","Vía Tipo 3",85.6,"NA",0,10.969732059619982,4.5,15]
[null,null,null,null,"23678","23","SAN CARLOS","23001","Vía Tipo 3",37.299999999999997,"NA",0,13.401543665023816,4,15]
[null,null,null,null,"23682","23","SAN JOSÉ DE URÉ","23001","Vía Tipo 5",148,"NA",0,10.929185273149754,4.5,15]
[null,null,null,null,"23686","23","SAN PELAYO","23001","Vía Tipo 3",31.9,"NA",0,10.611602573623721,5,15]
[null,null,null,null,"23807","23","TIERRALTA","23001","Vía Tipo 3",81.900000000000006,"NA",0,35.222811966381677,4,15]
[null,null,null,null,"23815","23","TUCHÍN","23001","Vía Tipo 3",33.1,"NA",0,4.0569548590243594,5,15]
[null,null,null,null,"23855","23","VALENCIA","23001","Vía Tipo 4",90.5,"NA",0,15.358592861239913,4,15]
[null,null,null,null,"25001","25","AGUA DE DIOS","11001","Vía Tipo 3",124,"NA",0,5.1915348872741127,4.5,15]
[null,null,null,null,"25019","25","ALBÁN","11001","Vía Tipo 3",60.6,"NA",0,3.3747269899732277,3.5,15]
[null,null,null,null,"25035","25","ANAPOIMA","11001","Vía Tipo 1",89.8,"NA",0,4.8494219663261484,4,15]
[null,null,null,null,"25040","25","ANOLAIMA","11001","Vía Tipo 3",75.400000000000006,"NA",0,4.2901826173477318,3.5,15]
[null,null,null,null,"25053","25","ARBELÁEZ","11001","Vía Tipo 3",89.1,"NA",0,4.2986505675168853,3.5,15]
[null,null,null,null,"25086","25","BELTRÁN","11001","Vía Tipo 5",149,"NA",0,4.0123937949576272,4,15]
[null,null,null,null,"25095","25","BITUIMA","11001","Vía Tipo 3",85.5,"NA",0,4.4030134730015922,4,15]
[null,null,null,null,"25099","25","BOJACÁ","11001","Vía Tipo 3",44.8,"NA",0,6.7408683202312538,3.5,15]
[null,null,null,null,"25120","25","CABRERA","11001","Vía Tipo 3",149,"NA",0,5.7121969439299631,4,15]
[null,null,null,null,"25123","25","CACHIPAY","11001","Vía Tipo 1",67.099999999999994,"NA",0,3.6129878649363976,3.5,15]
[null,null,null,null,"25126","25","CAJICÁ","11001","Vía Tipo 1",27.9,"NA",0,2.843846939003599,4,15]
[null,null,null,null,"25148","25","CAPARRAPÍ","11001","Vía Tipo 4",170,"NA",0,9.0548800855581266,4,15]
[null,null,null,null,"25151","25","CÁQUEZA","11001","Vía Tipo 4",60.8,"NA",0,3.6672978877594202,3.5,15]
[null,null,null,null,"25154","25","CARMEN DE CARUPA","11001","Vía Tipo 3",96.9,"NA",0,6.1048973735031771,4,15]
[null,null,null,null,"25168","25","CHAGUANÍ","11001","Vía Tipo 3",111,"NA",0,3.6616233005935648,4,15]
[null,null,null,null,"25175","25","CHÍA","11001","Vía Tipo 1",22.9,"NA",0,3.6509207692741641,4,15]
[null,null,null,null,"25178","25","CHIPAQUE","11001","Vía Tipo 4",45.7,"NA",0,3.6710179734717125,3.5,15]
[null,null,null,null,"25181","25","CHOACHÍ","11001","Vía Tipo 1",53.7,"NA",0,5.5717856614889216,3.5,15]
[null,null,null,null,"25183","25","CHOCONTÁ","11001","Vía Tipo 1",73.900000000000006,"NA",0,5.8870657625162064,4.5,15]
[null,null,null,null,"25200","25","COGUA","11001","Vía Tipo 1",47.7,"NA",0,4.4842300071032337,4,15]
[null,null,null,null,"25214","25","COTA","11001","Vía Tipo 1",16.100000000000001,"NA",0,2.9816835485187414,3.5,15]
[null,null,null,null,"25224","25","CUCUNUBÁ","11001","Vía Tipo 4",90.1,"NA",0,4.374773513468238,4,15]
[null,null,null,null,"25245","25","EL COLEGIO","11001","Vía Tipo 1",55.5,"NA",0,4.1638188646085332,4,15]
[null,null,null,null,"25258","25","EL PEÑÓN","11001","Vía Tipo 3",109,"NA",0,4.7258290733914876,4,15]
[null,null,null,null,"25260","25","EL ROSAL","11001","Vía Tipo 2",32.4,"NA",0,3.6049737889913325,3.5,15]
[null,null,null,null,"25269","25","FACATATIVÁ","11001","Vía Tipo 1",44,"NA",0,4.9484012281046459,3.5,15]
[null,null,null,null,"25279","25","FÓMEQUE","11001","Vía Tipo 1",65.099999999999994,"NA",0,4.7919366484803012,4,15]
[null,null,null,null,"25281","25","FOSCA","11001","Vía Tipo 4",77,"NA",0,4.4203225793337557,3.5,15]
[null,null,null,null,"25286","25","FUNZA","11001","Vía Tipo 1",22.8,"NA",0,3.7027579707407705,3.5,15]
[null,null,null,null,"25288","25","FÚQUENE","11001","Vía Tipo 1",100,"NA",0,4.1258772653372668,4.5,15]
[null,null,null,null,"25290","25","FUSAGASUGÁ","11001","Vía Tipo 1",76.2,"NA",0,5.9542791117103633,3.5,15]
[null,null,null,null,"25293","25","GACHALÁ","11001","Vía Tipo 4",144,"NA",0,3.3481689877813468,3.5,15]
[null,null,null,null,"25295","25","GACHANCIPÁ","11001","Vía Tipo 1",47.8,"NA",0,2.8116112987835882,4,15]
[null,null,null,null,"25297","25","GACHETÁ","11001","Vía Tipo 1",99.2,"NA",0,5.4770412175156542,4,15]
[null,null,null,null,"25299","25","GAMA","11001","Vía Tipo 4",114,"NA",0,3.136286737045785,3.5,15]
[null,null,null,null,"25307","25","GIRARDOT","11001","Vía Tipo 3",140,"NA",0,6.2441751738191567,4.5,15]
[null,null,null,null,"25312","25","GRANADA","11001","Vía Tipo 3",48,"NA",0,2.4334528851289234,4,15]
[null,null,null,null,"25317","25","GUACHETÁ","11001","Vía Tipo 1",99.2,"NA",0,3.6794574148682457,4.5,15]
[null,null,null,null,"25320","25","GUADUAS","11001","Vía Tipo 3",123,"NA",0,8.502743506638728,4,15]
[null,null,null,null,"25322","25","GUASCA","11001","Vía Tipo 3",42.9,"NA",0,5.5298910285373619,4,15]
[null,null,null,null,"25324","25","GUATAQUÍ","11001","Vía Tipo 3",145,"NA",0,3.9995712617915928,4,15]
[null,null,null,null,"25326","25","GUATAVITA","11001","Vía Tipo 7",58.5,"NA",0,4.3637237274509841,4.5,15]
[null,null,null,null,"25328","25","GUAYABAL DE SÍQUIMA","11001","Vía Tipo 3",71.3,"NA",0,4.2963820580961132,4,15]
[null,null,null,null,"25335","25","GUAYABETAL","11001","Vía Tipo 4",91.6,"NA",0,5.5491079916169621,3.5,15]
[null,null,null,null,"25339","25","GUTIÉRREZ","11001","Vía Tipo 6",91.4,"NA",0,2.9918698983578378,3.5,15]
[null,null,null,null,"25368","25","JERUSALÉN","11001","Vía Tipo 3",131,"NA",0,6.641684122020866,4.5,15]
[null,null,null,null,"25372","25","JUNÍN","11001","Vía Tipo 1",104,"NA",0,4.0453351555435937,4,15]
[null,null,null,null,"25377","25","LA CALERA","11001","Vía Tipo 1",24.1,"NA",0,7.1962827140269692,3.5,15]
[null,null,null,null,"25386","25","LA MESA","11001","Vía Tipo 1",73.2,"NA",0,4.7402422560392701,3.5,15]
[null,null,null,null,"25394","25","LA PALMA","11001","Vía Tipo 4",136,"NA",0,7.0019739053743262,4,15]
[null,null,null,null,"25398","25","LA PEÑA","11001","Vía Tipo 4",107,"NA",0,5.160028874358769,4,15]
[null,null,null,null,"25402","25","LA VEGA","11001","Vía Tipo 1",65,"NA",0,4.669522512066508,3.5,15]
[null,null,null,null,"25407","25","LENGUAZAQUE","11001","Vía Tipo 3",99.7,"NA",0,4.9749277975850426,4.5,15]
[null,null,null,null,"25426","25","MACHETÁ","11001","Vía Tipo 1",83.1,"NA",0,4.7239185433127453,4.5,15]
[null,null,null,null,"25430",{"$f":"TEXT(MID(E515,1,2),\"00\")","v":"25"},"MADRID","11001","Vía Tipo 1",30,"NA",0,8.7855422105769243,3.5,15]
[null,null,null,null,"25436","25","MANTA","11001","Vía Tipo 1",104,"NA",0,3.2594811129736514,4,15]
[null,null,null,null,"25438","25","MEDINA","11001","Vía Tipo 4",196,"NA",0,14.710202224599939,4,15]
[null,null,null,null,"25473","25","MOSQUERA","11001","Vía Tipo 1",24.7,"NA",0,4.2615262524135673,3,15]
[null,null,null,null,"25483","25","NARIÑO","11001","Vía Tipo 3",162,"NA",0,6.3167187634178052,4.5,15]
[null,null,null,null,"25486","25","NEMOCÓN","11001","Vía Tipo 1",59,"NA",0,4.752881367862325,4,15]
[null,null,null,null,"25488","25","NILO","11001","Vía Tipo 3",143,"NA",0,7.6302399333021498,4.5,15]
[null,null,null,null,"25489","25","NIMAIMA","11001","Vía Tipo 4",85.1,"NA",0,1.8035494501831622,3.5,15]
[null,null,null,null,"25491","25","NOCAIMA","11001","Vía Tipo 1",76,"NA",0,3.4873426767810551,3.5,15]
[null,null,null,null,"25506","25","VENECIA","11001","Vía Tipo 3",16.600000000000001,"NA",0,3.7313351468233993,4,15]
[null,null,null,null,"25513","25","PACHO","11001","Vía Tipo 3",79.900000000000006,"NA",0,8.8756924630423217,4,15]
[null,null,null,null,"25518","25","PAIME","11001","Vía Tipo 4",125,"NA",0,5.3789483923299395,4,15]
[null,null,null,null,"25524","25","PANDI","11001","Vía Tipo 3",112,"NA",0,3.9045081220537634,3.5,15]
[null,null,null,null,"25530","25","PARATEBUENO","11001","Vía Tipo 4",188,"NA",0,16.351689029291236,4,15]
[null,null,null,null,"25535","25","PASCA","11001","Vía Tipo 3",86.1,"NA",0,4.4863697483804845,3.5,15]
[null,null,null,null,"25572","25","PUERTO SALGAR","11001","Vía Tipo 3",189,"NA",0,15.446986833085228,4,15]
[null,null,null,null,"25580","25","PULÍ","11001","Vía Tipo 4",135,"NA",0,4.4664693049674637,4,15]
[null,null,null,null,"25592","25","QUEBRADANEGRA","11001","Vía Tipo 3",103,"NA",0,3.9065873910670312,3.5,15]
[null,null,null,null,"25594","25","QUETAME","11001","Vía Tipo 4",77.7,"NA",0,3.4767384142528517,3.5,15]
[null,null,null,null,"25596","25","QUIPILE","11001","Vía Tipo 3",87.2,"NA",0,4.5955910531886248,3.5,15]
[null,null,null,null,"25599","25","APULO","11001","Vía Tipo 1",101,"NA",0,5.3274719749832746,4,15]
[null,null,null,null,"25612","25","RICAURTE","11001","Vía Tipo 3",136,"NA",0,6.8550929303834698,4.5,15]
[null,null,null,null,"25645","25","SAN ANTONIO DEL TEQUENDAMA","11001","Vía Tipo 1",59.6,"NA",0,3.4630476061600199,3.5,15]
[null,null,null,null,"25649","25","SAN BERNARDO","11001","Vía Tipo 3",108,"NA",0,2.7577741282590686,3.5,15]
[null,null,null,null,"25653","25","SAN CAYETANO","11001","Vía Tipo 6",124,"NA",0,9.3225776540678602,4,15]
[null,null,null,null,"25658","25","SAN FRANCISCO","11001","Vía Tipo 1",60.3,"NA",0,3.7694797917435565,3,15]
[null,null,null,null,"25662","25","SAN JUAN DE RIOSECO","11001","Vía Tipo 3",107,"NA",0,7.2052757295290037,4,15]
[null,null,null,null,"25718","25","SASAIMA","11001","Vía Tipo 3",78.5,"NA",0,4.2965687530829646,3.5,15]
[null,null,null,null,"25736","25","SESQUILÉ","11001","Vía Tipo 1",57.2,"NA",0,5.502355811368278,4,15]
[null,null,null,null,"25740","25","SIBATÉ","11001","Vía Tipo 1",37.299999999999997,"NA",0,2.890905672345685,3.5,15]
[null,null,null,null,"25743","25","SILVANIA","11001","Vía Tipo 1",57.2,"NA",0,7.7785334909356409,4.5,15]
[null,null,null,null,"25745","25","SIMIJACA","11001","Vía Tipo 1",121,"NA",0,2.5274261123916579,4,15]
[null,null,null,null,"25754","25","SOACHA","11001","Vía Tipo 1",24.6,"NA",0,5.108556748607298,4,15]
[null,null,null,null,"25758","25","SOPÓ","11001","Vía Tipo 1",41.1,"NA",0,4.2792077866298213,4,15]
[null,null,null,null,"25769","25","SUBACHOQUE","11001","Vía Tipo 2",39.1,"NA",0,7.123892439145183,3.5,15]
[null,null,null,null,"25772","25","SUESCA","11001","Vía Tipo 1",62.3,"NA",0,5.9670347704692626,4,15]
[null,null,null,null,"25777","25","SUPATÁ","11001","Vía Tipo 3",78.7,"NA",0,4.4266609486103823,3.5,15]
[null,null,null,null,"25779","25","SUSA","11001","Vía Tipo 1",114,"NA",0,3.9308894745337621,4,15]
[null,null,null,null,"25781","25","SUTATAUSA","11001","Vía Tipo 1",74.099999999999994,"NA",0,2.3497539703110002,4,15]
[null,null,null,null,"25785","25","TABIO","11001","Vía Tipo 1",32.4,"NA",0,4.0965819866455453,4,15]
[null,null,null,null,"25793","25","TAUSA","11001","Vía Tipo 1",67.099999999999994,"NA",0,2.9702643854969275,3.5,15]
[null,null,null,null,"25797","25","TENA","11001","Vía Tipo 1",62,"NA",0,3.4181661696756462,3.5,15]
[null,null,null,null,"25799","25","TENJO","11001","Vía Tipo 2",34.5,"NA",0,4.2117733674879929,3.5,15]
[null,null,null,null,"25805","25","TIBACUY","11001","Vía Tipo 1",78.400000000000006,"NA",0,4.8305825017858162,4,15]
[null,null,null,null,"25807","25","TIBIRITA","11001","Vía Tipo 3",101,"NA",0,3.9772483381218313,4.5,15]
[null,null,null,null,"25815","25","TOCAIMA","11001","Vía Tipo 1",113,"NA",0,7.7758575702967656,4.5,15]
[null,null,null,null,"25817","25","TOCANCIPÁ","11001","Vía Tipo 1",38.799999999999997,"NA",0,2.5594927971590224,4,15]
[null,null,null,null,"25823","25","TOPAIPÍ","11001","Vía Tipo 5",127,"NA",0,4.6999396271861551,4,15]
[null,null,null,null,"25839","25","UBALÁ","11001","Vía Tipo 3",123,"NA",0,12.556013480124896,4,15]
[null,null,null,null,"25841","25","UBAQUE","11001","Vía Tipo 3",60.2,"NA",0,3.3992375735083091,3.5,15]
[null,null,null,null,"25843","25","VILLA DE SAN DIEGO DE UBATÉ","11001","Vía Tipo 1",36.1,"NA",0,3.7689872872363477,4,15]
[null,null,null,null,"25845","25","UNE","11001","Vía Tipo 4",59.6,"NA",0,1.9898308026021809,3.5,15]
[null,null,null,null,"25851","25","ÚTICA","11001","Vía Tipo 5",113,"NA",0,5.1612539545423788,4,15]
[null,null,null,null,"25862","25","VERGARA","11001","Vía Tipo 4",88.2,"NA",0,6.2642443016471798,3.5,15]
[null,null,null,null,"25867","25","VIANÍ","11001","Vía Tipo 3",90.6,"NA",0,4.5023847959748222,4,15]
[null,null,null,null,"25871","25","VILLAGÓMEZ","11001","Vía Tipo 4",108,"NA",0,4.1046240540033976,4,15]
[null,null,null,null,"25873","25","VILLAPINZÓN","11001","Vía Tipo 1",86.5,"NA",0,5.8764804814654097,4.5,15]
[null,null,null,null,"25875","25","VILLETA","11001","Vía Tipo 3",90.1,"NA",0,5.3683712062508873,3.5,15]
[null,null,null,null,"25878","25","VIOTÁ","11001","Vía Tipo 3",89.9,"NA",0,6.5403855553542298,4,15]
[null,null,null,null,"25885","25","YACOPÍ","11001","Vía Tipo 4",162,"NA",0,11.723622478563245,4,15]
[null,null,null,null,"25898","25","ZIPACÓN","11001","Vía Tipo 1",51,"NA",0,3.3470349647795143,3.5,15]
[null,null,null,null,"25899","25","ZIPAQUIRÁ","11001","Vía Tipo 1",44,"NA",0,5.3134917174926626,3.5,15]
[null,null,null,null,"27001","27","QUIBDÓ","05001","Vía Tipo 4",237,"NA",0,15.52140974859619,3.5,15]
[null,null,null,null,"27006","27","ACANDÍ","05837","Vía Tipo 1",110,"Marítimo",110,13.385715621318068,3.5,15]
[null,null,null,null,"27025",{"$f":"TEXT(MID(E579,1,2),\"00\")","v":"27"},"ALTO BAUDÓ","27001","Vía Tipo 5",105,"Fluvial",40,18.282759577595776,3.5,15]
[null,null,null,null,"27050","27","ATRATO","27001","Vía Tipo 3",25,"NA",0,7.7670313286847446,3.5,15]
[null,null,null,null,"27073","27","BAGADÓ","27001","Vía Tipo 7",25,"Fluvial",51,26.376256896639095,3.5,15]
[null,null,null,null,"27075","27","BAHÍA SOLANO","76109","Marítimo",374,"NA",0,10.060319076705497,3,15]
[null,null,null,null,"27077","27","BAJO BAUDÓ","76109","Marítimo",130,"NA",0,25.125216322075861,3,15]
[null,null,null,null,"27099","27","BOJAYÁ","27001","Fluvial",118.19999999999999,"NA",0,23.827299883075874,3.5,15]
[null,null,null,null,"27135","27","EL CANTÓN DEL SAN PABLO","27001","Vía Tipo 6",71.5,"NA",0,3.8249561013004794,3,15]
[null,null,null,null,"27150","27","CARMEN DEL DARIÉN","27001","Vía Tipo 6",2,"NA",0,20.714714194256182,3.5,15]
[null,null,null,null,"27160","27","CÉRTEGUI","27001","Vía Tipo 4",47.5,"NA",0,8.8826412964061063,3.5,15]
[null,null,null,null,"27205","27","CONDOTO","27001","Vía Tipo 5",84.5,"NA",0,12.874109786108829,3,15]
[null,null,null,null,"27245","27","EL CARMEN DE ATRATO","27001","Vía Tipo 3",99.6,"NA",0,14.360665840786114,4,15]
[null,null,null,null,"27250","27","EL LITORAL DEL SAN JUAN","76109","Marítimo",120,"NA",0,29.278384504054426,3,15]
[null,null,null,null,"27361","27","ISTMINA","27001","Vía Tipo 3",75.2,"NA",0,31.137166784765075,3,15]
[null,null,null,null,"27372","27","JURADÓ","76109","Marítimo",478,"NA",0,18.549060613493758,3,15]
[null,null,null,null,"27413","27","LLORÓ","27001","Fluvial",43,"NA",0,15.628906715290443,3.5,15]
[null,null,null,null,"27425","27","MEDIO ATRATO","27001","Fluvial",51,"NA",0,17.103453565900605,3.5,15]
[null,null,null,null,"27430","27","MEDIO BAUDÓ","27001","Vía Tipo 5",118.9,"Fluvial",55,16.603835164898577,3,15]
[null,null,null,null,"27450","27","MEDIO SAN JUAN","27001","Vía Tipo 5",45,"NA",0,30.674181486749557,3,15]
[null,null,null,null,"27491","27","NÓVITA","27001","Vía Tipo 5",104,"NA",0,12.201196141678405,3,15]
[null,null,null,null,"27495","27","NUQUÍ","76109","Marítimo",315.60000000000002,"NA",0,3.5508884693888363,3,15]
[null,null,null,null,"27580","27","RÍO IRÓ","27001","Vía Tipo 4",76,"Fluvial",10,5.7650974118013014,3,15]
[null,null,null,null,"27600","27","RÍO QUITO","27001","Fluvial",35,"NA",0,18.859000941924748,3.5,15]
[null,null,null,null,"27615","27","RIOSUCIO","27001","Fluvial",263,"NA",0,30.255538935880377,3.5,15]
[null,null,null,null,"27660","27","SAN JOSÉ DEL PALMAR","27001","Vía Tipo 5",304,"NA",0,11.069693922373103,3,15]
[null,null,null,null,"27745","27","SIPÍ","27001","Vía Tipo 3",75.2,"Fluvial",106,14.126744591381339,3.5,15]
[null,null,null,null,"27787","27","TADÓ","27001","Vía Tipo 3",67.3,"NA",0,18.757215778343472,3.5,15]
[null,null,null,null,"27800","27","UNGUÍA","05837","Marítimo",58.27,"NA",0,16.299590957395722,3.5,15]
[null,null,null,null,"27810","27","UNIÓN PANAMERICANA","27001","Vía Tipo 3",63.7,"NA",0,5.2314397586532353,3,15]
[null,null,null,null,"41001","41","NEIVA","41001","NA",0,"NA",0,21.755680452144428,4.5,15]
[null,null,null,null,"41006","41","ACEVEDO","41001","Vía Tipo 3",180,"NA",0,10.928019766306308,3.5,15]
[null,null,null,null,"41013","41","AGRADO","41001","Vía Tipo 3",136,"NA",0,8.535935632213512,4,15]
[null,null,null,null,"41016","41","AIPE","41001","Vía Tipo 3",38.1,"NA",0,23.349972203658123,4,15]
[null,null,null,null,"41020","41","ALGECIRAS","41001","Vía Tipo 3",57.8,"NA",0,10.283972757951631,4,15]
[null,null,null,null,"41026","41","ALTAMIRA","41001","Vía Tipo 3",143,"NA",0,6.8216836474194569,4,15]
[null,null,null,null,"41078","41","BARAYA","41001","Vía Tipo 3",43.1,"NA",0,13.006076446436268,4,15]
[null,null,null,null,"41132","41","CAMPOALEGRE","41001","Vía Tipo 3",30.3,"NA",0,7.5396692105420549,4,15]
[null,null,null,null,"41206","41","COLOMBIA","41001","Vía Tipo 4",91.3,"NA",0,21.796425119188974,4,15]
[null,null,null,null,"41244","41","ELÍAS","41001","Vía Tipo 4",168,"NA",0,5.3580890962105308,4,15]
[null,null,null,null,"41298","41","GARZÓN","41001","Vía Tipo 3",116,"NA",0,11.050832255964568,3.5,15]
[null,null,null,null,"41306","41","GIGANTE","41001","Vía Tipo 3",86.6,"NA",0,9.3897628138211022,4,15]
[null,null,null,null,"41319","41","GUADALUPE","41001","Vía Tipo 3",151,"NA",0,8.8410471347939197,4,15]
[null,null,null,null,"41349","41","HOBO","41001","Vía Tipo 3",51.8,"NA",0,8.6258648313256607,4,15]
[null,null,null,null,"41357","41","ÍQUIRA","41001","Vía Tipo 3",70.7,"NA",0,8.5708332305827746,4,15]
[null,null,null,null,"41359","41","ISNOS","41001","Vía Tipo 4",228,"NA",0,5.1015715657920016,4,15]
[null,null,null,null,"41378","41","LA ARGENTINA","41001","Vía Tipo 4",154,"NA",0,7.099764607943122,3.5,15]
[null,null,null,null,"41396","41","LA PLATA","41001","Vía Tipo 3",125,"NA",0,14.161664423487299,3.5,15]
[null,null,null,null,"41483","41","NÁTAGA","41001","Vía Tipo 4",121,"NA",0,6.544498613165282,4,15]
[null,null,null,null,"41503","41","OPORAPA","41001","Vía Tipo 4",189,"NA",0,4.4914707043211868,4,15]
[null,null,null,null,"41518","41","PAICOL","41001","Vía Tipo 3",103,"NA",0,8.4807600251104471,4,15]
[null,null,null,null,"41524","41","PALERMO","41001","Vía Tipo 3",23.4,"NA",0,13.779295598985101,4.5,15]
[null,null,null,null,"41530","41","PALESTINA","41001","Vía Tipo 4",211,"NA",0,3.7270152190157377,3,15]
[null,null,null,null,"41548","41","PITAL","41001","Vía Tipo 3",140,"NA",0,6.4815237478441965,4,15]
[null,null,null,null,"41551","41","PITALITO","41001","Vía Tipo 3",187,"NA",0,11.243421302310548,3.5,15]
[null,null,null,null,"41615","41","RIVERA","41001","Vía Tipo 3",22.3,"NA",0,5.0892055671337566,4,15]
[null,null,null,null,"41660","41","SALADOBLANCO","41001","Vía Tipo 4",188,"NA",0,8.3693964077109477,3.5,15]
[null,null,null,null,"41668","41","SAN AGUSTÍN","41001","Vía Tipo 3",220,"NA",0,7.8073710730324652,3.5,15]
[null,null,null,null,"41676","41","SANTA MARÍA","41001","Vía Tipo 3",55.7,"NA",0,5.1409143555583485,4,15]
[null,null,null,null,"41770","41","SUAZA","41001","Vía Tipo 3",155,"NA",0,12.707796642477915,4.5,15]
[null,null,null,null,"41791","41","TARQUI","41001","Vía Tipo 3",152,"NA",0,10.465815537035104,4,15]
[null,null,null,null,"41797","41","TESALIA","41001","Vía Tipo 3",97.6,"NA",0,11.295236110742676,4,15]
[null,null,null,null,"41799","41","TELLO","41001","Vía Tipo 3",28.1,"NA",0,14.517488276696328,4,15]
[null,null,null,null,"41801","41","TERUEL","41001","Vía Tipo 5",51.2,"NA",0,5.8052571561929227,4,15]
[null,null,null,null,"41807","41","TIMANÁ","41001","Vía Tipo 3",167,"NA",0,6.442121312354959,4,15]
[null,null,null,null,"41872","41","VILLAVIEJA","41001","Vía Tipo 3",37.799999999999997,"NA",0,15.69446278026788,4,15]
[null,null,null,null,"41885",{"$f":"TEXT(MID(E643,1,2),\"00\")","v":"41"},"YAGUARÁ","41001","Vía Tipo 3",52.1,"NA",0,6.1107470414008604,4,15]
[null,null,null,null,"44001","44","RIOHACHA","08001","Vía Tipo 1",268,"NA",0,25.13290003351926,5,15]
[null,null,null,null,"44035","44","ALBANIA","44001","Vía Tipo 3",73.7,"NA",0,18.082625356115102,5,15]
[null,null,null,null,"44078","44","BARRANCAS","44001","Vía Tipo 3",104,"NA",0,8.8990832005257001,5,15]
[null,null,null,null,"44090","44","DIBULLA","44001","Vía Tipo 3",62.5,"NA",0,18.142555553986249,5,15]
[null,null,null,null,"44098","44","DISTRACCIÓN","44001","Vía Tipo 3",119,"NA",0,7.7623325001256323,5,15]
[null,null,null,null,"44110","44","EL MOLINO","44001","Vía Tipo 3",155,"NA",0,5.026183268518218,4.5,15]
[null,null,null,null,"44279","44","FONSECA","44001","Vía Tipo 3",89.4,"NA",0,8.4930585642629204,4.5,15]
[null,null,null,null,"44378","44","HATONUEVO","44001","Vía Tipo 3",90.2,"NA",0,5.4357470213573285,5,15]
[null,null,null,null,"44420","44","LA JAGUA DEL PILAR","44001","Vía Tipo 3",183,"NA",0,10.920680854136791,4.5,15]
[null,null,null,null,"44430","44","MAICAO","44001","Vía Tipo 3",78.099999999999994,"NA",0,18.041166644222603,5,15]
[null,null,null,null,"44560","44","MANAURE","44001","Vía Tipo 3",74.599999999999994,"NA",0,28.069598414951304,5,15]
[null,null,null,null,"44650","44","SAN JUAN DEL CESAR","44001","Vía Tipo 3",145,"NA",0,17.865987759024808,5,15]
[null,null,null,null,"44847","44","URIBIA","44001","Vía Tipo 3",95.1,"NA",0,61.4669868576553,5,15]
[null,null,null,null,"44855","44","URUMITA","44001","Vía Tipo 4",170,"NA",0,11.524211416812168,4.5,15]
[null,null,null,null,"44874","44","VILLANUEVA","44001","Vía Tipo 3",166,"NA",0,6.345119917234789,4.5,15]
[null,null,null,null,"47001","47","SANTA MARTA","08001","Vía Tipo 1",104,"NA",0,26.977234454217076,4.5,15]
[null,null,null,null,"47030","47","ALGARROBO","47001","Vía Tipo 3",135,"NA",0,12.230483877079143,5,15]
[null,null,null,null,"47053","47","ARACATACA","47001","Vía Tipo 3",86.3,"NA",0,23.925994673374195,5,15]
[null,null,null,null,"47058","47","ARIGUANÍ","47001","Vía Tipo 3",203,"NA",0,16.937084991299248,5,15]
[null,null,null,null,"47161","47","CERRO DE SAN ANTONIO","47001","Vía Tipo 4",176,"NA",0,7.1024235700002611,5,15]
[null,null,null,null,"47170","47","CHIVOLO","47001","Vía Tipo 4",189,"NA",0,15.86488516687958,5.5,15]
[null,null,null,null,"47189","47","CIÉNAGA","47001","Vía Tipo 3",34.299999999999997,"NA",0,22.26040155631479,4.5,15]
[null,null,null,null,"47205","47","CONCORDIA","47001","Vía Tipo 4",196,"NA",0,6.2141630546193927,5,15]
[null,null,null,null,"47245","47","EL BANCO","47001","Vía Tipo 3",300,"NA",0,17.102045041452321,5,15]
[null,null,null,null,"47258","47","EL PIÑÓN","47001","Vía Tipo 4",166,"NA",0,18.109630934683114,5,15]
[null,null,null,null,"47268","47","EL RETÉN","47001","Vía Tipo 3",97.9,"NA",0,7.8388224282329713,4.5,15]
[null,null,null,null,"47288","47","FUNDACIÓN","47001","Vía Tipo 3",98.6,"NA",0,43.075924053647618,5,15]
[null,null,null,null,"47318","47","GUAMAL","47001","Vía Tipo 3",288,"NA",0,19.295514872483192,4.5,15]
[null,null,null,null,"47460","47","NUEVA GRANADA","47001","Vía Tipo 3",222,"NA",0,15.285122581932315,5,15]
[null,null,null,null,"47541","47","PEDRAZA","47001","Vía Tipo 4",194,"NA",0,14.716594214857572,5,15]
[null,null,null,null,"47545","47","PIJIÑO DEL CARMEN","47001","Vía Tipo 4",276,"NA",0,23.261320075235282,5,15]
[null,null,null,null,"47551","47","PIVIJAY","47001","Vía Tipo 3",151,"NA",0,32.141708596366385,5,15]
[null,null,null,null,"47555","47","PLATO","47001","Vía Tipo 3",264,"NA",0,27.077941212330387,5.5,15]
[null,null,null,null,"47570","47","PUEBLOVIEJO","47001","Vía Tipo 3",38.4,"NA",0,23.161905985148376,5,15]
[null,null,null,null,"47605","47","REMOLINO","47001","Vía Tipo 5",126,"NA",0,14.19041225721293,5,15]
[null,null,null,null,"47660","47","SABANAS DE SAN ÁNGEL","47001","Vía Tipo 4",153,"NA",0,17.090381396616586,5,15]
[null,null,null,null,"47675","47","SALAMINA","47001","Vía Tipo 3",155,"NA",0,13.52951531253531,4,15]
[null,null,null,null,"47692","47","SAN SEBASTIÁN DE BUENAVISTA","47001","Vía Tipo 4",302,"NA",0,20.561209432124077,5,15]
[null,null,null,null,"47703","47","SAN ZENÓN","47001","Vía Tipo 5",289,"NA",0,21.559646846898293,5,15]
[null,null,null,null,"47707","47","SANTA ANA","47001","Vía Tipo 4",4.8,"NA",0,28.295126125732626,5,15]
[null,null,null,null,"47720","47","SANTA BÁRBARA DE PINTO","47001","Vía Tipo 5",305,"NA",0,14.072652491018493,5.5,15]
[null,null,null,null,"47745","47","SITIONUEVO","47001","Vía Tipo 3",116,"NA",0,17.712275360316983,5,15]
[null,null,null,null,"47798","47","TENERIFE","47001","Vía Tipo 4",235,"NA",0,18.933007906870433,5.5,15]
[null,null,null,null,"47960","47","ZAPAYÁN","47001","Vía Tipo 4",202,"NA",0,10.335821138464475,5,15]
[null,null,null,null,"47980","47","ZONA BANANERA","47001","Vía Tipo 3",61,"NA",0,9.6791101542925642,5,15]
[null,null,null,null,"50001","50","VILLAVICENCIO","50001","NA",0,"NA",0,16.229971259041633,4,15]
[null,null,null,null,"50006","50","ACACÍAS","50001","Vía Tipo 4",28.8,"NA",0,14.552187047362912,4,15]
[null,null,null,null,"50110","50","BARRANCA DE UPÍA","50001","Vía Tipo 4",106,"NA",0,10.623840098555519,4.5,15]
[null,null,null,null,"50124","50","CABUYARO","50001","Vía Tipo 4",121,"NA",0,15.003887137147279,4,15]
[null,null,null,null,"50150","50","CASTILLA LA NUEVA","50001","Vía Tipo 4",52.6,"NA",0,12.277955734666072,4,15]
[null,null,null,null,"50223","50","CUBARRAL","50001","Vía Tipo 4",68.8,"NA",0,10.473922690654268,4,15]
[null,null,null,null,"50226","50","CUMARAL","50001","Vía Tipo 4",24,"NA",0,12.899520925984341,4,15]
[null,null,null,null,"50245","50","EL CALVARIO","50001","Vía Tipo 4",83.1,"NA",0,5.0485016428955207,4,15]
[null,null,null,null,"50251","50","EL CASTILLO","50001","Vía Tipo 4",92.1,"NA",0,12.251514331218058,4.5,15]
[null,null,null,null,"50270","50","EL DORADO","50001","Vía Tipo 4",119,"NA",0,5.8371727600110344,4,15]
[null,null,null,null,"50287","50","FUENTE DE ORO","50001","Vía Tipo 4",98,"NA",0,11.922314634656615,4.5,15]
[null,null,null,null,"50313","50","GRANADA","50001","Vía Tipo 4",138,"NA",0,11.221765267566878,5,15]
[null,null,null,null,"50318","50","GUAMAL","50001","Vía Tipo 4",41.5,"NA",0,5.3000044799830217,4,15]
[null,null,null,null,"50325","50","MAPIRIPÁN","50001","Vía Tipo 5",352,"NA",0,50.852939722733431,4,15]
[null,null,null,null,"50330","50","MESETAS","50001","Vía Tipo 4",133,"NA",0,23.211141381504092,4,15]
[null,null,null,null,"50350","50","LA MACARENA","50001","Vía Tipo 5",952,"NA",0,50.884263553110266,4,15]
[null,null,null,null,"50370","50","URIBE","50001","Vía Tipo 5",186,"NA",0,32.13161307832582,4,15]
[null,null,null,null,"50400","50","LEJANÍAS","50001","Vía Tipo 6",126,"NA",0,7.2504386538144914,4.5,15]
[null,null,null,null,"50450",{"$f":"TEXT(MID(E707,1,2),\"00\")","v":"50"},"PUERTO CONCORDIA","50001","Vía Tipo 4",261,"NA",0,16.691497743748137,4,15]
[null,null,null,null,"50568","50","PUERTO GAITÁN","50001","Vía Tipo 4",194,"NA",0,78.201851601900259,4.5,15]
[null,null,null,null,"50573","50","PUERTO LÓPEZ","50001","Vía Tipo 4",86.1,"NA",0,45.346450019943418,4.5,15]
[null,null,null,null,"50577","50","PUERTO LLERAS","50001","Vía Tipo 4",138,"NA",0,21.362854138410526,4.5,15]
[null,null,null,null,"50590","50","PUERTO RICO","50001","Vía Tipo 4",201,"NA",0,22.576637761226902,4,15]
[null,null,null,null,"50606","50","RESTREPO","50001","Vía Tipo 4",15.9,"NA",0,6.6478494960552235,4,15]
[null,null,null,null,"50680","50","SAN CARLOS DE GUAROA","50001","Vía Tipo 4",88.8,"NA",0,21.219338521923461,4,15]
[null,null,null,null,"50683","50","SAN JUAN DE ARAMA","50001","Vía Tipo 4",119,"NA",0,17.153979731600252,4,15]
[null,null,null,null,"50686","50","SAN JUANITO","50001","Vía Tipo 5",97.1,"NA",0,2.6099157854124679,4,15]
[null,null,null,null,"50689","50","SAN MARTÍN","50001","Vía Tipo 4",64.599999999999994,"NA",0,82.737699509842216,4.5,15]
[null,null,null,null,"50711","50","VISTAHERMOSA","50001","Vía Tipo 4",147,"NA",0,26.106894887243421,4,15]
[null,null,null,null,"52001","52","PASTO","76001","Vía Tipo 1",384,"NA",0,10.316803712526248,3.5,15]
[null,null,null,null,"52019","52","ALBÁN","52001","Vía Tipo 4",119,"NA",0,10.722177581550037,4,15]
[null,null,null,null,"52022","52","ALDANA","52001","Vía Tipo 3",113,"NA",0,5.5161253099478049,3,15]
[null,null,null,null,"52036","52","ANCUYA","52001","Vía Tipo 4",72,"NA",0,3.1601992319450907,3.5,15]
[null,null,null,null,"52051","52","ARBOLEDA","52001","Vía Tipo 4",105,"NA",0,3.6025564069832754,4,15]
[null,null,null,null,"52079","52","BARBACOAS","52001","Vía Tipo 3",476,"NA",0,22.922713438475927,3.5,15]
[null,null,null,null,"52083","52","BELÉN","52001","Vía Tipo 4",166,"NA",0,3.342850652479878,4,15]
[null,null,null,null,"52110","52","BUESACO","52001","Vía Tipo 3",90,"NA",0,10.110274573571788,3.5,15]
[null,null,null,null,"52203","52","COLÓN","52001","Vía Tipo 4",64,"NA",0,10.722177581550037,3,15]
[null,null,null,null,"52207","52","CONSACÁ","52001","Vía Tipo 3",51,"NA",0,2.7383220370167054,3.5,15]
[null,null,null,null,"52210","52","CONTADERO","52001","Vía Tipo 4",99,"NA",0,5.1844913882577286,3.5,15]
[null,null,null,null,"52215","52","CÓRDOBA","52001","Vía Tipo 4",90,"NA",0,20.161877345258358,3,15]
[null,null,null,null,"52224","52","CUASPUD CARLOSAMA","52001","Vía Tipo 3",121,"NA",0,3.4350440963042139,3,15]
[null,null,null,null,"52227","52","CUMBAL","52001","Vía Tipo 3",138,"NA",0,28.232077723431892,3,15]
[null,null,null,null,"52233","52","CUMBITARA","52001","Vía Tipo 5",198,"NA",0,12.541496339949784,3.5,15]
[null,null,null,null,"52240","52","CHACHAGÜÍ","52001","Vía Tipo 3",27,"NA",0,4.5301113941430362,3.5,15]
[null,null,null,null,"52250","52","EL CHARCO","76109","Marítimo",225,"NA",0,20.307669005909055,3.5,15]
[null,null,null,null,"52254","52","EL PEÑOL","52001","Vía Tipo 4",55,"NA",0,4.9683661403407937,4,15]
[null,null,null,null,"52256","52","EL ROSARIO","52001","Vía Tipo 4",143,"NA",0,7.2723803405272962,4,15]
[null,null,null,null,"52258","52","EL TABLÓN DE GÓMEZ","52001","Vía Tipo 4",116,"NA",0,12.944406528336327,3,15]
[null,null,null,null,"52260","52","EL TAMBO","52001","Vía Tipo 4",40,"NA",0,3.9823704569957048,4,15]
[null,null,null,null,"52287","52","FUNES","52001","Vía Tipo 4",65,"NA",0,5.7204523687395792,3.5,15]
[null,null,null,null,"52317","52","GUACHUCAL","52001","Vía Tipo 3",130,"NA",0,4.9770038801675556,3.5,15]
[null,null,null,null,"52320","52","GUAITARILLA","52001","Vía Tipo 4",76,"NA",0,5.7498887411467408,3.5,15]
[null,null,null,null,"52323","52","GUALMATÁN","52001","Vía Tipo 3",104,"NA",0,10.722177581550037,3.5,15]
[null,null,null,null,"52352","52","ILES","52001","Vía Tipo 4",91,"NA",0,4.1559763150097506,3.5,15]
[null,null,null,null,"52354","52","IMUÉS","52001","Vía Tipo 4",56,"NA",0,3.3903482938497933,3.5,15]
[null,null,null,null,"52356","52","IPIALES","52001","Vía Tipo 3",105,"NA",0,51.296889285273835,3,15]
[null,null,null,null,"52378","52","LA CRUZ","52001","Vía Tipo 4",11.7,"NA",0,7.097873748065231,3.5,15]
[null,null,null,null,"52381","52","LA FLORIDA","52001","Vía Tipo 4",24,"NA",0,4.2071196584497654,4,15]
[null,null,null,null,"52385","52","LA LLANADA","52001","Vía Tipo 4",124,"NA",0,7.9708566844164377,3.5,15]
[null,null,null,null,"52390","52","LA TOLA","76109","Marítimo",203,"NA",0,12.715575367505718,3.5,15]
[null,null,null,null,"52399","52","LA UNIÓN","52001","Vía Tipo 3",112,"NA",0,10.722177581550037,4,15]
[null,null,null,null,"52405","52","LEIVA","52001","Vía Tipo 5",142,"NA",0,7.1339119834592051,4,15]
[null,null,null,null,"52411","52","LINARES","52001","Vía Tipo 4",90,"NA",0,8.7519825455194766,4,15]
[null,null,null,null,"52418","52","LOS ANDES","52001","Vía Tipo 4",78,"NA",0,11.622230953009533,3.5,15]
[null,null,null,null,"52427","52","MAGÜÍ","52001","Vía Tipo 4",323,"NA",0,21.075750226372481,3.5,15]
[null,null,null,null,"52435","52","MALLAMA","52001","Vía Tipo 3",164,"NA",0,7.0719612257389048,3,15]
[null,null,null,null,"52473","52","MOSQUERA","76109","Marítimo",253,"NA",0,10.325855307940138,3,15]
[null,null,null,null,"52480","52","NARIÑO","52001","Vía Tipo 4",18,"NA",0,10.722177581550037,3.5,15]
[null,null,null,null,"52490","52","OLAYA HERRERA","52835","Fluvial",145,"NA",0,13.556204681633448,3,15]
[null,null,null,null,"52506","52","OSPINA","52001","Vía Tipo 4",92,"NA",0,4.1772602951117728,3.5,15]
[null,null,null,null,"52520","52","FRANCISCO PIZARRO","52001","Vía Tipo 3",638,"Marítimo",88,12.111532070014594,3,15]
[null,null,null,null,"52540","52","POLICARPA","52001","Vía Tipo 4",105,"NA",0,13.919606310742751,4,15]
[null,null,null,null,"52560","52","POTOSÍ","52001","Vía Tipo 4",114,"NA",0,6.7284869644377441,3.5,15]
[null,null,null,null,"52565","52","PROVIDENCIA","52001","Vía Tipo 4",133,"NA",0,3.6025625612539418,3,15]
[null,null,null,null,"52573","52","PUERRES","52001","Vía Tipo 4",80,"NA",0,7.7820388325939884,3.5,15]
[null,null,null,null,"52585","52","PUPIALES","52001","Vía Tipo 3",115,"NA",0,4.5022126243473251,3.5,15]
[null,null,null,null,"52612","52","RICAURTE","52001","Vía Tipo 3",215,"NA",0,13.135341428898585,3,15]
[null,null,null,null,"52621","52","ROBERTO PAYÁN","52001","Vía Tipo 5",28.5,"NA",0,27.560160177633769,3.5,15]
[null,null,null,null,"52678","52","SAMANIEGO","52001","Vía Tipo 3",117,"NA",0,16.272427041597901,3.5,15]
[null,null,null,null,"52683","52","SANDONÁ","52001","Vía Tipo 4",45,"NA",0,4.531963391752706,3.5,15]
[null,null,null,null,"52685","52","SAN BERNARDO","52001","Vía Tipo 4",132,"NA",0,3.4296968469324489,4,15]
[null,null,null,null,"52687",{"$f":"TEXT(MID(E771,1,2),\"00\")","v":"52"},"SAN LORENZO","52001","Vía Tipo 3",57,"NA",0,9.0369964517061661,4,15]
[null,null,null,null,"52693","52","SAN PABLO","52001","Vía Tipo 4",147,"NA",0,5.6927849962152743,4,15]
[null,null,null,null,"52694","52","SAN PEDRO DE CARTAGO","52001","Vía Tipo 3",127,"NA",0,2.1584386294390732,4,15]
[null,null,null,null,"52696","52","SANTA BÁRBARA","76109","Marítimo",240,"NA",0,25.341208459560509,3.5,15]
[null,null,null,null,"52699","52","SANTACRUZ","52001","Vía Tipo 4",112,"NA",0,17.26533702671275,3.5,15]
[null,null,null,null,"52720","52","SAPUYES","52001","Vía Tipo 3",122,"NA",0,3.2678887672092971,3,15]
[null,null,null,null,"52786","52","TAMINANGO","52001","Vía Tipo 3",87,"NA",0,3.7239286025997913,4,15]
[null,null,null,null,"52788","52","TANGUA","52001","Vía Tipo 3",23,"NA",0,7.1147757886211433,3.5,15]
[null,null,null,null,"52835","52","SAN ANDRÉS DE TUMACO","52001","Vía Tipo 3",638,"NA",0,36.022656445678379,3,15]
[null,null,null,null,"52838","52","TÚQUERRES","52001","Vía Tipo 3",75,"NA",0,10.451579704623047,3,15]
[null,null,null,null,"52885","52","YACUANQUER","52001","Vía Tipo 3",24,"NA",0,6.6062604631801394,3.5,15]
[null,null,null,null,"54001","54","SAN JOSÉ DE CÚCUTA","68001","Vía Tipo 1",196,"NA",0,27.51008210868271,3.5,15]
[null,null,null,null,"54003","54","ÁBREGO","54001","Vía Tipo 4",170,"NA",0,16.206950856887012,4,15]
[null,null,null,null,"54051","54","ARBOLEDAS","54001","Vía Tipo 4",77.7,"NA",0,7.5016670514111823,3.5,15]
[null,null,null,null,"54099","54","BOCHALEMA","54001","Vía Tipo 3",44.5,"NA",0,7.5913820110344723,4,15]
[null,null,null,null,"54109","54","BUCARASICA","54001","Vía Tipo 6",140,"NA",0,7.3010912107901005,4,15]
[null,null,null,null,"54125","54","CÁCOTA","54001","Vía Tipo 3",106,"NA",0,4.2900511902580822,3.5,15]
[null,null,null,null,"54128","54","CÁCHIRA","54001","Vía Tipo 4",302,"NA",0,12.57810837302047,3.5,15]
[null,null,null,null,"54172","54","CHINÁCOTA","54001","Vía Tipo 3",41.6,"NA",0,5.0198263906120975,4,15]
[null,null,null,null,"54174","54","CHITAGÁ","54001","Vía Tipo 3",121,"NA",0,12.566137539731196,3.5,15]
[null,null,null,null,"54206","54","CONVENCIÓN","54001","Vía Tipo 4",236,"NA",0,19.323560884066339,4,15]
[null,null,null,null,"54223","54","CUCUTILLA","54001","Vía Tipo 4",95,"NA",0,6.5039112983795198,3.5,15]
[null,null,null,null,"54239","54","DURANIA","54001","Vía Tipo 4",46.8,"NA",0,4.726246648299675,3.5,15]
[null,null,null,null,"54245","54","EL CARMEN","54001","Vía Tipo 4",243,"NA",0,32.085060764563984,4.5,15]
[null,null,null,null,"54250","54","EL TARRA","54001","Vía Tipo 4",178,"NA",0,13.281125691191061,4,15]
[null,null,null,null,"54261","54","EL ZULIA","54001","Vía Tipo 3",15.5,"NA",0,16.378727345760463,3.5,15]
[null,null,null,null,"54313","54","GRAMALOTE","54001","Vía Tipo 3",46.5,"NA",0,6.0813854156434797,3.5,15]
[null,null,null,null,"54344","54","HACARÍ","54001","Vía Tipo 4",224,"NA",0,8.6512446607831599,4,15]
[null,null,null,null,"54347","54","HERRÁN","54001","Vía Tipo 5",67.2,"NA",0,3.5026072889682087,4,15]
[null,null,null,null,"54377","54","LABATECA","54001","Vía Tipo 4",97.8,"NA",0,6.8343426089076322,3.5,15]
[null,null,null,null,"54385","54","LA ESPERANZA","54001","Vía Tipo 3",278,"NA",0,13.947467943243613,4,15]
[null,null,null,null,"54398","54","LA PLAYA","54001","Vía Tipo 4",194,"NA",0,8.7301693132964342,4,15]
[null,null,null,null,"54405","54","LOS PATIOS","54001","Vía Tipo 3",9.8000000000000007,"NA",0,14.166399701451803,4,15]
[null,null,null,null,"54418","54","LOURDES","54001","Vía Tipo 3",64.099999999999994,"NA",0,4.0947642902370065,3.5,15]
[null,null,null,null,"54480","54","MUTISCUA","54001","Vía Tipo 3",102,"NA",0,3.8430452867608493,4,15]
[null,null,null,null,"54498","54","OCAÑA","54001","Vía Tipo 4",201,"NA",0,10.20224038549058,4,15]
[null,null,null,null,"54518","54","PAMPLONA","54001","Vía Tipo 3",74.8,"NA",0,7.8377402133536638,4,15]
[null,null,null,null,"54520","54","PAMPLONITA","54001","Vía Tipo 3",64.099999999999994,"NA",0,4.6542219093658428,3.5,15]
[null,null,null,null,"54553","54","PUERTO SANTANDER","54001","Vía Tipo 3",62.7,"NA",0,4.7987748303667574,3.5,15]
[null,null,null,null,"54599","54","RAGONVALIA","54001","Vía Tipo 3",56.1,"NA",0,4.3512452249986753,4.5,15]
[null,null,null,null,"54660","54","SALAZAR","54001","Vía Tipo 3",54.1,"NA",0,8.3223141760548653,3.5,15]
[null,null,null,null,"54670","54","SAN CALIXTO","54001","Vía Tipo 4",259,"NA",0,12.127888048377173,4,15]
[null,null,null,null,"54673","54","SAN CAYETANO","54001","Vía Tipo 3",21.9,"NA",0,4.5493849924595935,3.5,15]
[null,null,null,null,"54680","54","SANTIAGO","54001","Vía Tipo 3",32,"NA",0,7.2285534971780674,3,15]
[null,null,null,null,"54720","54","SARDINATA","54001","Vía Tipo 3",72.400000000000006,"NA",0,26.042718133985595,3.5,15]
[null,null,null,null,"54743","54","SILOS","54001","Vía Tipo 4",119,"NA",0,5.3580427526920129,3.5,15]
[null,null,null,null,"54800","54","TEORAMA","54001","Vía Tipo 4",237,"NA",0,24.292680738236193,4,15]
[null,null,null,null,"54810","54","TIBÚ","54001","Vía Tipo 3",116,"NA",0,28.239718928550349,4,15]
[null,null,null,null,"54820","54","TOLEDO","54001","Vía Tipo 3",92.7,"NA",0,19.880692410178142,3.5,15]
[null,null,null,null,"54871","54","VILLA CARO","54001","Vía Tipo 4",166,"NA",0,6.0747052839730227,3.5,15]
[null,null,null,null,"54874","54","VILLA DEL ROSARIO","54001","Vía Tipo 3",6.3,"NA",0,10.701019589544318,4,15]
[null,null,null,null,"63001","63","ARMENIA","76001","Vía Tipo 1",179,"NA",0,2.3095906591612008,3,15]
[null,null,null,null,"63111","63","BUENAVISTA","63001","Vía Tipo 3",37,"NA",0,1.9267697116830209,4,15]
[null,null,null,null,"63130","63","CALARCÁ","63001","Vía Tipo 3",7,"NA",0,5.8741753818605522,3.5,15]
[null,null,null,null,"63190","63","CIRCASIA","63001","Vía Tipo 3",6,"NA",0,3.9294969329237581,3.5,15]
[null,null,null,null,"63212","63","CÓRDOBA","63001","Vía Tipo 3",24,"NA",0,2.2046195101668102,3,15]
[null,null,null,null,"63272","63","FILANDIA","63001","Vía Tipo 3",26,"NA",0,3.9294969329237581,4,15]
[null,null,null,null,"63302","63","GÉNOVA","63001","Vía Tipo 3",35,"NA",0,4.5843684167732457,4,15]
[null,null,null,null,"63401","63","LA TEBAIDA","63001","Vía Tipo 3",12,"NA",0,3.9294969329237581,4,15]
[null,null,null,null,"63470","63","MONTENEGRO","63001","Vía Tipo 3",10,"NA",0,3.9294969329237581,4,15]
[null,null,null,null,"63548","63","PIJAO","63001","Vía Tipo 3",31,"NA",0,4.6254723782072844,4,15]
[null,null,null,null,"63594","63","QUIMBAYA","63001","Vía Tipo 3",20,"NA",0,3.9294969329237581,4,15]
[null,null,null,null,"63690","63","SALENTO","63001","Vía Tipo 5",40,"NA",0,5.2591753599542619,3.5,15]
[null,null,null,null,"66001","66","PEREIRA","76001","Vía Tipo 1",209,"NA",0,11.441398210831387,4,15]
[null,null,null,null,"66045",{"$f":"TEXT(MID(E835,1,2),\"00\")","v":"66"},"APÍA","66001","Vía Tipo 3",68.7,"NA",0,3.9294969329237581,3.5,15]
[null,null,null,null,"66075","66","BALBOA","66001","Vía Tipo 5",52.4,"NA",0,2.9776758306435256,4,15]
[null,null,null,null,"66088","66","BELÉN DE UMBRÍA","66001","Vía Tipo 3",70.900000000000006,"NA",0,5.5133772805399914,4,15]
[null,null,null,null,"66170","66","DOSQUEBRADAS","66001","Vía Tipo 3",5.2,"NA",0,3.7735589181319495,4,15]
[null,null,null,null,"66318","66","GUÁTICA","66001","Vía Tipo 3",90.1,"NA",0,3.1996492683192472,4,15]
[null,null,null,null,"66383","66","LA CELIA","66001","Vía Tipo 4",67.900000000000006,"NA",0,3.4276532939993034,3.5,15]
[null,null,null,null,"66400","66","LA VIRGINIA","66001","Vía Tipo 3",35.1,"NA",0,11.441398210831387,4,15]
[null,null,null,null,"66440","66","MARSELLA","66001","Vía Tipo 4",32.9,"NA",0,4.9511104431267388,4,15]
[null,null,null,null,"66456","66","MISTRATÓ","66001","Vía Tipo 3",86.9,"NA",0,14.043583154869673,3.5,15]
[null,null,null,null,"66572","66","PUEBLO RICO","66001","Vía Tipo 3",93.9,"NA",0,19.928915484480584,3.5,15]
[null,null,null,null,"66594","66","QUINCHÍA","66001","Vía Tipo 3",91.3,"NA",0,5.5359511200137321,4,15]
[null,null,null,null,"66682","66","SANTA ROSA DE CABAL","66001","Vía Tipo 3",14.7,"NA",0,6.8696910979755481,3.5,15]
[null,null,null,null,"66687","66","SANTUARIO","66001","Vía Tipo 3",67.599999999999994,"NA",0,9.1209507526873974,4,15]
[null,null,null,null,"68001","68","BUCARAMANGA","68001","NA",0,"NA",0,10.501306826479349,3,15]
[null,null,null,null,"68013","68","AGUADA","68001","Vía Tipo 4",209,"NA",0,10.309229127183491,4,15]
[null,null,null,null,"68020","68","ALBANIA","68001","Vía Tipo 4",317,"NA",0,10.309229127183491,4.5,15]
[null,null,null,null,"68051","68","ARATOCA","68001","Vía Tipo 5",70.599999999999994,"NA",0,10.309229127183491,4,15]
[null,null,null,null,"68077","68","BARBOSA","68001","Vía Tipo 1",213,"NA",0,5.7651311703356081,4,15]
[null,null,null,null,"68079","68","BARICHARA","68001","Vía Tipo 3",121,"NA",0,4.8859676874773283,4,15]
[null,null,null,null,"68081","68","BARRANCABERMEJA","68001","Vía Tipo 3",115,"NA",0,11.402567483081265,4.5,15]
[null,null,null,null,"68092","68","BETULIA","68001","Vía Tipo 3",91.2,"NA",0,10.309229127183491,4,15]
[null,null,null,null,"68101","68","BOLÍVAR","68001","Vía Tipo 4",249,"NA",0,23.229127795040696,4,15]
[null,null,null,null,"68121","68","CABRERA","68001","Vía Tipo 4",121,"NA",0,10.309229127183491,4,15]
[null,null,null,null,"68132","68","CALIFORNIA","68001","Vía Tipo 4",53.8,"NA",0,3.1975657951716081,3,15]
[null,null,null,null,"68147","68","CAPITANEJO","68001","Vía Tipo 3",188,"NA",0,6.4736279408623121,4,15]
[null,null,null,null,"68152","68","CARCASÍ","68001","Vía Tipo 4",193,"NA",0,10.309229127183491,4,15]
[null,null,null,null,"68160","68","CEPITÁ","68001","Vía Tipo 4",66.900000000000006,"NA",0,10.309229127183491,3.5,15]
[null,null,null,null,"68162","68","CERRITO","68001","Vía Tipo 3",175,"NA",0,8.8209215436906785,3.5,15]
[null,null,null,null,"68167","68","CHARALÁ","68001","Vía Tipo 3",135,"NA",0,10.309229127183491,3.5,15]
[null,null,null,null,"68169","68","CHARTA","68001","Vía Tipo 5",40.6,"NA",0,10.834139173795569,3.5,15]
[null,null,null,null,"68176","68","CHIMA","68001","Vía Tipo 4",146,"NA",0,9.7531758261872312,4,15]
[null,null,null,null,"68179","68","CHIPATÁ","68001","Vía Tipo 3",223,"NA",0,2.6236887467505423,3.5,15]
[null,null,null,null,"68190","68","CIMITARRA","68001","Vía Tipo 3",202,"NA",0,30.523202079816979,4,15]
[null,null,null,null,"68207","68","CONCEPCIÓN","68001","Vía Tipo 4",166,"NA",0,10.309229127183491,3.5,15]
[null,null,null,null,"68209","68","CONFINES","68001","Vía Tipo 4",138,"NA",0,10.309229127183491,4,15]
[null,null,null,null,"68211","68","CONTRATACIÓN","68001","Vía Tipo 4",168,"NA",0,9.1301589015103684,4,15]
[null,null,null,null,"68217","68","COROMORO","68001","Vía Tipo 4",152,"NA",0,12.285029433183547,4,15]
[null,null,null,null,"68229","68","CURITÍ","68001","Vía Tipo 3",92.4,"NA",0,10.309229127183491,4,15]
[null,null,null,null,"68235","68","EL CARMEN DE CHUCURÍ","68001","Vía Tipo 4",157,"NA",0,13.509377246832887,4.5,15]
[null,null,null,null,"68245","68","EL GUACAMAYO","68001","Vía Tipo 4",179,"NA",0,10.309229127183491,4,15]
[null,null,null,null,"68250","68","EL PEÑÓN","68001","Vía Tipo 4",260,"NA",0,11.727950046812417,4,15]
[null,null,null,null,"68255","68","EL PLAYÓN","68001","Vía Tipo 3",42.2,"NA",0,13.623429796131084,3.5,15]
[null,null,null,null,"68264","68","ENCINO","68001","Vía Tipo 4",165,"NA",0,6.9167915443008576,4,15]
[null,null,null,null,"68266","68","ENCISO","68001","Vía Tipo 4",173,"NA",0,10.309229127183491,3.5,15]
[null,null,null,null,"68271","68","FLORIÁN","68001","Vía Tipo 4",275,"NA",0,4.8270575853904276,3.5,15]
[null,null,null,null,"68276","68","FLORIDABLANCA","68001","Vía Tipo 2",7,"NA",0,6.4537437261302442,3,15]
[null,null,null,null,"68296","68","GALÁN","68001","Vía Tipo 4",104,"NA",0,10.309229127183491,4,15]
[null,null,null,null,"68298","68","GÁMBITA","68001","Vía Tipo 4",202,"NA",0,11.39141705864601,4,15]
[null,null,null,null,"68307","68","GIRÓN","68001","Vía Tipo 3",10,"NA",0,13.112649374543144,4,15]
[null,null,null,null,"68318","68","GUACA","68001","Vía Tipo 4",91.1,"NA",0,10.309229127183491,3.5,15]
[null,null,null,null,"68320","68","GUADALUPE","68001","Vía Tipo 4",173,"NA",0,6.9824694743596254,4,15]
[null,null,null,null,"68322","68","GUAPOTÁ","68001","Vía Tipo 4",152,"NA",0,10.309229127183491,4,15]
[null,null,null,null,"68324","68","GUAVATÁ","68001","Vía Tipo 3",238,"NA",0,5.7101662538927762,4,15]
[null,null,null,null,"68327","68","GÜEPSA","68001","Vía Tipo 3",203,"NA",0,3.2556245404568873,4,15]
[null,null,null,null,"68344","68","HATO","68001","Vía Tipo 4",137,"NA",0,7.5818480956240784,4.5,15]
[null,null,null,null,"68368","68","JESÚS MARÍA","68001","Vía Tipo 4",242,"NA",0,0.53391718391166765,3.5,15]
[null,null,null,null,"68370","68","JORDÁN","68001","Vía Tipo 4",95.2,"NA",0,10.309229127183491,4,15]
[null,null,null,null,"68377","68","LA BELLEZA","68001","Vía Tipo 4",278,"NA",0,14.874056778774673,3.5,15]
[null,null,null,null,"68385","68","LANDÁZURI","68001","Vía Tipo 3",232,"NA",0,10.606517706262871,4,15]
[null,null,null,null,"68397","68","LA PAZ","68001","Vía Tipo 4",234,"NA",0,4.9041298533409465,4,15]
[null,null,null,null,"68406","68","LEBRIJA","68001","Vía Tipo 3",20.9,"NA",0,10.309229127183491,4,15]
[null,null,null,null,"68418","68","LOS SANTOS","68001","Vía Tipo 3",58.3,"NA",0,8.9446566948660635,4,15]
[null,null,null,null,"68425","68","MACARAVITA","68001","Vía Tipo 4",217,"NA",0,1.3967024092542319,4,15]
[null,null,null,null,"68432","68","MÁLAGA","68001","Vía Tipo 3",154,"NA",0,10.309229127183491,4,15]
[null,null,null,null,"68444",{"$f":"TEXT(MID(E899,1,2),\"00\")","v":"68"},"MATANZA","68001","Vía Tipo 4",38.5,"NA",0,10.309229127183491,3.5,15]
[null,null,null,null,"68464","68","MOGOTES","68001","Vía Tipo 4",128,"NA",0,10.309229127183491,4,15]
[null,null,null,null,"68468","68","MOLAGAVITA","68001","Vía Tipo 4",139,"NA",0,10.309229127183491,3.5,15]
[null,null,null,null,"68498","68","OCAMONTE","68001","Vía Tipo 4",133,"NA",0,10.309229127183491,4,15]
[null,null,null,null,"68500","68","OIBA","68001","Vía Tipo 3",149,"NA",0,10.309229127183491,4,15]
[null,null,null,null,"68502","68","ONZAGA","68001","Vía Tipo 4",173,"NA",0,10.309229127183491,4,15]
[null,null,null,null,"68522","68","PALMAR","68001","Vía Tipo 4",131,"NA",0,10.309229127183491,4.5,15]
[null,null,null,null,"68524","68","PALMAS DEL SOCORRO","68001","Vía Tipo 4",131,"NA",0,0.58138008242249273,4,15]
[null,null,null,null,"68533","68","PÁRAMO","68001","Vía Tipo 3",117,"NA",0,10.309229127183491,4,15]
[null,null,null,null,"68547","68","PIEDECUESTA","68001","Vía Tipo 3",18.399999999999999,"NA",0,6.5097924859858995,3.5,15]
[null,null,null,null,"68549","68","PINCHOTE","68001","Vía Tipo 3",103,"NA",0,10.309229127183491,4.5,15]
[null,null,null,null,"68572","68","PUENTE NACIONAL","68001","Vía Tipo 1",224,"NA",0,10.309229127183491,4,15]
[null,null,null,null,"68573","68","PUERTO PARRA","68001","Vía Tipo 3",166,"NA",0,13.635840041274653,4.5,15]
[null,null,null,null,"68575","68","PUERTO WILCHES","68001","Vía Tipo 3",143,"NA",0,31.513236278210918,4.5,15]
[null,null,null,null,"68615","68","RIONEGRO","68001","Vía Tipo 3",23.3,"NA",0,39.336862332742058,3.5,15]
[null,null,null,null,"68655","68","SABANA DE TORRES","68001","Vía Tipo 3",113,"NA",0,14.545022322302826,4,15]
[null,null,null,null,"68669","68","SAN ANDRÉS","68001","Vía Tipo 4",104,"NA",0,10.309229127183491,3,15]
[null,null,null,null,"68673","68","SAN BENITO","68001","Vía Tipo 4",208,"NA",0,10.309229127183491,4,15]
[null,null,null,null,"68679","68","SAN GIL","68001","Vía Tipo 3",99.5,"NA",0,10.309229127183491,4,15]
[null,null,null,null,"68682","68","SAN JOAQUÍN","68001","Vía Tipo 5",154,"NA",0,0.77370120567385525,3.5,15]
[null,null,null,null,"68684","68","SAN JOSÉ DE MIRANDA","68001","Vía Tipo 3",161,"NA",0,4.5534865400209998,4,15]
[null,null,null,null,"68686","68","SAN MIGUEL","68001","Vía Tipo 4",208,"NA",0,3.5434381998797431,4,15]
[null,null,null,null,"68689","68","SAN VICENTE DE CHUCURÍ","68001","Vía Tipo 4",86.3,"NA",0,16.506378610359466,4,15]
[null,null,null,null,"68705","68","SANTA BÁRBARA","68001","Vía Tipo 4",132.9,"NA",0,11.613497463320028,3,15]
[null,null,null,null,"68720","68","SANTA HELENA DEL OPÓN","68001","Vía Tipo 7",213,"NA",0,6.8286326761583096,4,15]
[null,null,null,null,"68745","68","SIMACOTA","68001","Vía Tipo 3",136,"NA",0,29.133581332610468,4.5,15]
[null,null,null,null,"68755","68","SOCORRO","68001","Vía Tipo 3",120,"NA",0,10.309229127183491,4,15]
[null,null,null,null,"68770","68","SUAITA","68001","Vía Tipo 3",186,"NA",0,9.4378401385809365,4,15]
[null,null,null,null,"68773","68","SUCRE","68001","Vía Tipo 3",259,"NA",0,16.401341430133783,4,15]
[null,null,null,null,"68780","68","SURATÁ","68001","Vía Tipo 4",45.5,"NA",0,12.129842789709024,3.5,15]
[null,null,null,null,"68820","68","TONA","68001","Vía Tipo 3",34.5,"NA",0,0.33396969323493275,3.5,15]
[null,null,null,null,"68855","68","VALLE DE SAN JOSÉ","68001","Vía Tipo 4",120,"NA",0,10.309229127183491,4,15]
[null,null,null,null,"68861","68","VÉLEZ","68001","Vía Tipo 3",231,"NA",0,22.816107948978363,4,15]
[null,null,null,null,"68867","68","VETAS","68001","Vía Tipo 3",82.5,"NA",0,10.309229127183491,3.5,15]
[null,null,null,null,"68872","68","VILLANUEVA","68001","Vía Tipo 3",119,"NA",0,10.309229127183491,4,15]
[null,null,null,null,"68895","68","ZAPATOCA","68001","Vía Tipo 3",68,"NA",0,8.1219019703521305,3.5,15]
[null,null,null,null,"70001","70","SINCELEJO","08001","Vía Tipo 1",238,"NA",0,7.6325428134230897,5,15]
[null,null,null,null,"70110","70","BUENAVISTA","70001","Vía Tipo 4",63.7,"NA",0,6.5345992333841831,4.5,15]
[null,null,null,null,"70124","70","CAIMITO","70001","Vía Tipo 4",82.2,"NA",0,7.7811667122450432,5,15]
[null,null,null,null,"70204","70","COLOSÓ","70001","Vía Tipo 3",33,"NA",0,6.9449734374428704,4.5,15]
[null,null,null,null,"70215","70","COROZAL","70001","Vía Tipo 3",16.100000000000001,"NA",0,13.826862853959483,5,15]
[null,null,null,null,"70221","70","COVEÑAS","70001","Vía Tipo 3",48.5,"NA",0,10.20413568074899,5,15]
[null,null,null,null,"70230","70","CHALÁN","70001","Vía Tipo 4",41.6,"NA",0,4.7583438694371374,5,15]
[null,null,null,null,"70233","70","EL ROBLE","70001","Vía Tipo 4",44.8,"NA",0,8.9562390504153342,5,15]
[null,null,null,null,"70235","70","GALERAS","70001","Vía Tipo 3",57.9,"NA",0,9.9587056009257662,5,15]
[null,null,null,null,"70265","70","GUARANDA","70001","Vía Tipo 5",237,"NA",0,19.288937136026252,5,15]
[null,null,null,null,"70400","70","LA UNIÓN","70001","Vía Tipo 4",80.2,"NA",0,7.7284060327611117,4,15]
[null,null,null,null,"70418","70","LOS PALMITOS","70001","Vía Tipo 3",20.2,"NA",0,8.1780918021204929,5,15]
[null,null,null,null,"70429","70","MAJAGUAL","70001","Vía Tipo 5",3.8,"NA",0,13.165269092110181,5,15]
[null,null,null,null,"70473","70","MORROA","70001","Vía Tipo 3",11.4,"NA",0,9.5651548629566499,5,15]
[null,null,null,null,"70508","70","OVEJAS","70001","Vía Tipo 3",41.7,"NA",0,8.4135078193533683,5,15]
[null,null,null,null,"70523","70","PALMITO","70001","Vía Tipo 3",20,"NA",0,5.144535910866014,5,15]
[null,null,null,null,"70670","70","SAMPUÉS","70001","Vía Tipo 3",17.100000000000001,"NA",0,8.9481650653702438,4.5,15]
[null,null,null,null,"70678","70","SAN BENITO ABAD","70001","Vía Tipo 4",67.5,"NA",0,24.993833881046161,5,15]
[null,null,null,null,"70702","70","SAN JUAN DE BETULIA","70001","Vía Tipo 3",20.3,"NA",0,9.2724303647523616,5,15]
[null,null,null,null,"70708","70","SAN MARCOS","70001","Vía Tipo 3",95.5,"NA",0,14.813004093836707,4.5,15]
[null,null,null,null,"70713","70","SAN ONOFRE","70001","Vía Tipo 3",60.4,"NA",0,12.311362186644917,4.5,15]
[null,null,null,null,"70717","70","SAN PEDRO","70001","Vía Tipo 3",51.4,"NA",0,6.3164813339599934,4.5,15]
[null,null,null,null,"70742","70","SAN LUIS DE SINCÉ","70001","Vía Tipo 3",33,"NA",0,12.183554064592437,5,15]
[null,null,null,null,"70771","70","SUCRE","70001","Vía Tipo 6",702,"NA",0,10.20413568074899,4.5,15]
[null,null,null,null,"70820","70","SANTIAGO DE TOLÚ","70001","Vía Tipo 3",40.6,"NA",0,10.372386387047033,4.5,15]
[null,null,null,null,"70823","70","SAN JOSÉ DE TOLUVIEJO","70001","Vía Tipo 3",22.3,"NA",0,8.8014123102260964,4.5,15]
[null,null,null,null,"73001","73","IBAGUÉ","11001","Vía Tipo 3",167.542,"NA",0,12.616726199425869,3.5,15]
[null,null,null,null,"73024","73","ALPUJARRA","73001","Vía Tipo 3",172,"NA",0,8.2017203545962758,4,15]
[null,null,null,null,"73026",{"$f":"TEXT(MID(E963,1,2),\"00\")","v":"73"},"ALVARADO","73001","Vía Tipo 4",39.799999999999997,"NA",0,9.592388975390076,4,15]
[null,null,null,null,"73030","73","AMBALEMA","73001","Vía Tipo 3",79.7,"NA",0,8.488478810007118,4,15]
[null,null,null,null,"73043","73","ANZOÁTEGUI","73001","Vía Tipo 4",85.5,"NA",0,6.1729272691558377,3.5,15]
[null,null,null,null,"73055","73","ARMERO","73001","Vía Tipo 3",101,"NA",0,9.2801982128499318,3.5,15]
[null,null,null,null,"73067","73","ATACO","73001","Vía Tipo 3",154,"NA",0,30.066451465920206,4,15]
[null,null,null,null,"73124","73","CAJAMARCA","73001","Vía Tipo 3",34.6,"NA",0,7.4691106133493719,3.5,15]
[null,null,null,null,"73148","73","CARMEN DE APICALÁ","73001","Vía Tipo 3",84.1,"NA",0,5.8155212015671873,4,15]
[null,null,null,null,"73152","73","CASABIANCA","73001","Vía Tipo 5",156,"NA",0,5.2383032671952217,3.5,15]
[null,null,null,null,"73168","73","CHAPARRAL","73001","Vía Tipo 4",152,"NA",0,16.277488411604484,3.5,15]
[null,null,null,null,"73200","73","COELLO","73001","Vía Tipo 4",60.9,"NA",0,10.611448389593418,4,15]
[null,null,null,null,"73217","73","COYAIMA","73001","Vía Tipo 3",116,"NA",0,12.328031514358576,4,15]
[null,null,null,null,"73226","73","CUNDAY","73001","Vía Tipo 3",103,"NA",0,12.944353879786897,3.5,15]
[null,null,null,null,"73236","73","DOLORES","73001","Vía Tipo 3",210,"NA",0,21.134655168837632,4,15]
[null,null,null,null,"73268","73","ESPINAL","73001","Vía Tipo 3",56.1,"NA",0,6.4562073571368321,4,15]
[null,null,null,null,"73270","73","FALAN","73001","Vía Tipo 3",122,"NA",0,5.0840369968338575,3.5,15]
[null,null,null,null,"73275","73","FLANDES","73001","Vía Tipo 3",66.099999999999994,"NA",0,6.0289044684976751,4.5,15]
[null,null,null,null,"73283","73","FRESNO","73001","Vía Tipo 3",144,"NA",0,7.7195872703465058,3.5,15]
[null,null,null,null,"73319","73","GUAMO","73001","Vía Tipo 3",71.5,"NA",0,8.402246380247945,4,15]
[null,null,null,null,"73347","73","HERVEO","73001","Vía Tipo 3",196,"NA",0,4.2519110133197584,3.5,15]
[null,null,null,null,"73349","73","HONDA","73001","Vía Tipo 3",139,"NA",0,7.6641182626721918,4,15]
[null,null,null,null,"73352","73","ICONONZO","73001","Vía Tipo 3",111,"NA",0,7.7604702895538669,4,15]
[null,null,null,null,"73408","73","LÉRIDA","73001","Vía Tipo 3",80.099999999999994,"NA",0,9.4146756328283363,3.5,15]
[null,null,null,null,"73411","73","LÍBANO","73001","Vía Tipo 3",124,"NA",0,6.4073197408079405,3.5,15]
[null,null,null,null,"73443","73","SAN SEBASTIÁN DE MARIQUITA","73001","Vía Tipo 3",120,"NA",0,9.9779290573421342,3.5,15]
[null,null,null,null,"73449","73","MELGAR","73001","Vía Tipo 3",86.1,"NA",0,6.7615976339781598,4.5,15]
[null,null,null,null,"73461","73","MURILLO","73001","Vía Tipo 3",147,"NA",0,7.7704592323755435,3.5,15]
[null,null,null,null,"73483","73","NATAGAIMA","73001","Vía Tipo 3",121,"NA",0,12.924724749554276,4,15]
[null,null,null,null,"73504","73","ORTEGA","73001","Vía Tipo 3",108,"NA",0,13.315136088207012,4,15]
[null,null,null,null,"73520","73","PALOCABILDO","73001","Vía Tipo 5",133,"NA",0,3.2708770834582528,3.5,15]
[null,null,null,null,"73547","73","PIEDRAS","73001","Vía Tipo 4",53.5,"NA",0,9.442361133852506,4,15]
[null,null,null,null,"73555","73","PLANADAS","73001","Vía Tipo 4",230,"NA",0,11.371981536857636,4,15]
[null,null,null,null,"73563","73","PRADO","73001","Vía Tipo 3",112,"NA",0,10.665280388967059,3.5,15]
[null,null,null,null,"73585","73","PURIFICACIÓN","73001","Vía Tipo 3",99.6,"NA",0,8.7681715011874566,3.5,15]
[null,null,null,null,"73616","73","RIOBLANCO","73001","Vía Tipo 5",203,"NA",0,14.810783646699056,4,15]
[null,null,null,null,"73622","73","RONCESVALLES","73001","Vía Tipo 8",176.3,"NA",0,14.193249770853772,3.5,15]
[null,null,null,null,"73624","73","ROVIRA","73001","Vía Tipo 3",38,"NA",0,10.991271844722075,4,15]
[null,null,null,null,"73671","73","SALDAÑA","73001","Vía Tipo 3",85.3,"NA",0,4.4803248227445271,4,15]
[null,null,null,null,"73675","73","SAN ANTONIO","73001","Vía Tipo 4",113,"NA",0,9.8162601773435441,3.5,15]
[null,null,null,null,"73678","73","SAN LUIS","73001","Vía Tipo 3",55.4,"NA",0,11.064602585768622,4,15]
[null,null,null,null,"73686","73","SANTA ISABEL","73001","Vía Tipo 3",99.1,"NA",0,3.454991084842546,3.5,15]
[null,null,null,null,"73770","73","SUÁREZ","73001","Vía Tipo 3",72.599999999999994,"NA",0,8.294959066860649,4,15]
[null,null,null,null,"73854","73","VALLE DE SAN JUAN","73001","Vía Tipo 3",47.1,"NA",0,7.4481415945386926,4.5,15]
[null,null,null,null,"73861","73","VENADILLO","73001","Vía Tipo 3",59.5,"NA",0,10.354419903636268,4,15]
[null,null,null,null,"73870","73","VILLAHERMOSA","73001","Vía Tipo 5",153,"NA",0,5.8483406722804032,3.5,15]
[null,null,null,null,"73873","73","VILLARRICA","73001","Vía Tipo 4",135,"NA",0,5.3929101639434709,3.5,15]
[null,null,null,null,"76001","76","CALI","76001","NA",0,"NA",0,7.1310568138024166,4,15]
[null,null,null,null,"76020","76","ALCALÁ","76001","Vía Tipo 3",200,"NA",0,2.8972883765231203,4,15]
[null,null,null,null,"76036","76","ANDALUCÍA","76001","Vía Tipo 3",106,"NA",0,2.1411013881243801,4.5,15]
[null,null,null,null,"76041","76","ANSERMANUEVO","76001","Vía Tipo 4",185,"NA",0,7.3207802960324839,3.5,15]
[null,null,null,null,"76054","76","ARGELIA","76001","Vía Tipo 4",212,"NA",0,4.9596485262922023,3,15]
[null,null,null,null,"76100","76","BOLÍVAR","76001","Vía Tipo 3",123,"NA",0,21.439584139170655,4,15]
[null,null,null,null,"76109","76","BUENAVENTURA","76001","Vía Tipo 1",115,"NA",0,46.130298308076611,3.5,15]
[null,null,null,null,"76111","76","GUADALAJARA DE BUGA","76001","Vía Tipo 3",71,"NA",0,14.117478287686,4,15]
[null,null,null,null,"76113","76","BUGALAGRANDE","76001","Vía Tipo 3",110,"NA",0,15.368844818006274,4.5,15]
[null,null,null,null,"76122","76","CAICEDONIA","76001","Vía Tipo 3",164,"NA",0,6.1606791458739956,3.5,15]
[null,null,null,null,"76126","76","CALIMA","76001","Vía Tipo 3",99.5,"NA",0,5.9404279941355576,3.5,15]
[null,null,null,null,"76130","76","CANDELARIA","76001","Vía Tipo 3",26.6,"NA",0,5.7493282377617492,4,15]
[null,null,null,null,"76147","76","CARTAGO","76001","Vía Tipo 3",180,"NA",0,6.4145213430513657,4.5,15]
[null,null,null,null,"76233","76","DAGUA","76001","Vía Tipo 3",47.8,"NA",0,12.625512022152881,4,15]
[null,null,null,null,"76243","76","EL ÁGUILA","76001","Vía Tipo 4",213,"NA",0,5.0371106179706677,3.5,15]
[null,null,null,null,"76246","76","EL CAIRO","76001","Vía Tipo 5",240,"NA",0,5.0687110409851535,3.5,15]
[null,null,null,null,"76248","76","EL CERRITO","76001","Vía Tipo 3",44,"NA",0,15.43143172472416,4,15]
[null,null,null,null,"76250","76","EL DOVIO","76001","Vía Tipo 3",157,"NA",0,9.4240484398399982,4,15]
[null,null,null,null,"76275","76","FLORIDA","76001","Vía Tipo 3",40.799999999999997,"NA",0,7.8712974865824901,4,15]
[null,null,null,null,"76306",{"$f":"TEXT(MID(E1027,1,2),\"00\")","v":"76"},"GINEBRA","76001","Vía Tipo 3",52,"NA",0,9.7994755692228068,4,15]
[null,null,null,null,"76318","76","GUACARÍ","76001","Vía Tipo 3",53,"NA",0,6.5312618865261598,4.5,15]
[null,null,null,null,"76364","76","JAMUNDÍ","76001","Vía Tipo 3",24.6,"NA",0,15.134823526635872,4,15]
[null,null,null,null,"76377","76","LA CUMBRE","76001","Vía Tipo 3",35.4,"NA",0,4.9245932837645574,4,15]
[null,null,null,null,"76400","76","LA UNIÓN","76001","Vía Tipo 3",151,"NA",0,4.6757480438137549,4,15]
[null,null,null,null,"76403","76","LA VICTORIA","76001","Vía Tipo 3",150,"NA",0,12.005731225010418,4,15]
[null,null,null,null,"76497","76","OBANDO","76001","Vía Tipo 3",157,"NA",0,7.9208053464416031,4,15]
[null,null,null,null,"76520","76","PALMIRA","76001","Vía Tipo 3",22,"NA",0,13.678695553747975,4,15]
[null,null,null,null,"76563","76","PRADERA","76001","Vía Tipo 3",40.4,"NA",0,7.9561592303117079,4,15]
[null,null,null,null,"76606","76","RESTREPO","76001","Vía Tipo 3",85.9,"NA",0,4.1461483730147064,4,15]
[null,null,null,null,"76616","76","RIOFRÍO","76001","Vía Tipo 3",95.8,"NA",0,12.959054894421513,4,15]
[null,null,null,null,"76622","76","ROLDANILLO","76001","Vía Tipo 3",134,"NA",0,6.8283652512554314,4,15]
[null,null,null,null,"76670","76","SAN PEDRO","76001","Vía Tipo 3",83,"NA",0,6.0768636450729465,4.5,15]
[null,null,null,null,"76736","76","SEVILLA","76001","Vía Tipo 3",146,"NA",0,10.721663935676126,4,15]
[null,null,null,null,"76823","76","TORO","76001","Vía Tipo 3",159,"NA",0,6.3823105783050007,4,15]
[null,null,null,null,"76828","76","TRUJILLO","76001","Vía Tipo 3",106,"NA",0,6.8843955104789787,4,15]
[null,null,null,null,"76834","76","TULUÁ","76001","Vía Tipo 3",94,"NA",0,18.217231966918529,4.5,15]
[null,null,null,null,"76845","76","ULLOA","76001","Vía Tipo 4",209,"NA",0,4.8031936684487651,4,15]
[null,null,null,null,"76863","76","VERSALLES","76001","Vía Tipo 4",172,"NA",0,7.4744994845769996,4,15]
[null,null,null,null,"76869","76","VIJES","76001","Vía Tipo 3",33.5,"NA",0,7.0672631602130105,4,15]
[null,null,null,null,"76890","76","YOTOCO","76001","Vía Tipo 3",54.8,"NA",0,10.44181925269913,4,15]
[null,null,null,null,"76892","76","YUMBO","76001","Vía Tipo 3",13.9,"NA",0,8.2804614180423517,4,15]
[null,null,null,null,"76895","76","ZARZAL","76001","Vía Tipo 3",133,"NA",0,7.350367377949345,4.5,15]
[null,null,null,null,"81001",{"$f":"MID(E1050,1,2)","v":"81"},"ARAUCA","50001","Vía Tipo 4",614,"NA",0,40.95924878867406,4.5,15]
[null,null,null,null,"81065",{"$f":"TEXT(MID(E1051,1,2),\"00\")","v":"81"},"ARAUQUITA","81001","Vía Tipo 3",98.6,"NA",0,30.105968454627476,4.5,15]
[null,null,null,null,"81220","81","CRAVO NORTE","81001","Vía Tipo 4",144,"NA",0,34.055920165403883,4.5,15]
[null,null,null,null,"81300","81","FORTUL","81001","Vía Tipo 3",153,"NA",0,16.228333998325411,4.5,15]
[null,null,null,null,"81591","81","PUERTO RONDÓN","81001","Vía Tipo 3",233,"NA",0,28.456390661158959,4.5,15]
[null,null,null,null,"81736","81","SARAVENA","81001","Vía Tipo 3",156,"NA",0,10.123283195891288,4,15]
[null,null,null,null,"81794","81","TAME","81001","Vía Tipo 3",178,"NA",0,25.678563944790891,4.5,15]
[null,null,null,null,"85001","85","YOPAL","50001","Vía Tipo 1",252,"NA",0,21.789036856092164,4,15]
[null,null,null,null,"85010","85","AGUAZUL","85001","Vía Tipo 3",27.7,"NA",0,10.593244525479385,4,15]
[null,null,null,null,"85015","85","CHÁMEZA","85001","Vía Tipo 5",81.5,"NA",0,5.9406112600756487,4,15]
[null,null,null,null,"85125","85","HATO COROZAL","85001","Vía Tipo 3",133,"NA",0,60.133169306663248,4.5,15]
[null,null,null,null,"85136","85","LA SALINA","85001","Vía Tipo 4",224,"NA",0,4.1159762887968006,4,15]
[null,null,null,null,"85139","85","MANÍ","85001","Vía Tipo 3",82.2,"NA",0,23.705631034173237,4.5,15]
[null,null,null,null,"85162","85","MONTERREY","85001","Vía Tipo 3",94.7,"NA",0,8.5344550084301716,4.5,15]
[null,null,null,null,"85225","85","NUNCHÍA","85001","Vía Tipo 3",54,"NA",0,12.792008526794232,3.5,15]
[null,null,null,null,"85230","85","OROCUÉ","85001","Vía Tipo 4",181,"NA",0,31.63057693920501,4.5,15]
[null,null,null,null,"85250","85","PAZ DE ARIPORO","85001","Vía Tipo 3",92.5,"NA",0,65.961266906958599,4.5,15]
[null,null,null,null,"85263","85","PORE","85001","Vía Tipo 3",72,"NA",0,14.293879658177719,4,15]
[null,null,null,null,"85279","85","RECETOR","85001","Vía Tipo 5",64.3,"NA",0,5.1923131653920329,4,15]
[null,null,null,null,"85300","85","SABANALARGA","85001","Vía Tipo 3",135,"NA",0,9.2532082966095643,4,15]
[null,null,null,null,"85315","85","SÁCAMA","85001","Vía Tipo 4",195,"NA",0,8.7825793241550674,4,15]
[null,null,null,null,"85325","85","SAN LUIS DE PALENQUE","85001","Vía Tipo 3",102,"NA",0,32.617340728671849,4,15]
[null,null,null,null,"85400","85","TÁMARA","85001","Vía Tipo 6",92,"NA",0,8.6812886854383109,4,15]
[null,null,null,null,"85410","85","TAURAMENA","85001","Vía Tipo 3",65.599999999999994,"NA",0,23.127490195533429,4.5,15]
[null,null,null,null,"85430","85","TRINIDAD","85001","Vía Tipo 4",112,"NA",0,56.277114640678086,4,15]
[null,null,null,null,"85440","85","VILLANUEVA","85001","Vía Tipo 3",138,"NA",0,14.301897312771422,4.5,15]
[null,null,null,null,"86001","86","MOCOA","41001","Vía Tipo 1",320,"NA",0,11.8511090868294,3.5,15]
[null,null,null,null,"86219","86","COLÓN","86001","Vía Tipo 4",85,"NA",0,2.8481018005303245,3,15]
[null,null,null,null,"86320","86","ORITO","86001","Vía Tipo 4",134,"NA",0,14.369918289524314,3.5,15]
[null,null,null,null,"86568","86","PUERTO ASÍS","86001","Vía Tipo 4",90,"NA",0,15.914733146841861,3,15]
[null,null,null,null,"86569","86","PUERTO CAICEDO","86001","Vía Tipo 4",64,"NA",0,11.55097839604475,3,15]
[null,null,null,null,"86571","86","PUERTO GUZMÁN","86001","Vía Tipo 5",54,"NA",0,47.810969235306075,3.5,15]
[null,null,null,null,"86573","86","PUERTO LEGUÍZAMO","86001","Vía Tipo 4",90,"Fluvial",235,68.834243785075245,3.5,15]
[null,null,null,null,"86749",{"$f":"TEXT(MID(E1083,1,2),\"00\")","v":"86"},"SIBUNDOY","86001","Vía Tipo 4",80,"NA",0,2.5380082117824703,3,15]
[null,null,null,null,"86755","86","SAN FRANCISCO","86001","Vía Tipo 4",72,"NA",0,8.034494827077614,3,15]
[null,null,null,null,"86757","86","SAN MIGUEL","86001","Vía Tipo 4",193,"NA",0,9.5996415625632476,3,15]
[null,null,null,null,"86760","86","SANTIAGO","86001","Vía Tipo 4",90,"NA",0,2.6587149257177125,3,15]
[null,null,null,null,"86865","86","VALLE DEL GUAMUEZ","86001","Vía Tipo 4",147,"NA",0,11.617703834783782,3,15]
[null,null,null,null,"86885","86","VILLAGARZÓN","86001","Vía Tipo 3",14,"NA",0,16.214672460060612,3.5,15]
[null,null,null,null,"88001","88","SAN ANDRÉS","13001","Aéreo",725,"NA",0,123.37093669976881,3.5,15]
[null,null,null,null,"88564","88","PROVIDENCIA","13001","Aéreo",720,"NA",0,133.2603633904836,3,15]
[null,null,null,null,"91001","91","LETICIA","50001","Aéreo",1013,"NA",0,25.078721585967699,3.5,15]
[null,null,null,null,"91263","91","EL ENCANTO","86001","Vía Tipo 4",90,"Fluvial",600,54.469825120761975,3.5,15]
[null,null,null,null,"91405","91","LA CHORRERA","86001","Vía Tipo 4",90,"Fluvial",1270,25.231657866197022,3.5,15]
[null,null,null,null,"91407","91","LA PEDRERA","95001","Aéreo",552,"NA",0,70.906656217981379,3.5,15]
[null,null,null,null,"91430","91","LA VICTORIA","97001","Aéreo",178,"NA",0,5.7365985524733629,4,15]
[null,null,null,null,"91460","91","MIRITÍ - PARANÁ","95001","Aéreo",552,"Fluvial",310,50.270097515972317,4,15]
[null,null,null,null,"91530","91","PUERTO ALEGRÍA","86001","Vía Tipo 4",90,"Fluvial",435,87.896351022324069,3.5,15]
[null,null,null,null,"91536","91","PUERTO ARICA","86001","Vía Tipo 4",90,"Fluvial",981,79.653672161005517,3.5,15]
[null,null,null,null,"91540","91","PUERTO NARIÑO","50001","Aéreo",1013,"Fluvial",72,19.567254355157562,3.5,15]
[null,null,null,null,"91669","91","PUERTO SANTANDER","95001","Aéreo",362,"NA",0,46.772673688777196,4,15]
[null,null,null,null,"91798","91","TARAPACÁ","95001","Aéreo",691,"NA",0,42.28068320214696,3.5,15]
[null,null,null,null,"94001","94","INÍRIDA","50001","Aéreo",640,"NA",0,55.828217002232556,4,15]
[null,null,null,null,"94343","94","BARRANCOMINAS","94001","Aéreo",418,"NA",0,39.491484188764744,4,15]
[null,null,null,null,"94883","94","SAN FELIPE","94001","Aéreo",237,"NA",0,21.758491091689702,3.5,15]
[null,null,null,null,"94884","94","PUERTO COLOMBIA","94001","Fluvial",186,"NA",0,94.188261694747766,4,15]
[null,null,null,null,"94885","94","LA GUADALUPE","94001","Aéreo",354,"Fluvial",336.33,117.41620961671548,3.5,15]
[null,null,null,null,"94886","94","CACAHUAL","94001","Fluvial",111.3,"NA",0,18.471870588011164,4,15]
[null,null,null,null,"94887","94","PANA PANA","94001","Fluvial",306,"NA",0,63.147413122723592,3.5,15]
[null,null,null,null,"94888","94","MORICHAL","94001","Fluvial",399,"NA",0,84.068759263350913,4,15]
[null,null,null,null,"95001","95","SAN JOSÉ DEL GUAVIARE","50001","Vía Tipo 4",285,"NA",0,44.044701509449361,4,15]
[null,null,null,null,"95015","95","CALAMAR","95001","Vía Tipo 6",85.3,"NA",0,18.884327807633987,4,15]
[null,null,null,null,"95025","95","EL RETORNO","95001","Vía Tipo 4",30,"NA",0,30.398085909188506,4,15]
[null,null,null,null,"95200","95","MIRAFLORES","95001","Vía Tipo 6",85.3,"Fluvial",202,21.406115243952151,4,15]
[null,null,null,null,"97001","97","MITÚ","50001","Aéreo",500,"NA",0,43.94106635835562,3.5,15]
[null,null,null,null,"97161",{"$f":"TEXT(MID(E1115,1,2),\"00\")","v":"97"},"CARURÚ","97001","Fluvial",40.08,"NA",0,14.4930936051828,4,15]
[null,null,null,null,"97511","97","PACOA","97001","Aéreo",173,"NA",0,48.612926558378454,4,15]
[null,null,null,null,"97666","97","TARAIRA","97001","Aéreo",213,"NA",0,18.964988876059703,3.5,15]
[null,null,null,null,"97777","97","PAPUNAHUA","97001","Aéreo",81.400000000000006,"NA",0,77.993813865627928,4,15]
[null,null,null,null,"97889","97","YAVARATÉ","97001","Fluvial",160.79999999999998,"NA",0,27.504635998809103,3.5,15]
[null,null,null,null,"99001","99","PUERTO CARREÑO","50001","Aéreo",718,"NA",0,45.212729008867079,4.5,15]
[null,null,null,null,"99524","99","LA PRIMAVERA","99001","Vía Tipo 5",415,"NA",0,66.140167958250714,4.5,15]
[null,null,null,null,"99624","99","SANTA ROSALÍA","99001","Vía Tipo 5",489,"NA",0,22.001553213186121,4,15]
[null,null,null,null,"99773","99","CUMARIBO","99001","Vía Tipo 5",756,"NA",0,96.571387779141986,4.5,15]

{"sheet":"UC","index":2,"n_rows":150,"n_cols":9,"rows_kept":150,"cut":false,"hidden":false,"merged":[]}
[]
[null,"1. TABLA UNIDAD CONSTRUCTIVA PANEL"]
[]
[null,"Codigo","Wp","VI_CR","Kg","VU","Modulos","Min_Costo"]
[null,"UCPA01",20,55616.67172915757,2.9788366593414524,25,{"$f":"(ROUNDUP(NdS_Wp / Tabla_UCPA[[#This Row],[Wp]],0)+(INT(NdS_Wp / Tabla_UCPA[[#This Row],[Wp]])>UCPA_MinPan)*IFERROR(MOD(ROUNDUP(NdS_Wp/ Tabla_UCPA[[#This Row],[Wp]],0),UCPA_Escala)*(UCPA_Escala-MOD(ROUNDUP(NdS_Wp / Tabla_UCPA[[#This Row],[Wp]],0),UCPA_Escala))/MOD(ROUNDUP(NdS_Wp / Tabla_UCPA[[#This Row],[Wp]],0),UCPA_Escala),0))","v":38},{"$f":"Tabla_UCPA[[#This Row],[Modulos]]*Tabla_UCPA[[#This Row],[VI_CR]]","v":2113433.5257079876}]
[null,"UCPA02",40,100384.49779239096,4.8896653560834844,25,{"$f":"(ROUNDUP(NdS_Wp / Tabla_UCPA[[#This Row],[Wp]],0)+(INT(NdS_Wp / Tabla_UCPA[[#This Row],[Wp]])>UCPA_MinPan)*IFERROR(MOD(ROUNDUP(NdS_Wp/ Tabla_UCPA[[#This Row],[Wp]],0),UCPA_Escala)*(UCPA_Escala-MOD(ROUNDUP(NdS_Wp / Tabla_UCPA[[#This Row],[Wp]],0),UCPA_Escala))/MOD(ROUNDUP(NdS_Wp / Tabla_UCPA[[#This Row],[Wp]],0),UCPA_Escala),0))","v":20},{"$f":"Tabla_UCPA[[#This Row],[Modulos]]*Tabla_UCPA[[#This Row],[VI_CR]]","v":2007689.9558478193}]
[null,"UCPA03",60,141803.54940770159,6.5340439028113391,25,{"$f":"(ROUNDUP(NdS_Wp / Tabla_UCPA[[#This Row],[Wp]],0)+(INT(NdS_Wp / Tabla_UCPA[[#This Row],[Wp]])>UCPA_MinPan)*IFERROR(MOD(ROUNDUP(NdS_Wp/ Tabla_UCPA[[#This Row],[Wp]],0),UCPA_Escala)*(UCPA_Escala-MOD(ROUNDUP(NdS_Wp / Tabla_UCPA[[#This Row],[Wp]],0),UCPA_Escala))/MOD(ROUNDUP(NdS_Wp / Tabla_UCPA[[#This Row],[Wp]],0),UCPA_Escala),0))","v":14},{"$f":"Tabla_UCPA[[#This Row],[Modulos]]*Tabla_UCPA[[#This Row],[VI_CR]]","v":1985249.6917078223}]
[null,"UCPA04",80,181187.53035247754,8.0262297093418571,25,{"$f":"(ROUNDUP(NdS_Wp / Tabla_UCPA[[#This Row],[Wp]],0)+(INT(NdS_Wp / Tabla_UCPA[[#This Row],[Wp]])>UCPA_MinPan)*IFERROR(MOD(ROUNDUP(NdS_Wp/ Tabla_UCPA[[#This Row],[Wp]],0),UCPA_Escala)*(UCPA_Escala-MOD(ROUNDUP(NdS_Wp / Tabla_UCPA[[#This Row],[Wp]],0),UCPA_Escala))/MOD(ROUNDUP(NdS_Wp / Tabla_UCPA[[#This Row],[Wp]],0),UCPA_Escala),0))","v":10},{"$f":"Tabla_UCPA[[#This Row],[Modulos]]*Tabla_UCPA[[#This Row],[VI_CR]]","v":1811875.3035247754}]
[null,"UCPA05",100,219124.28772206086,9.4145801435594763,25,{"$f":"(ROUNDUP(NdS_Wp / Tabla_UCPA[[#This Row],[Wp]],0)+(INT(NdS_Wp / Tabla_UCPA[[#This Row],[Wp]])>UCPA_MinPan)*IFERROR(MOD(ROUNDUP(NdS_Wp/ Tabla_UCPA[[#This Row],[Wp]],0),UCPA_Escala)*(UCPA_Escala-MOD(ROUNDUP(NdS_Wp / Tabla_UCPA[[#This Row],[Wp]],0),UCPA_Escala))/MOD(ROUNDUP(NdS_Wp / Tabla_UCPA[[#This Row],[Wp]],0),UCPA_Escala),0))","v":8},{"$f":"Tabla_UCPA[[#This Row],[Modulos]]*Tabla_UCPA[[#This Row],[VI_CR]]","v":1752994.3017764869}]
[null,"UCPA06",150,309535.85905948444,12.580672807806607,25,{"$f":"(ROUNDUP(NdS_Wp / Tabla_UCPA[[#This Row],[Wp]],0)+(INT(NdS_Wp / Tabla_UCPA[[#This Row],[Wp]])>UCPA_MinPan)*IFERROR(MOD(ROUNDUP(NdS_Wp/ Tabla_UCPA[[#This Row],[Wp]],0),UCPA_Escala)*(UCPA_Escala-MOD(ROUNDUP(NdS_Wp / Tabla_UCPA[[#This Row],[Wp]],0),UCPA_Escala))/MOD(ROUNDUP(NdS_Wp / Tabla_UCPA[[#This Row],[Wp]],0),UCPA_Escala),0))","v":6},{"$f":"Tabla_UCPA[[#This Row],[Modulos]]*Tabla_UCPA[[#This Row],[VI_CR]]","v":1857215.1543569067}]
[null,"UCPA07",200,354261.83239134669,15.453732995286575,25,{"$f":"(ROUNDUP(NdS_Wp / Tabla_UCPA[[#This Row],[Wp]],0)+(INT(NdS_Wp / Tabla_UCPA[[#This Row],[Wp]])>UCPA_MinPan)*IFERROR(MOD(ROUNDUP(NdS_Wp/ Tabla_UCPA[[#This Row],[Wp]],0),UCPA_Escala)*(UCPA_Escala-MOD(ROUNDUP(NdS_Wp / Tabla_UCPA[[#This Row],[Wp]],0),UCPA_Escala))/MOD(ROUNDUP(NdS_Wp / Tabla_UCPA[[#This Row],[Wp]],0),UCPA_Escala),0))","v":4},{"$f":"Tabla_UCPA[[#This Row],[Modulos]]*Tabla_UCPA[[#This Row],[VI_CR]]","v":1417047.3295653868}]
[null,"UCPA08",250,428436.61227045581,18.126868164756903,25,{"$f":"(ROUNDUP(NdS_Wp / Tabla_UCPA[[#This Row],[Wp]],0)+(INT(NdS_Wp / Tabla_UCPA[[#This Row],[Wp]])>UCPA_MinPan)*IFERROR(MOD(ROUNDUP(NdS_Wp/ Tabla_UCPA[[#This Row],[Wp]],0),UCPA_Escala)*(UCPA_Escala-MOD(ROUNDUP(NdS_Wp / Tabla_UCPA[[#This Row],[Wp]],0),UCPA_Escala))/MOD(ROUNDUP(NdS_Wp / Tabla_UCPA[[#This Row],[Wp]],0),UCPA_Escala),0))","v":4},{"$f":"Tabla_UCPA[[#This Row],[Modulos]]*Tabla_UCPA[[#This Row],[VI_CR]]","v":1713746.4490818232}]
[null,"UCPA09",275,464676.76568114239,19.40519432423762,25,{"$f":"(ROUNDUP(NdS_Wp / Tabla_UCPA[[#This Row],[Wp]],0)+(INT(NdS_Wp / Tabla_UCPA[[#This Row],[Wp]])>UCPA_MinPan)*IFERROR(MOD(ROUNDUP(NdS_Wp/ Tabla_UCPA[[#This Row],[Wp]],0),UCPA_Escala)*(UCPA_Escala-MOD(ROUNDUP(NdS_Wp / Tabla_UCPA[[#This Row],[Wp]],0),UCPA_Escala))/MOD(ROUNDUP(NdS_Wp / Tabla_UCPA[[#This Row],[Wp]],0),UCPA_Escala),0))","v":3},{"$f":"Tabla_UCPA[[#This Row],[Modulos]]*Tabla_UCPA[[#This Row],[VI_CR]]","v":1394030.2970434271}]
[null,"UCPA10",320,528717.64875631966,21.626014016278287,25,{"$f":"(ROUNDUP(NdS_Wp / Tabla_UCPA[[#This Row],[Wp]],0)+(INT(NdS_Wp / Tabla_UCPA[[#This Row],[Wp]])>UCPA_MinPan)*IFERROR(MOD(ROUNDUP(NdS_Wp/ Tabla_UCPA[[#This Row],[Wp]],0),UCPA_Escala)*(UCPA_Escala-MOD(ROUNDUP(NdS_Wp / Tabla_UCPA[[#This Row],[Wp]],0),UCPA_Escala))/MOD(ROUNDUP(NdS_Wp / Tabla_UCPA[[#This Row],[Wp]],0),UCPA_Escala),0))","v":3},{"$f":"Tabla_UCPA[[#This Row],[Modulos]]*Tabla_UCPA[[#This Row],[VI_CR]]","v":1586152.946268959}]
[null,"UCPA11",345,563710.55839163333,22.820989154643655,25,{"$f":"(ROUNDUP(NdS_Wp / Tabla_UCPA[[#This Row],[Wp]],0)+(INT(NdS_Wp / Tabla_UCPA[[#This Row],[Wp]])>UCPA_MinPan)*IFERROR(MOD(ROUNDUP(NdS_Wp/ Tabla_UCPA[[#This Row],[Wp]],0),UCPA_Escala)*(UCPA_Escala-MOD(ROUNDUP(NdS_Wp / Tabla_UCPA[[#This Row],[Wp]],0),UCPA_Escala))/MOD(ROUNDUP(NdS_Wp / Tabla_UCPA[[#This Row],[Wp]],0),UCPA_Escala),0))","v":3},{"$f":"Tabla_UCPA[[#This Row],[Modulos]]*Tabla_UCPA[[#This Row],[VI_CR]]","v":1691131.6751748999}]
[null,"UCPA12",380,612079.32202146924,24.45335910586822,25,{"$f":"(ROUNDUP(NdS_Wp / Tabla_UCPA[[#This Row],[Wp]],0)+(INT(NdS_Wp / Tabla_UCPA[[#This Row],[Wp]])>UCPA_MinPan)*IFERROR(MOD(ROUNDUP(NdS_Wp/ Tabla_UCPA[[#This Row],[Wp]],0),UCPA_Escala)*(UCPA_Escala-MOD(ROUNDUP(NdS_Wp / Tabla_UCPA[[#This Row],[Wp]],0),UCPA_Escala))/MOD(ROUNDUP(NdS_Wp / Tabla_UCPA[[#This Row],[Wp]],0),UCPA_Escala),0))","v":2},{"$f":"Tabla_UCPA[[#This Row],[Modulos]]*Tabla_UCPA[[#This Row],[VI_CR]]","v":1224158.6440429385}]
[null,"UCPA13",400,639419.71042063541,25.366809761876048,25,{"$f":"(ROUNDUP(NdS_Wp / Tabla_UCPA[[#This Row],[Wp]],0)+(INT(NdS_Wp / Tabla_UCPA[[#This Row],[Wp]])>UCPA_MinPan)*IFERROR(MOD(ROUNDUP(NdS_Wp/ Tabla_UCPA[[#This Row],[Wp]],0),UCPA_Escala)*(UCPA_Escala-MOD(ROUNDUP(NdS_Wp / Tabla_UCPA[[#This Row],[Wp]],0),UCPA_Escala))/MOD(ROUNDUP(NdS_Wp / Tabla_UCPA[[#This Row],[Wp]],0),UCPA_Escala),0))","v":2},{"$f":"Tabla_UCPA[[#This Row],[Modulos]]*Tabla_UCPA[[#This Row],[VI_CR]]","v":1278839.4208412708}]
[]
[]
[null,"2. TABLA UNIDAD CONSTRUCTIVA INVERSOR"]
[]
[null,"Codigo","Capacidad (VA)","VA_Carga_Min","VA_Carga_Max","VI_CR","Kg","VU"]
[null,"UCIN01",300,0,330,343060.21095039917,2.3744244196444901,10]
[null,"UCIN02",500,330.01,550,510996.92883179343,3.3553834571418029,10]
[null,"UCIN03",600,550.01,660,589090.16617978166,3.7961649987291382,10]
[null,"UCIN04",800,660.01,880.00000000000011,684627.09073326353,4.3897633990184968,10]
[null,"UCIN05",1000,880.0100000000001,1100,725782.95837282587,5.1055882460596944,10]
[null,"UCIN06",1500,1100.01,1650.0000000000002,995778.2672564286,6.718207021811371,10]
[null,"UCIN07",2000,1650.0100000000002,2200,1246287.3568865145,8.1626752307898816,10]
[null,"UCIN08",3000,2200.0100000000002,3300.0000000000005,3338483.4899908351,19.1138381218177,10]
[null,"UCIN09",4000,3300.0100000000007,4400,4178349.640240219,23.223466096795356,10]
[null,"UCIN10",5000,4400.01,5500,4972756.2564450735,27.010443333477866,10]
[null,"UCIN11",6000,5500.01,6600.0000000000009,5732719.0129650682,30.558683051399445,10]
[null,"UCIN12",10000,6600.0100000000011,11000,8539031.0970931165,43.183560080660577,10]
[]
[]
[null,"3. TABLA UNIDAD CONSTRUCTIVA REGULADOR"]
[]
[null,"Codigo","A_Min","A_Max","VI_CR","Kg","VU"]
[null,"UCRG01",0.01,10,213964.37451273031,0.33608173968372768,10]
[null,"UCRG02",10.01,15,320946.56176909432,0.54685341321608638,10]
[null,"UCRG03",15.01,20,427928.7490254594,0.77246723758017732,10]
[null,"UCRG04",20.010000000000002,30,641893.12353818968,1.2569154928376931,10]
[null,"UCRG05",30.01,40,855857.4980509188,1.7754776968730437,10]
[null,"UCRG06",40.01,50,1069821.872563649,2.320979748995029,10]
[null,"UCRG07",50.01,60,2041995.4222650169,2.888958024133526,10]
[null,"UCRG08",60.01,70,2382327.9926425237,3.4763353955410774,10]
[null,"UCRG09",70.010000000000005,80,2722660.56302003,4.0808475735081426,10]
[null,"UCRG10",80.010000000000005,100,3403325.7037750315,5.3346570297836751,10]
[]
[]
[null,"4. TABLA UNIDAD CONSTRUCTIVA BANCO DE BATERIAS"]
[]
[null,"Codigo","Whd_Min","Whd_Max","VI_CR","Kg","VU"]
[null,"UCBB01",0.01,79.199999999999989,155162.90607599894,7.2,3.1506849315068495]
[null,"UCBB02",79.209999999999994,118.89908256880732,244228.37223229508,10.6,4.1095890410958908]
[null,"UCBB03",118.90908256880732,330,376610.36561843246,16.600000000000001,4.2465753424657535]
[null,"UCBB04",330.01,600,608742.92643492448,31.2,4.2465753424657535]
[null,"UCBB05",600.01,900,859401.77849636402,42.6,4.2465753424657535]
[null,"UCBB06",900.01,1200,1181677.4454325004,60.2,4.2465753424657535]
[null,"UCBB07",1200.01,1800,1718803.556992728,85.2,4.2465753424657535]
[null,"UCBB08",1800.01,2400,2363354.8908650009,120.4,4.2465753424657535]
[null,"UCBB09",2400.0100000000002,3600,3437607.1139854561,170.4,4.2465753424657535]
[null,"UCBB10",3600.01,4800,4726709.7817300018,240.8,4.2465753424657535]
[null,"UCBB11",4800.01,7200,6875214.2279709121,340.8,4.2465753424657535]
[null,"UCBB12",7200.01,12000,11315456.750202125,569.6,4.2465753424657535]
[null,"UCBB13",12000.01,18000,16973185.12530319,854.40000000000009,4.2465753424657535]
[null,"UCBB14",18000.009999999998,24000,22630913.50040425,1139.2,4.2465753424657535]
[]
[]
[null,"5. TABLA UNIDAD CONSTRUCTIVA ESTRUCTURA"]
[]
[null,"Codigo","No_Paneles","Wp_Min","Wp_Max","VI_CR","Kg","VU","Min_Costo"]
[null,"UCES01",1,0,270,104472.22231204549,4,20]
[null,"UCES02",1,270.01,310,117005.16491511746,4,20]
[null,"UCES03",1,310.01,410,142071.05012126142,4,20]
[null,"UCES04",2,0,270,146947.55840743767,4,20]
[null,"UCES05",2,270.01,310,172013.44361358162,4,20]
[null,"UCES06",2,310.01,410,222145.2140258695,4,20]
[null,"UCES07",1,null,null,1041314.414450164,45,20,{"$f":"ROUNDUP(UCPA_NUM/Tabla_UCES[[#This Row],[No_Paneles]],0)*Tabla_UCES[[#This Row],[VI_CR]]","v":2082628.8289003279}]
[null,"UCES08",2,null,null,1239159.2076595419,70,20,{"$f":"ROUNDUP(UCPA_NUM/Tabla_UCES[[#This Row],[No_Paneles]],0)*Tabla_UCES[[#This Row],[VI_CR]]","v":1239159.2076595419}]
[null,"UCES09",3,null,null,1706390.17257466,94,20,{"$f":"ROUNDUP(UCPA_NUM/Tabla_UCES[[#This Row],[No_Paneles]],0)*Tabla_UCES[[#This Row],[VI_CR]]","v":1706390.17257466}]
[null,"UCES10",4,null,null,2311568.4914105549,113,20,{"$f":"ROUNDUP(UCPA_NUM/Tabla_UCES[[#This Row],[No_Paneles]],0)*Tabla_UCES[[#This Row],[VI_CR]]","v":2311568.4914105549}]
[null,"UCES11",6,null,null,3503290.4338519475,162,20,{"$f":"ROUNDUP(UCPA_NUM/Tabla_UCES[[#This Row],[No_Paneles]],0)*Tabla_UCES[[#This Row],[VI_CR]]","v":3503290.4338519475}]
[null,"UCES12",8,null,null,4404194.6340136304,198,20,{"$f":"ROUNDUP(UCPA_NUM/Tabla_UCES[[#This Row],[No_Paneles]],0)*Tabla_UCES[[#This Row],[VI_CR]]","v":4404194.6340136304}]
[]
[]
[null,"6. TABLA UNIDAD CONSTRUCTIVA RED PANEL"]
[]
[null,"Codigo","Wp_Min","Wp_Max","VI_CR","Kg","VU"]
[null,"UCRP01",0,275,48155.146321746259,0.9,25]
[null,"UCRP02",275.01,550,56510.44139046091,0.9,25]
[null,"UCRP04",550.01,760,238039.96928051789,3.55,25]
[null,"UCRP05",760.01,1520,321924.26709781797,5.5,25]
[null,"UCRP06",1520.01,1140,335258.12441390532,5.5,25]
[null,"UCRP07",1140.01,2280,364501.65715440654,5.5,25]
[null,"UCRP08",2280.0100000000002,3420,393745.18989490782,5.5,25]
[null,"UCRP09",3420.01,4560,765023.70751819084,15,25]
[null,"UCRP10",4560.01,5700,794267.24025869207,15,25]
[null,"UCRP11",5700.01,6840,1107031.9554567526,21,25]
[null,"UCRP12",6840.01,7980,1136275.4881972538,21,25]
[null,"UCRP13",7980.01,9120,1165519.020937755,21,25]
[null,"UCRP14",9120.01,10260,1194762.5536782565,21,25]
[]
[]
[null,"7. TABLA UNIDAD CONSTRUCTIVA GABINETE Y PROTECCIONES"]
[]
[null,"Codigo","VA_Inv_Min","VA_Inv_Max","VI_CR","Kg","VU"]
[null,"UCGP01","DC","DC",226572.32679870701,4.32,25]
[null,"UCGP02",0.01,300,575735.33326596732,7.0200000000000005,25]
[null,"UCGP03",300.01,500,706219.3795472933,17.28,25]
[null,"UCGP04",500.01,800,852186.38439773826,28.080000000000002,25]
[null,"UCGP05",800.01,2000,1061794.4781730014,33,25]
[null,"UCGP06",2000.01,3000,1223887.2025060656,33.300000000000004,25]
[null,"UCGP07",3000.01,5000,2688406.9029911133,33.6,25]
[]
[]
[null,"8. TABLA UNIDAD CONSTRUCTIVA RED BATERÍA A GABINETE Y ACCESORIOS"]
[]
[null,"Codigo","VA_Inv_Min","VA_Inv_Max","VI_CR","Kg","VU"]
[null,"UCRB01","DC","DC",9923.7033144705147,4.32,25]
[null,"UCRB02",0.01,300,246222.19037995202,7.0200000000000005,25]
[null,"UCRB03",300.01,500,406443.32861762412,17.28,25]
[null,"UCRB04",500.01,800,641811.99070331582,28.080000000000002,25]
[null,"UCRB07",800.01,2000,932361.40864996158,33,25]
[null,"UCRB08",2000.01,3000,1895037.0214228011,33.300000000000004,25]
[null,"UCRB09",3000.01,5000,4954685.201293462,33.6,25]
[]
[]
[null,"9. TABLA UNIDAD CONSTRUCTIVA PUESTA A TIERRA"]
[]
[null,"Codigo","No_UCPA_Min","No_UCPA_Max","VI_CR","Kg","VU"]
[null,"UCPT01",0.01,1,172394.80315278936,11.09,25]
[null,"UCPT02",1.01,2,180594.92845594216,11.3,25]
[null,"UCPT03",2.0099999999999998,4,197291.19523039655,11.9,25]
[null,"UCPT04",4.01,8,746817.75828617776,12.91,25]
[null,"UCPT05",8.01,10,787233.51414713182,14.24,25]
[]
[]
[null,"10. TABLA UNIDAD CONSTRUCTIVA RED DOMICILIARIA"]
[]
[null,"Codigo","VI_CR","Kg","VU"]
[null,"UCRD01",76955.848423605654,16.32,25]
[null,"UCRD02",285133.39632174675,10.879999999999999,25]
[]
[]
[null,"11. TABLA UNIDAD CONSTRUCTIVA ELEMENTO DE MEDICIÓN"]
[]
[null,"Codigo","VI_CR","Kg","VU"]
[null,"UCMD01",254239.69280517436,1,10]

{"sheet":"NdS","index":3,"n_rows":63,"n_cols":6,"rows_kept":63,"cut":false,"hidden":false,"merged":[]}
[]
[null,"Niveles de servicio"]
[]
[null,"AC Wp","AC Whd",null,"DC Wp","DC Whd"]
[null,320,{"$f":"INT(Tabla_NdS_AC[[#This Row],[AC Wp]]*Radiacion*Ef_SISFV)","v":907},null,20,{"$f":"INT(Tabla_NdS_DC[[#This Row],[DC Wp]]*Radiacion*Ef_SISFV)","v":56}]
[null,345,{"$f":"INT(Tabla_NdS_AC[[#This Row],[AC Wp]]*Radiacion*Ef_SISFV)","v":978},null,40,{"$f":"INT(Tabla_NdS_DC[[#This Row],[DC Wp]]*Radiacion*Ef_SISFV)","v":113}]
[null,380,{"$f":"INT(Tabla_NdS_AC[[#This Row],[AC Wp]]*Radiacion*Ef_SISFV)","v":1078},null,60,{"$f":"INT(Tabla_NdS_DC[[#This Row],[DC Wp]]*Radiacion*Ef_SISFV)","v":170}]
[null,400,{"$f":"INT(Tabla_NdS_AC[[#This Row],[AC Wp]]*Radiacion*Ef_SISFV)","v":1134},null,80,{"$f":"INT(Tabla_NdS_DC[[#This Row],[DC Wp]]*Radiacion*Ef_SISFV)","v":226}]
[null,500,{"$f":"INT(Tabla_NdS_AC[[#This Row],[AC Wp]]*Radiacion*Ef_SISFV)","v":1418},null,100,{"$f":"INT(Tabla_NdS_DC[[#This Row],[DC Wp]]*Radiacion*Ef_SISFV)","v":283}]
[null,550,{"$f":"INT(Tabla_NdS_AC[[#This Row],[AC Wp]]*Radiacion*Ef_SISFV)","v":1560},null,120,{"$f":"INT(Tabla_NdS_DC[[#This Row],[DC Wp]]*Radiacion*Ef_SISFV)","v":340}]
[null,640,{"$f":"INT(Tabla_NdS_AC[[#This Row],[AC Wp]]*Radiacion*Ef_SISFV)","v":1815},null,150,{"$f":"INT(Tabla_NdS_DC[[#This Row],[DC Wp]]*Radiacion*Ef_SISFV)","v":425}]
[null,690,{"$f":"INT(Tabla_NdS_AC[[#This Row],[AC Wp]]*Radiacion*Ef_SISFV)","v":1957},null,200,{"$f":"INT(Tabla_NdS_DC[[#This Row],[DC Wp]]*Radiacion*Ef_SISFV)","v":567}]
[null,760,{"$f":"INT(Tabla_NdS_AC[[#This Row],[AC Wp]]*Radiacion*Ef_SISFV)","v":2156},null,250,{"$f":"INT(Tabla_NdS_DC[[#This Row],[DC Wp]]*Radiacion*Ef_SISFV)","v":709}]
[null,800,{"$f":"INT(Tabla_NdS_AC[[#This Row],[AC Wp]]*Radiacion*Ef_SISFV)","v":2269},null,275,{"$f":"INT(Tabla_NdS_DC[[#This Row],[DC Wp]]*Radiacion*Ef_SISFV)","v":780}]
[null,825,{"$f":"INT(Tabla_NdS_AC[[#This Row],[AC Wp]]*Radiacion*Ef_SISFV)","v":2340}]
[null,959.99999999999989,{"$f":"INT(Tabla_NdS_AC[[#This Row],[AC Wp]]*Radiacion*Ef_SISFV)","v":2723}]
[null,1035,{"$f":"INT(Tabla_NdS_AC[[#This Row],[AC Wp]]*Radiacion*Ef_SISFV)","v":2936}]
[null,1140.0000000000002,{"$f":"INT(Tabla_NdS_AC[[#This Row],[AC Wp]]*Radiacion*Ef_SISFV)","v":3234}]
[null,1200,{"$f":"INT(Tabla_NdS_AC[[#This Row],[AC Wp]]*Radiacion*Ef_SISFV)","v":3404}]
[null,1280,{"$f":"INT(Tabla_NdS_AC[[#This Row],[AC Wp]]*Radiacion*Ef_SISFV)","v":3631}]
[null,1380,{"$f":"INT(Tabla_NdS_AC[[#This Row],[AC Wp]]*Radiacion*Ef_SISFV)","v":3915}]
[null,1520,{"$f":"INT(Tabla_NdS_AC[[#This Row],[AC Wp]]*Radiacion*Ef_SISFV)","v":4312}]
[null,1600,{"$f":"INT(Tabla_NdS_AC[[#This Row],[AC Wp]]*Radiacion*Ef_SISFV)","v":4539}]
[null,1650,{"$f":"INT(Tabla_NdS_AC[[#This Row],[AC Wp]]*Radiacion*Ef_SISFV)","v":4681}]
[null,1919.9999999999998,{"$f":"INT(Tabla_NdS_AC[[#This Row],[AC Wp]]*Radiacion*Ef_SISFV)","v":5447}]
[null,2070,{"$f":"INT(Tabla_NdS_AC[[#This Row],[AC Wp]]*Radiacion*Ef_SISFV)","v":5873}]
[null,2280.0000000000005,{"$f":"INT(Tabla_NdS_AC[[#This Row],[AC Wp]]*Radiacion*Ef_SISFV)","v":6469}]
[null,2400,{"$f":"INT(Tabla_NdS_AC[[#This Row],[AC Wp]]*Radiacion*Ef_SISFV)","v":6809}]
[null,2560,{"$f":"INT(Tabla_NdS_AC[[#This Row],[AC Wp]]*Radiacion*Ef_SISFV)","v":7263}]
[null,2760,{"$f":"INT(Tabla_NdS_AC[[#This Row],[AC Wp]]*Radiacion*Ef_SISFV)","v":7831}]
[null,3040,{"$f":"INT(Tabla_NdS_AC[[#This Row],[AC Wp]]*Radiacion*Ef_SISFV)","v":8625}]
[null,3200,{"$f":"INT(Tabla_NdS_AC[[#This Row],[AC Wp]]*Radiacion*Ef_SISFV)","v":9079}]
[null,3300,{"$f":"INT(Tabla_NdS_AC[[#This Row],[AC Wp]]*Radiacion*Ef_SISFV)","v":9363}]
[null,3450,{"$f":"INT(Tabla_NdS_AC[[#This Row],[AC Wp]]*Radiacion*Ef_SISFV)","v":9789}]
[null,3500,{"$f":"INT(Tabla_NdS_AC[[#This Row],[AC Wp]]*Radiacion*Ef_SISFV)","v":9930}]
[null,3800,{"$f":"INT(Tabla_NdS_AC[[#This Row],[AC Wp]]*Radiacion*Ef_SISFV)","v":10782}]
[null,3839.9999999999995,{"$f":"INT(Tabla_NdS_AC[[#This Row],[AC Wp]]*Radiacion*Ef_SISFV)","v":10895}]
[null,4000,{"$f":"INT(Tabla_NdS_AC[[#This Row],[AC Wp]]*Radiacion*Ef_SISFV)","v":11349}]
[null,4140,{"$f":"INT(Tabla_NdS_AC[[#This Row],[AC Wp]]*Radiacion*Ef_SISFV)","v":11746}]
[null,4560.0000000000009,{"$f":"INT(Tabla_NdS_AC[[#This Row],[AC Wp]]*Radiacion*Ef_SISFV)","v":12938}]
[null,4800,{"$f":"INT(Tabla_NdS_AC[[#This Row],[AC Wp]]*Radiacion*Ef_SISFV)","v":13619}]
[null,4830,{"$f":"INT(Tabla_NdS_AC[[#This Row],[AC Wp]]*Radiacion*Ef_SISFV)","v":13704}]
[null,4950,{"$f":"INT(Tabla_NdS_AC[[#This Row],[AC Wp]]*Radiacion*Ef_SISFV)","v":14045}]
[null,5120,{"$f":"INT(Tabla_NdS_AC[[#This Row],[AC Wp]]*Radiacion*Ef_SISFV)","v":14527}]
[null,5320,{"$f":"INT(Tabla_NdS_AC[[#This Row],[AC Wp]]*Radiacion*Ef_SISFV)","v":15095}]
[null,5600,{"$f":"INT(Tabla_NdS_AC[[#This Row],[AC Wp]]*Radiacion*Ef_SISFV)","v":15889}]
[null,5760,{"$f":"INT(Tabla_NdS_AC[[#This Row],[AC Wp]]*Radiacion*Ef_SISFV)","v":16343}]
[null,6080,{"$f":"INT(Tabla_NdS_AC[[#This Row],[AC Wp]]*Radiacion*Ef_SISFV)","v":17251}]
[null,6210,{"$f":"INT(Tabla_NdS_AC[[#This Row],[AC Wp]]*Radiacion*Ef_SISFV)","v":17620}]
[null,6400,{"$f":"INT(Tabla_NdS_AC[[#This Row],[AC Wp]]*Radiacion*Ef_SISFV)","v":18159}]
[null,6840,{"$f":"INT(Tabla_NdS_AC[[#This Row],[AC Wp]]*Radiacion*Ef_SISFV)","v":19407}]
[null,6900,{"$f":"INT(Tabla_NdS_AC[[#This Row],[AC Wp]]*Radiacion*Ef_SISFV)","v":19578}]
[null,7200,{"$f":"INT(Tabla_NdS_AC[[#This Row],[AC Wp]]*Radiacion*Ef_SISFV)","v":20429}]
[null,7600,{"$f":"INT(Tabla_NdS_AC[[#This Row],[AC Wp]]*Radiacion*Ef_SISFV)","v":21564}]
[null,7679.9999999999991,{"$f":"INT(Tabla_NdS_AC[[#This Row],[AC Wp]]*Radiacion*Ef_SISFV)","v":21791}]
[null,8000,{"$f":"INT(Tabla_NdS_AC[[#This Row],[AC Wp]]*Radiacion*Ef_SISFV)","v":22699}]
[null,8360,{"$f":"INT(Tabla_NdS_AC[[#This Row],[AC Wp]]*Radiacion*Ef_SISFV)","v":23720}]
[null,8800,{"$f":"INT(Tabla_NdS_AC[[#This Row],[AC Wp]]*Radiacion*Ef_SISFV)","v":24969}]
[null,8970,{"$f":"INT(Tabla_NdS_AC[[#This Row],[AC Wp]]*Radiacion*Ef_SISFV)","v":25451}]
[null,9120.0000000000018,{"$f":"INT(Tabla_NdS_AC[[#This Row],[AC Wp]]*Radiacion*Ef_SISFV)","v":25877}]
[null,9600,{"$f":"INT(Tabla_NdS_AC[[#This Row],[AC Wp]]*Radiacion*Ef_SISFV)","v":27239}]
[null,9660,{"$f":"INT(Tabla_NdS_AC[[#This Row],[AC Wp]]*Radiacion*Ef_SISFV)","v":27409}]
[null,9880,{"$f":"INT(Tabla_NdS_AC[[#This Row],[AC Wp]]*Radiacion*Ef_SISFV)","v":28033}]

{"sheet":"Parámetros","index":4,"n_rows":286,"n_cols":16381,"rows_kept":286,"cut":false,"hidden":false,"merged":[]}
[]
[null,"1. PARÁMETROS DE LA SISFV"]
[]
[null,"1.1. Parámetros Eficiencia SISFV"]
[]
[null,"Factor","% perdidas","Tipo SISFV","% Ef SISFV"]
[null,"Módulo (mismatch)",1.0000000000000009E-2,{"$f":"TRUE","v":true},{"$f":"1-(Tabla_Ef_SISFV[[#This Row],[% perdidas]]*Tabla_Ef_SISFV[[#This Row],[Tipo SISFV]])","v":0.99}]
[null,"Diodos y conexiones",3.0000000000000027E-3,{"$f":"TRUE","v":true},{"$f":"1-(Tabla_Ef_SISFV[[#This Row],[% perdidas]]*Tabla_Ef_SISFV[[#This Row],[Tipo SISFV]])","v":0.997}]
[null,"Alambrado DC",1.0000000000000009E-2,{"$f":"TRUE","v":true},{"$f":"1-(Tabla_Ef_SISFV[[#This Row],[% perdidas]]*Tabla_Ef_SISFV[[#This Row],[Tipo SISFV]])","v":0.99}]
[null,"Alambrado AC",7.0000000000000062E-3,{"$f":"Tipo_Sistema=\"AC\"","v":true},{"$f":"1-(Tabla_Ef_SISFV[[#This Row],[% perdidas]]*Tabla_Ef_SISFV[[#This Row],[Tipo SISFV]])","v":0.99299999999999999}]
[null,"Suciedad",5.0000000000000044E-3,{"$f":"TRUE","v":true},{"$f":"1-(Tabla_Ef_SISFV[[#This Row],[% perdidas]]*Tabla_Ef_SISFV[[#This Row],[Tipo SISFV]])","v":0.995}]
[null,"Disponibilidad",5.0000000000000044E-3,{"$f":"TRUE","v":true},{"$f":"1-(Tabla_Ef_SISFV[[#This Row],[% perdidas]]*Tabla_Ef_SISFV[[#This Row],[Tipo SISFV]])","v":0.995}]
[null,"Sombras",1.0000000000000009E-2,{"$f":"TRUE","v":true},{"$f":"1-(Tabla_Ef_SISFV[[#This Row],[% perdidas]]*Tabla_Ef_SISFV[[#This Row],[Tipo SISFV]])","v":0.99}]
[null,"Eficiencia Inversor",0.15000000000000002,{"$f":"Tipo_Sistema=\"AC\"","v":true},{"$f":"1-(Tabla_Ef_SISFV[[#This Row],[% perdidas]]*Tabla_Ef_SISFV[[#This Row],[Tipo SISFV]])","v":0.85}]
[null,"Eficiencia de las baterías",0.19999999999999996,{"$f":"Almacenamiento=\"SI\"","v":true},{"$f":"1-(Tabla_Ef_SISFV[[#This Row],[% perdidas]]*Tabla_Ef_SISFV[[#This Row],[Tipo SISFV]])","v":0.8}]
[null,"Temperatura celda 60°C ",0.12250000000000005,{"$f":"TRUE","v":true},{"$f":"1-(Tabla_Ef_SISFV[[#This Row],[% perdidas]]*Tabla_Ef_SISFV[[#This Row],[Tipo SISFV]])","v":0.87749999999999995}]
[]
[null,"Eficiencia SISFV",null,null,{"$f":"PRODUCT(Tabla_Ef_SISFV[% Ef SISFV])","v":0.56748212971069478}]
[]
[null,"1.2. Parámetros selección UC Panel"]
[]
[null,"No. mínimo de paneles antes de escalar la instalación",2]
[null,"Modulo para escalar la instalación de paneles",2]
[]
[null,"1.3. Parámetros UC Inversor"]
[]
[null,"Factor Dda Whd a Dda pico VA con factor de seguridad",0.34999999965]
[null,"Demanda pico con factor de seguridad (VA)",{"$f":"NdS_Whd*Factor_Whd_VA_con_seguridad","v":754.5999992454}]
[]
[null,"1.4. Potencia máxima de carga al inversor de onda seno (VA)"]
[]
[null,"Factor de potencia máxima para el inversor",1.1000000000000001]
[null,"Máxima capacidad inversor onda seno",800]
[null,"Límite inversor onda seno",{"$f":"Factor_potencia_inv   *   Max_cap_inv","v":880.00000000000011}]
[]
[null,"1.5. Voltaje del sistema"]
[]
[null,"Nivel de servicio"]
[null,"NdS_Whd_Min","NdS_Whd_Max","Voltaje"]
[null,0,1000,12]
[null,1000.01,4000,24]
[null,4000.01,"> 4000",48]
[]
[null,"1.6. Parámetros para UCES Riel"]
[]
[null,"Potencia máxima SISFV (Wp)",500]
[]
[null,"1.7. Módulo W (Potencia) para UCRD"]
[]
[null,"Módulo UCRD DC - W",8]
[null,"Módulo UCRD AC - W",18]
[]
[]
[null,"2. TASA DE DESCUENTO"]
[]
[null,"Tasa de descuento",0.1164]
[]
[]
[null,"3. PARÁMETROS COSTOS DE TRANSPORTE DE SISFV HASTA PUNTO DE INSTALACIÓN"]
[]
[null,"3.1. Transporte de ciudad de referencia (CR) a centro logístico (CL)"]
[]
[null,"Divipola CL","CR a CL (km)","Modalidad"]
[null,"05001",0,"Vía Tipo 1"]
[null,"08001",0,"Vía Tipo 1"]
[null,"11001",416,"Vía Tipo 1"]
[null,"41001",579,"Vía Tipo 1"]
[null,"44001",891,"Vía Tipo 1"]
[null,"50001",582,"Vía Tipo 1"]
[null,"68001",390,"Vía Tipo 1"]
[null,"76001",0,"Vía Tipo 1"]
[]
[null,"3.2. Transporte de centro logístico (CL) a centro de distribución (CD)"]
[]
[null,"Divipola CD","Divipola CL","CL a CD (km)","Modalidad"]
[null,"05001","05001",0,"NA"]
[null,"05837","05001",333.83000000000004,"Vía Tipo 3"]
[null,"08001","08001",0,"NA"]
[null,"11001","11001",0,"NA"]
[null,"13001","08001",113,"Vía Tipo 1"]
[null,"15001","11001",146.995,"Vía Tipo 1"]
[null,"17001","05001",208.5,"Vía Tipo 1"]
[null,"18001","41001",237,"Vía Tipo 1"]
[null,"19001","76001",140,"Vía Tipo 1"]
[null,"20001","08001",301,"Vía Tipo 1"]
[null,"23001","08001",354,"Vía Tipo 1"]
[null,"27001","05001",237,"Vía Tipo 4"]
[null,"41001","41001",0,"NA"]
[null,"44001","44001",0,"NA"]
[null,"47001","08001",104,"Vía Tipo 1"]
[null,"50001","50001",0,"NA"]
[null,"52001","76001",384,"Vía Tipo 1"]
[null,"52835","76001",662,"Vía Tipo 1"]
[null,"54001","68001",196,"Vía Tipo 1"]
[null,"63001","76001",179,"Vía Tipo 1"]
[null,"66001","76001",209,"Vía Tipo 1"]
[null,"68001","68001",0,"NA"]
[null,"68081","68001",115,"Vía Tipo 3"]
[null,"70001","08001",238,"Vía Tipo 1"]
[null,"73001","11001",167.542,"Vía Tipo 3"]
[null,"76001","76001",0,"NA"]
[null,"76109","76001",115,"Vía Tipo 1"]
[null,"81001","50001",614,"Vía Tipo 4"]
[null,"85001","50001",252,"Vía Tipo 1"]
[null,"86001","41001",320,"Vía Tipo 1"]
[null,"94001","50001",633,"Aéreo"]
[null,"95001","50001",285,"Vía Tipo 4"]
[null,"97001","50001",500,"Aéreo"]
[null,"99001","50001",718,"Aéreo"]
[]
[null,"3.3. Parámetros modelo de costos - transporte terrestre"]
[]
[null,"Transporte terrestre"]
[null,"Variable","Parámetro","Valor"]
[null,"Constante (Col$ 2021-Dic /(kg*km))","C",3674.054582131042]
[null,"Distancia (km)","α",-0.65299831507980033]
[null,"Peso (kg)","β",-0.72446749527219778]
[]
[null,"Tipo via","Factor"]
[null,"Vía Tipo 1",0.945026795734494]
[null,"Vía Tipo 2",1]
[null,"Vía Tipo 3",1.086339885049022]
[null,"Vía Tipo 4",1.393513942099194]
[null,"Vía Tipo 5",1.4631896392041539]
[null,"Vía Tipo 6",1.5363491211643616]
[null,"Vía Tipo 7",1.6131665772225796]
[null,"Vía Tipo 8",1.6938249060837085]
[]
[null,"3.4. Parámetros modelo de costos - transporte aéreo"]
[]
[null,"Transporte aéreo"]
[null,"Variable","Parámetro","Valor"]
[null,"Constante (Col$ 2021-Dic /(kg*km))","C",24879.685752571575]
[null,"Distancia (km)","α",-0.8545856016395168]
[null,"Peso (kg)","β",-0.40531606098268641]
[null,"Densidad (kg/m3)","γ",-8.8784347436014363E-2]
[]
[null,"3.5. Parámetros modelo de costos - transporte fluvial"]
[]
[null,"Transporte fluvial"]
[null,"Variable","Parámetro","Valor"]
[null,"Constante (Col$ 2021-Dic /(kg*km))","C",58.456959318218132]
[null,"Distancia (km)","α",-0.71499999999999997]
[]
[null,"3.6. Parámetros modelo de costos - transporte marítimo"]
[null," "]
[null,"Transporte marítimo"]
[null,"Variable","Parámetro","Valor"]
[null,"Constante (Col$ 2021-Dic /(kg*km))","C",1463.560741276727]
[null,"Distancia (km)","α",-1.161]
[]
[null,"3.7. Cantidad de unidades para descuento en costos de transporte"]
[]
[null,"Descuento transporte por volumen",0.1]
[]
[null,"3.8. Ruta desde ciudad de referencia (CR) hasta punto de instalación (PI)"]
[]
[null,"Logistica","Trayecto","Tramo","Modalidad","Tipo","Distancia (km)"]
[null,"Ciudad Referencia a Centro Logístico",{"$f":" \"Ciudad de referencia -> \" &  INDEX(Tabla_Municipios[Municipio],MATCH(INDEX(Tabla_CD[Divipola CL],MATCH(INDEX(Tabla_Municipios[CD],MATCH(Punto_Instalacion,Tabla_Municipios[Codigo_M],0)),Tabla_CD[Divipola CD],0)),Tabla_Municipios[Codigo_M],0))","v":"Ciudad de referencia -> RIOHACHA"},"T de CR a CL",{"$f":"IF(Tabla_Ruta_CR_PI[[#This Row],[Tipo]]=\"NA\",\"NA\",IF(Tabla_Ruta_CR_PI[[#This Row],[Tipo]]=\"Aéreo\",\"A\",IF(Tabla_Ruta_CR_PI[[#This Row],[Tipo]]=\"Fluvial\",\"F\",IF(Tabla_Ruta_CR_PI[[#This Row],[Tipo]]=\"Marítimo\",\"M\",\"T\"))))","v":"T"},{"$f":"INDEX(Tabla_CL[Modalidad],MATCH(INDEX(Tabla_CD[Divipola CL],MATCH(INDEX(Tabla_Municipios[CD],MATCH(Punto_Instalacion,Tabla_Municipios[Codigo_M],0)),Tabla_CD[Divipola CD],0)),Tabla_CL[Divipola CL],0))","v":"Vía Tipo 1"},{"$f":"INDEX(Tabla_CL[CR a CL (km)],MATCH(INDEX(Tabla_CD[Divipola CL],MATCH(INDEX(Tabla_Municipios[CD],MATCH(Punto_Instalacion,Tabla_Municipios[Codigo_M],0)),Tabla_CD[Divipola CD],0)),Tabla_CL[Divipola CL],0))","v":891}]
[null,"Centro Logístico a Centro de Distribución",{"$f":"INDEX(Tabla_Municipios[Municipio],MATCH(INDEX(Tabla_CD[Divipola CL],MATCH(INDEX(Tabla_Municipios[CD],MATCH(Punto_Instalacion,Tabla_Municipios[Codigo_M],0)),Tabla_CD[Divipola CD],0)),Tabla_Municipios[Codigo_M],0)) & \" -> \" &  INDEX(Tabla_Municipios[Municipio],MATCH(INDEX(Tabla_Municipios[CD],MATCH(Punto_Instalacion,Tabla_Municipios[Codigo_M],0)),Tabla_Municipios[Codigo_M],0),0)","v":"RIOHACHA -> RIOHACHA"},"T de CL a CD",{"$f":"IF(Tabla_Ruta_CR_PI[[#This Row],[Tipo]]=\"NA\",\"NA\",IF(Tabla_Ruta_CR_PI[[#This Row],[Tipo]]=\"Aéreo\",\"A\",IF(Tabla_Ruta_CR_PI[[#This Row],[Tipo]]=\"Fluvial\",\"F\",IF(Tabla_Ruta_CR_PI[[#This Row],[Tipo]]=\"Marítimo\",\"M\",\"T\"))))","v":"NA"},{"$f":"INDEX(Tabla_CD[Modalidad],MATCH(INDEX(Tabla_Municipios[CD],MATCH(Punto_Instalacion,Tabla_Municipios[Codigo_M],0)),Tabla_CD[Divipola CD],0))","v":"NA"},{"$f":"INDEX(Tabla_CD[CL a CD (km)],MATCH(INDEX(Tabla_Municipios[CD],MATCH(Punto_Instalacion,Tabla_Municipios[Codigo_M],0)),Tabla_CD[Divipola CD],0))","v":0}]
[null,"Centro de Distribución a Municipio Tramo 1",{"$f":"INDEX(Tabla_Municipios[Municipio],MATCH(INDEX(Tabla_Municipios[CD],MATCH(Punto_Instalacion,Tabla_Municipios[Codigo_M],0)),Tabla_Municipios[Codigo_M],0),0) & \" -> \" & MUN & \" (Tramo 1)\"","v":"RIOHACHA -> URIBIA (Tramo 1)"},"T de CD a M1",{"$f":"IF(Tabla_Ruta_CR_PI[[#This Row],[Tipo]]=\"NA\",\"NA\",IF(Tabla_Ruta_CR_PI[[#This Row],[Tipo]]=\"Aéreo\",\"A\",IF(Tabla_Ruta_CR_PI[[#This Row],[Tipo]]=\"Fluvial\",\"F\",IF(Tabla_Ruta_CR_PI[[#This Row],[Tipo]]=\"Marítimo\",\"M\",\"T\"))))","v":"T"},{"$f":"INDEX(Tabla_Municipios[Tramo 1 Modalidad (CD-M) ],MATCH(Punto_Instalacion,Tabla_Municipios[Codigo_M],0))","v":"Vía Tipo 3"},{"$f":"INDEX(Tabla_Municipios[Tramo 1 Distancia (Km)],MATCH(Punto_Instalacion,Tabla_Municipios[Codigo_M],0))","v":95.1}]
[null,"Centro de Distribución a Municipio Tramo 2",{"$f":"INDEX(Tabla_Municipios[Municipio],MATCH(INDEX(Tabla_Municipios[CD],MATCH(Punto_Instalacion,Tabla_Municipios[Codigo_M],0)),Tabla_Municipios[Codigo_M],0),0) & \" -> \" & MUN & \" (Tramo 2)\"","v":"RIOHACHA -> URIBIA (Tramo 2)"},"T de CD a M2",{"$f":"IF(Tabla_Ruta_CR_PI[[#This Row],[Tipo]]=\"NA\",\"NA\",IF(Tabla_Ruta_CR_PI[[#This Row],[Tipo]]=\"Aéreo\",\"A\",IF(Tabla_Ruta_CR_PI[[#This Row],[Tipo]]=\"Fluvial\",\"F\",IF(Tabla_Ruta_CR_PI[[#This Row],[Tipo]]=\"Marítimo\",\"M\",\"T\"))))","v":"NA"},{"$f":"INDEX(Tabla_Municipios[Tramo 2 Modalidad (CD-M) ],MATCH(Punto_Instalacion,Tabla_Municipios[Codigo_M],0))","v":"NA"},{"$f":"INDEX(Tabla_Municipios[Tramo 2 Distancia (Km)],MATCH(Punto_Instalacion,Tabla_Municipios[Codigo_M],0))","v":0}]
[null,"Municipio a Punto de Instalación",{"$f":" MUN & \" -> Punto de Instalación\"","v":"URIBIA -> Punto de Instalación"},"T de M a PI",{"$f":"IF(Tabla_Ruta_CR_PI[[#This Row],[Tipo]]=\"NA\",\"NA\",IF(Tabla_Ruta_CR_PI[[#This Row],[Tipo]]=\"Aéreo\",\"A\",IF(Tabla_Ruta_CR_PI[[#This Row],[Tipo]]=\"Fluvial\",\"F\",IF(Tabla_Ruta_CR_PI[[#This Row],[Tipo]]=\"Marítimo\",\"M\",\"T\"))))","v":"T"},"Vía Tipo 8",{"$f":"INDEX(Tabla_Municipios[Distancia promedio a PI (km)],MATCH(Punto_Instalacion,Tabla_Municipios[Codigo_M],0))","v":61.4669868576553}]
[]
[null,"3.9. Costo de UC en ciudad de referencia (CR) y costo de transporte hasta punto de instalación (PI)"]
[]
[null,"Unidad constructiva","VI_UC_CR","Codigo","Unidades","Peso (Kg)","Densidad (Kg/M3)","T de CR a CL","T de CL a CD","T de CD a M1","T de CD a M2","T de M a PI","Costo T","VI+CT","% VI+CT"]
[null,"1. PANEL",{"$f":"MIN(Tabla_UCPA[Min_Costo])","v":1224158.6440429385},{"$f":"UCPA_ID","v":"UCPA12"},{"$f":"UCPA_NUM","v":2},{"$f":"IFERROR(INDEX(Tabla_UCPA[Kg],MATCH(Tabla_Costos_Transporte[[#This Row],[Codigo]],Tabla_UCPA[Codigo],0)),0)*Tabla_Costos_Transporte[[#This Row],[Unidades]]","v":48.90671821173644},278.30001979022359,{"$f":"IF(OR(Km_CR_CL=0,Tabla_Costos_Transporte[[#This Row],[Codigo]]=\"NA\"),0,IF(Mod_CR_CL=\"T\",Var_T_K*POWER(Km_CR_CL,Var_T_Alfa)*POWER(Tabla_Costos_Transporte[[#This Row],[Peso (Kg)]],Var_T_Beta)*INDEX(Tabla_Tipo_Via[Factor],MATCH(Tipo_CR_CL,Tabla_Tipo_Via[Tipo via],0))*(1-Descuento_transporte),IF(Mod_CR_CL=\"A\",Var_A_K*POWER(Km_CR_CL,Var_A_Alfa)*POWER(Tabla_Costos_Transporte[[#This Row],[Peso (Kg)]],Var_A_Beta)*POWER(Tabla_Costos_Transporte[[#This Row],[Densidad (Kg/M3)]],Var_A_Gama)*(1-Descuento_transporte),IF(Mod_CR_CL=\"F\",Var_F_K*POWER(Km_CR_CL,Var_F_Alfa),IF(Mod_CR_CL=\"M\",Var_M_K*POWER(Km_CR_CL,Var_M_Alfa),0)))))","v":2.2114365569997272},{"$f":"IF(OR(Km_CL_CD=0,Tabla_Costos_Transporte[[#This Row],[Codigo]]=\"NA\"),0,IF(Mod_CL_CD=\"T\",Var_T_K*POWER(Km_CL_CD,Var_T_Alfa)*POWER(Tabla_Costos_Transporte[[#This Row],[Peso (Kg)]],Var_T_Beta)*INDEX(Tabla_Tipo_Via[Factor],MATCH(Tipo_CL_CD,Tabla_Tipo_Via[Tipo via],0))*(1-Descuento_transporte),IF(Mod_CL_CD=\"A\",Var_A_K*POWER(Km_CL_CD,Var_A_Alfa)*POWER(Tabla_Costos_Transporte[[#This Row],[Peso (Kg)]],Var_A_Beta)*POWER(Tabla_Costos_Transporte[[#This Row],[Densidad (Kg/M3)]],Var_A_Gama)*(1-Descuento_transporte),IF(Mod_CL_CD=\"F\",Var_F_K*POWER(Km_CL_CD,Var_F_Alfa),IF(Mod_CL_CD=\"M\",Var_M_K*POWER(Km_CL_CD,Var_M_Alfa),0)))))","v":0},{"$f":"IF(OR(Km_CD_Mun_T1=0,Tabla_Costos_Transporte[[#This Row],[Codigo]]=\"NA\"),0,IF(Mod_CD_Mun_T1=\"T\",Var_T_K*POWER(Km_CD_Mun_T1,Var_T_Alfa)*POWER(Tabla_Costos_Transporte[[#This Row],[Peso (Kg)]],Var_T_Beta)*INDEX(Tabla_Tipo_Via[Factor],MATCH(Tipo_CD_Mun_T1,Tabla_Tipo_Via[Tipo via],0))*(1-Descuento_transporte),IF(Mod_CD_Mun_T1=\"A\",Var_A_K*POWER(Km_CD_Mun_T1,Var_A_Alfa)*POWER(Tabla_Costos_Transporte[[#This Row],[Peso (Kg)]],Var_A_Beta)*POWER(Tabla_Costos_Transporte[[#This Row],[Densidad (Kg/M3)]],Var_A_Gama)*(1-Descuento_transporte),IF(Mod_CD_Mun_T1=\"F\",Var_F_K*POWER(Km_CD_Mun_T1,Var_F_Alfa),IF(Mod_CD_Mun_T1=\"M\",Var_M_K*POWER(Km_CD_Mun_T1,Var_M_Alfa),0)))))","v":10.957531117277336},{"$f":"IF(OR(Km_CD_Mun_T2=0,Tabla_Costos_Transporte[[#This Row],[Codigo]]=\"NA\"),0,IF(Mod_CD_Mun_T2=\"T\",Var_T_K*POWER(Km_CD_Mun_T2,Var_T_Alfa)*POWER(Tabla_Costos_Transporte[[#This Row],[Peso (Kg)]],Var_T_Beta)*INDEX(Tabla_Tipo_Via[Factor],MATCH(Tipo_CD_Mun_T2,Tabla_Tipo_Via[Tipo via],0))*(1-Descuento_transporte),IF(Mod_CD_Mun_T2=\"A\",Var_A_K*POWER(Km_CD_Mun_T2,Var_A_Alfa)*POWER(Tabla_Costos_Transporte[[#This Row],[Peso (Kg)]],Var_A_Beta)*POWER(Tabla_Costos_Transporte[[#This Row],[Densidad (Kg/M3)]],Var_A_Gama)*(1-Descuento_transporte),IF(Mod_CD_Mun_T2=\"F\",Var_F_K*POWER(Km_CD_Mun_T2,Var_F_Alfa),IF(Mod_CD_Mun_T2=\"M\",Var_M_K*POWER(Km_CD_Mun_T2,Var_M_Alfa),0)))))","v":0},{"$f":"IF(OR(Km_Mun_PI=0,Tabla_Costos_Transporte[[#This Row],[Codigo]]=\"NA\"),0,IF(Mod_Mun_PI=\"T\",Var_T_K*POWER(Km_Mun_PI,Var_T_Alfa)*POWER(Tabla_Costos_Transporte[[#This Row],[Peso (Kg)]],Var_T_Beta)*INDEX(Tabla_Tipo_Via[Factor],MATCH(Tipo_Mun_PI,Tabla_Tipo_Via[Tipo via],0))*(1-Descuento_transporte),IF(Mod_Mun_PI=\"A\",Var_A_K*POWER(Km_Mun_PI,Var_A_Alfa)*POWER(Tabla_Costos_Transporte[[#This Row],[Peso (Kg)]],Var_A_Beta)*POWER(Tabla_Costos_Transporte[[#This Row],[Densidad (Kg/M3)]],Var_A_Gama)*(1-Descuento_transporte),IF(Mod_Mun_PI=\"F\",Var_F_K*POWER(Km_Mun_PI,Var_F_Alfa),IF(Mod_Mun_PI=\"M\",Var_M_K*POWER(Km_Mun_PI,Var_M_Alfa),0)))))","v":22.71872129182244},{"$f":"SUMPRODUCT(TRANSPOSE(Tabla_Ruta_CR_PI[Distancia (km)]),Tabla_Costos_Transporte[[#This Row],[T de CR a CL]:[T de M a PI]])*Tabla_Costos_Transporte[[#This Row],[Peso (Kg)]]","v":215624.95339396872},{"$f":"Tabla_Costos_Transporte[[#This Row],[VI_UC_CR]]+Tabla_Costos_Transporte[[#This Row],[Costo T]]","v":1439783.5974369072},{"$f":"Tabla_Costos_Transporte[[#This Row],[VI+CT]]/SUM(Tabla_Costos_Transporte[VI+CT])","v":0.12516089250596354},null,null,null,null,null,null,null,null,null,null,null,null,null,null,null,null,null,null,null,null,null,null,null,null,null,null,null,null,null,null,null,null,null,null,null,null,null,null,null,null,null,null,null,null,null,null,null,null,null,null,null,null,null,null,null,null,null,null,null,null,null,null,null,null,null,null,null,null,null,null,null,null,null,null,null,null,null,null,null,null,null,null,null,null,null,null,null,null,null,null,null,null,null,null,null,null,null,null,null,null,null,null,null,null,null,null,null,null,null,null,null,null,null,null,null,null,null,null,null,null,null,null,null,null,null,null,null,null,null,null,null,null,null,null,null,null,null,null,null,null,null,null,null,null,null,null,null,null,null,null,null,null,null,null,null,null,null,null,null,null,null,null,null,null,null,null,null,null,null,null,null,null,null,null,null,null,null,null,null,null,null,null,null,null,null,null,null,null,null,null,null,null,null,null,null,null,null,null,null,null,null,null,null,null,null,null,null,null,null,null,null,null,null,null,null,null,null,null,null,null,null,null,null,null,null,null,null,null,null,null,null,null,null,null,null,null,null,null,null,null,null,null,null,null,null,null,null,null,null,null,null,null,null,null,null,null,null,null,null,null,null,null,null,null,null,null,null,null,null,null,null,null,null,null,null,null,null,null,null,null,null,null,null,null,null,null,null,null,null,null,null,null,null,null,null,null,null,null,null,null,null,null,null,null,null,null,null,null,null,null,null,null,null,null,null,null,null,null,null,null,null,null,null,null,null,null,null,null,null,null,null,null,null,null,null,null,null,null,null,null,null,null,null,null,null,null,null,null,null,null,null,null,null,null,null,null,null,null,null,null,null,null,null,null,null,null,null,null,null,null,null,null,null,null,null,null,null,null,null,null,null,null,null,null,null,null,null,null,null,null,null,null,null,null,null,null,null,null,null,null,null,null,null,null,null,null,null,null,null,null,null,null,null,null,null,null,null,null,null,null,null,null,null,null,null,null,null,null,null,null,null,null,null,null,null,null,null,null,null,null,null,null,null,null,null,null,null,null,null,null,null,null,null,null,null,null,null,null,null,null,null,null,null,null,null,null,null,null,null,null,null,null,null,null,null,null,null,null,null,null,null,null,null,null,null,null,null,null,null,null,null,null,null,null,null,null,null,null,null,null,null,null,null,null,null,null,null,null,null,null,null,null,null,null,null,null,null,null,null,null,null,null,null,null,null,null,null,null,null,null,null,null,null,null,null,null,null,null,null,null,null,null,null,null,null,null,null,null,null,null,null,null,null,null,null,null,null,null,null,null,null,null,null,null,null,null,null,null,null,null,null,null,null,null,null,null,null,null,null,null,null,null,null,null,null,null,null,null,null,null,null,null,null,null,null,null,null,null,null,null,null,null,null,null,null,null,null,null,null,null,null,null,null,null,null,null,null,null,null,null,null,null,null,null,null,null,null,null,null,null,null,null,null,null,null,null,null,null,null,null,null,null,null,null,null,null,null,null,null,null,null,null,null,null,null,null,null,null,null,null,null,null,null,null,null,null,null,null,null,null,null,null,null,null,null,null,null,null,null,null,null,null,null,null,null,null,null,null,null,null,null,null,null,null,null,null,null,null,null,null,null,null,null,null,null,null,null,null,null,null,null,null,null,null,null,null,null,null,null,null,null,null,null,null,null,null,null,null,null,null,null,null,null,null,null,null,null,null,null,null,null,null,null,null,null,null,null,null,null,null,null,null,null,null,null,null,null,null,null,null,null,null,null,null,null,null,null,null,null,null,null,null,null,null,null,null,null,null,null,null,null,null,null,null,null,null,null,null,null,null,null,null,null,null,null,null,null,null,null,null,null,null,null,null,null,null,null,null,null,null,null,null,null,null,null,null,null,null,null,null,null,null,null,null,null,null,null,null,null,null,null,null,null,null,null,null,null,null,null,null,null,null,null,null,null,null,null,null,null,null,null,null,null,null,null,null,null,null,null,null,null,null,null,null,null,null,null,null,null,null,null,null,null,null,null,null,null,null,null,null,null,null,null,null,null,null,null,null,null,null,null,null,null,null,null,null,null,null,null,null,null,null,null,null,null,null,null,null,null,null,null,null,null,null,null,null,null,null,null,null,null,null,null,null,null,null,null,null,null,null,null,null,null,null,null,null,null,null,null,null,null,null,null,null,null,null,null,null,null,null,null,null,null,null,null,null,null,null,null,null,null,null,null,null,null,null,null,null,null,null,null,null,null,null,null,null,null,null,null,null,null,null,null,null,null,null,null,null,null,null,null,null,null,null,null,null,null,null,null,null,null,null,null,null,null,null,null,null,null,null,null,null,null,null,null,null,null,null,null,null,null,null,null,null,null,null,null,null,null,null,null,null,null,null,null,null,null,null,null,null,null,null,null,null,null,null,null,null,null,null,null,null,null,null,null,null,null,null,null,null,null,null,null,null,null,null,null,null,null,null,null,null,null,null,null,null,null,null,null,null,null,null,null,null,null,null,null,null,null,null,null,null,null,null,null,null,null,null,null,null,null,null,null,null,null,null,null,null,null,null,null,null,null,null,null,null,null,null,null,null,null,null,null,null,null,null,null,null,null,null,null,null,null,null,null,null,null,null,null,null,null,null,null,null,null,null,null,null,null,null,null,null,null,null,null,null,null,null,null,null,null,null,null,null,null,null,null,null,null,null,null,null,null,null,null,null,null,null,null,null,null,null,null,null,null,null,null,null,null,null,null,null,null,null,null,null,null,null,null,null,null,null,null,null,null,null,null,null,null,null,null,null,null,null,null,null,null,null,null,null,null,null,null,null,null,null,null,null,null,null,null,null,null,null,null,null,null,null,null,null,null,null,null,null,null,null,null,null,null,null,null,null,null,null,null,null,null,null,null,null,null,null,null,null,null,null,null,null,null,null,null,null,null,null,null,null,null,null,null,null,null,null,null,null,null,null,null,null,null,null,null,null,null,null,null,null,null,null,null,null,null,null,null,null,null,null,null,null,null,null,null,null,null,null,null,null,null,null,null,null,null,null,null,null,null,null,null,null,null,null,null,null,null,null,null,null,null,null,null,null,null,null,null,null,null,null,null,null,null,null,null,null,null,null,null,null,null,null,null,null,null,null,null,null,null,null,null,null,null,null,null,null,null,null,null,null,null,null,null,null,null,null,null,null,null,null,null,null,null,null,null,null,null,null,null,null,null,null,null,null,null,null,null,null,null,null,null,null,null,null,null,null,null,null,null,null,null,null,null,null,null,null,null,null,null,null,null,null,null,null,null,null,null,null,null,null,null,null,null,null,null,null,null,null,null,null,null,null,null,null,null,null,null,null,null,null,null,null,null,null,null,null,null,null,null,null,null,null,null,null,null,null,null,null,null,null,null,null,null,null,null,null,null,null,null,null,null,null,null,null,null,null,null,null,null,null,null,null,null,null,null,null,null,null,null,null,null,null,null,null,null,null,null,null,null,null,null,null,null,null,null,null,null,null,null,null,null,null,null,null,null,null,null,null,null,null,null,null,null,null,null,null,null,null,null,null,null,null,null,null,null,null,null,null,null,null,null,null,null,null,null,null,null,null,null,null,null,null,null,null,null,null,null,null,null,null,null,null,null,null,null,null,null,null,null,null,null,null,null,null,null,null,null,null,null,null,null,null,null,null,null,null,null,null,null,null,null,null,null,null,null,null,null,null,null,null,null,null,null,null,null,null,null,null,null,null,null,null,null,null,null,null,null,null,null,null,null,null,null,null,null,null,null,null,null,null,null,null,null,null,null,null,null,null,null,null,null,null,null,null,null,null,null,null,null,null,null,null,null,null,null,null,null,null,null,null,null,null,null,null,null,null,null,null,null,null,null,null,null,null,null,null,null,null,null,null,null,null,null,null,null,null,null,null,null,null,null,null,null,null,null,null,null,null,null,null,null,null,null,null,null,null,null,null,null,null,null,null,null,null,null,null,null,null,null,null,null,null,null,null,null,null,null,null,null,null,null,null,null,null,null,null,null,null,null,null,null,null,null,null,null,null,null,null,null,null,null,null,null,null,null,null,null,null,null,null,null,null,null,null,null,null,null,null,null,null,null,null,null,null,null,null,null,null,null,null,null,null,null,null,null,null,null,null,null,null,null,null,null,null,null,null,null,null,null,null,null,null,null,null,null,null,null,null,null,null,null,null,null,null,null,null,null,null,null,null,null,null,null,null,null,null,null,null,null,null,null,null,null,null,null,null,null,null,null,null,null,null,null,null,null,null,null,null,null,null,null,null,null,null,null,null,null,null,null,null,null,null,null,null,null,null,null,null,null,null,null,null,null,null,null,null,null,null,null,null,null,null,null,null,null,null,null,null,null,null,null,null,null,null,null,null,null,null,null,null,null,null,null,null,null,null,null,null,null,null,null,null,null,null,null,null,null,null,null,null,null,null,null,null,null,null,null,null,null,null,null,null,null,null,null,null,null,null,null,null,null,null,null,null,null,null,null,null,null,null,null,null,null,null,null,null,null,null,null,null,null,null,null,null,null,null,null,null,null,null,null,null,null,null,null,null,null,null,null,null,null,null,null,null,null,null,null,null,null,null,null,null,null,null,null,null,null,null,null,null,null,null,null,null,null,null,null,null,null,null,null,null,null,null,null,null,null,null,null,null,null,null,null,null,null,null,null,null,null,null,null,null,null,null,null,null,null,null,null,null,null,null,null,null,null,null,null,null,null,null,null,null,null,null,null,null,null,null,null,null,null,null,null,null,null,null,null,null,null,null,null,null,null,null,null,null,null,null,null,null,null,null,null,null,null,null,null,null,null,null,null,null,null,null,null,null,null,null,null,null,null,null,null,null,null,null,null,null,null,null,null,null,null,null,null,null,null,null,null,null,null,null,null,null,null,null,null,null,null,null,null,null,null,null,null,null,null,null,null,null,null,null,null,null,null,null,null,null,null,null,null,null,null,null,null,null,null,null,null,null,null,null,null,null,null,null,null,null,null,null,null,null,null,null,null,null,null,null,null,null,null,null,null,null,null,null,null,null,null,null,null,null,null,null,null,null,null,null,null,null,null,null,null,null,null,null,null,null,null,null,null,null,null,null,null,null,null,null,null,null,null,null,null,null,null,null,null,null,null,null,null,null,null,null,null,null,null,null,null,null,null,null,null,null,null,null,null,null,null,null,null,null,null,null,null,null,null,null,null,null,null,null,null,null,null,null,null,null,null,null,null,null,null,null,null,null,null,null,null,null,null,null,null,null,null,null,null,null,null,null,null,null,null,null,null,null,null,null,null,null,null,null,null,null,null,null,null,null,null,null,null,null,null,null,null,null,null,null,null,null,null,null,null,null,null,null,null,null,null,null,null,null,null,null,null,null,null,null,null,null,null,null,null,null,null,null,null,null,null,null,null,null,null,null,null,null,null,null,null,null,null,null,null,null,null,null,null,null,null,null,null,null,null,null,null,null,null,null,null,null,null,null,null,null,null,null,null,null,null,null,null,null,null,null,null,null,null,null,null,null,null,null,null,null,null,null,null,null,null,null,null,null,null,null,null,null,null,null,null,null,null,null,null,null,null,null,null,null,null,null,null,null,null,null,null,null,null,null,null,null,null,null,null,null,null,null,null,null,null,null,null,null,null,null,null,null,null,null,null,null,null,null,null,null,null,null,null,null,null,null,null,null,null,null,null,null,null,null,null,null,null,null,null,null,null,null,null,null,null,null,null,null,null,null,null,null,null,null,null,null,null,null,null,null,null,null,null,null,null,null,null,null,null,null,null,null,null,null,null,null,null,null,null,null,null,null,null,null,null,null,null,null,null,null,null,null,null,null,null,null,null,null,null,null,null,null,null,null,null,null,null,null,null,null,null,null,null,null,null,null,null,null,null,null,null,null,null,null,null,null,null,null,null,null,null,null,null,null,null,null,null,null,null,null,null,null,null,null,null,null,null,null,null,null,null,null,null,null,null,null,null,null,null,null,null,null,null,null,null,null,null,null,null,null,null,null,null,null,null,null,null,null,null,null,null,null,null,null,null,null,null,null,null,null,null,null,null,null,null,null,null,null,null,null,null,null,null,null,null,null,null,null,null,null,null,null,null,null,null,null,null,null,null,null,null,null,null,null,null,null,null,null,null,null,null,null,null,null,null,null,null,null,null,null,null,null,null,null,null,null,null,null,null,null,null,null,null,null,null,null,null,null,null,null,null,null,null,null,null,null,null,null,null,null,null,null,null,null,null,null,null,null,null,null,null,null,null,null,null,null,null,null,null,null,null,null,null,null,null,null,null,null,null,null,null,null,null,null,null,null,null,null,null,null,null,null,null,null,null,null,null,null,null,null,null,null,null,null,null,null,null,null,null,null,null,null,null,null,null,null,null,null,null,null,null,null,null,null,null,null,null,null,null,null,null,null,null,null,null,null,null,null,null,null,null,null,null,null,null,null,null,null,null,null,null,null,null,null,null,null,null,null,null,null,null,null,null,null,null,null,null,null,null,null,null,null,null,null,null,null,null,null,null,null,null,null,null,null,null,null,null,null,null,null,null,null,null,null,null,null,null,null,null,null,null,null,null,null,null,null,null,null,null,null,null,null,null,null,null,null,null,null,null,null,null,null,null,null,null,null,null,null,null,null,null,null,null,null,null,null,null,null,null,null,null,null,null,null,null,null,null,null,null,null,null,null,null,null,null,null,null,null,null,null,null,null,null,null,null,null,null,null,null,null,null,null,null,null,null,null,null,null,null,null,null,null,null,null,null,null,null,null,null,null,null,null,null,null,null,null,null,null,null,null,null,null,null,null,null,null,null,null,null,null,null,null,null,null,null,null,null,null,null,null,null,null,null,null,null,null,null,null,null,null,null,null,null,null,null,null,null,null,null,null,null,null,null,null,null,null,null,null,null,null,null,null,null,null,null,null,null,null,null,null,null,null,null,null,null,null,null,null,null,null,null,null,null,null,null,null,null,null,null,null,null,null,null,null,null,null,null,null,null,null,null,null,null,null,null,null,null,null,null,null,null,null,null,null,null,null,null,null,null,null,null,null,null,null,null,null,null,null,null,null,null,null,null,null,null,null,null,null,null,null,null,null,null,null,null,null,null,null,null,null,null,null,null,null,null,null,null,null,null,null,null,null,null,null,null,null,null,null,null,null,null,null,null,null,null,null,null,null,null,null,null,null,null,null,null,null,null,null,null,null,null,null,null,null,null,null,null,null,null,null,null,null,null,null,null,null,null,null,null,null,null,null,null,null,null,null,null,null,null,null,null,null,null,null,null,null,null,null,null,null,null,null,null,null,null,null,null,null,null,null,null,null,null,null,null,null,null,null,null,null,null,null,null,null,null,null,null,null,null,null,null,null,null,null,null,null,null,null,null,null,null,null,null,null,null,null,null,null,null,null,null,null,null,null,null,null,null,null,null,null,null,null,null,null,null,null,null,null,null,null,null,null,null,null,null,null,null,null,null,null,null,null,null,null,null,null,null,null,null,null,null,null,null,null,null,null,null,null,null,null,null,null,null,null,null,null,null,null,null,null,null,null,null,null,null,null,null,null,null,null,null,null,null,null,null,null,null,null,null,null,null,null,null,null,null,null,null,null,null,null,null,null,null,null,null,null,null,null,null,null,null,null,null,null,null,null,null,null,null,null,null,null,null,null,null,null,null,null,null,null,null,null,null,null,null,null,null,null,null,null,null,null,null,null,null,null,null,null,null,null,null,null,null,null,null,null,null,null,null,null,null,null,null,null,null,null,null,null,null,null,null,null,null,null,null,null,null,null,null,null,null,null,null,null,null,null,null,null,null,null,null,null,null,null,null,null,null,null,null,null,null,null,null,null,null,null,null,null,null,null,null,null,null,null,null,null,null,null,null,null,null,null,null,null,null,null,null,null,null,null,null,null,null,null,null,null,null,null,null,null,null,null,null,null,null,null,null,null,null,null,null,null,null,null,null,null,null,null,null,null,null,null,null,null,null,null,null,null,null,null,null,null,null,null,null,null,null,null,null,null,null,null,null,null,null,null,null,null,null,null,null,null,null,null,null,null,null,null,null,null,null,null,null,null,null,null,null,null,null,null,null,null,null,null,null,null,null,null,null,null,null,null,null,null,null,null,null,null,null,null,null,null,null,null,null,null,null,null,null,null,null,null,null,null,null,null,null,null,null,null,null,null,null,null,null,null,null,null,null,null,null,null,null,null,null,null,null,null,null,null,null,null,null,null,null,null,null,null,null,null,null,null,null,null,null,null,null,null,null,null,null,null,null,null,null,null,null,null,null,null,null,null,null,null,null,null,null,null,null,null,null,null,null,null,null,null,null,null,null,null,null,null,null,null,null,null,null,null,null,null,null,null,null,null,null,null,null,null,null,null,null,null,null,null,null,null,null,null,null,null,null,null,null,null,null,null,null,null,null,null,null,null,null,null,null,null,null,null,null,null,null,null,null,null,null,null,null,null,null,null,null,null,null,null,null,null,null,null,null,null,null,null,null,null,null,null,null,null,null,null,null,null,null,null,null,null,null,null,null,null,null,null,null,null,null,null,null,null,null,null,null,null,null,null,null,null,null,null,null,null,null,null,null,null,null,null,null,null,null,null,null,null,null,null,null,null,null,null,null,null,null,null,null,null,null,null,null,null,null,null,null,null,null,null,null,null,null,null,null,null,null,null,null,null,null,null,null,null,null,null,null,null,null,null,null,null,null,null,null,null,null,null,null,null,null,null,null,null,null,null,null,null,null,null,null,null,null,null,null,null,null,null,null,null,null,null,null,null,null,null,null,null,null,null,null,null,null,null,null,null,null,null,null,null,null,null,null,null,null,null,null,null,null,null,null,null,null,null,null,null,null,null,null,null,null,null,null,null,null,null,null,null,null,null,null,null,null,null,null,null,null,null,null,null,null,null,null,null,null,null,null,null,null,null,null,null,null,null,null,null,null,null,null,null,null,null,null,null,null,null,null,null,null,null,null,null,null,null,null,null,null,null,null,null,null,null,null,null,null,null,null,null,null,null,null,null,null,null,null,null,null,null,null,null,null,null,null,null,null,null,null,null,null,null,null,null,null,null,null,null,null,null,null,null,null,null,null,null,null,null,null,null,null,null,null,null,null,null,null,null,null,null,null,null,null,null,null,null,null,null,null,null,null,null,null,null,null,null,null,null,null,null,null,null,null,null,null,null,null,null,null,null,null,null,null,null,null,null,null,null,null,null,null,null,null,null,null,null,null,null,null,null,null,null,null,null,null,null,null,null,null,null,null,null,null,null,null,null,null,null,null,null,null,null,null,null,null,null,null,null,null,null,null,null,null,null,null,null,null,null,null,null,null,null,null,null,null,null,null,null,null,null,null,null,null,null,null,null,null,null,null,null,null,null,null,null,null,null,null,null,null,null,null,null,null,null,null,null,null,null,null,null,null,null,null,null,null,null,null,null,null,null,null,null,null,null,null,null,null,null,null,null,null,null,null,null,null,null,null,null,null,null,null,null,null,null,null,null,null,null,null,null,null,null,null,null,null,null,null,null,null,null,null,null,null,null,null,null,null,null,null,null,null,null,null,null,null,null,null,null,null,null,null,null,null,null,null,null,null,null,null,null,null,null,null,null,null,null,null,null,null,null,null,null,null,null,null,null,null,null,null,null,null,null,null,null,null,null,null,null,null,null,null,null,null,null,null,null,null,null,null,null,null,null,null,null,null,null,null,null,null,null,null,null,null,null,null,null,null,null,null,null,null,null,null,null,null,null,null,null,null,null,null,null,null,null,null,null,null,null,null,null,null,null,null,null,null,null,null,null,null,null,null,null,null,null,null,null,null,null,null,null,null,null,null,null,null,null,null,null,null,null,null,null,null,null,null,null,null,null,null,null,null,null,null,null,null,null,null,null,null,null,null,null,null,null,null,null,null,null,null,null,null,null,null,null,null,null,null,null,null,null,null,null,null,null,null,null,null,null,null,null,null,null,null,null,null,null,null,null,null,null,null,null,null,null,null,null,null,null,null,null,null,null,null,null,null,null,null,null,null,null,null,null,null,null,null,null,null,null,null,null,null,null,null,null,null,null,null,null,null,null,null,null,null,null,null,null,null,null,null,null,null,null,null,null,null,null,null,null,null,null,null,null,null,null,null,null,null,null,null,null,null,null,null,null,null,null,null,null,null,null,null,null,null,null,null,null,null,null,null,null,null,null,null,null,null,null,null,null,null,null,null,null,null,null,null,null,null,null,null,null,null,null,null,null,null,null,null,null,null,null,null,null,null,null,null,null,null,null,null,null,null,null,null,null,null,null,null,null,null,null,null,null,null,null,null,null,null,null,null,null,null,null,null,null,null,null,null,null,null,null,null,null,null,null,null,null,null,null,null,null,null,null,null,null,null,null,null,null,null,null,null,null,null,null,null,null,null,null,null,null,null,null,null,null,null,null,null,null,null,null,null,null,null,null,null,null,null,null,null,null,null,null,null,null,null,null,null,null,null,null,null,null,null,null,null,null,null,null,null,null,null,null,null,null,null,null,null,null,null,null,null,null,null,null,null,null,null,null,null,null,null,null,null,null,null,null,null,null,null,null,null,null,null,null,null,null,null,null,null,null,null,null,null,null,null,null,null,null,null,null,null,null,null,null,null,null,null,null,null,null,null,null,null,null,null,null,null,null,null,null,null,null,null,null,null,null,null,null,null,null,null,null,null,null,null,null,null,null,null,null,null,null,null,null,null,null,null,null,null,null,null,null,null,null,null,null,null,null,null,null,null,null,null,null,null,null,null,null,null,null,null,null,null,null,null,null,null,null,null,null,null,null,null,null,null,null,null,null,null,null,null,null,null,null,null,null,null,null,null,null,null,null,null,null,null,null,null,null,null,null,null,null,null,null,null,null,null,null,null,null,null,null,null,null,null,null,null,null,null,null,null,null,null,null,null,null,null,null,null,null,null,null,null,null,null,null,null,null,null,null,null,null,null,null,null,null,null,null,null,null,null,null,null,null,null,null,null,null,null,null,null,null,null,null,null,null,null,null,null,null,null,null,null,null,null,null,null,null,null,null,null,null,null,null,null,null,null,null,null,null,null,null,null,null,null,null,null,null,null,null,null,null,null,null,null,null,null,null,null,null,null,null,null,null,null,null,null,null,null,null,null,null,null,null,null,null,null,null,null,null,null,null,null,null,null,null,null,null,null,null,null,null,null,null,null,null,null,null,null,null,null,null,null,null,null,null,null,null,null,null,null,null,null,null,null,null,null,null,null,null,null,null,null,null,null,null,null,null,null,null,null,null,null,null,null,null,null,null,null,null,null,null,null,null,null,null,null,null,null,null,null,null,null,null,null,null,null,null,null,null,null,null,null,null,null,null,null,null,null,null,null,null,null,null,null,null,null,null,null,null,null,null,null,null,null,null,null,null,null,null,null,null,null,null,null,null,null,null,null,null,null,null,null,null,null,null,null,null,null,null,null,null,null,null,null,null,null,null,null,null,null,null,null,null,null,null,null,null,null,null,null,null,null,null,null,null,null,null,null,null,null,null,null,null,null,null,null,null,null,null,null,null,null,null,null,null,null,null,null,null,null,null,null,null,null,null,null,null,null,null,null,null,null,null,null,null,null,null,null,null,null,null,null,null,null,null,null,null,null,null,null,null,null,null,null,null,null,null,null,null,null,null,null,null,null,null,null,null,null,null,null,null,null,null,null,null,null,null,null,null,null,null,null,null,null,null,null,null,null,null,null,null,null,null,null,null,null,null,null,null,null,null,null,null,null,null,null,null,null,null,null,null,null,null,null,null,null,null,null,null,null,null,null,null,null,null,null,null,null,null,null,null,null,null,null,null,null,null,null,null,null,null,null,null,null,null,null,null,null,null,null,null,null,null,null,null,null,null,null,null,null,null,null,null,null,null,null,null,null,null,null,null,null,null,null,null,null,null,null,null,null,null,null,null,null,null,null,null,null,null,null,null,null,null,null,null,null,null,null,null,null,null,null,null,null,null,null,null,null,null,null,null,null,null,null,null,null,null,null,null,null,null,null,null,null,null,null,null,null,null,null,null,null,null,null,null,null,null,null,null,null,null,null,null,null,null,null,null,null,null,null,null,null,null,null,null,null,null,null,null,null,null,null,null,null,null,null,null,null,null,null,null,null,null,null,null,null,null,null,null,null,null,null,null,null,null,null,null,null,null,null,null,null,null,null,null,null,null,null,null,null,null,null,null,null,null,null,null,null,null,null,null,null,null,null,null,null,null,null,null,null,null,null,null,null,null,null,null,null,null,null,null,null,null,null,null,null,null,null,null,null,null,null,null,null,null,null,null,null,null,null,null,null,null,null,null,null,null,null,null,null,null,null,null,null,null,null,null,null,null,null,null,null,null,null,null,null,null,null,null,null,null,null,null,null,null,null,null,null,null,null,null,null,null,null,null,null,null,null,null,null,null,null,null,null,null,null,null,null,null,null,null,null,null,null,null,null,null,null,null,null,null,null,null,null,null,null,null,null,null,null,null,null,null,null,null,null,null,null,null,null,null,null,null,null,null,null,null,null,null,null,null,null,null,null,null,null,null,null,null,null,null,null,null,null,null,null,null,null,null,null,null,null,null,null,null,null,null,null,null,null,null,null,null,null,null,null,null,null,null,null,null,null,null,null,null,null,null,null,null,null,null,null,null,null,null,null,null,null,null,null,null,null,null,null,null,null,null,null,null,null,null,null,null,null,null,null,null,null,null,null,null,null,null,null,null,null,null,null,null,null,null,null,null,null,null,null,null,null,null,null,null,null,null,null,null,null,null,null,null,null,null,null,null,null,null,null,null,null,null,null,null,null,null,null,null,null,null,null,null,null,null,null,null,null,null,null,null,null,null,null,null,null,null,null,null,null,null,null,null,null,null,null,null,null,null,null,null,null,null,null,null,null,null,null,null,null,null,null,null,null,null,null,null,null,null,null,null,null,null,null,null,null,null,null,null,null,null,null,null,null,null,null,null,null,null,null,null,null,null,null,null,null,null,null,null,null,null,null,null,null,null,null,null,null,null,null,null,null,null,null,null,null,null,null,null,null,null,null,null,null,null,null,null,null,null,null,null,null,null,null,null,null,null,null,null,null,null,null,null,null,null,null,null,null,null,null,null,null,null,null,null,null,null,null,null,null,null,null,null,null,null,null,null,null,null,null,null,null,null,null,null,null,null,null,null,null,null,null,null,null,null,null,null,null,null,null,null,null,null,null,null,null,null,null,null,null,null,null,null,null,null,null,null,null,null,null,null,null,null,null,null,null,null,null,null,null,null,null,null,null,null,null,null,null,null,null,null,null,null,null,null,null,null,null,null,null,null,null,null,null,null,null,null,null,null,null,null,null,null,null,null,null,null,null,null,null,null,null,null,null,null,null,null,null,null,null,null,null,null,null,null,null,null,null,null,null,null,null,null,null,null,null,null,null,null,null,null,null,null,null,null,null,null,null,null,null,null,null,null,null,null,null,null,null,null,null,null,null,null,null,null,null,null,null,null,null,null,null,null,null,null,null,null,null,null,null,null,null,null,null,null,null,null,null,null,null,null,null,null,null,null,null,null,null,null,null,null,null,null,null,null,null,null,null,null,null,null,null,null,null,null,null,null,null,null,null,null,null,null,null,null,null,null,null,null,null,null,null,null,null,null,null,null,null,null,null,null,null,null,null,null,null,null,null,null,null,null,null,null,null,null,null,null,null,null,null,null,null,null,null,null,null,null,null,null,null,null,null,null,null,null,null,null,null,null,null,null,null,null,null,null,null,null,null,null,null,null,null,null,null,null,null,null,null,null,null,null,null,null,null,null,null,null,null,null,null,null,null,null,null,null,null,null,null,null,null,null,null,null,null,null,null,null,null,null,null,null,null,null,null,null,null,null,null,null,null,null,null,null,null,null,null,null,null,null,null,null,null,null,null,null,null,null,null,null,null,null,null,null,null,null,null,null,null,null,null,null,null,null,null,null,null,null,null,null,null,null,null,null,null,null,null,null,null,null,null,null,null,null,null,null,null,null,null,null,null,null,null,null,null,null,null,null,null,null,null,null,null,null,null,null,null,null,null,null,null,null,null,null,null,null,null,null,null,null,null,null,null,null,null,null,null,null,null,null,null,null,null,null,null,null,null,null,null,null,null,null,null,null,null,null,null,null,null,null,null,null,null,null,null,null,null,null,null,null,null,null,null,null,null,null,null,null,null,null,null,null,null,null,null,null,null,null,null,null,null,null,null,null,null,null,null,null,null,null,null,null,null,null,null,null,null,null,null,null,null,null,null,null,null,null,null,null,null,null,null,null,null,null,null,null,null,null,null,null,null,null,null,null,null,null,null,null,null,null,null,null,null,null,null,null,null,null,null,null,null,null,null,null,null,null,null,null,null,null,null,null,null,null,null,null,null,null,null,null,null,null,null,null,null,null,null,null,null,null,null,null,null,null,null,null,null,null,null,null,null,null,null,null,null,null,null,null,null,null,null,null,null,null,null,null,null,null,null,null,null,null,null,null,null,null,null,null,null,null,null,null,null,null,null,null,null,null,null,null,null,null,null,null,null,null,null,null,null,null,null,null,null,null,null,null,null,null,null,null,null,null,null,null,null,null,null,null,null,null,null,null,null,null,null,null,null,null,null,null,null,null,null,null,null,null,null,null,null,null,null,null,null,null,null,null,null,null,null,null,null,null,null,null,null,null,null,null,null,null,null,null,null,null,null,null,null,null,null,null,null,null,null,null,null,null,null,null,null,null,null,null,null,null,null,null,null,null,null,null,null,null,null,null,null,null,null,null,null,null,null,null,null,null,null,null,null,null,null,null,null,null,null,null,null,null,null,null,null,null,null,null,null,null,null,null,null,null,null,null,null,null,null,null,null,null,null,null,null,null,null,null,null,null,null,null,null,null,null,null,null,null,null,null,null,null,null,null,null,null,null,null,null,null,null,null,null,null,null,null,null,null,null,null,null,null,null,null,null,null,null,null,null,null,null,null,null,null,null,null,null,null,null,null,null,null,null,null,null,null,null,null,null,null,null,null,null,null,null,null,null,null,null,null,null,null,null,null,null,null,null,null,null,null,null,null,null,null,null,null,null,null,null,null,null,null,null,null,null,null,null,null,null,null,null,null,null,null,null,null,null,null,null,null,null,null,null,null,null,null,null,null,null,null,null,null,null,null,null,null,null,null,null,null,null,null,null,null,null,null,null,null,null,null,null,null,null,null,null,null,null,null,null,null,null,null,null,null,null,null,null,null,null,null,null,null,null,null,null,null,null,null,null,null,null,null,null,null,null,null,null,null,null,null,null,null,null,null,null,null,null,null,null,null,null,null,null,null,null,null,null,null,null,null,null,null,null,null,null,null,null,null,null,null,null,null,null,null,null,null,null,null,null,null,null,null,null,null,null,null,null,null,null,null,null,null,null,null,null,null,null,null,null,null,null,null,null,null,null,null,null,null,null,null,null,null,null,null,null,null,null,null,null,null,null,null,null,null,null,null,null,null,null,null,null,null,null,null,null,null,null,null,null,null,null,null,null,null,null,null,null,null,null,null,null,null,null,null,null,null,null,null,null,null,null,null,null,null,null,null,null,null,null,null,null,null,null,null,null,null,null,null,null,null,null,null,null,null,null,null,null,null,null,null,null,null,null,null,null,null,null,null,null,null,null,null,null,null,null,null,null,null,null,null,null,null,null,null,null,null,null,null,null,null,null,null,null,null,null,null,null,null,null,null,null,null,null,null,null,null,null,null,null,null,null,null,null,null,null,null,null,null,null,null,null,null,null,null,null,null,null,null,null,null,null,null,null,null,null,null,null,null,null,null,null,null,null,null,null,null,null,null,null,null,null,null,null,null,null,null,null,null,null,null,null,null,null,null,null,null,null,null,null,null,null,null,null,null,null,null,null,null,null,null,null,null,null,null,null,null,null,null,null,null,null,null,null,null,null,null,null,null,null,null,null,null,null,null,null,null,null,null,null,null,null,null,null,null,null,null,null,null,null,null,null,null,null,null,null,null,null,null,null,null,null,null,null,null,null,null,null,null,null,null,null,null,null,null,null,null,null,null,null,null,null,null,null,null,null,null,null,null,null,null,null,null,null,null,null,null,null,null,null,null,null,null,null,null,null,null,null,null,null,null,null,null,null,null,null,null,null,null,null,null,null,null,null,null,null,null,null,null,null,null,null,null,null,null,null,null,null,null,null,null,null,null,null,null,null,null,null,null,null,null,null,null,null,null,null,null,null,null,null,null,null,null,null,null,null,null,null,null,null,null,null,null,null,null,null,null,null,null,null,null,null,null,null,null,null,null,null,null,null,null,null,null,null,null,null,null,null,null,null,null,null,null,null,null,null,null,null,null,null,null,null,null,null,null,null,null,null,null,null,null,null,null,null,null,null,null,null,null,null,null,null,null,null,null,null,null,null,null,null,null,null,null,null,null,null,null,null,null,null,null,null,null,null,null,null,null,null,null,null,null,null,null,null,null,null,null,null,null,null,null,null,null,null,null,null,null,null,null,null,null,null,null,null,null,null,null,null,null,null,null,null,null,null,null,null,null,null,null,null,null,null,null,null,null,null,null,null,null,null,null,null,null,null,null,null,null,null,null,null,null,null,null,null,null,null,null,null,null,null,null,null,null,null,null,null,null,null,null,null,null,null,null,null,null,null,null,null,null,null,null,null,null,null,null,null,null,null,null,null,null,null,null,null,null,null,null,null,null,null,null,null,null,null,null,null,null,null,null,null,null,null,null,null,null,null,null,null,null,null,null,null,null,null,null,null,null,null,null,null,null,null,null,null,null,null,null,null,null,null,null,null,null,null,null,null,null,null,null,null,null,null,null,null,null,null,null,null,null,null,null,null,null,null,null,null,null,null,null,null,null,null,null,null,null,null,null,null,null,null,null,null,null,null,null,null,null,null,null,null,null,null,null,null,null,null,null,null,null,null,null,null,null,null,null,null,null,null,null,null,null,null,null,null,null,null,null,null,null,null,null,null,null,null,null,null,null,null,null,null,null,null,null,null,null,null,null,null,null,null,null,null,null,null,null,null,null,null,null,null,null,null,null,null,null,null,null,null,null,null,null,null,null,null,null,null,null,null,null,null,null,null,null,null,null,null,null,null,null,null,null,null,null,null,null,null,null,null,null,null,null,null,null,null,null,null,null,null,null,null,null,null,null,null,null,null,null,null,null,null,null,null,null,null,null,null,null,null,null,null,null,null,null,null,null,null,null,null,null,null,null,null,null,null,null,null,null,null,null,null,null,null,null,null,null,null,null,null,null,null,null,null,null,null,null,null,null,null,null,null,null,null,null,null,null,null,null,null,null,null,null,null,null,null,null,null,null,null,null,null,null,null,null,null,null,null,null,null,null,null,null,null,null,null,null,null,null,null,null,null,null,null,null,null,null,null,null,null,null,null,null,null,null,null,null,null,null,null,null,null,null,null,null,null,null,null,null,null,null,null,null,null,null,null,null,null,null,null,null,null,null,null,null,null,null,null,null,null,null,null,null,null,null,null,null,null,null,null,null,null,null,null,null,null,null,null,null,null,null,null,null,null,null,null,null,null,null,null,null,null,null,null,null,null,null,null,null,null,null,null,null,null,null,null,null,null,null,null,null,null,null,null,null,null,null,null,null,null,null,null,null,null,null,null,null,null,null,null,null,null,null,null,null,null,null,null,null,null,null,null,null,null,null,null,null,null,null,null,null,null,null,null,null,null,null,null,null,null,null,null,null,null,null,null,null,null,null,null,null,null,null,null,null,null,null,null,null,null,null,null,null,null,null,null,null,null,null,null,null,null,null,null,null,null,null,null,null,null,null,null,null,null,null,null,null,null,null,null,null,null,null,null,null,null,null,null,null,null,null,null,null,null,null,null,null,null,null,null,null,null,null,null,null,null,null,null,null,null,null,null,null,null,null,null,null,null,null,null,null,null,null,null,null,null,null,null,null,null,null,null,null,null,null,null,null,null,null,null,null,null,null,null,null,null,null,null,null,null,null,null,null,null,null,null,null,null,null,null,null,null,null,null,null,null,null,null,null,null,null,null,null,null,null,null,null,null,null,null,null,null,null,null,null,null,null,null,null,null,null,null,null,null,null,null,null,null,null,null,null,null,null,null,null,null,null,null,null,null,null,null,null,null,null,null,null,null,null,null,null,null,null,null,null,null,null,null,null,null,null,null,null,null,null,null,null,null,null,null,null,null,null,null,null,null,null,null,null,null,null,null,null,null,null,null,null,null,null,null,null,null,null,null,null,null,null,null,null,null,null,null,null,null,null,null,null,null,null,null,null,null,null,null,null,null,null,null,null,null,null,null,null,null,null,null,null,null,null,null,null,null,null,null,null,null,null,null,null,null,null,null,null,null,null,null,null,null,null,null,null,null,null,null,null,null,null,null,null,null,null,null,null,null,null,null,null,null,null,null,null,null,null,null,null,null,null,null,null,null,null,null,null,null,null,null,null,null,null,null,null,null,null,null,null,null,null,null,null,null,null,null,null,null,null,null,null,null,null,null,null,null,null,null,null,null,null,null,null,null,null,null,null,null,null,null,null,null,null,null,null,null,null,null,null,null,null,null,null,null,null,null,null,null,null,null,null,null,null,null,null,null,null,null,null,null,null,null,null,null,null,null,null,null,null,null,null,null,null,null,null,null,null,null,null,null,null,null,null,null,null,null,null,null,null,null,null,null,null,null,null,null,null,null,null,null,null,null,null,null,null,null,null,null,null,null,null,null,null,null,null,null,null,null,null,null,null,null,null,null,null,null,null,null,null,null,null,null,null,null,null,null,null,null,null,null,null,null,null,null,null,null,null,null,null,null,null,null,null,null,null,null,null,null,null,null,null,null,null,null,null,null,null,null,null,null,null,null,null,null,null,null,null,null,null,null,null,null,null,null,null,null,null,null,null,null,null,null,null,null,null,null,null,null,null,null,null,null,null,null,null,null,null,null,null,null,null,null,null,null,null,null,null,null,null,null,null,null,null,null,null,null,null,null,null,null,null,null,null,null,null,null,null,null,null,null,null,null,null,null,null,null,null,null,null,null,null,null,null,null,null,null,null,null,null,null,null,null,null,null,null,null,null,null,null,null,null,null,null,null,null,null,null,null,null,null,null,null,null,null,null,null,null,null,null,null,null,null,null,null,null,null,null,null,null,null,null,null,null,null,null,null,null,null,null,null,null,null,null,null,null,null,null,null,null,null,null,null,null,null,null,null,null,null,null,null,null,null,null,null,null,null,null,null,null,null,null,null,null,null,null,null,null,null,null,null,null,null,null,null,null,null,null,null,null,null,null,null,null,null,null,null,null,null,null,null,null,null,null,null,null,null,null,null,null,null,null,null,null,null,null,null,null,null,null,null,null,null,null,null,null,null,null,null,null,null,null,null,null,null,null,null,null,null,null,null,null,null,null,null,null,null,null,null,null,null,null,null,null,null,null,null,null,null,null,null,null,null,null,null,null,null,null,null,null,null,null,null,null,null,null,null,null,null,null,null,null,null,null,null,null,null,null,null,null,null,null,null,null,null,null,null,null,null,null,null,null,null,null,null,null,null,null,null,null,null,null,null,null,null,null,null,null,null,null,null,null,null,null,null,null,null,null,null,null,null,null,null,null,null,null,null,null,null,null,null,null,null,null,null,null,null,null,null,null,null,null,null,null,null,null,null,null,null,null,null,null,null,null,null,null,null,null,null,null,null,null,null,null,null,null,null,null,null,null,null,null,null,null,null,null,null,null,null,null,null,null,null,null,null,null,null,null,null,null,null,null,null,null,null,null,null,null,null,null,null,null,null,null,null,null,null,null,null,null,null,null,null,null,null,null,null,null,null,null,null,null,null,null,null,null,null,null,null,null,null,null,null,null,null,null,null,null,null,null,null,null,null,null,null,null,null,null,null,null,null,null,null,null,null,null,null,null,null,null,null,null,null,null,null,null,null,null,null,null,null,null,null,null,null,null,null,null,null,null,null,null,null,null,null,null,null,null,null,null,null,null,null,null,null,null,null,null,null,null,null,null,null,null,null,null,null,null,null,null,null,null,null,null,null,null,null,null,null,null,null,null,null,null,null,null,null,null,null,null,null,null,null,null,null,null,null,null,null,null,null,null,null,null,null,null,null,null,null,null,null,null,null,null,null,null,null,null,null,null,null,null,null,null,null,null,null,null,null,null,null,null,null,null,null,null,null,null,null,null,null,null,null,null,null,null,null,null,null,null,null,null,null,null,null,null,null,null,null,null,null,null,null,null,null,null,null,null,null,null,null,null,null,null,null,null,null,null,null,null,null,null,null,null,null,null,null,null,null,null,null,null,null,null,null,null,null,null,null,null,null,null,null,null,null,null,null,null,null,null,null,null,null,null,null,null,null,null,null,null,null,null,null,null,null,null,null,null,null,null,null,null,null,null,null,null,null,null,null,null,null,null,null,null,null,null,null,null,null,null,null,null,null,null,null,null,null,null,null,null,null,null,null,null,null,null,null,null,null,null,null,null,null,null,null,null,null,null,null,null,null,null,null,null,null,null,null,null,null,null,null,null,null,null,null,null,null,null,null,null,null,null,null,null,null,null,null,null,null,null,null,null,null,null,null,null,null,null,null,null,null,null,null,null,null,null,null,null,null,null,null,null,null,null,null,null,null,null,null,null,null,null,null,null,null,null,null,null,null,null,null,null,null,null,null,null,null,null,null,null,null,null,null,null,null,null,null,null,null,null,null,null,null,null,null,null,null,null,null,null,null,null,null,null,null,null,null,null,null,null,null,null,null,null,null,null,null,null,null,null,null,null,null,null,null,null,null,null,null,null,null,null,null,null,null,null,null,null,null,null,null,null,null,null,null,null,null,null,null,null,null,null,null,null,null,null,null,null,null,null,null,null,null,null,null,null,null,null,null,null,null,null,null,null,null,null,null,null,null,null,null,null,null,null,null,null,null,null,null,null,null,null,null,null,null,null,null,null,null,null,null,null,null,null,null,null,null,null,null,null,null,null,null,null,null,null,null,null,null,null,null,null,null,null,null,null,null,null,null,null,null,null,null,null,null,null,null,null,null,null,null,null,null,null,null,null,null,null,null,null,null,null,null,null,null,null,null,null,null,null,null,null,null,null,null,null,null,null,null,null,null,null,null,null,null,null,null,null,null,null,null,null,null,null,null,null,null,null,null,null,null,null,null,null,null,null,null,null,null,null,null,null,null,null,null,null,null,null,null,null,null,null,null,null,null,null,null,null,null,null,null,null,null,null,null,null,null,null,null,null,null,null,null,null,null,null,null,null,null,null,null,null,null,null,null,null,null,null,null,null,null,null,null,null,null,null,null,null,null,null,null,null,null,null,null,null,null,null,null,null,null,null,null,null,null,null,null,null,null,null,null,null,null,null,null,null,null,null,null,null,null,null,null,null,null,null,null,null,null,null,null,null,null,null,null,null,null,null,null,null,null,null,null,null,null,null,null,null,null,null,null,null,null,null,null,null,null,null,null,null,null,null,null,null,null,null,null,null,null,null,null,null,null,null,null,null,null,null,null,null,null,null,null,null,null,null,null,null,null,null,null,null,null,null,null,null,null,null,null,null,null,null,null,null,null,null,null,null,null,null,null,null,null,null,null,null,null,null,null,null,null,null,null,null,null,null,null,null,null,null,null,null,null,null,null,null,null,null,null,null,null,null,null,null,null,null,null,null,null,null,null,null,null,null,null,null,null,null,null,null,null,null,null,null,null,null,null,null,null,null,null,null,null,null,null,null,null,null,null,null,null,null,null,null,null,null,null,null,null,null,null,null,null,null,null,null,null,null,null,null,null,null,null,null,null,null,null,null,null,null,null,null,null,null,null,null,null,null,null,null,null,null,null,null,null,null,null,null,null,null,null,null,null,null,null,null,null,null,null,null,null,null,null,null,null,null,null,null,null,null,null,null,null,null,null,null,null,null,null,null,null,null,null,null,null,null,null,null,null,null,null,null,null,null,null,null,null,null,null,null,null,null,null,null,null,null,null,null,null,null,null,null,null,null,null,null,null,null,null,null,null,null,null,null,null,null,null,null,null,null,null,null,null,null,null,null,null,null,null,null,null,null,null,null,null,null,null,null,null,null,null,null,null,null,null,null,null,null,null,null,null,null,null,null,null,null,null,null,null,null,null,null,null,null,null,null,null,null,null,null,null,null,null,null,null,null,null,null,null,null,null,null,null,null,null,null,null,null,null,null,null,null,null,null,null,null,null,null,null,null,null,null,null,null,null,null,null,null,null,null,null,null,null,null,null,null,null,null,null,null,null,null,null,null,null,null,null,null,null,null,null,null,null,null,null,null,null,null,null,null,null,null,null,null,null,null,null,null,null,null,null,null,null,null,null,null,null,null,null,null,null,null,null,null,null,null,null,null,null,null,null,null,null,null,null,null,null,null,null,null,null,null,null,null,null,null,null,null,null,null,null,null,null,null,null,null,null,null,null,null,null,null,null,null,null,null,null,null,null,null,null,null,null,null,null,null,null,null,null,null,null,null,null,null,null,null,null,null,null,null,null,null,null,null,null,null,null,null,null,null,null,null,null,null,null,null,null,null,null,null,null,null,null,null,null,null,null,null,null,null,null,null,null,null,null,null,null,null,null,null,null,null,null,null,null,null,null,null,null,null,null,null,null,null,null,null,null,null,null,null,null,null,null,null,null,null,null,null,null,null,null,null,null,null,null,null,null,null,null,null,null,null,null,null,null,null,null,null,null,null,null,null,null,null,null,null,null,null,null,null,null,null,null,null,null,null,null,null,null,null,null,null,null,null,null,null,null,null,null,null,null,null,null,null,null,null,null,null,null,null,null,null,null,null,null,null,null,null,null,null,null,null,null,null,null,null,null,null,null,null,null,null,null,null,null,null,null,null,null,null,null,null,null,null,null,null,null,null,null,null,null,null,null,null,null,null,null,null,null,null,null,null,null,null,null,null,null,null,null,null,null,null,null,null,null,null,null,null,null,null,null,null,null,null,null,null,null,null,null,null,null,null,null,null,null,null,null,null,null,null,null,null,null,null,null,null,null,null,null,null,null,null,null,null,null,null,null,null,null,null,null,null,null,null,null,null,null,null,null,null,null,null,null,null,null,null,null,null,null,null,null,null,null,null,null,null,null,null,null,null,null,null,null,null,null,null,null,null,null,null,null,null,null,null,null,null,null,null,null,null,null,null,null,null,null,null,null,null,null,null,null,null,null,null,null,null,null,null,null,null,null,null,null,null,null,null,null,null,null,null,null,null,null,null,null,null,null,null,null,null,null,null,null,null,null,null,null,null,null,null,null,null,null,null,null,null,null,null,null,null,null,null,null,null,null,null,null,null,null,null,null,null,null,null,null,null,null,null,null,null,null,null,null,null,null,null,null,null,null,null,null,null,null,null,null,null,null,null,null,null,null,null,null,null,null,null,null,null,null,null,null,null,null,null,null,null,null,null,null,null,null,null,null,null,null,null,null,null,null,null,null,null,null,null,null,null,null,null,null,null,null,null,null,null,null,null,null,null,null,null,null,null,null,null,null,null,null,null,null,null,null,null,null,null,null,null,null,null,null,null,null,null,null,null,null,null,null,null,null,null,null,null,null,null,null,null,null,null,null,null,null,null,null,null,null,null,null,null,null,null,null,null,null,null,null,null,null,null,null,null,null,null,null,null,null,null,null,null,null,null,null,null,null,null,null,null,null,null,null,null,null,null,null,null,null,null,null,null,null,null,null,null,null,null,null,null,null,null,null,null,null,null,null,null,null,null,null,null,null,null,null,null,null,null,null,null,null,null,null,null,null,null,null,null,null,null,null,null,null,null,null,null,null,null,null,null,null,null,null,null,null,null,null,null,null,null,null,null,null,null,null,null,null,null,null,null,null,null,null,null,null,null,null,null,null,null,null,null,null,null,null,null,null,null,null,null,null,null,null,null,null,null,null,null,null,null,null,null,null,null,null,null,null,null,null,null,null,null,null,null,null,null,null,null,null,null,null,null,null,null,null,null,null,null,null,null,null,null,null,null,null,null,null,null,null,null,null,null,null,null,null,null,null,null,null,null,null,null,null,null,null,null,null,null,null,null,null,null,null,null,null,null,null,null,null,null,null,null,null,null,null,null,null,null,null,null,null,null,null,null,null,null,null,null,null,null,null,null,null,null,null,null,null,null,null,null,null,null,null,null,null,null,null,null,null,null,null,null,null,null,null,null,null,null,null,null,null,null,null,null,null,null,null,null,null,null,null,null,null,null,null,null,null,null,null,null,null,null,null,null,null,null,null,null,null,null,null,null,null,null,null,null,null,null,null,null,null,null,null,null,null,null,null,null,null,null,null,null,null,null,null,null,null,null,null,null,null,null,null,null,null,null,null,null,null,null,null,null,null,null,null,null,null,null,null,null,null,null,null,null,null,null,null,null,null,null,null,null,null,null,null,null,null,null,null,null,null,null,null,null,null,null,null,null,null,null,null,null,null,null,null,null,null,null,null,null,null,null,null,null,null,null,null,null,null,null,null,null,null,null,null,null,null,null,null,null,null,null,null,null,null,null,null,null,null,null,null,null,null,null,null,null,null,null,null,null,null,null,null,null,null,null,null,null,null,null,null,null,null,null,null,null,null,null,null,null,null,null,null,null,null,null,null,null,null,null,null,null,null,null,null,null,null,null,null,null,null,null,null,null,null,null,null,null,null,null,null,null,null,null,null,null,null,null,null,null,null,null,null,null,null,null,null,null,null,null,null,null,null,null,null,null,null,null,null,null,null,null,null,null,null,null,null,null,null,null,null,null,null,null,null,null,null,null,null,null,null,null,null,null,null,null,null,null,null,null,null,null,null,null,null,null,null,null,null,null,null,null,null,null,null,null,null,null,null,null,null,null,null,null,null,null,null,null,null,null,null,null,null,null,null,null,null,null,null,null,null,null,null,null,null,null,null,null,null,null,null,null,null,null,null,null,null,null,null,null,null,null,null,null,null,null,null,null,null,null,null,null,null,null,null,null,null,null,null,null,null,null,null,null,null,null,null,null,null,null,null,null,null,null,null,null,null,null,null,null,null,null,null,null,null,null,null,null,null,null,null,null,null,null,null,null,null,null,null,null,null,null,null,null,null,null,null,null,null,null,null,null,null,null,null,null,null,null,null,null,null,null,null,null,null,null,null,null,null,null,null,null,null,null,null,null,null,null,null,null,null,null,null,null,null,null,null,null,null,null,null,null,null,null,null,null,null,null,null,null,null,null,null,null,null,null,null,null,null,null,null,null,null,null,null,null,null,null,null,null,null,null,null,null,null,null,null,null,null,null,null,null,null,null,null,null,null,null,null,null,null,null,null,null,null,null,null,null,null,null,null,null,null,null,null,null,null,null,null,null,null,null,null,null,null,null,null,null,null,null,null,null,null,null,null,null,null,null,null,null,null,null,null,null,null,null,null,null,null,null,null,null,null,null,null,null,null,null,null,null,null,null,null,null,null,null,null,null,null,null,null,null,null,null,null,null,null,null,null,null,null,null,null,null,null,null,null,null,null,null,null,null,null,null,null,null,null,null,null,null,null,null,null,null,null,null,null,null,null,null,null,null,null,null,null,null,null,null,null,null,null,null,null,null,null,null,null,null,null,null,null,null,null,null,null,null,null,null,null,null,null,null,null,null,null,null,null,null,null,null,null,null,null,null,null,null,null,null,null,null,null,null,null,null,null,null,null,null,null,null,null,null,null,null,null,null,null,null,null,null,null,null,null,null,null,null,null,null,null,null,null,null,null,null,null,null,null,null,null,null,null,null,null,null,null,null,null,null,null,null,null,null,null,null,null,null,null,null,null,null,null,null,null,null,null,null,null,null,null,null,null,null,null,null,null,null,null,null,null,null,null,null,null,null,null,null,null,null,null,null,null,null,null,null,null,null,null,null,null,null,null,null,null,null,null,null,null,null,null,null,null,null,null,null,null,null,null,null,null,null,null,null,null,null,null,null,null,null,null,null,null,null,null,null,null,null,null,null,null,null,null,null,null,null,null,null,null,null,null,null,null,null,null,null,null,null,null,null,null,null,null,null,null,null,null,null,null,null,null,null,null,null,null,null,null,null,null,null,null,null,null,null,null,null,null,null,null,null,null,null,null,null,null,null,null,null,null,null,null,null,null,null,null,null,null,null,null,null,null,null,null,null,null,null,null,null,null,null,null,null,null,null,null,null,null,null,null,null,null,null,null,null,null,null,null,null,null,null,null,null,null,null,null,null,null,null,null,null,null,null,null,null,null,null,null,null,null,null,null,null,null,null,null,null,null,null,null,null,null,null,null,null,null,null,null,null,null,null,null,null,null,null,null,null,null,null,null,null,null,null,null,null,null,null,null,null,null,null,null,null,null,null,null,null,null,null,null,null,null,null,null,null,null,null,null,null,null,null,null,null,null,null,null,null,null,null,null,null,null,null,null,null,null,null,null,null,null,null,null,null,null,null,null,null,null,null,null,null,null,null,null,null,null,null,null,null,null,null,null,null,null,null,null,null,null,null,null,null,null,null,null,null,null,null,null,null,null,null,null,null,null,null,null,null,null,null,null,null,null,null,null,null,null,null,null,null,null,null,null,null,null,null,null,null,null,null,null,null,null,null,null,null,null,null,null,null,null,null,null,null,null,null,null,null,null,null,null,null,null,null,null,null,null,null,null,null,null,null,null,null,null,null,null,null,null,null,null,null,null,null,null,null,null,null,null,null,null,null,null,null,null,null,null,null,null,null,null,null,null,null,null,null,null,null,null,null,null,null,null,null,null,null,null,null,null,null,null,null,null,null,null,null,null,null,null,null,null,null,null,null,null,null,null,null,null,null,null,null,null,null,null,null,null,null,null,null,null,null,null,null,null,null,null,null,null,null,null,null,null,null,null,null,null,null,null,null,null,null,null,null,null,null,null,null,null,null,null,null,null,null,null,null,null,null,null,null,null,null,null,null,null,null,null,null,null,null,null,null,null,null,null,null,null,null,null,null,null,null,null,null,null,null,null,null,null,null,null,null,null,null,null,null,null,null,null,null,null,null,null,null,null,null,null,null,null,null,null,null,null,null,null,null,null,null,null,null,null,null,null,null,null,null,null,null,null,null,null,null,null,null,null,null,null,null,null,null,null,null,null,null,null,null,null,null,null,null,null,null,null,null,null,null,null,null,null,null,null,null,null,null,null,null,null,null,null,null,null,null,null,null,null,null,null,null,null,null,null,null,null,null,null,null,null,null,null,null,null,null,null,null,null,null,null,null,null,null,null,null,null,null,null,null,null,null,null,null,null,null,null,null,null,null,null,null,null,null,null,null,null,null,null,null,null,null,null,null,null,null,null,null,null,null,null,null,null,null,null,null,null,null,null,null,null,null,null,null,null,null,null,null,null,null,null,null,null,null,null,null,null,null,null,null,null,null,null,null,null,null,null,null,null,null,null,null,null,null,null,null,null,null,null,null,null,null,null,null,null,null,null,null,null,null,null,null,null,null,null,null,null,null,null,null,null,null,null,null,null,null,null,null,null,null,null,null,null,null,null,null,null,null,null,null,null,null,null,null,null,null,null,null,null,null,null,null,null,null,null,null,null,null,null,null,null,null,null,null,null,null,null,null,null,null,null,null,null,null,null,null,null,null,null,null,null,null,null,null,null,null,null,null,null,null,null,null,null,null,null,null,null,null,null,null,null,null,null,null,null,null,null,null,null,null,null,null,null,null,null,null,null,null,null,null,null,null,null,null,null,null,null,null,null,null,null,null,null,null,null,null,null,null,null,null,null,null,null,null,null,null,null,null,null,null,null,null,null,null,null,null,null,null,null,null,null,null,null,null,null,null,null,null,null,null,null,null,null,null,null,null,null,null,null,null,null,null,null,null,null,null,null,null,null,null,null,null,null,null,null,null,null,null,null,null,null,null,null,null,null,null,null,null,null,null,null,null,null,null,null,null,null,null,null,null,null,null,null,null,null,null,null,null,null,null,null,null,null,null,null,null,null,null,null,null,null,null,null,null,null,null,null,null,null,null,null,null,null,null,null,null,null,null,null,null,null,null,null,null,null,null,null,null,null,null,null,null,null,null,null,null,null,null,null,null,null,null,null,null,null,null,null,null,null,null,null,null,null,null,null,null,null,null,null,null,null,null,null,null,null,null,null,null,null,null,null,null,null,null,null,null,null,null,null,null,null,null,null,null,null,null,null,null,null,null,null,null,null,null,null,null,null,null,null,null,null,null,null,null,null,null,null,null,null,null,null,null,null,null,null,null,null,null,null,null,null,null,null,null,null,null,null,null,null,null,null,null,null,null,null,null,null,null,null,null,null,null,null,null,null,null,null,null,null,null,null,null,null,null,null,null,null,null,null,null,null,null,null,null,null,null,null,null,null,null,null,null,null,null,null,null,null,null,null,null,null,null,null,null,null,null,null,null,null,null,null,null,null,null,null,null,null,null,null,null,null,null,null,null,null,null,null,null,null,null,null,null,null,null,null,null,null,null,null,null,null,null,null,null,null,null,null,null,null,null,null,null,null,null,null,null,null,null,null,null,null,null,null,null,null,null,null,null,null,null,null,null,null,null,null,null,null,null,null,null,null,null,null,null,null,null,null,null,null,null,null,null,null,null,null,null,null,null,null,null,null,null,null,null,null,null,null,null,null,null,null,null,null,null,null,null,null,null,null,null,null,null,null,null,null,null,null,null,null,null,null,null,null,null,null,null,null,null,null,null,null,null,null,null,null,null,null,null,null,null,null,null,null,null,null,null,null,null,null,null,null,null,null,null,null,null,null,null,null,null,null,null,null,null,null,null,null,null,null,null,null,null,null,null,null,null,null,null,null,null,null,null,null,null,null,null,null,null,null,null,null,null,null,null,null,null,null,null,null,null,null,null,null,null,null,null,null,null,null,null,null,null,null,null,null,null,null,null,null,null,null,null,null,null,null,null,null,null,null,null,null,null,null,null,null,null,null,null,null,null,null,null,null,null,null,null,null,null,null,null,null,null,null,null,null,null,null,null,null,null,null,null,null,null,null,null,null,null,null,null,null,null,null,null,null,null,null,null,null,null,null,null,null,null,null,null,null,null,null,null,null,null,null,null,null,null,null,null,null,null,null,null,null,null,null,null,null,null,null,null,null,null,null,null,null,null,null,null,null,null,null,null,null,null,null,null,null,null,null,null,null,null,null,null,null,null,null,null,null,null,null,null,null,null,null,null,null,null,null,null,null,null,null,null,null,null,null,null,null,null,null,null,null,null,null,null,null,null,null,null,null,null,null,null,null,null,null,null,null,null,null,null,null,null,null,null,null,null,null,null,null,null,null,null,null,null,null,null,null,null,null,null,null,null,null,null,null,null,null,null,null,null,null,null,null,null,null,null,null,null,null,null,null,null,null,null,null,null,null,null,null,null,null,null,null,null,null,null,null,null,null,null,null,null,null,null,null,null,null,null,null,null,null,null,null,null,null,null,null,null,null,null,null,null,null,null,null,null,null,null,null,null,null,null,null,null,null,null,null,null,null,null,null,null,null,null,null,null,null,null,null,null,null,null,null,null,null,null,null,null,null,null,null,null,null,null,null,null,null,null,null,null,null,null,null,null,null,null,null,null,null,null,null,null,null,null,null,null,null,null,null,null,null,null,null,null,null,null,null,null,null,null,null,null,null,null,null,null,null,null,null,null,null,null,null,null,null,null,null,null,null,null,null,null,null,null,null,null,null,null,null,null,null,null,null,null,null,null,null,null,null,null,null,null,null,null,null,null,null,null,null,null,null,null,null,null,null,null,null,null,null,null,null,null,null,null,null,null,null,null,null,null,null,null,null,null,null,null,null,null,null,null,null,null,null,null,null,null,null,null,null,null,null,null,null,null,null,null,null,null,null,null,null,null,null,null,null,null,null,null,null,null,null,null,null,null,null,null,null,null,null,null,null,null,null,null,null,null,null,null,null,null,null,null,null,null,null,null,null,null,null,null,null,null,null,null,null,null,null,null,null,null,null,null,null,null,null,null,null,null,null,null,null,null,null,null,null,null,null,null,null,null,null,null,null,null,null,null,null,null,null,null,null,null,null,null,null,null,null,null,null,null,null,null,null,null,null,null,null,null,null,null,null,null,null,null,null,null,null,null,null,null,null,null,null,null,null,null,null,null,null,null,null,null,null,null,null,null,null,null,null,null,null,null,null,null,null,null,null,null,null,null,null,null,null,null,null,null,null,null,null,null,null,null,null,null,null,null,null,null,null,null,null,null,null,null,null,null,null,null,null,null,null,null,null,null,null,null,null,null,null,null,null,null,null,null,null,null,null,null,null,null,null,null,null,null,null,null,null,null,null,null,null,null,null,null,null,null,null,null,null,null,null,null,null,null,null,null,null,null,null,null,null,null,null,null,null,null,null,null,null,null,null,null,null,null,null,null,null,null,null,null,null,null,null,null,null,null,null,null,null,null,null,null,null,null,null,null,null,null,null,null,null,null,null,null,null,null,null,null,null,null,null,null,null,null,null,null,null,null,null,null,null,null,null,null,null,null,null,null,null,null,null,null,null,null,null,null,null,null,null,null,null,null,null,null,null,null,null,null,null,null,null,null,null,null,null,null,null,null,null,null,null,null,null,null,null,null,null,null,null,null,null,null,null,null,null,null,null,null,null,null,null,null,null,null,null,null,null,null,null,null,null,null,null,null,null,null,null,null,null,null,null,null,null,null,null,null,null,null,null,null,null,null,null,null,null,null,null,null,null,null,null,null,null,null,null,null,null,null,null,null,null,null,null,null,null,null,null,null,null,null,null,null,null,null,null,null,null,null,null,null,null,null,null,null,null,null,null,null,null,null,null,null,null,null,null,null,null,null,null,null,null,null,null,null,null,null,null,null,null,null,null,null,null,null,null,null,null,null,null,null,null,null,null,null,null,null,null,null,null,null,null,null,null,null,null,null,null,null,null,null,null,null,null,null,null,null,null,null,null,null,null,null,null,null,null,null,null,null,null,null,null,null,null,null,null,null,null,null,null,null,null,null,null,null,null,null,null,null,null,null,null,null,null,null,null,null,null,null,null,null,null,null,null,null,null,null,null,null,null,null,null,null,null,null,null,null,null,null,null,null,null,null,null,null,null,null,null,null,null,null,null,null,null,null,null,null,null,null,null,null,null,null,null,null,null,null,null,null,null,null,null,null,null,null,null,null,null,null,null,null,null,null,null,null,null,null,null,null,null,null,null,null,null,null,null,null,null,null,null,null,null,null,null,null,null,null,null,null,null,null,null,null,null,null,null,null,null,null,null,null,null,null,null,null,null,null,null,null,null,null,null,null,null,null,null,null,null,null,null,null,null,null,null,null,null,null,null,null,null,null,null,null,null,null,null,null,null,null,null,null,null,null,null,null,null,null,null,null,null,null,null,null,null,null,null,null,null,null,null,null,null,null,null,null,null,null,null,null,null,null,null,null,null,null,null,null,null,null,null,null,null,null,null,null,null,null,null,null,null,null,null,null,null,null,null,null,null,null,null,null,null,null,null,null,null,null,null,null,null,null,null,null,null,null,null,null,null,null,null,null,null,null,null,null,null,null,null,null,null,null,null,null,null,null,null,null,null,null,null,null,null,null,null,null,null,null,null,null,null,null,null,null,null,null,null,null,null,null,null,null,null,null,null,null,null,null,null,null,null,null,null,null,null,null,null,null,null,null,null,null,null,null,null,null,null,null,null,null,null,null,null,null,null,null,null,null,null,null,null,null,null,null,null,null,null,null,null,null,null,null,null,null,null,null,null,null,null,null,null,null,null,null,null,null,null,null,null,null,null,null,null,null,null,null,null,null,null,null,null,null,null,null,null,null,null,null,null,null,null,null,null,null,null,null,null,null,null,null,null,null,null,null,null,null,null,null,null,null,null,null,null,null,null,null,null,null,null,null,null,null,null,null,null,null,null,null,null,null,null,null,null,null,null,null,null,null,null,null,null,null,null,null,null,null,null,null,null,null,null,null,null,null,null,null,null,null,null,null,null,null,null,null,null,null,null,null,null,null,null,null,null,null,null,null,null,null,null,null,null,null,null,null,null,null,null,null,null,null,null,null,null,null,null,null,null,null,null,null,null,null,null,null,null,null,null,null,null,null,null,null,null,null,null,null,null,null,null,null,null,null,null,null,null,null,null,null,null,null,null,null,null,null,null,null,null,null,null,null,null,null,null,null,null,null,null,null,null,null,null,null,null,null,null,null,null,null,null,null,null,null,null,null,null,null,null,null,null,null,null,null,null,null,null,null,null,null,null,null,null,null,null,null,null,null,null,null,null,null,null,null,null,null,null,null,null,null,null,null,null,null,null,null,null,null,null,null,null,null,null,null,null,null,null,null,null,null,null,null,null,null,null,null,null,null,null,null,null,null,null,null,null,null,null,null,null,null,null,null,null,null,null,null,null,null,null,null,null,null,null,null,null,null,null,null,null,null,null,null,null,null,null,null,null,null,null,null,null,null,null,null,null,null,null,null,null,null,null,null,null,null,null,null,null,null,null,null,null,null,null,null,null,null,null,null,null,null,null,null,null,null,null,null,null,null,null,null,null,null,null,null,null,null,null,null,null,null,null,null,null,null,null,null,null,null,null,null,null,null,null,null,null,null,null,null,null,null,null,null,null,null,null,null,null,null,null,null,null,null,null,null,null,null,null,null,null,null,null,null,null,null,null,null,null,null,null,null,null,null,null,null,null,null,null,null,null,null,null,null,null,null,null,null,null,null,null,null,null,null,null,null,null,null,null,null,null,null,null,null,null,null,null,null,null,null,null,null,null,null,null,null,null,null,null,null,null,null,null,null,null,null,null,null,null,null,null,null,null,null,null,null,null,null,null,null,null,null,null,null,null,null,null,null,null,null,null,null,null,null,null,null,null,null,null,null,null,null,null,null,null,null,null,null,null,null,null,null,null,null,null,null,null,null,null,null,null,null,null,null,null,null,null,null,null,null,null,null,null,null,null,null,null,null,null,null,null,null,null,null,null,null,null,null,null,null,null,null,null,null,null,null,null,null,null,null,null,null,null,null,null,null,null,null,null,null,null,null,null,null,null,null,null,null,null,null,null,null,null,null,null,null,null,null,null,null,null,null,null,null,null,null,null,null,null,null,null,null,null,null,null,null,null,null,null,null,null,null,null,null,null,null,null,null,null,null,null,null,null,null,null,null,null,null,null,null,null,null,null,null,null,null,null,null,null,null,null,null,null,null,null,null,null,null,null,null,null,null,null,null,null,null,null,null,null,null,null,null,null,null,null,null,null,null,null,null,null,null,null,null,null,null,null,null,null,null,null,null,null,null,null,null,null,null,null,null,null,null,null,null,null,null,null,null,null,null,null,null,null,null,null,null,null,null,null,null,null,null,null,null,null,null,null,null,null,null,null,null,null,null,null,null,null,null,null,null,null,null,null,null,null,null,null,null,null,null,null,null,null,null,null,null,null,null,null,null,null,null,null,null,null,null,null,null,null,null,null,null,null,null,null,null,null,null,null,null,null,null,null,null,null,null,null,null,null,null,null,null,null,null,null,null,null,null,null,null,null,null,null,null,null,null,null,null,null,null,null,null,null,null,null,null,null,null,null,null,null,null,null,null,null,null,null,null,null,null,null,null,null,null,null,null,null,null,null,null,null,null,null,null,null,null,null,null,null,null,null,null,null,null,null,null,null,null,null,null,null,null,null,null,null,null,null,null,null,null,null,null,null,null,null,null,null,null,null,null,null,null,null,null,null,null,null,null,null,null,null,null,null,null,null,null,null,null,null,null,null,null,null,null,null,null,null,null,null,null,null,null,null,null,null,null,null,null,null,null,null,null,null,null,null,null,null,null,null,null,null,null,null,null,null,null,null,null,null,null,null,null,null,null,null,null,null,null,null,null,null,null,null,null,null,null,null,null,null,null,null,null,null,null,null,null,null,null,null,null,null,null,null,null,null,null,null,null,null,null,null,null,null,null,null,null,null,null,null,null,null,null,null,null,null,null,null,null,null,null,null,null,null,null,null,null,null,null,null,null,null,null,null,null,null,null,null,null,null,null,null,null,null,null,null,null,null,null,null,null,null,null,null,null,null,null,null,null,null,null,null,null,null,null,null,null,null,null,null,null,null,null,null,null,null,null,null,null,null,null,null,null,null,null,null,null,null,null,null,null,null,null,null,null,null,null,null,null,null,null,null,null,null,null,null,null,null,null,null,null,null,null,null,null,null,null,null,null,null,null,null,null,null,null,null,null,null,null,null,null,null,null,null,null,null,null,null,null,null,null,null,null,null,null,null,null,null,null,null,null,null,null,null,null,null,null,null,null,null,null,null,null,null,null,null,null,null,null,null,null,null,null,null,null,null,null,null,null,null,null,null,null,null,null,null,null,null,null,null,null,null,null,null,null,null,null,null,null,null,null,null,null,null,null,null,null,null,null,null,null,null,null,null,null,null,null,null,null,null,null,null,null,null,null,null,null,null,null,null,null,null,null,null,null,null,null,null,null,null,null,null,null,null,null,null,null,null,null,null,null,null,null,null,null,null,null,null,null,null,null,null,null,null,null,null,null,null,null,null,null,null,null,null,null,null,null,null,null,null,null,null,null,null,null,null,null,null,null,null,null,null,null,null,null,null,null,null,null,null,null,null,null,null,null,null,null,null,null,null,null,null,null,null,null,null,null,null,null,null,null,null,null,null,null,null,null,null,null,null,null,null,null,null,null,null,null,null,null,null,null,null,null,null,null,null,null,null,null,null,null,null,null,null,null,null,null,null,null,null,null,null,null,null,null,null,null,null,null,null,null,null,null,null,null,null,null,null,null,null,null,null,null,null,null,null,null,null,null,null,null,null,null,null,null,null,null,null,null,null,null,null,null,null,null,null,null,null,null,null,null,null,null,null,null,null,null,null,null,null,null,null,null,null,null,null,null,null,null,null,null,null,null,null,null,null,null,null,null,null,null,null,null,null,null,null,null,null,null,null,null,null,null,null,null,null,null,null,null,null,null,null,null,null,null,null,null,null,null,null,null,null,null,null,null,null,null,null,null,null,null,null,null,null,null,null,null,null,null,null,null,null,null,null,null,null,null,null,null,null,null,null,null,null,null,null,null,null,null,null,null,null,null,null,null,null,null,null,null,null,null,null,null,null,null,null,null,null,null,null,null,null,null,null,null,null,null,null,null,null,null,null,null,null,null,null,null,null,null,null,null,null,null,null,null,null,null,null,null,null,null,null,null,null,null,null,null,null,null,null,null,null,null,null,null,null,null,null,null,null,null,null,null,null,null,null,null,null,null,null,null,null,null,null,null,null,null,null,null,null,null,null,null,null,null,null,null,null,null,null,null,null,null,null,null,null,null,null,null,null,null,null,null,null,null,null,null,null,null,null,null,null,null,null,null,null,null,null,null,null,null,null,null,null,null,null,null,null,null,null,null,null,null,null,null,null,null,null,null,null,null,null,null,null,null,null,null,null,null,null,null,null,null,null,null,null,null,null,null,null,null,null,null,null,null,null,null,null,null,null,null,null,null,null,null,null,null,null,null,null,null,null,null,null,null,null,null,null,null,null,null,null,null,null,null,null,null,null,null,null,null,null,null,null,null,null,null,null,null,null,null,null,null,null,null,null,null,null,null,null,null,null,null,null,null,null,null,null,null,null,null,null,null,null,null,null,null,null,null,null,null,null,null,null,null,null,null,null,null,null,null,null,null,null,null,null,null,null,null,null,null,null,null,null,null,null,null,null,null,null,null,null,null,null,null,null,null,null,null,null,null,null,null,null,null,null,null,null,null,null,null,null,null,null,null,null,null,null,null,null,null,null,null,null,null,null,null,null,null,null,null,null,null,null,null,null,null,null,null,null,null,null,null,null,null,null,null,null,null,null,null,null,null,null,null,null,null,null,null,null,null,null,null,null,null,null,null,null,null,null,null,null,null,null,null,null,null,null,null,null,null,null,null,null,null,null,null,null,null,null,null,null,null,null,null,null,null,null,null,null,null,null,null,null,null,null,null,null,null,null,null,null,null,null,null,null,null,null,null,null,null,null,null,null,null,null,null,null,null,null,null,null,null,null,null,null,null,null,null,null,null,null,null,null,null,null,null,null,null,null,null,null,null,null,null,null,null,null,null,null,null,null,null,null,null,null,null,null,null,null,null,null,null,null,null,null,null,null,null,null,null,null,null,null,null,null,null,null,null,null,null,null,null,null,null,null,null,null,null,null,null,null,null,null,null,null,null,null,null,null,null,null,null,null,null,null,null,null,null,null,null,null,null,null,null,null,null,null,null,null,null,null,null,null,null,null,null,null,null,null,null,null,null,null,null,null,null,null,null,null,null,null,null,null,null,null,null,null,null,null,null,null,null,null,null,null,null,null,null,null,null,null,null,null,null,null,null,null,null,null,null,null,null,null,null,null,null,null,null,null,null,null,null,null,null,null,null,null,null,null,null,null,null,null,null,null,null,null,null,null,null,null,null,null,null,null,null,null,null,null,null,null,null,null,null,null,null,null,null,null,null,null,null,null,null,null,null,null,null,null,null,null,null,null,null,null,null,null,null,null,null,null,null,null,null,null,null,null,null,null,null,null,null,null,null,null,null,null,null,null,null,null,null,null,null,null,null,null,null,null,null,null,null,null,null,null,null,null,null,null,null,null,null,null,null,null,null,null,null,null,null,null,null,null,null,null,null,null,null,null,null,null,null,null,null,null,null,null,null,null,null,null,null,null,null,null,null,null,null,null,null,null,null,null,null,null,null,null,null,null,null,null,null,null,null,null,null,null,null,null,null,null,null,null,null,null,null,null,null,null,null,null,null,null,null,null,null,null,null,null,null,null,null,null,null,null,null,null,null,null,null,null,null,null,null,null,null,null,null,null,null,null,null,null,null,null,null,null,null,null,null,null,null,null,null,null,null,null,null,null,null,null,null,null,null,null,null,null,null,null,null,null,null,null,null,null,null,null,null,null,null,null,null,null,null,null,null,null,null,null,null,null,null,null,null,null,null,null,null,null,null,null,null,null,null,null,null,null,null,null,null,null,null,null,null,null,null,null,{"$f":"_xlfn.XLOOKUP(Tipo_Mun_PI,Tabla_Tipo_Via[Tipo via],Tabla_Tipo_Via[Factor],\"NA\",0)","v":1.6938249060837085}]
[null,"2. INVERSOR",{"$f":"IF(Tipo_Sistema=\"DC\",0,INDEX(Tabla_UCIN[VI_CR],MATCH(Dda_Pico_Seg,Tabla_UCIN[VA_Carga_Min],1)))","v":684627.09073326353},{"$f":"UCIN_ID","v":"UCIN04"},{"$f":"IF(Tabla_Costos_Transporte[[#This Row],[Codigo]]=\"NA\",0,1)","v":1},{"$f":"IFERROR(INDEX(Tabla_UCIN[Kg],MATCH(Tabla_Costos_Transporte[[#This Row],[Codigo]],Tabla_UCIN[Codigo],0)),0)*Tabla_Costos_Transporte[[#This Row],[Unidades]]","v":4.3897633990184968},1056.2996172738403,{"$f":"IF(OR(Km_CR_CL=0,Tabla_Costos_Transporte[[#This Row],[Codigo]]=\"NA\"),0,IF(Mod_CR_CL=\"T\",Var_T_K*POWER(Km_CR_CL,Var_T_Alfa)*POWER(Tabla_Costos_Transporte[[#This Row],[Peso (Kg)]],Var_T_Beta)*INDEX(Tabla_Tipo_Via[Factor],MATCH(Tipo_CR_CL,Tabla_Tipo_Via[Tipo via],0))*(1-Descuento_transporte),IF(Mod_CR_CL=\"A\",Var_A_K*POWER(Km_CR_CL,Var_A_Alfa)*POWER(Tabla_Costos_Transporte[[#This Row],[Peso (Kg)]],Var_A_Beta)*POWER(Tabla_Costos_Transporte[[#This Row],[Densidad (Kg/M3)]],Var_A_Gama)*(1-Descuento_transporte),IF(Mod_CR_CL=\"F\",Var_F_K*POWER(Km_CR_CL,Var_F_Alfa),IF(Mod_CR_CL=\"M\",Var_M_K*POWER(Km_CR_CL,Var_M_Alfa),0)))))","v":12.680587108254214},{"$f":"IF(OR(Km_CL_CD=0,Tabla_Costos_Transporte[[#This Row],[Codigo]]=\"NA\"),0,IF(Mod_CL_CD=\"T\",Var_T_K*POWER(Km_CL_CD,Var_T_Alfa)*POWER(Tabla_Costos_Transporte[[#This Row],[Peso (Kg)]],Var_T_Beta)*INDEX(Tabla_Tipo_Via[Factor],MATCH(Tipo_CL_CD,Tabla_Tipo_Via[Tipo via],0))*(1-Descuento_transporte),IF(Mod_CL_CD=\"A\",Var_A_K*POWER(Km_CL_CD,Var_A_Alfa)*POWER(Tabla_Costos_Transporte[[#This Row],[Peso (Kg)]],Var_A_Beta)*POWER(Tabla_Costos_Transporte[[#This Row],[Densidad (Kg/M3)]],Var_A_Gama)*(1-Descuento_transporte),IF(Mod_CL_CD=\"F\",Var_F_K*POWER(Km_CL_CD,Var_F_Alfa),IF(Mod_CL_CD=\"M\",Var_M_K*POWER(Km_CL_CD,Var_M_Alfa),0)))))","v":0},{"$f":"IF(OR(Km_CD_Mun_T1=0,Tabla_Costos_Transporte[[#This Row],[Codigo]]=\"NA\"),0,IF(Mod_CD_Mun_T1=\"T\",Var_T_K*POWER(Km_CD_Mun_T1,Var_T_Alfa)*POWER(Tabla_Costos_Transporte[[#This Row],[Peso (Kg)]],Var_T_Beta)*INDEX(Tabla_Tipo_Via[Factor],MATCH(Tipo_CD_Mun_T1,Tabla_Tipo_Via[Tipo via],0))*(1-Descuento_transporte),IF(Mod_CD_Mun_T1=\"A\",Var_A_K*POWER(Km_CD_Mun_T1,Var_A_Alfa)*POWER(Tabla_Costos_Transporte[[#This Row],[Peso (Kg)]],Var_A_Beta)*POWER(Tabla_Costos_Transporte[[#This Row],[Densidad (Kg/M3)]],Var_A_Gama)*(1-Descuento_transporte),IF(Mod_CD_Mun_T1=\"F\",Var_F_K*POWER(Km_CD_Mun_T1,Var_F_Alfa),IF(Mod_CD_Mun_T1=\"M\",Var_M_K*POWER(Km_CD_Mun_T1,Var_M_Alfa),0)))))","v":62.831523420483322},{"$f":"IF(OR(Km_CD_Mun_T2=0,Tabla_Costos_Transporte[[#This Row],[Codigo]]=\"NA\"),0,IF(Mod_CD_Mun_T2=\"T\",Var_T_K*POWER(Km_CD_Mun_T2,Var_T_Alfa)*POWER(Tabla_Costos_Transporte[[#This Row],[Peso (Kg)]],Var_T_Beta)*INDEX(Tabla_Tipo_Via[Factor],MATCH(Tipo_CD_Mun_T2,Tabla_Tipo_Via[Tipo via],0))*(1-Descuento_transporte),IF(Mod_CD_Mun_T2=\"A\",Var_A_K*POWER(Km_CD_Mun_T2,Var_A_Alfa)*POWER(Tabla_Costos_Transporte[[#This Row],[Peso (Kg)]],Var_A_Beta)*POWER(Tabla_Costos_Transporte[[#This Row],[Densidad (Kg/M3)]],Var_A_Gama)*(1-Descuento_transporte),IF(Mod_CD_Mun_T2=\"F\",Var_F_K*POWER(Km_CD_Mun_T2,Var_F_Alfa),IF(Mod_CD_Mun_T2=\"M\",Var_M_K*POWER(Km_CD_Mun_T2,Var_M_Alfa),0)))))","v":0},{"$f":"IF(OR(Km_Mun_PI=0,Tabla_Costos_Transporte[[#This Row],[Codigo]]=\"NA\"),0,IF(Mod_Mun_PI=\"T\",Var_T_K*POWER(Km_Mun_PI,Var_T_Alfa)*POWER(Tabla_Costos_Transporte[[#This Row],[Peso (Kg)]],Var_T_Beta)*INDEX(Tabla_Tipo_Via[Factor],MATCH(Tipo_Mun_PI,Tabla_Tipo_Via[Tipo via],0))*(1-Descuento_transporte),IF(Mod_Mun_PI=\"A\",Var_A_K*POWER(Km_Mun_PI,Var_A_Alfa)*POWER(Tabla_Costos_Transporte[[#This Row],[Peso (Kg)]],Var_A_Beta)*POWER(Tabla_Costos_Transporte[[#This Row],[Densidad (Kg/M3)]],Var_A_Gama)*(1-Descuento_transporte),IF(Mod_Mun_PI=\"F\",Var_F_K*POWER(Km_Mun_PI,Var_F_Alfa),IF(Mod_Mun_PI=\"M\",Var_M_K*POWER(Km_Mun_PI,Var_M_Alfa),0)))))","v":130.271304151702},{"$f":"SUMPRODUCT(TRANSPOSE(Tabla_Ruta_CR_PI[Distancia (km)]),Tabla_Costos_Transporte[[#This Row],[T de CR a CL]:[T de M a PI]])*Tabla_Costos_Transporte[[#This Row],[Peso (Kg)]]","v":110977.89615601719},{"$f":"Tabla_Costos_Transporte[[#This Row],[VI_UC_CR]]+Tabla_Costos_Transporte[[#This Row],[Costo T]]","v":795604.98688928073},{"$f":"Tabla_Costos_Transporte[[#This Row],[VI+CT]]/SUM(Tabla_Costos_Transporte[VI+CT])","v":6.9162220224294108E-2},null,null,null,null,null,null,null,null,null,null,null,null,null,null,null,null,null,null,null,null,null,null,null,null,null,null,null,null,null,null,null,null,null,null,null,null,null,null,null,null,null,null,null,null,null,null,null,null,null,null,null,null,null,null,null,null,null,null,null,null,null,null,null,null,null,null,null,null,null,null,null,null,null,null,null,null,null,null,null,null,null,null,null,null,null,null,null,null,null,null,null,null,null,null,null,null,null,null,null,null,null,null,null,null,null,null,null,null,null,null,null,null,null,null,null,null,null,null,null,null,null,null,null,null,null,null,null,null,null,null,null,null,null,null,null,null,null,null,null,null,null,null,null,null,null,null,null,null,null,null,null,null,null,null,null,null,null,null,null,null,null,null,null,null,null,null,null,null,null,null,null,null,null,null,null,null,null,null,null,null,null,null,null,null,null,null,null,null,null,null,null,null,null,null,null,null,null,null,null,null,null,null,null,null,null,null,null,null,null,null,null,null,null,null,null,null,null,null,null,null,null,null,null,null,null,null,null,null,null,null,null,null,null,null,null,null,null,null,null,null,null,null,null,null,null,null,null,null,null,null,null,null,null,null,null,null,null,null,null,null,null,null,null,null,null,null,null,null,null,null,null,null,null,null,null,null,null,null,null,null,null,null,null,null,null,null,null,null,null,null,null,null,null,null,null,null,null,null,null,null,null,null,null,null,null,null,null,null,null,null,null,null,null,null,null,null,null,null,null,null,null,null,null,null,null,null,null,null,null,null,null,null,null,null,null,null,null,null,null,null,null,null,null,null,null,null,null,null,null,null,null,null,null,null,null,null,null,null,null,null,null,null,null,null,null,null,null,null,null,null,null,null,null,null,null,null,null,null,null,null,null,null,null,null,null,null,null,null,null,null,null,null,null,null,null,null,null,null,null,null,null,null,null,null,null,null,null,null,null,null,null,null,null,null,null,null,null,null,null,null,null,null,null,null,null,null,null,null,null,null,null,null,null,null,null,null,null,null,null,null,null,null,null,null,null,null,null,null,null,null,null,null,null,null,null,null,null,null,null,null,null,null,null,null,null,null,null,null,null,null,null,null,null,null,null,null,null,null,null,null,null,null,null,null,null,null,null,null,null,null,null,null,null,null,null,null,null,null,null,null,null,null,null,null,null,null,null,null,null,null,null,null,null,null,null,null,null,null,null,null,null,null,null,null,null,null,null,null,null,null,null,null,null,null,null,null,null,null,null,null,null,null,null,null,null,null,null,null,null,null,null,null,null,null,null,null,null,null,null,null,null,null,null,null,null,null,null,null,null,null,null,null,null,null,null,null,null,null,null,null,null,null,null,null,null,null,null,null,null,null,null,null,null,null,null,null,null,null,null,null,null,null,null,null,null,null,null,null,null,null,null,null,null,null,null,null,null,null,null,null,null,null,null,null,null,null,null,null,null,null,null,null,null,null,null,null,null,null,null,null,null,null,null,null,null,null,null,null,null,null,null,null,null,null,null,null,null,null,null,null,null,null,null,null,null,null,null,null,null,null,null,null,null,null,null,null,null,null,null,null,null,null,null,null,null,null,null,null,null,null,null,null,null,null,null,null,null,null,null,null,null,null,null,null,null,null,null,null,null,null,null,null,null,null,null,null,null,null,null,null,null,null,null,null,null,null,null,null,null,null,null,null,null,null,null,null,null,null,null,null,null,null,null,null,null,null,null,null,null,null,null,null,null,null,null,null,null,null,null,null,null,null,null,null,null,null,null,null,null,null,null,null,null,null,null,null,null,null,null,null,null,null,null,null,null,null,null,null,null,null,null,null,null,null,null,null,null,null,null,null,null,null,null,null,null,null,null,null,null,null,null,null,null,null,null,null,null,null,null,null,null,null,null,null,null,null,null,null,null,null,null,null,null,null,null,null,null,null,null,null,null,null,null,null,null,null,null,null,null,null,null,null,null,null,null,null,null,null,null,null,null,null,null,null,null,null,null,null,null,null,null,null,null,null,null,null,null,null,null,null,null,null,null,null,null,null,null,null,null,null,null,null,null,null,null,null,null,null,null,null,null,null,null,null,null,null,null,null,null,null,null,null,null,null,null,null,null,null,null,null,null,null,null,null,null,null,null,null,null,null,null,null,null,null,null,null,null,null,null,null,null,null,null,null,null,null,null,null,null,null,null,null,null,null,null,null,null,null,null,null,null,null,null,null,null,null,null,null,null,null,null,null,null,null,null,null,null,null,null,null,null,null,null,null,null,null,null,null,null,null,null,null,null,null,null,null,null,null,null,null,null,null,null,null,null,null,null,null,null,null,null,null,null,null,null,null,null,null,null,null,null,null,null,null,null,null,null,null,null,null,null,null,null,null,null,null,null,null,null,null,null,null,null,null,null,null,null,null,null,null,null,null,null,null,null,null,null,null,null,null,null,null,null,null,null,null,null,null,null,null,null,null,null,null,null,null,null,null,null,null,null,null,null,null,null,null,null,null,null,null,null,null,null,null,null,null,null,null,null,null,null,null,null,null,null,null,null,null,null,null,null,null,null,null,null,null,null,null,null,null,null,null,null,null,null,null,null,null,null,null,null,null,null,null,null,null,null,null,null,null,null,null,null,null,null,null,null,null,null,null,null,null,null,null,null,null,null,null,null,null,null,null,null,null,null,null,null,null,null,null,null,null,null,null,null,null,null,null,null,null,null,null,null,null,null,null,null,null,null,null,null,null,null,null,null,null,null,null,null,null,null,null,null,null,null,null,null,null,null,null,null,null,null,null,null,null,null,null,null,null,null,null,null,null,null,null,null,null,null,null,null,null,null,null,null,null,null,null,null,null,null,null,null,null,null,null,null,null,null,null,null,null,null,null,null,null,null,null,null,null,null,null,null,null,null,null,null,null,null,null,null,null,null,null,null,null,null,null,null,null,null,null,null,null,null,null,null,null,null,null,null,null,null,null,null,null,null,null,null,null,null,null,null,null,null,null,null,null,null,null,null,null,null,null,null,null,null,null,null,null,null,null,null,null,null,null,null,null,null,null,null,null,null,null,null,null,null,null,null,null,null,null,null,null,null,null,null,null,null,null,null,null,null,null,null,null,null,null,null,null,null,null,null,null,null,null,null,null,null,null,null,null,null,null,null,null,null,null,null,null,null,null,null,null,null,null,null,null,null,null,null,null,null,null,null,null,null,null,null,null,null,null,null,null,null,null,null,null,null,null,null,null,null,null,null,null,null,null,null,null,null,null,null,null,null,null,null,null,null,null,null,null,null,null,null,null,null,null,null,null,null,null,null,null,null,null,null,null,null,null,null,null,null,null,null,null,null,null,null,null,null,null,null,null,null,null,null,null,null,null,null,null,null,null,null,null,null,null,null,null,null,null,null,null,null,null,null,null,null,null,null,null,null,null,null,null,null,null,null,null,null,null,null,null,null,null,null,null,null,null,null,null,null,null,null,null,null,null,null,null,null,null,null,null,null,null,null,null,null,null,null,null,null,null,null,null,null,null,null,null,null,null,null,null,null,null,null,null,null,null,null,null,null,null,null,null,null,null,null,null,null,null,null,null,null,null,null,null,null,null,null,null,null,null,null,null,null,null,null,null,null,null,null,null,null,null,null,null,null,null,null,null,null,null,null,null,null,null,null,null,null,null,null,null,null,null,null,null,null,null,null,null,null,null,null,null,null,null,null,null,null,null,null,null,null,null,null,null,null,null,null,null,null,null,null,null,null,null,null,null,null,null,null,null,null,null,null,null,null,null,null,null,null,null,null,null,null,null,null,null,null,null,null,null,null,null,null,null,null,null,null,null,null,null,null,null,null,null,null,null,null,null,null,null,null,null,null,null,null,null,null,null,null,null,null,null,null,null,null,null,null,null,null,null,null,null,null,null,null,null,null,null,null,null,null,null,null,null,null,null,null,null,null,null,null,null,null,null,null,null,null,null,null,null,null,null,null,null,null,null,null,null,null,null,null,null,null,null,null,null,null,null,null,null,null,null,null,null,null,null,null,null,null,null,null,null,null,null,null,null,null,null,null,null,null,null,null,null,null,null,null,null,null,null,null,null,null,null,null,null,null,null,null,null,null,null,null,null,null,null,null,null,null,null,null,null,null,null,null,null,null,null,null,null,null,null,null,null,null,null,null,null,null,null,null,null,null,null,null,null,null,null,null,null,null,null,null,null,null,null,null,null,null,null,null,null,null,null,null,null,null,null,null,null,null,null,null,null,null,null,null,null,null,null,null,null,null,null,null,null,null,null,null,null,null,null,null,null,null,null,null,null,null,null,null,null,null,null,null,null,null,null,null,null,null,null,null,null,null,null,null,null,null,null,null,null,null,null,null,null,null,null,null,null,null,null,null,null,null,null,null,null,null,null,null,null,null,null,null,null,null,null,null,null,null,null,null,null,null,null,null,null,null,null,null,null,null,null,null,null,null,null,null,null,null,null,null,null,null,null,null,null,null,null,null,null,null,null,null,null,null,null,null,null,null,null,null,null,null,null,null,null,null,null,null,null,null,null,null,null,null,null,null,null,null,null,null,null,null,null,null,null,null,null,null,null,null,null,null,null,null,null,null,null,null,null,null,null,null,null,null,null,null,null,null,null,null,null,null,null,null,null,null,null,null,null,null,null,null,null,null,null,null,null,null,null,null,null,null,null,null,null,null,null,null,null,null,null,null,null,null,null,null,null,null,null,null,null,null,null,null,null,null,null,null,null,null,null,null,null,null,null,null,null,null,null,null,null,null,null,null,null,null,null,null,null,null,null,null,null,null,null,null,null,null,null,null,null,null,null,null,null,null,null,null,null,null,null,null,null,null,null,null,null,null,null,null,null,null,null,null,null,null,null,null,null,null,null,null,null,null,null,null,null,null,null,null,null,null,null,null,null,null,null,null,null,null,null,null,null,null,null,null,null,null,null,null,null,null,null,null,null,null,null,null,null,null,null,null,null,null,null,null,null,null,null,null,null,null,null,null,null,null,null,null,null,null,null,null,null,null,null,null,null,null,null,null,null,null,null,null,null,null,null,null,null,null,null,null,null,null,null,null,null,null,null,null,null,null,null,null,null,null,null,null,null,null,null,null,null,null,null,null,null,null,null,null,null,null,null,null,null,null,null,null,null,null,null,null,null,null,null,null,null,null,null,null,null,null,null,null,null,null,null,null,null,null,null,null,null,null,null,null,null,null,null,null,null,null,null,null,null,null,null,null,null,null,null,null,null,null,null,null,null,null,null,null,null,null,null,null,null,null,null,null,null,null,null,null,null,null,null,null,null,null,null,null,null,null,null,null,null,null,null,null,null,null,null,null,null,null,null,null,null,null,null,null,null,null,null,null,null,null,null,null,null,null,null,null,null,null,null,null,null,null,null,null,null,null,null,null,null,null,null,null,null,null,null,null,null,null,null,null,null,null,null,null,null,null,null,null,null,null,null,null,null,null,null,null,null,null,null,null,null,null,null,null,null,null,null,null,null,null,null,null,null,null,null,null,null,null,null,null,null,null,null,null,null,null,null,null,null,null,null,null,null,null,null,null,null,null,null,null,null,null,null,null,null,null,null,null,null,null,null,null,null,null,null,null,null,null,null,null,null,null,null,null,null,null,null,null,null,null,null,null,null,null,null,null,null,null,null,null,null,null,null,null,null,null,null,null,null,null,null,null,null,null,null,null,null,null,null,null,null,null,null,null,null,null,null,null,null,null,null,null,null,null,null,null,null,null,null,null,null,null,null,null,null,null,null,null,null,null,null,null,null,null,null,null,null,null,null,null,null,null,null,null,null,null,null,null,null,null,null,null,null,null,null,null,null,null,null,null,null,null,null,null,null,null,null,null,null,null,null,null,null,null,null,null,null,null,null,null,null,null,null,null,null,null,null,null,null,null,null,null,null,null,null,null,null,null,null,null,null,null,null,null,null,null,null,null,null,null,null,null,null,null,null,null,null,null,null,null,null,null,null,null,null,null,null,null,null,null,null,null,null,null,null,null,null,null,null,null,null,null,null,null,null,null,null,null,null,null,null,null,null,null,null,null,null,null,null,null,null,null,null,null,null,null,null,null,null,null,null,null,null,null,null,null,null,null,null,null,null,null,null,null,null,null,null,null,null,null,null,null,null,null,null,null,null,null,null,null,null,null,null,null,null,null,null,null,null,null,null,null,null,null,null,null,null,null,null,null,null,null,null,null,null,null,null,null,null,null,null,null,null,null,null,null,null,null,null,null,null,null,null,null,null,null,null,null,null,null,null,null,null,null,null,null,null,null,null,null,null,null,null,null,null,null,null,null,null,null,null,null,null,null,null,null,null,null,null,null,null,null,null,null,null,null,null,null,null,null,null,null,null,null,null,null,null,null,null,null,null,null,null,null,null,null,null,null,null,null,null,null,null,null,null,null,null,null,null,null,null,null,null,null,null,null,null,null,null,null,null,null,null,null,null,null,null,null,null,null,null,null,null,null,null,null,null,null,null,null,null,null,null,null,null,null,null,null,null,null,null,null,null,null,null,null,null,null,null,null,null,null,null,null,null,null,null,null,null,null,null,null,null,null,null,null,null,null,null,null,null,null,null,null,null,null,null,null,null,null,null,null,null,null,null,null,null,null,null,null,null,null,null,null,null,null,null,null,null,null,null,null,null,null,null,null,null,null,null,null,null,null,null,null,null,null,null,null,null,null,null,null,null,null,null,null,null,null,null,null,null,null,null,null,null,null,null,null,null,null,null,null,null,null,null,null,null,null,null,null,null,null,null,null,null,null,null,null,null,null,null,null,null,null,null,null,null,null,null,null,null,null,null,null,null,null,null,null,null,null,null,null,null,null,null,null,null,null,null,null,null,null,null,null,null,null,null,null,null,null,null,null,null,null,null,null,null,null,null,null,null,null,null,null,null,null,null,null,null,null,null,null,null,null,null,null,null,null,null,null,null,null,null,null,null,null,null,null,null,null,null,null,null,null,null,null,null,null,null,null,null,null,null,null,null,null,null,null,null,null,null,null,null,null,null,null,null,null,null,null,null,null,null,null,null,null,null,null,null,null,null,null,null,null,null,null,null,null,null,null,null,null,null,null,null,null,null,null,null,null,null,null,null,null,null,null,null,null,null,null,null,null,null,null,null,null,null,null,null,null,null,null,null,null,null,null,null,null,null,null,null,null,null,null,null,null,null,null,null,null,null,null,null,null,null,null,null,null,null,null,null,null,null,null,null,null,null,null,null,null,null,null,null,null,null,null,null,null,null,null,null,null,null,null,null,null,null,null,null,null,null,null,null,null,null,null,null,null,null,null,null,null,null,null,null,null,null,null,null,null,null,null,null,null,null,null,null,null,null,null,null,null,null,null,null,null,null,null,null,null,null,null,null,null,null,null,null,null,null,null,null,null,null,null,null,null,null,null,null,null,null,null,null,null,null,null,null,null,null,null,null,null,null,null,null,null,null,null,null,null,null,null,null,null,null,null,null,null,null,null,null,null,null,null,null,null,null,null,null,null,null,null,null,null,null,null,null,null,null,null,null,null,null,null,null,null,null,null,null,null,null,null,null,null,null,null,null,null,null,null,null,null,null,null,null,null,null,null,null,null,null,null,null,null,null,null,null,null,null,null,null,null,null,null,null,null,null,null,null,null,null,null,null,null,null,null,null,null,null,null,null,null,null,null,null,null,null,null,null,null,null,null,null,null,null,null,null,null,null,null,null,null,null,null,null,null,null,null,null,null,null,null,null,null,null,null,null,null,null,null,null,null,null,null,null,null,null,null,null,null,null,null,null,null,null,null,null,null,null,null,null,null,null,null,null,null,null,null,null,null,null,null,null,null,null,null,null,null,null,null,null,null,null,null,null,null,null,null,null,null,null,null,null,null,null,null,null,null,null,null,null,null,null,null,null,null,null,null,null,null,null,null,null,null,null,null,null,null,null,null,null,null,null,null,null,null,null,null,null,null,null,null,null,null,null,null,null,null,null,null,null,null,null,null,null,null,null,null,null,null,null,null,null,null,null,null,null,null,null,null,null,null,null,null,null,null,null,null,null,null,null,null,null,null,null,null,null,null,null,null,null,null,null,null,null,null,null,null,null,null,null,null,null,null,null,null,null,null,null,null,null,null,null,null,null,null,null,null,null,null,null,null,null,null,null,null,null,null,null,null,null,null,null,null,null,null,null,null,null,null,null,null,null,null,null,null,null,null,null,null,null,null,null,null,null,null,null,null,null,null,null,null,null,null,null,null,null,null,null,null,null,null,null,null,null,null,null,null,null,null,null,null,null,null,null,null,null,null,null,null,null,null,null,null,null,null,null,null,null,null,null,null,null,null,null,null,null,null,null,null,null,null,null,null,null,null,null,null,null,null,null,null,null,null,null,null,null,null,null,null,null,null,null,null,null,null,null,null,null,null,null,null,null,null,null,null,null,null,null,null,null,null,null,null,null,null,null,null,null,null,null,null,null,null,null,null,null,null,null,null,null,null,null,null,null,null,null,null,null,null,null,null,null,null,null,null,null,null,null,null,null,null,null,null,null,null,null,null,null,null,null,null,null,null,null,null,null,null,null,null,null,null,null,null,null,null,null,null,null,null,null,null,null,null,null,null,null,null,null,null,null,null,null,null,null,null,null,null,null,null,null,null,null,null,null,null,null,null,null,null,null,null,null,null,null,null,null,null,null,null,null,null,null,null,null,null,null,null,null,null,null,null,null,null,null,null,null,null,null,null,null,null,null,null,null,null,null,null,null,null,null,null,null,null,null,null,null,null,null,null,null,null,null,null,null,null,null,null,null,null,null,null,null,null,null,null,null,null,null,null,null,null,null,null,null,null,null,null,null,null,null,null,null,null,null,null,null,null,null,null,null,null,null,null,null,null,null,null,null,null,null,null,null,null,null,null,null,null,null,null,null,null,null,null,null,null,null,null,null,null,null,null,null,null,null,null,null,null,null,null,null,null,null,null,null,null,null,null,null,null,null,null,null,null,null,null,null,null,null,null,null,null,null,null,null,null,null,null,null,null,null,null,null,null,null,null,null,null,null,null,null,null,null,null,null,null,null,null,null,null,null,null,null,null,null,null,null,null,null,null,null,null,null,null,null,null,null,null,null,null,null,null,null,null,null,null,null,null,null,null,null,null,null,null,null,null,null,null,null,null,null,null,null,null,null,null,null,null,null,null,null,null,null,null,null,null,null,null,null,null,null,null,null,null,null,null,null,null,null,null,null,null,null,null,null,null,null,null,null,null,null,null,null,null,null,null,null,null,null,null,null,null,null,null,null,null,null,null,null,null,null,null,null,null,null,null,null,null,null,null,null,null,null,null,null,null,null,null,null,null,null,null,null,null,null,null,null,null,null,null,null,null,null,null,null,null,null,null,null,null,null,null,null,null,null,null,null,null,null,null,null,null,null,null,null,null,null,null,null,null,null,null,null,null,null,null,null,null,null,null,null,null,null,null,null,null,null,null,null,null,null,null,null,null,null,null,null,null,null,null,null,null,null,null,null,null,null,null,null,null,null,null,null,null,null,null,null,null,null,null,null,null,null,null,null,null,null,null,null,null,null,null,null,null,null,null,null,null,null,null,null,null,null,null,null,null,null,null,null,null,null,null,null,null,null,null,null,null,null,null,null,null,null,null,null,null,null,null,null,null,null,null,null,null,null,null,null,null,null,null,null,null,null,null,null,null,null,null,null,null,null,null,null,null,null,null,null,null,null,null,null,null,null,null,null,null,null,null,null,null,null,null,null,null,null,null,null,null,null,null,null,null,null,null,null,null,null,null,null,null,null,null,null,null,null,null,null,null,null,null,null,null,null,null,null,null,null,null,null,null,null,null,null,null,null,null,null,null,null,null,null,null,null,null,null,null,null,null,null,null,null,null,null,null,null,null,null,null,null,null,null,null,null,null,null,null,null,null,null,null,null,null,null,null,null,null,null,null,null,null,null,null,null,null,null,null,null,null,null,null,null,null,null,null,null,null,null,null,null,null,null,null,null,null,null,null,null,null,null,null,null,null,null,null,null,null,null,null,null,null,null,null,null,null,null,null,null,null,null,null,null,null,null,null,null,null,null,null,null,null,null,null,null,null,null,null,null,null,null,null,null,null,null,null,null,null,null,null,null,null,null,null,null,null,null,null,null,null,null,null,null,null,null,null,null,null,null,null,null,null,null,null,null,null,null,null,null,null,null,null,null,null,null,null,null,null,null,null,null,null,null,null,null,null,null,null,null,null,null,null,null,null,null,null,null,null,null,null,null,null,null,null,null,null,null,null,null,null,null,null,null,null,null,null,null,null,null,null,null,null,null,null,null,null,null,null,null,null,null,null,null,null,null,null,null,null,null,null,null,null,null,null,null,null,null,null,null,null,null,null,null,null,null,null,null,null,null,null,null,null,null,null,null,null,null,null,null,null,null,null,null,null,null,null,null,null,null,null,null,null,null,null,null,null,null,null,null,null,null,null,null,null,null,null,null,null,null,null,null,null,null,null,null,null,null,null,null,null,null,null,null,null,null,null,null,null,null,null,null,null,null,null,null,null,null,null,null,null,null,null,null,null,null,null,null,null,null,null,null,null,null,null,null,null,null,null,null,null,null,null,null,null,null,null,null,null,null,null,null,null,null,null,null,null,null,null,null,null,null,null,null,null,null,null,null,null,null,null,null,null,null,null,null,null,null,null,null,null,null,null,null,null,null,null,null,null,null,null,null,null,null,null,null,null,null,null,null,null,null,null,null,null,null,null,null,null,null,null,null,null,null,null,null,null,null,null,null,null,null,null,null,null,null,null,null,null,null,null,null,null,null,null,null,null,null,null,null,null,null,null,null,null,null,null,null,null,null,null,null,null,null,null,null,null,null,null,null,null,null,null,null,null,null,null,null,null,null,null,null,null,null,null,null,null,null,null,null,null,null,null,null,null,null,null,null,null,null,null,null,null,null,null,null,null,null,null,null,null,null,null,null,null,null,null,null,null,null,null,null,null,null,null,null,null,null,null,null,null,null,null,null,null,null,null,null,null,null,null,null,null,null,null,null,null,null,null,null,null,null,null,null,null,null,null,null,null,null,null,null,null,null,null,null,null,null,null,null,null,null,null,null,null,null,null,null,null,null,null,null,null,null,null,null,null,null,null,null,null,null,null,null,null,null,null,null,null,null,null,null,null,null,null,null,null,null,null,null,null,null,null,null,null,null,null,null,null,null,null,null,null,null,null,null,null,null,null,null,null,null,null,null,null,null,null,null,null,null,null,null,null,null,null,null,null,null,null,null,null,null,null,null,null,null,null,null,null,null,null,null,null,null,null,null,null,null,null,null,null,null,null,null,null,null,null,null,null,null,null,null,null,null,null,null,null,null,null,null,null,null,null,null,null,null,null,null,null,null,null,null,null,null,null,null,null,null,null,null,null,null,null,null,null,null,null,null,null,null,null,null,null,null,null,null,null,null,null,null,null,null,null,null,null,null,null,null,null,null,null,null,null,null,null,null,null,null,null,null,null,null,null,null,null,null,null,null,null,null,null,null,null,null,null,null,null,null,null,null,null,null,null,null,null,null,null,null,null,null,null,null,null,null,null,null,null,null,null,null,null,null,null,null,null,null,null,null,null,null,null,null,null,null,null,null,null,null,null,null,null,null,null,null,null,null,null,null,null,null,null,null,null,null,null,null,null,null,null,null,null,null,null,null,null,null,null,null,null,null,null,null,null,null,null,null,null,null,null,null,null,null,null,null,null,null,null,null,null,null,null,null,null,null,null,null,null,null,null,null,null,null,null,null,null,null,null,null,null,null,null,null,null,null,null,null,null,null,null,null,null,null,null,null,null,null,null,null,null,null,null,null,null,null,null,null,null,null,null,null,null,null,null,null,null,null,null,null,null,null,null,null,null,null,null,null,null,null,null,null,null,null,null,null,null,null,null,null,null,null,null,null,null,null,null,null,null,null,null,null,null,null,null,null,null,null,null,null,null,null,null,null,null,null,null,null,null,null,null,null,null,null,null,null,null,null,null,null,null,null,null,null,null,null,null,null,null,null,null,null,null,null,null,null,null,null,null,null,null,null,null,null,null,null,null,null,null,null,null,null,null,null,null,null,null,null,null,null,null,null,null,null,null,null,null,null,null,null,null,null,null,null,null,null,null,null,null,null,null,null,null,null,null,null,null,null,null,null,null,null,null,null,null,null,null,null,null,null,null,null,null,null,null,null,null,null,null,null,null,null,null,null,null,null,null,null,null,null,null,null,null,null,null,null,null,null,null,null,null,null,null,null,null,null,null,null,null,null,null,null,null,null,null,null,null,null,null,null,null,null,null,null,null,null,null,null,null,null,null,null,null,null,null,null,null,null,null,null,null,null,null,null,null,null,null,null,null,null,null,null,null,null,null,null,null,null,null,null,null,null,null,null,null,null,null,null,null,null,null,null,null,null,null,null,null,null,null,null,null,null,null,null,null,null,null,null,null,null,null,null,null,null,null,null,null,null,null,null,null,null,null,null,null,null,null,null,null,null,null,null,null,null,null,null,null,null,null,null,null,null,null,null,null,null,null,null,null,null,null,null,null,null,null,null,null,null,null,null,null,null,null,null,null,null,null,null,null,null,null,null,null,null,null,null,null,null,null,null,null,null,null,null,null,null,null,null,null,null,null,null,null,null,null,null,null,null,null,null,null,null,null,null,null,null,null,null,null,null,null,null,null,null,null,null,null,null,null,null,null,null,null,null,null,null,null,null,null,null,null,null,null,null,null,null,null,null,null,null,null,null,null,null,null,null,null,null,null,null,null,null,null,null,null,null,null,null,null,null,null,null,null,null,null,null,null,null,null,null,null,null,null,null,null,null,null,null,null,null,null,null,null,null,null,null,null,null,null,null,null,null,null,null,null,null,null,null,null,null,null,null,null,null,null,null,null,null,null,null,null,null,null,null,null,null,null,null,null,null,null,null,null,null,null,null,null,null,null,null,null,null,null,null,null,null,null,null,null,null,null,null,null,null,null,null,null,null,null,null,null,null,null,null,null,null,null,null,null,null,null,null,null,null,null,null,null,null,null,null,null,null,null,null,null,null,null,null,null,null,null,null,null,null,null,null,null,null,null,null,null,null,null,null,null,null,null,null,null,null,null,null,null,null,null,null,null,null,null,null,null,null,null,null,null,null,null,null,null,null,null,null,null,null,null,null,null,null,null,null,null,null,null,null,null,null,null,null,null,null,null,null,null,null,null,null,null,null,null,null,null,null,null,null,null,null,null,null,null,null,null,null,null,null,null,null,null,null,null,null,null,null,null,null,null,null,null,null,null,null,null,null,null,null,null,null,null,null,null,null,null,null,null,null,null,null,null,null,null,null,null,null,null,null,null,null,null,null,null,null,null,null,null,null,null,null,null,null,null,null,null,null,null,null,null,null,null,null,null,null,null,null,null,null,null,null,null,null,null,null,null,null,null,null,null,null,null,null,null,null,null,null,null,null,null,null,null,null,null,null,null,null,null,null,null,null,null,null,null,null,null,null,null,null,null,null,null,null,null,null,null,null,null,null,null,null,null,null,null,null,null,null,null,null,null,null,null,null,null,null,null,null,null,null,null,null,null,null,null,null,null,null,null,null,null,null,null,null,null,null,null,null,null,null,null,null,null,null,null,null,null,null,null,null,null,null,null,null,null,null,null,null,null,null,null,null,null,null,null,null,null,null,null,null,null,null,null,null,null,null,null,null,null,null,null,null,null,null,null,null,null,null,null,null,null,null,null,null,null,null,null,null,null,null,null,null,null,null,null,null,null,null,null,null,null,null,null,null,null,null,null,null,null,null,null,null,null,null,null,null,null,null,null,null,null,null,null,null,null,null,null,null,null,null,null,null,null,null,null,null,null,null,null,null,null,null,null,null,null,null,null,null,null,null,null,null,null,null,null,null,null,null,null,null,null,null,null,null,null,null,null,null,null,null,null,null,null,null,null,null,null,null,null,null,null,null,null,null,null,null,null,null,null,null,null,null,null,null,null,null,null,null,null,null,null,null,null,null,null,null,null,null,null,null,null,null,null,null,null,null,null,null,null,null,null,null,null,null,null,null,null,null,null,null,null,null,null,null,null,null,null,null,null,null,null,null,null,null,null,null,null,null,null,null,null,null,null,null,null,null,null,null,null,null,null,null,null,null,null,null,null,null,null,null,null,null,null,null,null,null,null,null,null,null,null,null,null,null,null,null,null,null,null,null,null,null,null,null,null,null,null,null,null,null,null,null,null,null,null,null,null,null,null,null,null,null,null,null,null,null,null,null,null,null,null,null,null,null,null,null,null,null,null,null,null,null,null,null,null,null,null,null,null,null,null,null,null,null,null,null,null,null,null,null,null,null,null,null,null,null,null,null,null,null,null,null,null,null,null,null,null,null,null,null,null,null,null,null,null,null,null,null,null,null,null,null,null,null,null,null,null,null,null,null,null,null,null,null,null,null,null,null,null,null,null,null,null,null,null,null,null,null,null,null,null,null,null,null,null,null,null,null,null,null,null,null,null,null,null,null,null,null,null,null,null,null,null,null,null,null,null,null,null,null,null,null,null,null,null,null,null,null,null,null,null,null,null,null,null,null,null,null,null,null,null,null,null,null,null,null,null,null,null,null,null,null,null,null,null,null,null,null,null,null,null,null,null,null,null,null,null,null,null,null,null,null,null,null,null,null,null,null,null,null,null,null,null,null,null,null,null,null,null,null,null,null,null,null,null,null,null,null,null,null,null,null,null,null,null,null,null,null,null,null,null,null,null,null,null,null,null,null,null,null,null,null,null,null,null,null,null,null,null,null,null,null,null,null,null,null,null,null,null,null,null,null,null,null,null,null,null,null,null,null,null,null,null,null,null,null,null,null,null,null,null,null,null,null,null,null,null,null,null,null,null,null,null,null,null,null,null,null,null,null,null,null,null,null,null,null,null,null,null,null,null,null,null,null,null,null,null,null,null,null,null,null,null,null,null,null,null,null,null,null,null,null,null,null,null,null,null,null,null,null,null,null,null,null,null,null,null,null,null,null,null,null,null,null,null,null,null,null,null,null,null,null,null,null,null,null,null,null,null,null,null,null,null,null,null,null,null,null,null,null,null,null,null,null,null,null,null,null,null,null,null,null,null,null,null,null,null,null,null,null,null,null,null,null,null,null,null,null,null,null,null,null,null,null,null,null,null,null,null,null,null,null,null,null,null,null,null,null,null,null,null,null,null,null,null,null,null,null,null,null,null,null,null,null,null,null,null,null,null,null,null,null,null,null,null,null,null,null,null,null,null,null,null,null,null,null,null,null,null,null,null,null,null,null,null,null,null,null,null,null,null,null,null,null,null,null,null,null,null,null,null,null,null,null,null,null,null,null,null,null,null,null,null,null,null,null,null,null,null,null,null,null,null,null,null,null,null,null,null,null,null,null,null,null,null,null,null,null,null,null,null,null,null,null,null,null,null,null,null,null,null,null,null,null,null,null,null,null,null,null,null,null,null,null,null,null,null,null,null,null,null,null,null,null,null,null,null,null,null,null,null,null,null,null,null,null,null,null,null,null,null,null,null,null,null,null,null,null,null,null,null,null,null,null,null,null,null,null,null,null,null,null,null,null,null,null,null,null,null,null,null,null,null,null,null,null,null,null,null,null,null,null,null,null,null,null,null,null,null,null,null,null,null,null,null,null,null,null,null,null,null,null,null,null,null,null,null,null,null,null,null,null,null,null,null,null,null,null,null,null,null,null,null,null,null,null,null,null,null,null,null,null,null,null,null,null,null,null,null,null,null,null,null,null,null,null,null,null,null,null,null,null,null,null,null,null,null,null,null,null,null,null,null,null,null,null,null,null,null,null,null,null,null,null,null,null,null,null,null,null,null,null,null,null,null,null,null,null,null,null,null,null,null,null,null,null,null,null,null,null,null,null,null,null,null,null,null,null,null,null,null,null,null,null,null,null,null,null,null,null,null,null,null,null,null,null,null,null,null,null,null,null,null,null,null,null,null,null,null,null,null,null,null,null,null,null,null,null,null,null,null,null,null,null,null,null,null,null,null,null,null,null,null,null,null,null,null,null,null,null,null,null,null,null,null,null,null,null,null,null,null,null,null,null,null,null,null,null,null,null,null,null,null,null,null,null,null,null,null,null,null,null,null,null,null,null,null,null,null,null,null,null,null,null,null,null,null,null,null,null,null,null,null,null,null,null,null,null,null,null,null,null,null,null,null,null,null,null,null,null,null,null,null,null,null,null,null,null,null,null,null,null,null,null,null,null,null,null,null,null,null,null,null,null,null,null,null,null,null,null,null,null,null,null,null,null,null,null,null,null,null,null,null,null,null,null,null,null,null,null,null,null,null,null,null,null,null,null,null,null,null,null,null,null,null,null,null,null,null,null,null,null,null,null,null,null,null,null,null,null,null,null,null,null,null,null,null,null,null,null,null,null,null,null,null,null,null,null,null,null,null,null,null,null,null,null,null,null,null,null,null,null,null,null,null,null,null,null,null,null,null,null,null,null,null,null,null,null,null,null,null,null,null,null,null,null,null,null,null,null,null,null,null,null,null,null,null,null,null,null,null,null,null,null,null,null,null,null,null,null,null,null,null,null,null,null,null,null,null,null,null,null,null,null,null,null,null,null,null,null,null,null,null,null,null,null,null,null,null,null,null,null,null,null,null,null,null,null,null,null,null,null,null,null,null,null,null,null,null,null,null,null,null,null,null,null,null,null,null,null,null,null,null,null,null,null,null,null,null,null,null,null,null,null,null,null,null,null,null,null,null,null,null,null,null,null,null,null,null,null,null,null,null,null,null,null,null,null,null,null,null,null,null,null,null,null,null,null,null,null,null,null,null,null,null,null,null,null,null,null,null,null,null,null,null,null,null,null,null,null,null,null,null,null,null,null,null,null,null,null,null,null,null,null,null,null,null,null,null,null,null,null,null,null,null,null,null,null,null,null,null,null,null,null,null,null,null,null,null,null,null,null,null,null,null,null,null,null,null,null,null,null,null,null,null,null,null,null,null,null,null,null,null,null,null,null,null,null,null,null,null,null,null,null,null,null,null,null,null,null,null,null,null,null,null,null,null,null,null,null,null,null,null,null,null,null,null,null,null,null,null,null,null,null,null,null,null,null,null,null,null,null,null,null,null,null,null,null,null,null,null,null,null,null,null,null,null,null,null,null,null,null,null,null,null,null,null,null,null,null,null,null,null,null,null,null,null,null,null,null,null,null,null,null,null,null,null,null,null,null,null,null,null,null,null,null,null,null,null,null,null,null,null,null,null,null,null,null,null,null,null,null,null,null,null,null,null,null,null,null,null,null,null,null,null,null,null,null,null,null,null,null,null,null,null,null,null,null,null,null,null,null,null,null,null,null,null,null,null,null,null,null,null,null,null,null,null,null,null,null,null,null,null,null,null,null,null,null,null,null,null,null,null,null,null,null,null,null,null,null,null,null,null,null,null,null,null,null,null,null,null,null,null,null,null,null,null,null,null,null,null,null,null,null,null,null,null,null,null,null,null,null,null,null,null,null,null,null,null,null,null,null,null,null,null,null,null,null,null,null,null,null,null,null,null,null,null,null,null,null,null,null,null,null,null,null,null,null,null,null,null,null,null,null,null,null,null,null,null,null,null,null,null,null,null,null,null,null,null,null,null,null,null,null,null,null,null,null,null,null,null,null,null,null,null,null,null,null,null,null,null,null,null,null,null,null,null,null,null,null,null,null,null,null,null,null,null,null,null,null,null,null,null,null,null,null,null,null,null,null,null,null,null,null,null,null,null,null,null,null,null,null,null,null,null,null,null,null,null,null,null,null,null,null,null,null,null,null,null,null,null,null,null,null,null,null,null,null,null,null,null,null,null,null,null,null,null,null,null,null,null,null,null,null,null,null,null,null,null,null,null,null,null,null,null,null,null,null,null,null,null,null,null,null,null,null,null,null,null,null,null,null,null,null,null,null,null,null,null,null,null,null,null,null,null,null,null,null,null,null,null,null,null,null,null,null,null,null,null,null,null,null,null,null,null,null,null,null,null,null,null,null,null,null,null,null,null,null,null,null,null,null,null,null,null,null,null,null,null,null,null,null,null,null,null,null,null,null,null,null,null,null,null,null,null,null,null,null,null,null,null,null,null,null,null,null,null,null,null,null,null,null,null,null,null,null,null,null,null,null,null,null,null,null,null,null,null,null,null,null,null,null,null,null,null,null,null,null,null,null,null,null,null,null,null,null,null,null,null,null,null,null,null,null,null,null,null,null,null,null,null,null,null,null,null,null,null,null,null,null,null,null,null,null,null,null,null,null,null,null,null,null,null,null,null,null,null,null,null,null,null,null,null,null,null,null,null,null,null,null,null,null,null,null,null,null,null,null,null,null,null,null,null,null,null,null,null,null,null,null,null,null,null,null,null,null,null,null,null,null,null,null,null,null,null,null,null,null,null,null,null,null,null,null,null,null,null,null,null,null,null,null,null,null,null,null,null,null,null,null,null,null,null,null,null,null,null,null,null,null,null,null,null,null,null,null,null,null,null,null,null,null,null,null,null,null,null,null,null,null,null,null,null,null,null,null,null,null,null,null,null,null,null,null,null,null,null,null,null,null,null,null,null,null,null,null,null,null,null,null,null,null,null,null,null,null,null,null,null,null,null,null,null,null,null,null,null,null,null,null,null,null,null,null,null,null,null,null,null,null,null,null,null,null,null,null,null,null,null,null,null,null,null,null,null,null,null,null,null,null,null,null,null,null,null,null,null,null,null,null,null,null,null,null,null,null,null,null,null,null,null,null,null,null,null,null,null,null,null,null,null,null,null,null,null,null,null,null,null,null,null,null,null,null,null,null,null,null,null,null,null,null,null,null,null,null,null,null,null,null,null,null,null,null,null,null,null,null,null,null,null,null,null,null,null,null,null,null,null,null,null,null,null,null,null,null,null,null,null,null,null,null,null,null,null,null,null,null,null,null,null,null,null,null,null,null,null,null,null,null,null,null,null,null,null,null,null,null,null,null,null,null,null,null,null,null,null,null,null,null,null,null,null,null,null,null,null,null,null,null,null,null,null,null,null,null,null,null,null,null,null,null,null,null,null,null,null,null,null,null,null,null,null,null,null,null,null,null,null,null,null,null,null,null,null,null,null,null,null,null,null,null,null,null,null,null,null,null,null,null,null,null,null,null,null,null,null,null,null,null,null,null,null,null,null,null,null,null,null,null,null,null,null,null,null,null,null,null,null,null,null,null,null,null,null,null,null,null,null,null,null,null,null,null,null,null,null,null,null,null,null,null,null,null,null,null,null,null,null,null,null,null,null,null,null,null,null,null,null,null,null,null,null,null,null,null,null,null,null,null,null,null,null,null,null,null,null,null,null,null,null,null,null,null,null,null,null,null,null,null,null,null,null,null,null,null,null,null,null,null,null,null,null,null,null,null,null,null,null,null,null,null,null,null,null,null,null,null,null,null,null,null,null,null,null,null,null,null,null,null,null,null,null,null,null,null,null,null,null,null,null,null,null,null,null,null,null,null,null,null,null,null,null,null,null,null,null,null,null,null,null,null,null,null,null,null,null,null,null,null,null,null,null,null,null,null,null,null,null,null,null,null,null,null,null,null,null,null,null,null,null,null,null,null,null,null,null,null,null,null,null,null,null,null,null,null,null,null,null,null,null,null,null,null,null,null,null,null,null,null,null,null,null,null,null,null,null,null,null,null,null,null,null,null,null,null,null,null,null,null,null,null,null,null,null,null,null,null,null,null,null,null,null,null,null,null,null,null,null,null,null,null,null,null,null,null,null,null,null,null,null,null,null,null,null,null,null,null,null,null,null,null,null,null,null,null,null,null,null,null,null,null,null,null,null,null,null,null,null,null,null,null,null,null,null,null,null,null,null,null,null,null,null,null,null,null,null,null,null,null,null,null,null,null,null,null,null,null,null,null,null,null,null,null,null,null,null,null,null,null,null,null,null,null,null,null,null,null,null,null,null,null,null,null,null,null,null,null,null,null,null,null,null,null,null,null,null,null,null,null,null,null,null,null,null,null,null,null,null,null,null,null,null,null,null,null,null,null,null,null,null,null,null,null,null,null,null,null,null,null,null,null,null,null,null,null,null,null,null,null,null,null,null,null,null,null,null,null,null,null,null,null,null,null,null,null,null,null,null,null,null,null,null,null,null,null,null,null,null,null,null,null,null,null,null,null,null,null,null,null,null,null,null,null,null,null,null,null,null,null,null,null,null,null,null,null,null,null,null,null,null,null,null,null,null,null,null,null,null,null,null,null,null,null,null,null,null,null,null,null,null,null,null,null,null,null,null,null,null,null,null,null,null,null,null,null,null,null,null,null,null,null,null,null,null,null,null,null,null,null,null,null,null,null,null,null,null,null,null,null,null,null,null,null,null,null,null,null,null,null,null,null,null,null,null,null,null,null,null,null,null,null,null,null,null,null,null,null,null,null,null,null,null,null,null,null,null,null,null,null,null,null,null,null,null,null,null,null,null,null,null,null,null,null,null,null,null,null,null,null,null,null,null,null,null,null,null,null,null,null,null,null,null,null,null,null,null,null,null,null,null,null,null,null,null,null,null,null,null,null,null,null,null,null,null,null,null,null,null,null,null,null,null,null,null,null,null,null,null,null,null,null,null,null,null,null,null,null,null,null,null,null,null,null,null,null,null,null,null,null,null,null,null,null,null,null,null,null,null,null,null,null,null,null,null,null,null,null,null,null,null,null,null,null,null,null,null,null,null,null,null,null,null,null,null,null,null,null,null,null,null,null,null,null,null,null,null,null,null,null,null,null,null,null,null,null,null,null,null,null,null,null,null,null,null,null,null,null,null,null,null,null,null,null,null,null,null,null,null,null,null,null,null,null,null,null,null,null,null,null,null,null,null,null,null,null,null,null,null,null,null,null,null,null,null,null,null,null,null,null,null,null,null,null,null,null,null,null,null,null,null,null,null,null,null,null,null,null,null,null,null,null,null,null,null,null,null,null,null,null,null,null,null,null,null,null,null,null,null,null,null,null,null,null,null,null,null,null,null,null,null,null,null,null,null,null,null,null,null,null,null,null,null,null,null,null,null,null,null,null,null,null,null,null,null,null,null,null,null,null,null,null,null,null,null,null,null,null,null,null,null,null,null,null,null,null,null,null,null,null,null,null,null,null,null,null,null,null,null,null,null,null,null,null,null,null,null,null,null,null,null,null,null,null,null,null,null,null,null,null,null,null,null,null,null,null,null,null,null,null,null,null,null,null,null,null,null,null,null,null,null,null,null,null,null,null,null,null,null,null,null,null,null,null,null,null,null,null,null,null,null,null,null,null,null,null,null,null,null,null,null,null,null,null,null,null,null,null,null,null,null,null,null,null,null,null,null,null,null,null,null,null,null,null,null,null,null,null,null,null,null,null,null,null,null,null,null,null,null,null,null,null,null,null,null,null,null,null,null,null,null,null,null,null,null,null,null,null,null,null,null,null,null,null,null,null,null,null,null,null,null,null,null,null,null,null,null,null,null,null,null,null,null,null,null,null,null,null,null,null,null,null,null,null,null,null,null,null,null,null,null,null,null,null,null,null,null,null,null,null,null,null,null,null,null,null,null,null,null,null,null,null,null,null,null,null,null,null,null,null,null,null,null,null,null,null,null,null,null,null,null,null,null,null,null,null,null,null,null,null,null,null,null,null,null,null,null,null,null,null,null,null,null,null,null,null,null,null,null,null,null,null,null,null,null,null,null,null,null,null,null,null,null,null,null,null,null,null,null,null,null,null,null,null,null,null,null,null,null,null,null,null,null,null,null,null,null,null,null,null,null,null,null,null,null,null,null,null,null,null,null,null,null,null,null,null,null,null,null,null,null,null,null,null,null,null,null,null,null,null,null,null,null,null,null,null,null,null,null,null,null,null,null,null,null,null,null,null,null,null,null,null,null,null,null,null,null,null,null,null,null,null,null,null,null,null,null,null,null,null,null,null,null,null,null,null,null,null,null,null,null,null,null,null,null,null,null,null,null,null,null,null,null,null,null,null,null,null,null,null,null,null,null,null,null,null,null,null,null,null,null,null,null,null,null,null,null,null,null,null,null,null,null,null,null,null,null,null,null,null,null,null,null,null,null,null,null,null,null,null,null,null,null,null,null,null,null,null,null,null,null,null,null,null,null,null,null,null,null,null,null,null,null,null,null,null,null,null,null,null,null,null,null,null,null,null,null,null,null,null,null,null,null,null,null,null,null,null,null,null,null,null,null,null,null,null,null,null,null,null,null,null,null,null,null,null,null,null,null,null,null,null,null,null,null,null,null,null,null,null,null,null,null,null,null,null,null,null,null,null,null,null,null,null,null,null,null,null,null,null,null,null,null,null,null,null,null,null,null,null,null,null,null,null,null,null,null,null,null,null,null,null,null,null,null,null,null,null,null,null,null,null,null,null,null,null,null,null,null,null,null,null,null,null,null,null,null,null,null,null,null,null,null,null,null,null,null,null,null,null,null,null,null,null,null,null,null,null,null,null,null,null,null,null,null,null,null,null,null,null,null,null,null,null,null,null,null,null,null,null,null,null,null,null,null,null,null,null,null,null,null,null,null,null,null,null,null,null,null,null,null,null,null,null,null,null,null,null,null,null,null,null,null,null,null,null,null,null,null,null,null,null,null,null,null,null,null,null,null,null,null,null,null,null,null,null,null,null,null,null,null,null,null,null,null,null,null,null,null,null,null,null,null,null,null,null,null,null,null,null,null,null,null,null,null,null,null,null,null,null,null,null,null,null,null,null,null,null,null,null,null,null,null,null,null,null,null,null,null,null,null,null,null,null,null,null,null,null,null,null,null,null,null,null,null,null,null,null,null,null,null,null,null,null,null,null,null,null,null,null,null,null,null,null,null,null,null,null,null,null,null,null,null,null,null,null,null,null,null,null,null,null,null,null,null,null,null,null,null,null,null,null,null,null,null,null,null,null,null,null,null,null,null,null,null,null,null,null,null,null,null,null,null,null,null,null,null,null,null,null,null,null,null,null,null,null,null,null,null,null,null,null,null,null,null,null,null,null,null,null,null,null,null,null,null,null,null,null,null,null,null,null,null,null,null,null,null,null,null,null,null,null,null,null,null,null,null,null,null,null,null,null,null,null,null,null,null,null,null,null,null,null,null,null,null,null,null,null,null,null,null,null,null,null,null,null,null,null,null,null,null,null,null,null,null,null,null,null,null,null,null,null,null,null,null,null,null,null,null,null,null,null,null,null,null,null,null,null,null,null,null,null,null,null,null,null,null,null,null,null,null,null,null,null,null,null,null,null,null,null,null,null,null,null,null,null,null,null,null,null,null,null,null,null,null,null,null,null,null,null,null,null,null,null,null,null,null,null,null,null,null,null,null,null,null,null,null,null,null,null,null,null,null,null,null,null,null,null,null,null,null,null,null,null,null,null,null,null,null,null,null,null,null,null,null,null,null,null,null,null,null,null,null,null,null,null,null,null,null,null,null,null,null,null,null,null,null,null,null,null,null,null,null,null,null,null,null,null,null,null,null,null,null,null,null,null,null,null,null,null,null,null,null,null,null,null,null,null,null,null,null,null,null,null,null,null,null,null,null,null,null,null,null,null,null,null,null,null,null,null,null,null,null,null,null,null,null,null,null,null,null,null,null,null,null,null,null,null,null,null,null,null,null,null,null,null,null,null,null,null,null,null,null,null,null,null,null,null,null,null,null,null,null,null,null,null,null,null,null,null,null,null,null,null,null,null,null,null,null,null,null,null,null,null,null,null,null,null,null,null,null,null,null,null,null,null,null,null,null,null,null,null,null,null,null,null,null,null,null,null,null,null,null,null,null,null,null,null,null,null,null,null,null,null,null,null,null,null,null,null,null,null,null,null,null,null,null,null,null,null,null,null,null,null,null,null,null,null,null,null,null,null,null,null,null,null,null,null,null,null,null,null,null,null,null,null,null,null,null,null,null,null,null,null,null,null,null,null,null,null,null,null,null,null,null,null,null,null,null,null,null,null,null,null,null,null,null,null,null,null,null,null,null,null,null,null,null,null,null,null,null,null,null,null,null,null,null,null,null,null,null,null,null,null,null,null,null,null,null,null,null,null,null,null,null,null,null,null,null,null,null,null,null,null,null,null,null,null,null,null,null,null,null,null,null,null,null,null,null,null,null,null,null,null,null,null,null,null,null,null,null,null,null,null,null,null,null,null,null,null,null,null,null,null,null,null,null,null,null,null,null,null,null,null,null,null,null,null,null,null,null,null,null,null,null,null,null,null,null,null,null,null,null,null,null,null,null,null,null,null,null,null,null,null,null,null,null,null,null,null,null,null,null,null,null,null,null,null,null,null,null,null,null,null,null,null,null,null,null,null,null,null,null,null,null,null,null,null,null,null,null,null,null,null,null,null,null,null,null,null,null,null,null,null,null,null,null,null,null,null,null,null,null,null,null,null,null,null,null,null,null,null,null,null,null,null,null,null,null,null,null,null,null,null,null,null,null,null,null,null,null,null,null,null,null,null,null,null,null,null,null,null,null,null,null,null,null,null,null,null,null,null,null,null,null,null,null,null,null,null,null,null,null,null,null,null,null,null,null,null,null,null,null,null,null,null,null,null,null,null,null,null,null,null,null,null,null,null,null,null,null,null,null,null,null,null,null,null,null,null,null,null,null,null,null,null,null,null,null,null,null,null,null,null,null,null,null,null,null,null,null,null,null,null,null,null,null,null,null,null,null,null,null,null,null,null,null,null,null,null,null,null,null,null,null,null,null,null,null,null,null,null,null,null,null,null,null,null,null,null,null,null,null,null,null,null,null,null,null,null,null,null,null,null,null,null,null,null,null,null,null,null,null,null,null,null,null,null,null,null,null,null,null,null,null,null,null,null,null,null,null,null,null,null,null,null,null,null,null,null,null,null,null,null,null,null,null,null,null,null,null,null,null,null,null,null,null,null,null,null,null,null,null,null,null,null,null,null,null,null,null,null,null,null,null,null,null,null,null,null,null,null,null,null,null,null,null,null,null,null,null,null,null,null,null,null,null,null,null,null,null,null,null,null,null,null,null,null,null,null,null,null,null,null,null,null,null,null,null,null,null,null,null,null,null,null,null,null,null,null,null,null,null,null,null,null,null,null,null,null,null,null,null,null,null,null,null,null,null,null,null,null,null,null,null,null,null,null,null,null,null,null,null,null,null,null,null,null,null,null,null,null,null,null,null,null,null,null,null,null,null,null,null,null,null,null,null,null,null,null,null,null,null,null,null,null,null,null,null,null,null,null,null,null,null,null,null,null,null,null,null,null,null,null,null,null,null,null,null,null,null,null,null,null,null,null,null,null,null,null,null,null,null,null,null,null,null,null,null,null,null,null,null,null,null,null,null,null,null,null,null,null,null,null,null,null,null,null,null,null,null,null,null,null,null,null,null,null,null,null,null,null,null,null,null,null,null,null,null,null,null,null,null,null,null,null,null,null,null,null,null,null,null,null,null,null,null,null,null,null,null,null,null,null,null,null,null,null,null,null,null,null,null,null,null,null,null,null,null,null,null,null,null,null,null,null,null,null,null,null,null,null,null,null,null,null,null,null,null,null,null,null,null,null,null,null,null,null,null,null,null,null,null,null,null,null,null,null,null,null,null,null,null,null,null,null,null,null,null,null,null,null,null,null,null,null,null,null,null,null,null,null,null,null,null,null,null,null,null,null,null,null,null,null,null,null,null,null,null,null,null,null,null,null,null,null,null,null,null,null,null,null,null,null,null,null,null,null,null,null,null,null,null,null,null,null,null,null,null,null,null,null,null,null,null,null,null,null,null,null,null,null,null,null,null,null,null,null,null,null,null,null,null,null,null,null,null,null,null,null,null,null,null,null,null,null,null,null,null,null,null,null,null,null,null,null,null,null,null,null,null,null,null,null,null,null,null,null,null,null,null,null,null,null,null,null,null,null,null,null,null,null,null,null,null,null,null,null,null,null,null,null,null,null,null,null,null,null,null,null,null,null,null,null,null,null,null,null,null,null,null,null,null,null,null,null,null,null,null,null,null,null,null,null,null,null,null,null,null,null,null,null,null,null,null,null,null,null,null,null,null,null,null,null,null,null,null,null,null,null,null,null,null,null,null,null,null,null,null,null,null,null,null,null,null,null,null,null,null,null,null,null,null,null,null,null,null,null,null,null,null,null,null,null,null,null,null,null,null,null,null,null,null,null,null,null,null,null,null,null,null,null,null,null,null,null,null,null,null,null,null,null,null,null,null,null,null,null,null,null,null,null,null,null,null,null,null,null,null,null,null,null,null,null,null,null,null,null,null,null,null,null,null,null,null,null,null,null,null,null,null,null,null,null,null,null,null,null,null,null,null,null,null,null,null,null,null,null,null,null,null,null,null,null,null,null,null,null,null,null,null,null,null,null,null,null,null,null,null,null,null,null,null,null,null,null,null,null,null,null,null,null,null,null,null,null,null,null,null,null,null,null,null,null,null,null,null,null,null,null,null,null,null,null,null,null,null,null,null,null,null,null,null,null,null,null,null,null,null,null,null,null,null,null,null,null,null,null,null,null,null,null,null,null,null,null,null,null,null,null,null,null,null,null,null,null,null,null,null,null,null,null,null,null,null,null,null,null,null,null,null,null,null,null,null,null,null,null,null,null,null,null,null,null,null,null,null,null,null,null,null,null,null,null,null,null,null,null,null,null,null,null,null,null,null,null,null,null,null,null,null,null,null,null,null,null,null,null,null,null,null,null,null,null,null,null,null,null,null,null,null,null,null,null,null,null,null,null,null,null,null,null,null,null,null,null,null,null,null,null,null,null,null,null,null,null,null,null,null,null,null,null,null,null,null,null,null,null,null,null,null,null,null,null,null,null,null,null,null,null,null,null,null,null,null,null,null,null,null,null,null,null,null,null,null,null,null,null,null,null,null,null,null,null,null,null,null,null,null,null,null,null,null,null,null,null,null,null,null,null,null,null,null,null,null,null,null,null,null,null,null,null,null,null,null,null,null,null,null,null,null,null,null,null,null,null,null,null,null,null,null,null,null,null,null,null,null,null,null,null,null,null,null,null,null,null,null,null,null,null,null,null,null,null,null,null,null,null,null,null,null,null,null,null,null,null,null,null,null,null,null,null,null,null,null,null,null,null,null,null,null,null,null,null,null,null,null,null,null,null,null,null,null,null,null,null,null,null,null,null,null,null,null,null,null,null,null,null,null,null,null,null,null,null,null,null,null,null,null,null,null,null,null,null,null,null,null,null,null,null,null,null,null,null,null,null,null,null,null,null,null,null,null,null,null,null,null,null,null,null,null,null,null,null,null,null,null,null,null,null,null,null,null,null,null,null,null,null,null,null,null,null,null,null,null,null,null,null,null,null,null,null,null,null,null,null,null,null,null,null,null,null,null,null,null,null,null,null,null,null,null,null,null,null,null,null,null,null,null,null,null,null,null,null,null,null,null,null,null,null,null,null,null,null,null,null,null,null,null,null,null,null,null,null,null,null,null,null,null,null,null,null,null,null,null,null,null,null,null,null,null,null,null,null,null,null,null,null,null,null,null,null,null,null,null,null,null,null,null,null,null,null,null,null,null,null,null,null,null,null,null,null,null,null,null,null,null,null,null,null,null,null,null,null,null,null,null,null,null,null,null,null,null,null,null,null,null,null,null,null,null,null,null,null,null,null,null,null,null,null,null,null,null,null,null,null,null,null,null,null,null,null,null,null,null,null,null,null,null,null,null,null,null,null,null,null,null,null,null,null,null,null,null,null,null,null,null,null,null,null,null,null,null,null,null,null,null,null,null,null,null,null,null,null,null,null,null,null,null,null,null,null,null,null,null,null,null,null,null,null,null,null,null,null,null,null,null,null,null,null,null,null,null,null,null,null,null,null,null,null,null,null,null,null,null,null,null,null,null,null,null,null,null,null,null,null,null,null,null,null,null,null,null,null,null,null,null,null,null,null,null,null,null,null,null,null,null,null,null,null,null,null,null,null,null,null,null,null,null,null,null,null,null,null,null,null,null,null,null,null,null,null,null,null,null,null,null,null,null,null,null,null,null,null,null,null,null,null,null,null,null,null,null,null,null,null,null,null,null,null,null,null,null,null,null,null,null,null,null,null,null,null,null,null,null,null,null,null,null,null,null,null,null,null,null,null,null,null,null,null,null,null,null,null,null,null,null,null,null,null,null,null,null,null,null,null,null,null,null,null,null,null,null,null,null,null,null,null,null,null,null,null,null,null,null,null,null,null,null,null,null,null,null,null,null,null,null,null,null,null,null,null,null,null,null,null,null,null,null,null,null,null,null,null,null,null,null,null,null,null,null,null,null,null,null,null,null,null,null,null,null,null,null,null,null,null,null,null,null,null,null,null,null,null,null,null,null,null,null,null,null,null,null,null,null,null,null,null,null,null,null,null,null,null,null,null,null,null,null,null,null,null,null,null,null,null,null,null,null,null,null,null,null,null,null,null,null,null,null,null,null,null,null,null,null,null,null,null,null,null,null,null,null,null,null,null,null,null,null,null,null,null,null,null,null,null,null,null,null,null,null,null,null,null,null,null,null,null,null,null,null,null,null,null,null,null,null,null,null,null,null,null,null,null,null,null,null,null,null,null,null,null,null,null,null,null,null,null,null,null,null,null,null,null,null,null,null,null,null,null,null,null,null,null,null,null,null,null,null,null,null,null,null,null,null,null,null,null,null,null,null,null,null,null,null,null,null,null,null,null,null,null,null,null,null,null,null,null,null,null,null,null,null,null,null,null,null,null,null,null,null,null,null,null,null,null,null,null,null,null,null,null,null,null,null,null,null,null,null,null,null,null,null,null,null,null,null,null,null,null,null,null,null,null,null,null,null,null,null,null,null,null,null,null,null,null,null,null,null,null,null,null,null,null,null,null,null,null,null,null,null,null,null,null,null,null,null,null,null,null,null,null,null,null,null,null,null,null,null,null,null,null,null,null,null,null,null,null,null,null,null,null,null,null,null,null,null,null,null,null,null,null,null,null,null,null,null,null,null,null,null,null,null,null,null,null,null,null,null,null,null,null,null,null,null,null,null,null,null,null,null,null,null,null,null,null,null,null,null,null,null,null,null,null,null,null,null,null,null,null,null,null,null,null,null,null,null,null,null,null,null,null,null,null,null,null,null,null,null,null,null,null,null,null,null,null,null,null,null,null,null,null,null,null,null,null,null,null,null,null,null,null,null,null,null,null,null,null,null,null,null,null,null,null,null,null,null,null,null,null,null,null,null,null,null,null,null,null,null,null,null,null,null,null,null,null,null,null,null,null,null,null,null,null,null,null,null,null,null,null,null,null,null,null,null,null,null,null,null,null,null,null,null,null,null,null,null,null,null,null,null,null,null,null,null,null,null,null,null,null,null,null,null,null,null,null,null,null,null,null,null,null,null,null,null,null,null,null,null,null,null,null,null,null,null,null,null,null,null,null,null,null,null,null,null,null,null,null,null,null,null,null,null,null,null,null,null,null,null,null,null,null,null,null,null,null,null,null,null,null,null,null,null,null,null,null,null,null,null,null,null,null,null,null,null,null,null,null,null,null,null,null,null,null,null,null,null,null,null,null,null,null,null,null,null,null,null,null,null,null,null,null,null,null,null,null,null,null,null,null,null,null,null,null,null,null,null,null,null,null,null,null,null,null,null,null,null,null,null,null,null,null,null,null,null,null,null,null,null,null,null,null,null,null,null,null,null,null,null,null,null,null,null,null,null,null,null,null,null,null,null,null,null,null,null,null,null,null,null,null,null,null,null,null,null,null,null,null,null,null,null,null,null,null,null,null,null,null,null,null,null,null,null,null,null,null,null,null,null,null,null,null,null,null,null,null,null,null,null,null,null,null,null,null,null,null,null,null,null,null,null,null,null,null,null,null,null,null,null,null,null,null,null,null,null,null,null,null,null,null,null,null,null,null,null,null,null,null,null,null,null,null,null,null,null,null,null,null,null,null,null,null,null,null,null,null,null,null,null,null,null,null,null,null,null,null,null,null,null,null,null,null,null,null,null,null,null,null,null,null,null,null,null,null,null,null,null,null,null,null,null,null,null,null,null,null,null,null,null,null,null,null,null,null,null,null,null,null,null,null,null,null,null,null,null,null,null,null,null,null,null,null,null,null,null,null,null,null,null,null,null,null,null,null,null,null,null,null,null,null,null,null,null,null,null,null,null,null,null,null,null,null,null,null,null,null,null,null,null,null,null,null,null,null,null,null,null,null,null,null,null,null,null,null,null,null,null,null,null,null,null,null,null,null,null,null,null,null,null,null,null,null,null,null,null,null,null,null,null,null,null,null,null,null,null,null,null,null,null,null,null,null,null,null,null,null,null,null,null,null,null,null,null,null,null,null,null,null,null,null,null,null,null,null,null,null,null,null,null,null,null,null,null,null,null,null,null,null,null,null,null,null,null,null,null,null,null,null,null,null,null,null,null,null,null,null,null,null,null,null,null,null,null,null,null,null,null,null,null,null,null,null,null,null,null,null,null,null,null,null,null,null,null,null,null,null,null,null,null,null,null,null,null,null,null,null,null,null,null,null,null,null,null,null,null,null,null,null,null,null,null,null,null,null,null,null,null,null,null,null,null,null,null,null,null,null,null,null,null,null,null,null,null,null,null,null,null,null,null,null,null,null,null,null,null,null,null,null,null,null,null,null,null,null,null,null,null,null,null,null,null,null,null,null,null,null,null,null,null,null,null,null,null,null,null,null,null,null,null,null,null,null,null,null,null,null,null,null,null,null,null,null,null,null,null,null,null,null,null,null,null,null,null,null,null,null,null,null,null,null,null,null,null,null,null,null,null,null,null,null,null,null,null,null,null,null,null,null,null,null,null,null,null,null,null,null,null,null,null,null,null,null,null,null,null,null,null,null,null,null,null,null,null,null,null,null,null,null,null,null,null,null,null,null,null,null,null,null,null,null,null,null,null,null,null,null,null,null,null,null,null,null,null,null,null,null,null,null,null,null,null,null,null,null,null,null,null,null,null,null,null,null,null,null,null,null,null,null,null,null,null,null,null,null,null,null,null,null,null,null,null,null,null,null,null,null,null,null,null,null,null,null,null,null,null,null,null,null,null,null,null,null,null,null,null,null,null,null,null,null,null,null,null,null,null,null,null,null,null,null,null,null,null,null,null,null,null,null,null,null,null,null,null,null,null,null,null,null,null,null,null,null,null,null,null,null,null,null,null,null,null,null,null,null,null,null,null,null,null,null,null,null,null,null,null,null,null,null,null,null,null,null,null,null,null,null,null,null,null,null,null,null,null,null,null,null,null,null,null,null,null,null,null,null,null,null,null,null,null,null,null,null,null,null,null,null,null,null,null,null,null,null,null,null,null,null,null,null,null,null,null,null,null,null,null,null,null,null,null,null,null,null,null,null,null,null,null,null,null,null,null,null,null,null,null,null,null,null,null,null,null,null,null,null,null,null,null,null,null,null,null,null,null,null,null,null,null,null,null,null,null,null,null,null,null,null,null,null,null,null,null,null,null,null,null,null,null,null,null,null,null,null,null,null,null,null,null,null,null,null,null,null,null,null,null,null,null,null,null,null,null,null,null,null,null,null,null,null,null,null,null,null,null,null,null,null,null,null,null,null,null,null,null,null,null,null,null,null,null,null,null,null,null,null,null,null,null,null,null,null,null,null,null,null,null,null,null,null,null,null,null,null,null,null,null,null,null,null,null,null,null,null,null,null,null,null,null,null,null,null,null,null,null,null,null,null,null,null,null,null,null,null,null,null,null,null,null,null,null,null,null,null,null,null,null,null,null,null,null,null,null,null,null,null,null,null,null,null,null,null,null,null,null,null,null,null,null,null,null,null,null,null,null,null,null,null,null,null,null,null,null,null,null,null,null,null,null,null,null,null,null,null,null,null,null,null,null,null,null,null,null,null,null,null,null,null,null,null,null,null,null,null,null,null,null,null,null,null,null,null,null,null,null,null,null,null,null,null,null,null,null,null,null,null,null,null,null,null,null,null,null,null,null,null,null,null,null,null,null,null,null,null,null,null,null,null,null,null,null,null,null,null,null,null,null,null,null,null,null,null,null,null,null,null,null,null,null,null,null,null,null,null,null,null,null,null,null,null,null,null,null,null,null,null,null,null,null,null,null,null,null,null,null,null,null,null,null,null,null,null,null,null,null,null,null,null,null,null,null,null,null,null,null,null,null,null,null,null,null,null,null,null,null,null,null,null,null,null,null,null,null,null,null,null,null,null,null,null,null,null,null,null,null,null,null,null,null,null,null,null,null,null,null,null,null,null,null,null,null,null,null,null,null,null,null,null,null,null,null,null,null,null,null,null,null,null,null,null,null,null,null,null,null,null,null,null,null,null,null,null,null,null,null,null,null,null,null,null,null,null,null,null,null,null,null,null,null,null,null,null,null,null,null,null,null,null,null,null,null,null,null,null,null,null,null,null,null,null,null,null,null,null,null,null,null,null,null,null,null,null,null,null,null,null,null,null,null,null,null,null,null,null,null,null,null,null,null,null,null,null,null,null,null,null,null,null,null,null,null,null,null,null,null,null,null,null,null,null,null,null,null,null,null,null,null,null,null,null,null,null,null,null,null,null,null,null,null,null,null,null,null,null,null,null,null,null,null,null,null,null,null,null,null,null,null,null,null,null,null,null,null,null,null,null,null,null,null,null,null,null,null,null,null,null,null,null,null,null,null,null,null,null,null,null,null,null,null,null,null,null,null,null,null,null,null,null,null,null,null,null,null,null,null,null,null,null,null,null,null,null,null,null,null,null,null,null,null,null,null,null,null,null,null,null,null,null,null,null,null,null,null,null,null,null,null,null,null,null,null,null,null,null,null,null,null,null,null,null,null,null,null,null,null,null,null,null,null,null,null,null,null,null,null,null,null,null,null,null,null,null,null,null,null,null,null,null,null,null,null,null,null,null,null,null,null,null,null,null,null,null,null,null,null,null,null,null,null,null,null,null,null,null,null,null,null,null,null,null,null,null,null,null,null,null,null,null,null,null,null,null,null,null,null,null,null,null,null,null,null,null,null,null,null,null,null,null,null,null,null,null,null,null,null,null,null,null,null,null,null,null,null,null,null,null,null,null,null,null,null,null,null,null,null,null,null,null,null,null,null,null,null,null,null,null,null,null,null,null,null,null,null,null,null,null,null,null,null,null,null,null,null,null,null,null,null,null,null,null,null,null,null,null,null,null,null,null,null,null,null,null,null,null,null,null,null,null,null,null,null,null,null,null,null,null,null,null,null,null,null,null,null,null,null,null,null,null,null,null,null,null,null,null,null,null,null,null,null,null,null,null,null,null,null,null,null,null,null,null,null,null,null,null,null,null,null,null,null,null,null,null,null,null,null,null,null,null,null,null,null,null,null,null,null,null,null,null,null,null,null,null,null,null,null,null,null,null,null,null,null,null,null,null,null,null,null,null,null,null,null,null,null,null,null,null,null,null,null,null,null,null,null,null,null,null,null,null,null,null,null,null,null,null,null,null,null,null,null,null,null,null,null,null,null,null,null,null,null,null,null,null,null,null,null,null,null,null,null,null,null,null,null,null,null,null,null,null,null,null,null,null,null,null,null,null,null,null,null,null,null,null,null,null,null,null,null,null,null,null,null,null,null,null,null,null,null,null,null,null,null,null,null,null,null,null,null,null,null,null,null,null,null,null,null,null,null,null,null,null,null,null,null,null,null,null,null,null,null,null,null,null,null,null,null,null,null,null,null,null,null,null,null,null,null,null,null,null,null,null,null,null,null,null,null,null,null,null,null,null,null,null,null,null,null,null,null,null,null,null,null,null,null,null,null,null,null,null,null,null,null,null,null,null,null,null,null,null,null,null,null,null,null,null,null,null,null,null,null,null,null,null,null,null,null,null,null,null,null,null,null,null,null,null,null,null,null,null,null,null,null,null,null,null,null,null,null,null,null,null,null,null,null,null,null,null,null,null,null,null,null,null,null,null,null,null,null,null,null,null,null,null,null,null,null,null,null,null,null,null,null,null,null,null,null,null,null,null,null,null,null,null,null,null,null,null,null,null,null,null,null,null,null,null,null,null,null,null,null,null,null,null,null,null,null,null,null,null,null,null,null,null,null,null,null,null,null,null,null,null,null,null,null,null,null,null,null,null,null,null,null,null,null,null,null,null,null,null,null,null,null,null,null,null,null,null,null,null,null,null,null,null,null,null,null,null,null,null,null,null,null,null,null,null,null,null,null,null,null,null,null,null,null,null,null,null,null,null,null,null,null,null,null,null,null,null,null,null,null,null,null,null,null,null,null,null,null,null,null,null,null,null,null,null,null,null,null,null,null,null,null,null,null,null,null,null,null,null,null,null,null,null,null,null,null,null,null,null,null,null,null,null,null,null,null,null,null,null,null,null,null,null,null,null,null,null,null,null,null,null,null,null,null,null,null,null,null,null,null,null,null,null,null,null,null,null,null,null,null,null,null,null,null,null,null,null,null,null,null,null,null,null,null,null,null,null,null,null,null,null,null,null,null,null,null,null,null,null,null,null,null,null,null,null,null,null,null,null,null,null,null,null,null,null,null,null,null,null,null,null,null,null,null,null,null,null,null,null,null,null,null,null,null,null,null,null,null,null,null,null,null,null,null,null,null,null,null,null,null,null,null,null,null,null,null,null,null,null,null,null,null,null,null,null,null,null,null,null,null,null,null,null,null,null,null,null,null,null,null,null,null,null,null,null,null,null,null,null,null,null,null,null,null,null,null,null,null,null,null,null,null,null,null,null,null,null,null,null,null,null,null,null,null,null,null,null,null,null,null,null,null,null,null,null,null,null,null,null,null,null,null,null,null,null,null,null,null,null,null,null,null,null,null,null,null,null,null,null,null,null,null,null,null,null,null,null,null,null,null,null,null,null,null,null,null,null,null,null,null,null,null,null,null,null,null,null,null,null,null,null,null,null,null,null,null,null,null,null,null,null,null,null,null,null,null,null,null,null,null,null,null,null,null,null,null,null,null,null,null,null,null,null,null,null,null,null,null,null,null,null,null,null,null,null,null,null,null,null,null,null,null,null,null,null,null,null,null,null,null,null,null,null,null,null,null,null,null,null,null,null,null,null,null,null,null,null,null,null,null,null,null,null,null,null,null,null,null,null,null,null,null,null,null,null,null,null,null,null,null,null,null,null,null,null,null,null,null,null,null,null,null,null,null,null,null,null,null,null,null,null,null,null,null,null,null,null,null,null,null,null,null,null,null,null,null,null,null,null,null,null,null,null,null,null,null,null,null,null,null,null,null,null,null,null,null,null,null,null,null,null,null,null,null,null,null,null,null,null,null,null,null,null,null,null,null,null,null,null,null,null,null,null,null,null,null,null,null,null,null,null,null,null,null,null,null,null,null,null,null,null,null,null,null,null,null,null,null,null,null,null,null,null,null,null,null,null,null,null,null,null,null,null,null,null,null,null,null,null,null,null,null,null,null,null,null,null,null,null,null,null,null,null,null,null,null,null,null,null,null,null,null,null,null,null,null,null,null,null,null,null,null,null,null,null,null,null,null,null,null,null,null,null,null,null,null,null,null,null,null,null,null,null,null,null,null,null,null,null,null,null,null,null,null,null,null,null,null,null,null,null,null,null,null,null,null,null,null,null,null,null,null,null,null,null,null,null,null,null,null,null,null,null,null,null,null,null,null,null,null,null,null,null,null,null,null,null,null,null,null,null,null,null,null,null,null,null,null,null,null,null,null,null,null,null,null,null,null,null,null,null,null,null,null,null,null,null,null,null,null,null,null,null,null,null,null,null,null,null,null,null,null,null,null,null,null,null,null,null,null,null,null,null,null,null,null,null,null,null,null,null,null,null,null,null,null,null,null,null,null,null,null,null,null,null,null,null,null,null,null,null,null,null,null,null,null,null,null,null,null,null,null,null,null,null,null,null,null,null,null,null,null,null,null,null,null,null,null,null,null,null,null,null,null,null,null,null,null,null,null,null,null,null,null,null,null,null,null,null,null,null,null,null,null,null,null,null,null,null,null,null,null,null,null,null,null,null,null,null,null,null,null,null,null,null,null,null,null,null,null,null,null,null,null,null,null,null,null,null,null,null,null,null,null,null,null,null,null,null,null,null,null,null,null,null,null,null,null,null,null,null,null,null,null,null,null,null,null,null,null,null,null,null,null,null,null,null,null,null,null,null,null,null,null,null,null,null,null,null,null,null,null,null,null,null,null,null,null,null,null,null,null,null,null,null,null,null,null,null,null,null,null,null,null,null,null,null,null,null,null,null,null,null,null,null,null,null,null,null,null,null,null,null,null,null,null,null,null,null,null,null,null,null,null,null,null,null,null,null,null,null,null,null,null,null,null,null,null,null,null,null,null,null,null,null,null,null,null,null,null,null,null,null,null,null,null,null,null,null,null,null,null,null,null,null,null,null,null,null,null,null,null,null,null,null,null,null,null,null,null,null,null,null,null,null,null,null,null,null,null,null,null,null,null,null,null,null,null,null,null,null,null,null,null,null,null,null,null,null,null,null,null,null,null,null,null,null,null,null,null,null,null,null,null,null,null,null,null,null,null,null,null,null,null,null,null,null,null,null,null,null,null,null,null,null,null,null,null,null,null,null,null,null,null,null,null,null,null,null,null,null,null,null,null,null,null,null,null,null,null,null,null,null,null,null,null,null,null,null,null,null,null,null,null,null,null,null,null,null,null,null,null,null,null,null,null,null,null,null,null,null,null,null,null,null,null,null,null,null,null,null,null,null,null,null,null,null,null,null,null,null,null,null,null,null,null,null,null,null,null,null,null,null,null,null,null,null,null,null,null,null,null,null,null,null,null,null,null,null,null,null,null,null,null,null,null,null,null,null,null,null,null,null,null,null,null,null,null,null,null,null,null,null,null,null,null,null,null,null,null,null,null,null,null,null,null,null,null,null,null,null,null,null,null,null,null,null,null,null,null,null,null,null,null,null,null,null,null,null,null,null,null,null,null,null,null,null,null,null,null,null,null,null,null,null,null,null,null,null,null,null,null,null,null,null,null,{"$f":"INDEX(Tabla_Tipo_Via[Factor],MATCH(Tipo_Mun_PI,Tabla_Tipo_Via[Tipo via],0))","v":1.6938249060837085}]
[null,"3. REGULADOR",{"$f":"IF(Dda_Pico_Seg>Limite_Inv_Onda_Seno,0,INDEX(Tabla_UCRG[VI_CR],MATCH(INDEX(Tabla_UCPA[Wp],MATCH(UCPA_ID,Tabla_UCPA[Codigo],0))*UCPA_NUM/INDEX(Tabla_Voltaje_SISFV[Voltaje],MATCH(NdS_Whd,Tabla_Voltaje_SISFV[NdS_Whd_Min],1)),Tabla_UCRG[A_Min]),1))","v":855857.4980509188},{"$f":"IF(Dda_Pico_Seg>Limite_Inv_Onda_Seno,\"NA\",INDEX(Tabla_UCRG[Codigo],MATCH(INDEX(Tabla_UCPA[Wp],MATCH(UCPA_ID,Tabla_UCPA[Codigo],0))*UCPA_NUM/INDEX(Tabla_Voltaje_SISFV[Voltaje],MATCH(NdS_Whd,Tabla_Voltaje_SISFV[NdS_Whd_Min],1)),Tabla_UCRG[A_Min]),1))","v":"UCRG05"},{"$f":"IF(Tabla_Costos_Transporte[[#This Row],[Codigo]]=\"NA\",0,1)","v":1},{"$f":"IFERROR(INDEX(Tabla_UCRG[Kg],MATCH(Tabla_Costos_Transporte[[#This Row],[Codigo]],Tabla_UCRG[Codigo],0)),0)*Tabla_Costos_Transporte[[#This Row],[Unidades]]","v":1.7754776968730437},781.67210293558514,{"$f":"IF(OR(Km_CR_CL=0,Tabla_Costos_Transporte[[#This Row],[Codigo]]=\"NA\"),0,IF(Mod_CR_CL=\"T\",Var_T_K*POWER(Km_CR_CL,Var_T_Alfa)*POWER(Tabla_Costos_Transporte[[#This Row],[Peso (Kg)]],Var_T_Beta)*INDEX(Tabla_Tipo_Via[Factor],MATCH(Tipo_CR_CL,Tabla_Tipo_Via[Tipo via],0))*(1-Descuento_transporte),IF(Mod_CR_CL=\"A\",Var_A_K*POWER(Km_CR_CL,Var_A_Alfa)*POWER(Tabla_Costos_Transporte[[#This Row],[Peso (Kg)]],Var_A_Beta)*POWER(Tabla_Costos_Transporte[[#This Row],[Densidad (Kg/M3)]],Var_A_Gama)*(1-Descuento_transporte),IF(Mod_CR_CL=\"F\",Var_F_K*POWER(Km_CR_CL,Var_F_Alfa),IF(Mod_CR_CL=\"M\",Var_M_K*POWER(Km_CR_CL,Var_M_Alfa),0)))))","v":24.43128399141742},{"$f":"IF(OR(Km_CL_CD=0,Tabla_Costos_Transporte[[#This Row],[Codigo]]=\"NA\"),0,IF(Mod_CL_CD=\"T\",Var_T_K*POWER(Km_CL_CD,Var_T_Alfa)*POWER(Tabla_Costos_Transporte[[#This Row],[Peso (Kg)]],Var_T_Beta)*INDEX(Tabla_Tipo_Via[Factor],MATCH(Tipo_CL_CD,Tabla_Tipo_Via[Tipo via],0))*(1-Descuento_transporte),IF(Mod_CL_CD=\"A\",Var_A_K*POWER(Km_CL_CD,Var_A_Alfa)*POWER(Tabla_Costos_Transporte[[#This Row],[Peso (Kg)]],Var_A_Beta)*POWER(Tabla_Costos_Transporte[[#This Row],[Densidad (Kg/M3)]],Var_A_Gama)*(1-Descuento_transporte),IF(Mod_CL_CD=\"F\",Var_F_K*POWER(Km_CL_CD,Var_F_Alfa),IF(Mod_CL_CD=\"M\",Var_M_K*POWER(Km_CL_CD,Var_M_Alfa),0)))))","v":0},{"$f":"IF(OR(Km_CD_Mun_T1=0,Tabla_Costos_Transporte[[#This Row],[Codigo]]=\"NA\"),0,IF(Mod_CD_Mun_T1=\"T\",Var_T_K*POWER(Km_CD_Mun_T1,Var_T_Alfa)*POWER(Tabla_Costos_Transporte[[#This Row],[Peso (Kg)]],Var_T_Beta)*INDEX(Tabla_Tipo_Via[Factor],MATCH(Tipo_CD_Mun_T1,Tabla_Tipo_Via[Tipo via],0))*(1-Descuento_transporte),IF(Mod_CD_Mun_T1=\"A\",Var_A_K*POWER(Km_CD_Mun_T1,Var_A_Alfa)*POWER(Tabla_Costos_Transporte[[#This Row],[Peso (Kg)]],Var_A_Beta)*POWER(Tabla_Costos_Transporte[[#This Row],[Densidad (Kg/M3)]],Var_A_Gama)*(1-Descuento_transporte),IF(Mod_CD_Mun_T1=\"F\",Var_F_K*POWER(Km_CD_Mun_T1,Var_F_Alfa),IF(Mod_CD_Mun_T1=\"M\",Var_M_K*POWER(Km_CD_Mun_T1,Var_M_Alfa),0)))))","v":121.05549839249991},{"$f":"IF(OR(Km_CD_Mun_T2=0,Tabla_Costos_Transporte[[#This Row],[Codigo]]=\"NA\"),0,IF(Mod_CD_Mun_T2=\"T\",Var_T_K*POWER(Km_CD_Mun_T2,Var_T_Alfa)*POWER(Tabla_Costos_Transporte[[#This Row],[Peso (Kg)]],Var_T_Beta)*INDEX(Tabla_Tipo_Via[Factor],MATCH(Tipo_CD_Mun_T2,Tabla_Tipo_Via[Tipo via],0))*(1-Descuento_transporte),IF(Mod_CD_Mun_T2=\"A\",Var_A_K*POWER(Km_CD_Mun_T2,Var_A_Alfa)*POWER(Tabla_Costos_Transporte[[#This Row],[Peso (Kg)]],Var_A_Beta)*POWER(Tabla_Costos_Transporte[[#This Row],[Densidad (Kg/M3)]],Var_A_Gama)*(1-Descuento_transporte),IF(Mod_CD_Mun_T2=\"F\",Var_F_K*POWER(Km_CD_Mun_T2,Var_F_Alfa),IF(Mod_CD_Mun_T2=\"M\",Var_M_K*POWER(Km_CD_Mun_T2,Var_M_Alfa),0)))))","v":0},{"$f":"IF(OR(Km_Mun_PI=0,Tabla_Costos_Transporte[[#This Row],[Codigo]]=\"NA\"),0,IF(Mod_Mun_PI=\"T\",Var_T_K*POWER(Km_Mun_PI,Var_T_Alfa)*POWER(Tabla_Costos_Transporte[[#This Row],[Peso (Kg)]],Var_T_Beta)*INDEX(Tabla_Tipo_Via[Factor],MATCH(Tipo_Mun_PI,Tabla_Tipo_Via[Tipo via],0))*(1-Descuento_transporte),IF(Mod_Mun_PI=\"A\",Var_A_K*POWER(Km_Mun_PI,Var_A_Alfa)*POWER(Tabla_Costos_Transporte[[#This Row],[Peso (Kg)]],Var_A_Beta)*POWER(Tabla_Costos_Transporte[[#This Row],[Densidad (Kg/M3)]],Var_A_Gama)*(1-Descuento_transporte),IF(Mod_Mun_PI=\"F\",Var_F_K*POWER(Km_Mun_PI,Var_F_Alfa),IF(Mod_Mun_PI=\"M\",Var_M_K*POWER(Km_Mun_PI,Var_M_Alfa),0)))))","v":250.98957962213166},{"$f":"SUMPRODUCT(TRANSPOSE(Tabla_Ruta_CR_PI[Distancia (km)]),Tabla_Costos_Transporte[[#This Row],[T de CR a CL]:[T de M a PI]])*Tabla_Costos_Transporte[[#This Row],[Peso (Kg)]]","v":86480.367364634905},{"$f":"Tabla_Costos_Transporte[[#This Row],[VI_UC_CR]]+Tabla_Costos_Transporte[[#This Row],[Costo T]]","v":942337.86541555368},{"$f":"Tabla_Costos_Transporte[[#This Row],[VI+CT]]/SUM(Tabla_Costos_Transporte[VI+CT])","v":8.1917760757615282E-2}]
[null,"4. BANCO DE BATERIAS",{"$f":"IF(Almacenamiento=\"NO\",0,INDEX(Tabla_UCBB[VI_CR],MATCH(NdS_Whd,Tabla_UCBB[Whd_Min])))","v":2363354.8908650009},{"$f":"IF(Almacenamiento=\"NO\",\"NA\",INDEX(Tabla_UCBB[Codigo],MATCH(NdS_Whd,Tabla_UCBB[Whd_Min])))","v":"UCBB08"},{"$f":"IF(Tabla_Costos_Transporte[[#This Row],[Codigo]]=\"NA\",0,1)","v":1},{"$f":"IFERROR(INDEX(Tabla_UCBB[Kg],MATCH(Tabla_Costos_Transporte[[#This Row],[Codigo]],Tabla_UCBB[Codigo],0)),0)*Tabla_Costos_Transporte[[#This Row],[Unidades]]","v":120.4},1424.6003550816383,{"$f":"IF(OR(Km_CR_CL=0,Tabla_Costos_Transporte[[#This Row],[Codigo]]=\"NA\"),0,IF(Mod_CR_CL=\"T\",Var_T_K*POWER(Km_CR_CL,Var_T_Alfa)*POWER(Tabla_Costos_Transporte[[#This Row],[Peso (Kg)]],Var_T_Beta)*INDEX(Tabla_Tipo_Via[Factor],MATCH(Tipo_CR_CL,Tabla_Tipo_Via[Tipo via],0))*(1-Descuento_transporte),IF(Mod_CR_CL=\"A\",Var_A_K*POWER(Km_CR_CL,Var_A_Alfa)*POWER(Tabla_Costos_Transporte[[#This Row],[Peso (Kg)]],Var_A_Beta)*POWER(Tabla_Costos_Transporte[[#This Row],[Densidad (Kg/M3)]],Var_A_Gama)*(1-Descuento_transporte),IF(Mod_CR_CL=\"F\",Var_F_K*POWER(Km_CR_CL,Var_F_Alfa),IF(Mod_CR_CL=\"M\",Var_M_K*POWER(Km_CR_CL,Var_M_Alfa),0)))))","v":1.1513856336016326},{"$f":"IF(OR(Km_CL_CD=0,Tabla_Costos_Transporte[[#This Row],[Codigo]]=\"NA\"),0,IF(Mod_CL_CD=\"T\",Var_T_K*POWER(Km_CL_CD,Var_T_Alfa)*POWER(Tabla_Costos_Transporte[[#This Row],[Peso (Kg)]],Var_T_Beta)*INDEX(Tabla_Tipo_Via[Factor],MATCH(Tipo_CL_CD,Tabla_Tipo_Via[Tipo via],0))*(1-Descuento_transporte),IF(Mod_CL_CD=\"A\",Var_A_K*POWER(Km_CL_CD,Var_A_Alfa)*POWER(Tabla_Costos_Transporte[[#This Row],[Peso (Kg)]],Var_A_Beta)*POWER(Tabla_Costos_Transporte[[#This Row],[Densidad (Kg/M3)]],Var_A_Gama)*(1-Descuento_transporte),IF(Mod_CL_CD=\"F\",Var_F_K*POWER(Km_CL_CD,Var_F_Alfa),IF(Mod_CL_CD=\"M\",Var_M_K*POWER(Km_CL_CD,Var_M_Alfa),0)))))","v":0},{"$f":"IF(OR(Km_CD_Mun_T1=0,Tabla_Costos_Transporte[[#This Row],[Codigo]]=\"NA\"),0,IF(Mod_CD_Mun_T1=\"T\",Var_T_K*POWER(Km_CD_Mun_T1,Var_T_Alfa)*POWER(Tabla_Costos_Transporte[[#This Row],[Peso (Kg)]],Var_T_Beta)*INDEX(Tabla_Tipo_Via[Factor],MATCH(Tipo_CD_Mun_T1,Tabla_Tipo_Via[Tipo via],0))*(1-Descuento_transporte),IF(Mod_CD_Mun_T1=\"A\",Var_A_K*POWER(Km_CD_Mun_T1,Var_A_Alfa)*POWER(Tabla_Costos_Transporte[[#This Row],[Peso (Kg)]],Var_A_Beta)*POWER(Tabla_Costos_Transporte[[#This Row],[Densidad (Kg/M3)]],Var_A_Gama)*(1-Descuento_transporte),IF(Mod_CD_Mun_T1=\"F\",Var_F_K*POWER(Km_CD_Mun_T1,Var_F_Alfa),IF(Mod_CD_Mun_T1=\"M\",Var_M_K*POWER(Km_CD_Mun_T1,Var_M_Alfa),0)))))","v":5.7050444735763337},{"$f":"IF(OR(Km_CD_Mun_T2=0,Tabla_Costos_Transporte[[#This Row],[Codigo]]=\"NA\"),0,IF(Mod_CD_Mun_T2=\"T\",Var_T_K*POWER(Km_CD_Mun_T2,Var_T_Alfa)*POWER(Tabla_Costos_Transporte[[#This Row],[Peso (Kg)]],Var_T_Beta)*INDEX(Tabla_Tipo_Via[Factor],MATCH(Tipo_CD_Mun_T2,Tabla_Tipo_Via[Tipo via],0))*(1-Descuento_transporte),IF(Mod_CD_Mun_T2=\"A\",Var_A_K*POWER(Km_CD_Mun_T2,Var_A_Alfa)*POWER(Tabla_Costos_Transporte[[#This Row],[Peso (Kg)]],Var_A_Beta)*POWER(Tabla_Costos_Transporte[[#This Row],[Densidad (Kg/M3)]],Var_A_Gama)*(1-Descuento_transporte),IF(Mod_CD_Mun_T2=\"F\",Var_F_K*POWER(Km_CD_Mun_T2,Var_F_Alfa),IF(Mod_CD_Mun_T2=\"M\",Var_M_K*POWER(Km_CD_Mun_T2,Var_M_Alfa),0)))))","v":0},{"$f":"IF(OR(Km_Mun_PI=0,Tabla_Costos_Transporte[[#This Row],[Codigo]]=\"NA\"),0,IF(Mod_Mun_PI=\"T\",Var_T_K*POWER(Km_Mun_PI,Var_T_Alfa)*POWER(Tabla_Costos_Transporte[[#This Row],[Peso (Kg)]],Var_T_Beta)*INDEX(Tabla_Tipo_Via[Factor],MATCH(Tipo_Mun_PI,Tabla_Tipo_Via[Tipo via],0))*(1-Descuento_transporte),IF(Mod_Mun_PI=\"A\",Var_A_K*POWER(Km_Mun_PI,Var_A_Alfa)*POWER(Tabla_Costos_Transporte[[#This Row],[Peso (Kg)]],Var_A_Beta)*POWER(Tabla_Costos_Transporte[[#This Row],[Densidad (Kg/M3)]],Var_A_Gama)*(1-Descuento_transporte),IF(Mod_Mun_PI=\"F\",Var_F_K*POWER(Km_Mun_PI,Var_F_Alfa),IF(Mod_Mun_PI=\"M\",Var_M_K*POWER(Km_Mun_PI,Var_M_Alfa),0)))))","v":11.828514467850098},{"$f":"SUMPRODUCT(TRANSPOSE(Tabla_Ruta_CR_PI[Distancia (km)]),Tabla_Costos_Transporte[[#This Row],[T de CR a CL]:[T de M a PI]])*Tabla_Costos_Transporte[[#This Row],[Peso (Kg)]]","v":276377.8956669778},{"$f":"Tabla_Costos_Transporte[[#This Row],[VI_UC_CR]]+Tabla_Costos_Transporte[[#This Row],[Costo T]]","v":2639732.7865319788},{"$f":"Tabla_Costos_Transporte[[#This Row],[VI+CT]]/SUM(Tabla_Costos_Transporte[VI+CT])","v":0.22947289587668376}]
[null,"5. ESTRUCTURA SOPORTE",{"$f":"IF(NdS_Wp<=Limite_Wp_Riel,INDEX(Tabla_UCES[VI_CR],MATCH(1,(Tabla_UCES[No_Paneles]=UCPA_NUM)*(Tabla_UCES[Wp_Min]<=INDEX(Tabla_UCPA[Wp],MATCH(UCPA_ID,Tabla_UCPA[Codigo],0)))*(Tabla_UCES[Wp_Max]>=INDEX(Tabla_UCPA[Wp],MATCH(UCPA_ID,Tabla_UCPA[Codigo],0))),0)),MIN(Tabla_UCES[Min_Costo]))","v":1239159.2076595419},{"$f":"IF(NdS_Wp<=Limite_Wp_Riel,INDEX(Tabla_UCES[Codigo],MATCH(1,(Tabla_UCES[No_Paneles]=UCPA_NUM)*(Tabla_UCES[Wp_Min]<=IFERROR(INDEX(Tabla_UCPA[Wp],MATCH(UCPA_ID,Tabla_UCPA[Codigo],0)),\"\"))*(Tabla_UCES[Wp_Max]>=IFERROR(INDEX(Tabla_UCPA[Wp],MATCH(UCPA_ID,Tabla_UCPA[Codigo],0)),\"\")),0)),IFERROR(INDEX(Tabla_UCES[Codigo],MATCH(MIN(Tabla_UCES[Min_Costo]),Tabla_UCES[Min_Costo],0)),\"\"))","v":"UCES08"},{"$f":"ROUNDUP(UCPA_NUM/INDEX(Tabla_UCES[No_Paneles],MATCH(Tabla_Costos_Transporte[[#This Row],[Codigo]],Tabla_UCES[Codigo],0)),0)","v":1},{"$f":"IFERROR(INDEX(Tabla_UCES[Kg],MATCH(Tabla_Costos_Transporte[[#This Row],[Codigo]],Tabla_UCES[Codigo],0)),0)*Tabla_Costos_Transporte[[#This Row],[Unidades]]","v":70},500,{"$f":"IF(OR(Km_CR_CL=0,Tabla_Costos_Transporte[[#This Row],[Codigo]]=\"NA\"),0,IF(Mod_CR_CL=\"T\",Var_T_K*POWER(Km_CR_CL,Var_T_Alfa)*POWER(Tabla_Costos_Transporte[[#This Row],[Peso (Kg)]],Var_T_Beta)*INDEX(Tabla_Tipo_Via[Factor],MATCH(Tipo_CR_CL,Tabla_Tipo_Via[Tipo via],0))*(1-Descuento_transporte),IF(Mod_CR_CL=\"A\",Var_A_K*POWER(Km_CR_CL,Var_A_Alfa)*POWER(Tabla_Costos_Transporte[[#This Row],[Peso (Kg)]],Var_A_Beta)*POWER(Tabla_Costos_Transporte[[#This Row],[Densidad (Kg/M3)]],Var_A_Gama)*(1-Descuento_transporte),IF(Mod_CR_CL=\"F\",Var_F_K*POWER(Km_CR_CL,Var_F_Alfa),IF(Mod_CR_CL=\"M\",Var_M_K*POWER(Km_CR_CL,Var_M_Alfa),0)))))","v":1.7055070157151604},{"$f":"IF(OR(Km_CL_CD=0,Tabla_Costos_Transporte[[#This Row],[Codigo]]=\"NA\"),0,IF(Mod_CL_CD=\"T\",Var_T_K*POWER(Km_CL_CD,Var_T_Alfa)*POWER(Tabla_Costos_Transporte[[#This Row],[Peso (Kg)]],Var_T_Beta)*INDEX(Tabla_Tipo_Via[Factor],MATCH(Tipo_CL_CD,Tabla_Tipo_Via[Tipo via],0))*(1-Descuento_transporte),IF(Mod_CL_CD=\"A\",Var_A_K*POWER(Km_CL_CD,Var_A_Alfa)*POWER(Tabla_Costos_Transporte[[#This Row],[Peso (Kg)]],Var_A_Beta)*POWER(Tabla_Costos_Transporte[[#This Row],[Densidad (Kg/M3)]],Var_A_Gama)*(1-Descuento_transporte),IF(Mod_CL_CD=\"F\",Var_F_K*POWER(Km_CL_CD,Var_F_Alfa),IF(Mod_CL_CD=\"M\",Var_M_K*POWER(Km_CL_CD,Var_M_Alfa),0)))))","v":0},{"$f":"IF(OR(Km_CD_Mun_T1=0,Tabla_Costos_Transporte[[#This Row],[Codigo]]=\"NA\"),0,IF(Mod_CD_Mun_T1=\"T\",Var_T_K*POWER(Km_CD_Mun_T1,Var_T_Alfa)*POWER(Tabla_Costos_Transporte[[#This Row],[Peso (Kg)]],Var_T_Beta)*INDEX(Tabla_Tipo_Via[Factor],MATCH(Tipo_CD_Mun_T1,Tabla_Tipo_Via[Tipo via],0))*(1-Descuento_transporte),IF(Mod_CD_Mun_T1=\"A\",Var_A_K*POWER(Km_CD_Mun_T1,Var_A_Alfa)*POWER(Tabla_Costos_Transporte[[#This Row],[Peso (Kg)]],Var_A_Beta)*POWER(Tabla_Costos_Transporte[[#This Row],[Densidad (Kg/M3)]],Var_A_Gama)*(1-Descuento_transporte),IF(Mod_CD_Mun_T1=\"F\",Var_F_K*POWER(Km_CD_Mun_T1,Var_F_Alfa),IF(Mod_CD_Mun_T1=\"M\",Var_M_K*POWER(Km_CD_Mun_T1,Var_M_Alfa),0)))))","v":8.4506815880750512},{"$f":"IF(OR(Km_CD_Mun_T2=0,Tabla_Costos_Transporte[[#This Row],[Codigo]]=\"NA\"),0,IF(Mod_CD_Mun_T2=\"T\",Var_T_K*POWER(Km_CD_Mun_T2,Var_T_Alfa)*POWER(Tabla_Costos_Transporte[[#This Row],[Peso (Kg)]],Var_T_Beta)*INDEX(Tabla_Tipo_Via[Factor],MATCH(Tipo_CD_Mun_T2,Tabla_Tipo_Via[Tipo via],0))*(1-Descuento_transporte),IF(Mod_CD_Mun_T2=\"A\",Var_A_K*POWER(Km_CD_Mun_T2,Var_A_Alfa)*POWER(Tabla_Costos_Transporte[[#This Row],[Peso (Kg)]],Var_A_Beta)*POWER(Tabla_Costos_Transporte[[#This Row],[Densidad (Kg/M3)]],Var_A_Gama)*(1-Descuento_transporte),IF(Mod_CD_Mun_T2=\"F\",Var_F_K*POWER(Km_CD_Mun_T2,Var_F_Alfa),IF(Mod_CD_Mun_T2=\"M\",Var_M_K*POWER(Km_CD_Mun_T2,Var_M_Alfa),0)))))","v":0},{"$f":"IF(OR(Km_Mun_PI=0,Tabla_Costos_Transporte[[#This Row],[Codigo]]=\"NA\"),0,IF(Mod_Mun_PI=\"T\",Var_T_K*POWER(Km_Mun_PI,Var_T_Alfa)*POWER(Tabla_Costos_Transporte[[#This Row],[Peso (Kg)]],Var_T_Beta)*INDEX(Tabla_Tipo_Via[Factor],MATCH(Tipo_Mun_PI,Tabla_Tipo_Via[Tipo via],0))*(1-Descuento_transporte),IF(Mod_Mun_PI=\"A\",Var_A_K*POWER(Km_Mun_PI,Var_A_Alfa)*POWER(Tabla_Costos_Transporte[[#This Row],[Peso (Kg)]],Var_A_Beta)*POWER(Tabla_Costos_Transporte[[#This Row],[Densidad (Kg/M3)]],Var_A_Gama)*(1-Descuento_transporte),IF(Mod_Mun_PI=\"F\",Var_F_K*POWER(Km_Mun_PI,Var_F_Alfa),IF(Mod_Mun_PI=\"M\",Var_M_K*POWER(Km_Mun_PI,Var_M_Alfa),0)))))","v":17.521162173356146},{"$f":"SUMPRODUCT(TRANSPOSE(Tabla_Ruta_CR_PI[Distancia (km)]),Tabla_Costos_Transporte[[#This Row],[T de CR a CL]:[T de M a PI]])*Tabla_Costos_Transporte[[#This Row],[Peso (Kg)]]","v":238016.77305480721},{"$f":"Tabla_Costos_Transporte[[#This Row],[VI_UC_CR]]+Tabla_Costos_Transporte[[#This Row],[Costo T]]","v":1477175.9807143491},{"$f":"Tabla_Costos_Transporte[[#This Row],[VI+CT]]/SUM(Tabla_Costos_Transporte[VI+CT])","v":0.12841142548346177}]
[null,"6. RED PANEL GABINETE",{"$f":"INDEX(Tabla_UCRP[VI_CR],MATCH(INDEX(Tabla_UCPA[Wp],MATCH(UCPA_ID,Tabla_UCPA[Codigo],0))*UCPA_NUM,Tabla_UCRP[Wp_Min]))","v":238039.96928051789},{"$f":"INDEX(Tabla_UCRP[Codigo],MATCH(INDEX(Tabla_UCPA[Wp],MATCH(UCPA_ID,Tabla_UCPA[Codigo],0))*UCPA_NUM,Tabla_UCRP[Wp_Min]))","v":"UCRP04"},1,{"$f":"IFERROR(INDEX(Tabla_UCRP[Kg],MATCH(Tabla_Costos_Transporte[[#This Row],[Codigo]],Tabla_UCRP[Codigo],0)),0)*Tabla_Costos_Transporte[[#This Row],[Unidades]]","v":3.55},781.67210293558514,{"$f":"IF(OR(Km_CR_CL=0,Tabla_Costos_Transporte[[#This Row],[Codigo]]=\"NA\"),0,IF(Mod_CR_CL=\"T\",Var_T_K*POWER(Km_CR_CL,Var_T_Alfa)*POWER(Tabla_Costos_Transporte[[#This Row],[Peso (Kg)]],Var_T_Beta)*INDEX(Tabla_Tipo_Via[Factor],MATCH(Tipo_CR_CL,Tabla_Tipo_Via[Tipo via],0))*(1-Descuento_transporte),IF(Mod_CR_CL=\"A\",Var_A_K*POWER(Km_CR_CL,Var_A_Alfa)*POWER(Tabla_Costos_Transporte[[#This Row],[Peso (Kg)]],Var_A_Beta)*POWER(Tabla_Costos_Transporte[[#This Row],[Densidad (Kg/M3)]],Var_A_Gama)*(1-Descuento_transporte),IF(Mod_CR_CL=\"F\",Var_F_K*POWER(Km_CR_CL,Var_F_Alfa),IF(Mod_CR_CL=\"M\",Var_M_K*POWER(Km_CR_CL,Var_M_Alfa),0)))))","v":14.789194107044729},{"$f":"IF(OR(Km_CL_CD=0,Tabla_Costos_Transporte[[#This Row],[Codigo]]=\"NA\"),0,IF(Mod_CL_CD=\"T\",Var_T_K*POWER(Km_CL_CD,Var_T_Alfa)*POWER(Tabla_Costos_Transporte[[#This Row],[Peso (Kg)]],Var_T_Beta)*INDEX(Tabla_Tipo_Via[Factor],MATCH(Tipo_CL_CD,Tabla_Tipo_Via[Tipo via],0))*(1-Descuento_transporte),IF(Mod_CL_CD=\"A\",Var_A_K*POWER(Km_CL_CD,Var_A_Alfa)*POWER(Tabla_Costos_Transporte[[#This Row],[Peso (Kg)]],Var_A_Beta)*POWER(Tabla_Costos_Transporte[[#This Row],[Densidad (Kg/M3)]],Var_A_Gama)*(1-Descuento_transporte),IF(Mod_CL_CD=\"F\",Var_F_K*POWER(Km_CL_CD,Var_F_Alfa),IF(Mod_CL_CD=\"M\",Var_M_K*POWER(Km_CL_CD,Var_M_Alfa),0)))))","v":0},{"$f":"IF(OR(Km_CD_Mun_T1=0,Tabla_Costos_Transporte[[#This Row],[Codigo]]=\"NA\"),0,IF(Mod_CD_Mun_T1=\"T\",Var_T_K*POWER(Km_CD_Mun_T1,Var_T_Alfa)*POWER(Tabla_Costos_Transporte[[#This Row],[Peso (Kg)]],Var_T_Beta)*INDEX(Tabla_Tipo_Via[Factor],MATCH(Tipo_CD_Mun_T1,Tabla_Tipo_Via[Tipo via],0))*(1-Descuento_transporte),IF(Mod_CD_Mun_T1=\"A\",Var_A_K*POWER(Km_CD_Mun_T1,Var_A_Alfa)*POWER(Tabla_Costos_Transporte[[#This Row],[Peso (Kg)]],Var_A_Beta)*POWER(Tabla_Costos_Transporte[[#This Row],[Densidad (Kg/M3)]],Var_A_Gama)*(1-Descuento_transporte),IF(Mod_CD_Mun_T1=\"F\",Var_F_K*POWER(Km_CD_Mun_T1,Var_F_Alfa),IF(Mod_CD_Mun_T1=\"M\",Var_M_K*POWER(Km_CD_Mun_T1,Var_M_Alfa),0)))))","v":73.279540448248625},{"$f":"IF(OR(Km_CD_Mun_T2=0,Tabla_Costos_Transporte[[#This Row],[Codigo]]=\"NA\"),0,IF(Mod_CD_Mun_T2=\"T\",Var_T_K*POWER(Km_CD_Mun_T2,Var_T_Alfa)*POWER(Tabla_Costos_Transporte[[#This Row],[Peso (Kg)]],Var_T_Beta)*INDEX(Tabla_Tipo_Via[Factor],MATCH(Tipo_CD_Mun_T2,Tabla_Tipo_Via[Tipo via],0))*(1-Descuento_transporte),IF(Mod_CD_Mun_T2=\"A\",Var_A_K*POWER(Km_CD_Mun_T2,Var_A_Alfa)*POWER(Tabla_Costos_Transporte[[#This Row],[Peso (Kg)]],Var_A_Beta)*POWER(Tabla_Costos_Transporte[[#This Row],[Densidad (Kg/M3)]],Var_A_Gama)*(1-Descuento_transporte),IF(Mod_CD_Mun_T2=\"F\",Var_F_K*POWER(Km_CD_Mun_T2,Var_F_Alfa),IF(Mod_CD_Mun_T2=\"M\",Var_M_K*POWER(Km_CD_Mun_T2,Var_M_Alfa),0)))))","v":0},{"$f":"IF(OR(Km_Mun_PI=0,Tabla_Costos_Transporte[[#This Row],[Codigo]]=\"NA\"),0,IF(Mod_Mun_PI=\"T\",Var_T_K*POWER(Km_Mun_PI,Var_T_Alfa)*POWER(Tabla_Costos_Transporte[[#This Row],[Peso (Kg)]],Var_T_Beta)*INDEX(Tabla_Tipo_Via[Factor],MATCH(Tipo_Mun_PI,Tabla_Tipo_Via[Tipo via],0))*(1-Descuento_transporte),IF(Mod_Mun_PI=\"A\",Var_A_K*POWER(Km_Mun_PI,Var_A_Alfa)*POWER(Tabla_Costos_Transporte[[#This Row],[Peso (Kg)]],Var_A_Beta)*POWER(Tabla_Costos_Transporte[[#This Row],[Densidad (Kg/M3)]],Var_A_Gama)*(1-Descuento_transporte),IF(Mod_Mun_PI=\"F\",Var_F_K*POWER(Km_Mun_PI,Var_F_Alfa),IF(Mod_Mun_PI=\"M\",Var_M_K*POWER(Km_Mun_PI,Var_M_Alfa),0)))))","v":151.93362793299139},{"$f":"SUMPRODUCT(TRANSPOSE(Tabla_Ruta_CR_PI[Distancia (km)]),Tabla_Costos_Transporte[[#This Row],[T de CR a CL]:[T de M a PI]])*Tabla_Costos_Transporte[[#This Row],[Peso (Kg)]]","v":104671.60287876421},{"$f":"Tabla_Costos_Transporte[[#This Row],[VI_UC_CR]]+Tabla_Costos_Transporte[[#This Row],[Costo T]]","v":342711.57215928211},{"$f":"Tabla_Costos_Transporte[[#This Row],[VI+CT]]/SUM(Tabla_Costos_Transporte[VI+CT])","v":2.9792037025520659E-2}]
[null,"7. GABINETE Y ACCESORIOS",{"$f":"IF(Tipo_Sistema=\"DC\",OFFSET(Tabla_UCGP[VI_CR],0,0,1,1),INDEX(Tabla_UCGP[VI_CR],MATCH(INDEX(Tabla_UCIN[Capacidad (VA)],MATCH(UCIN_ID,Tabla_UCIN[Codigo])),Tabla_UCGP[VA_Inv_Min])))","v":852186.38439773826},{"$f":"IF(Tipo_Sistema=\"DC\",OFFSET(Tabla_UCGP[Codigo],0,0,1,1),INDEX(Tabla_UCGP[Codigo],MATCH(INDEX(Tabla_UCIN[Capacidad (VA)],MATCH(UCIN_ID,Tabla_UCIN[Codigo],0)),Tabla_UCGP[VA_Inv_Min])))","v":"UCGP04"},1,{"$f":"IFERROR(INDEX(Tabla_UCGP[Kg],MATCH(Tabla_Costos_Transporte[[#This Row],[Codigo]],Tabla_UCGP[Codigo],0)),0)*Tabla_Costos_Transporte[[#This Row],[Unidades]]","v":28.080000000000002},158.33333333333334,{"$f":"IF(OR(Km_CR_CL=0,Tabla_Costos_Transporte[[#This Row],[Codigo]]=\"NA\"),0,IF(Mod_CR_CL=\"T\",Var_T_K*POWER(Km_CR_CL,Var_T_Alfa)*POWER(Tabla_Costos_Transporte[[#This Row],[Peso (Kg)]],Var_T_Beta)*INDEX(Tabla_Tipo_Via[Factor],MATCH(Tipo_CR_CL,Tabla_Tipo_Via[Tipo via],0))*(1-Descuento_transporte),IF(Mod_CR_CL=\"A\",Var_A_K*POWER(Km_CR_CL,Var_A_Alfa)*POWER(Tabla_Costos_Transporte[[#This Row],[Peso (Kg)]],Var_A_Beta)*POWER(Tabla_Costos_Transporte[[#This Row],[Densidad (Kg/M3)]],Var_A_Gama)*(1-Descuento_transporte),IF(Mod_CR_CL=\"F\",Var_F_K*POWER(Km_CR_CL,Var_F_Alfa),IF(Mod_CR_CL=\"M\",Var_M_K*POWER(Km_CR_CL,Var_M_Alfa),0)))))","v":3.3056010982197268},{"$f":"IF(OR(Km_CL_CD=0,Tabla_Costos_Transporte[[#This Row],[Codigo]]=\"NA\"),0,IF(Mod_CL_CD=\"T\",Var_T_K*POWER(Km_CL_CD,Var_T_Alfa)*POWER(Tabla_Costos_Transporte[[#This Row],[Peso (Kg)]],Var_T_Beta)*INDEX(Tabla_Tipo_Via[Factor],MATCH(Tipo_CL_CD,Tabla_Tipo_Via[Tipo via],0))*(1-Descuento_transporte),IF(Mod_CL_CD=\"A\",Var_A_K*POWER(Km_CL_CD,Var_A_Alfa)*POWER(Tabla_Costos_Transporte[[#This Row],[Peso (Kg)]],Var_A_Beta)*POWER(Tabla_Costos_Transporte[[#This Row],[Densidad (Kg/M3)]],Var_A_Gama)*(1-Descuento_transporte),IF(Mod_CL_CD=\"F\",Var_F_K*POWER(Km_CL_CD,Var_F_Alfa),IF(Mod_CL_CD=\"M\",Var_M_K*POWER(Km_CL_CD,Var_M_Alfa),0)))))","v":0},{"$f":"IF(OR(Km_CD_Mun_T1=0,Tabla_Costos_Transporte[[#This Row],[Codigo]]=\"NA\"),0,IF(Mod_CD_Mun_T1=\"T\",Var_T_K*POWER(Km_CD_Mun_T1,Var_T_Alfa)*POWER(Tabla_Costos_Transporte[[#This Row],[Peso (Kg)]],Var_T_Beta)*INDEX(Tabla_Tipo_Via[Factor],MATCH(Tipo_CD_Mun_T1,Tabla_Tipo_Via[Tipo via],0))*(1-Descuento_transporte),IF(Mod_CD_Mun_T1=\"A\",Var_A_K*POWER(Km_CD_Mun_T1,Var_A_Alfa)*POWER(Tabla_Costos_Transporte[[#This Row],[Peso (Kg)]],Var_A_Beta)*POWER(Tabla_Costos_Transporte[[#This Row],[Densidad (Kg/M3)]],Var_A_Gama)*(1-Descuento_transporte),IF(Mod_CD_Mun_T1=\"F\",Var_F_K*POWER(Km_CD_Mun_T1,Var_F_Alfa),IF(Mod_CD_Mun_T1=\"M\",Var_M_K*POWER(Km_CD_Mun_T1,Var_M_Alfa),0)))))","v":16.379048623574537},{"$f":"IF(OR(Km_CD_Mun_T2=0,Tabla_Costos_Transporte[[#This Row],[Codigo]]=\"NA\"),0,IF(Mod_CD_Mun_T2=\"T\",Var_T_K*POWER(Km_CD_Mun_T2,Var_T_Alfa)*POWER(Tabla_Costos_Transporte[[#This Row],[Peso (Kg)]],Var_T_Beta)*INDEX(Tabla_Tipo_Via[Factor],MATCH(Tipo_CD_Mun_T2,Tabla_Tipo_Via[Tipo via],0))*(1-Descuento_transporte),IF(Mod_CD_Mun_T2=\"A\",Var_A_K*POWER(Km_CD_Mun_T2,Var_A_Alfa)*POWER(Tabla_Costos_Transporte[[#This Row],[Peso (Kg)]],Var_A_Beta)*POWER(Tabla_Costos_Transporte[[#This Row],[Densidad (Kg/M3)]],Var_A_Gama)*(1-Descuento_transporte),IF(Mod_CD_Mun_T2=\"F\",Var_F_K*POWER(Km_CD_Mun_T2,Var_F_Alfa),IF(Mod_CD_Mun_T2=\"M\",Var_M_K*POWER(Km_CD_Mun_T2,Var_M_Alfa),0)))))","v":0},{"$f":"IF(OR(Km_Mun_PI=0,Tabla_Costos_Transporte[[#This Row],[Codigo]]=\"NA\"),0,IF(Mod_Mun_PI=\"T\",Var_T_K*POWER(Km_Mun_PI,Var_T_Alfa)*POWER(Tabla_Costos_Transporte[[#This Row],[Peso (Kg)]],Var_T_Beta)*INDEX(Tabla_Tipo_Via[Factor],MATCH(Tipo_Mun_PI,Tabla_Tipo_Via[Tipo via],0))*(1-Descuento_transporte),IF(Mod_Mun_PI=\"A\",Var_A_K*POWER(Km_Mun_PI,Var_A_Alfa)*POWER(Tabla_Costos_Transporte[[#This Row],[Peso (Kg)]],Var_A_Beta)*POWER(Tabla_Costos_Transporte[[#This Row],[Densidad (Kg/M3)]],Var_A_Gama)*(1-Descuento_transporte),IF(Mod_Mun_PI=\"F\",Var_F_K*POWER(Km_Mun_PI,Var_F_Alfa),IF(Mod_Mun_PI=\"M\",Var_M_K*POWER(Km_Mun_PI,Var_M_Alfa),0)))))","v":33.959387084693759},{"$f":"SUMPRODUCT(TRANSPOSE(Tabla_Ruta_CR_PI[Distancia (km)]),Tabla_Costos_Transporte[[#This Row],[T de CR a CL]:[T de M a PI]])*Tabla_Costos_Transporte[[#This Row],[Peso (Kg)]]","v":185056.16600702883},{"$f":"Tabla_Costos_Transporte[[#This Row],[VI_UC_CR]]+Tabla_Costos_Transporte[[#This Row],[Costo T]]","v":1037242.550404767},{"$f":"Tabla_Costos_Transporte[[#This Row],[VI+CT]]/SUM(Tabla_Costos_Transporte[VI+CT])","v":9.0167858270458909E-2}]
[null,"8. RED BATERÍA A GABINETE Y ACCESORIOS",{"$f":"IF(Almacenamiento=\"NO\",0,IF(Tipo_Sistema=\"DC\",OFFSET(Tabla_UCRB[VI_CR],0,0,1,1),INDEX(Tabla_UCRB[VI_CR],MATCH(INDEX(Tabla_UCIN[Capacidad (VA)],MATCH(UCIN_ID,Tabla_UCIN[Codigo])),Tabla_UCRB[VA_Inv_Min]))))","v":641811.99070331582},{"$f":"IF(Almacenamiento=\"NO\",\"NA\",IF(Tipo_Sistema=\"DC\",OFFSET(Tabla_UCRB[Codigo],0,0,1,1),INDEX(Tabla_UCRB[Codigo],MATCH(INDEX(Tabla_UCIN[Capacidad (VA)],MATCH(UCIN_ID,Tabla_UCIN[Codigo],0)),Tabla_UCRB[VA_Inv_Min]))))","v":"UCRB04"},{"$f":"IF(Tabla_Costos_Transporte[[#This Row],[Codigo]]=\"NA\",0,1)","v":1},{"$f":"IFERROR(INDEX(Tabla_UCRB[Kg],MATCH(Tabla_Costos_Transporte[[#This Row],[Codigo]],Tabla_UCRB[Codigo],0)),0)*Tabla_Costos_Transporte[[#This Row],[Unidades]]","v":28.080000000000002},781.67210293558514,{"$f":"IF(OR(Km_CR_CL=0,Tabla_Costos_Transporte[[#This Row],[Codigo]]=\"NA\"),0,IF(Mod_CR_CL=\"T\",Var_T_K*POWER(Km_CR_CL,Var_T_Alfa)*POWER(Tabla_Costos_Transporte[[#This Row],[Peso (Kg)]],Var_T_Beta)*INDEX(Tabla_Tipo_Via[Factor],MATCH(Tipo_CR_CL,Tabla_Tipo_Via[Tipo via],0))*(1-Descuento_transporte),IF(Mod_CR_CL=\"A\",Var_A_K*POWER(Km_CR_CL,Var_A_Alfa)*POWER(Tabla_Costos_Transporte[[#This Row],[Peso (Kg)]],Var_A_Beta)*POWER(Tabla_Costos_Transporte[[#This Row],[Densidad (Kg/M3)]],Var_A_Gama)*(1-Descuento_transporte),IF(Mod_CR_CL=\"F\",Var_F_K*POWER(Km_CR_CL,Var_F_Alfa),IF(Mod_CR_CL=\"M\",Var_M_K*POWER(Km_CR_CL,Var_M_Alfa),0)))))","v":3.3056010982197268},{"$f":"IF(OR(Km_CL_CD=0,Tabla_Costos_Transporte[[#This Row],[Codigo]]=\"NA\"),0,IF(Mod_CL_CD=\"T\",Var_T_K*POWER(Km_CL_CD,Var_T_Alfa)*POWER(Tabla_Costos_Transporte[[#This Row],[Peso (Kg)]],Var_T_Beta)*INDEX(Tabla_Tipo_Via[Factor],MATCH(Tipo_CL_CD,Tabla_Tipo_Via[Tipo via],0))*(1-Descuento_transporte),IF(Mod_CL_CD=\"A\",Var_A_K*POWER(Km_CL_CD,Var_A_Alfa)*POWER(Tabla_Costos_Transporte[[#This Row],[Peso (Kg)]],Var_A_Beta)*POWER(Tabla_Costos_Transporte[[#This Row],[Densidad (Kg/M3)]],Var_A_Gama)*(1-Descuento_transporte),IF(Mod_CL_CD=\"F\",Var_F_K*POWER(Km_CL_CD,Var_F_Alfa),IF(Mod_CL_CD=\"M\",Var_M_K*POWER(Km_CL_CD,Var_M_Alfa),0)))))","v":0},{"$f":"IF(OR(Km_CD_Mun_T1=0,Tabla_Costos_Transporte[[#This Row],[Codigo]]=\"NA\"),0,IF(Mod_CD_Mun_T1=\"T\",Var_T_K*POWER(Km_CD_Mun_T1,Var_T_Alfa)*POWER(Tabla_Costos_Transporte[[#This Row],[Peso (Kg)]],Var_T_Beta)*INDEX(Tabla_Tipo_Via[Factor],MATCH(Tipo_CD_Mun_T1,Tabla_Tipo_Via[Tipo via],0))*(1-Descuento_transporte),IF(Mod_CD_Mun_T1=\"A\",Var_A_K*POWER(Km_CD_Mun_T1,Var_A_Alfa)*POWER(Tabla_Costos_Transporte[[#This Row],[Peso (Kg)]],Var_A_Beta)*POWER(Tabla_Costos_Transporte[[#This Row],[Densidad (Kg/M3)]],Var_A_Gama)*(1-Descuento_transporte),IF(Mod_CD_Mun_T1=\"F\",Var_F_K*POWER(Km_CD_Mun_T1,Var_F_Alfa),IF(Mod_CD_Mun_T1=\"M\",Var_M_K*POWER(Km_CD_Mun_T1,Var_M_Alfa),0)))))","v":16.379048623574537},{"$f":"IF(OR(Km_CD_Mun_T2=0,Tabla_Costos_Transporte[[#This Row],[Codigo]]=\"NA\"),0,IF(Mod_CD_Mun_T2=\"T\",Var_T_K*POWER(Km_CD_Mun_T2,Var_T_Alfa)*POWER(Tabla_Costos_Transporte[[#This Row],[Peso (Kg)]],Var_T_Beta)*INDEX(Tabla_Tipo_Via[Factor],MATCH(Tipo_CD_Mun_T2,Tabla_Tipo_Via[Tipo via],0))*(1-Descuento_transporte),IF(Mod_CD_Mun_T2=\"A\",Var_A_K*POWER(Km_CD_Mun_T2,Var_A_Alfa)*POWER(Tabla_Costos_Transporte[[#This Row],[Peso (Kg)]],Var_A_Beta)*POWER(Tabla_Costos_Transporte[[#This Row],[Densidad (Kg/M3)]],Var_A_Gama)*(1-Descuento_transporte),IF(Mod_CD_Mun_T2=\"F\",Var_F_K*POWER(Km_CD_Mun_T2,Var_F_Alfa),IF(Mod_CD_Mun_T2=\"M\",Var_M_K*POWER(Km_CD_Mun_T2,Var_M_Alfa),0)))))","v":0},{"$f":"IF(OR(Km_Mun_PI=0,Tabla_Costos_Transporte[[#This Row],[Codigo]]=\"NA\"),0,IF(Mod_Mun_PI=\"T\",Var_T_K*POWER(Km_Mun_PI,Var_T_Alfa)*POWER(Tabla_Costos_Transporte[[#This Row],[Peso (Kg)]],Var_T_Beta)*INDEX(Tabla_Tipo_Via[Factor],MATCH(Tipo_Mun_PI,Tabla_Tipo_Via[Tipo via],0))*(1-Descuento_transporte),IF(Mod_Mun_PI=\"A\",Var_A_K*POWER(Km_Mun_PI,Var_A_Alfa)*POWER(Tabla_Costos_Transporte[[#This Row],[Peso (Kg)]],Var_A_Beta)*POWER(Tabla_Costos_Transporte[[#This Row],[Densidad (Kg/M3)]],Var_A_Gama)*(1-Descuento_transporte),IF(Mod_Mun_PI=\"F\",Var_F_K*POWER(Km_Mun_PI,Var_F_Alfa),IF(Mod_Mun_PI=\"M\",Var_M_K*POWER(Km_Mun_PI,Var_M_Alfa),0)))))","v":33.959387084693759},{"$f":"SUMPRODUCT(TRANSPOSE(Tabla_Ruta_CR_PI[Distancia (km)]),Tabla_Costos_Transporte[[#This Row],[T de CR a CL]:[T de M a PI]])*Tabla_Costos_Transporte[[#This Row],[Peso (Kg)]]","v":185056.16600702883},{"$f":"Tabla_Costos_Transporte[[#This Row],[VI_UC_CR]]+Tabla_Costos_Transporte[[#This Row],[Costo T]]","v":826868.1567103446},{"$f":"Tabla_Costos_Transporte[[#This Row],[VI+CT]]/SUM(Tabla_Costos_Transporte[VI+CT])","v":7.1879938528861279E-2}]
[null,"9. PUESTA A TIERRA",{"$f":"INDEX(Tabla_UCPT[VI_CR],MATCH(UCPA_NUM,Tabla_UCPT[No_UCPA_Min]))","v":180594.92845594216},{"$f":"INDEX(Tabla_UCPT[Codigo],MATCH(UCPA_NUM,Tabla_UCPT[No_UCPA_Min]))","v":"UCPT02"},1,{"$f":"IFERROR(INDEX(Tabla_UCPT[Kg],MATCH(Tabla_Costos_Transporte[[#This Row],[Codigo]],Tabla_UCPT[Codigo],0)),0)*Tabla_Costos_Transporte[[#This Row],[Unidades]]","v":11.3},4126.8426352366332,{"$f":"IF(OR(Km_CR_CL=0,Tabla_Costos_Transporte[[#This Row],[Codigo]]=\"NA\"),0,IF(Mod_CR_CL=\"T\",Var_T_K*POWER(Km_CR_CL,Var_T_Alfa)*POWER(Tabla_Costos_Transporte[[#This Row],[Peso (Kg)]],Var_T_Beta)*INDEX(Tabla_Tipo_Via[Factor],MATCH(Tipo_CR_CL,Tabla_Tipo_Via[Tipo via],0))*(1-Descuento_transporte),IF(Mod_CR_CL=\"A\",Var_A_K*POWER(Km_CR_CL,Var_A_Alfa)*POWER(Tabla_Costos_Transporte[[#This Row],[Peso (Kg)]],Var_A_Beta)*POWER(Tabla_Costos_Transporte[[#This Row],[Densidad (Kg/M3)]],Var_A_Gama)*(1-Descuento_transporte),IF(Mod_CR_CL=\"F\",Var_F_K*POWER(Km_CR_CL,Var_F_Alfa),IF(Mod_CR_CL=\"M\",Var_M_K*POWER(Km_CR_CL,Var_M_Alfa),0)))))","v":6.3921353676283648},{"$f":"IF(OR(Km_CL_CD=0,Tabla_Costos_Transporte[[#This Row],[Codigo]]=\"NA\"),0,IF(Mod_CL_CD=\"T\",Var_T_K*POWER(Km_CL_CD,Var_T_Alfa)*POWER(Tabla_Costos_Transporte[[#This Row],[Peso (Kg)]],Var_T_Beta)*INDEX(Tabla_Tipo_Via[Factor],MATCH(Tipo_CL_CD,Tabla_Tipo_Via[Tipo via],0))*(1-Descuento_transporte),IF(Mod_CL_CD=\"A\",Var_A_K*POWER(Km_CL_CD,Var_A_Alfa)*POWER(Tabla_Costos_Transporte[[#This Row],[Peso (Kg)]],Var_A_Beta)*POWER(Tabla_Costos_Transporte[[#This Row],[Densidad (Kg/M3)]],Var_A_Gama)*(1-Descuento_transporte),IF(Mod_CL_CD=\"F\",Var_F_K*POWER(Km_CL_CD,Var_F_Alfa),IF(Mod_CL_CD=\"M\",Var_M_K*POWER(Km_CL_CD,Var_M_Alfa),0)))))","v":0},{"$f":"IF(OR(Km_CD_Mun_T1=0,Tabla_Costos_Transporte[[#This Row],[Codigo]]=\"NA\"),0,IF(Mod_CD_Mun_T1=\"T\",Var_T_K*POWER(Km_CD_Mun_T1,Var_T_Alfa)*POWER(Tabla_Costos_Transporte[[#This Row],[Peso (Kg)]],Var_T_Beta)*INDEX(Tabla_Tipo_Via[Factor],MATCH(Tipo_CD_Mun_T1,Tabla_Tipo_Via[Tipo via],0))*(1-Descuento_transporte),IF(Mod_CD_Mun_T1=\"A\",Var_A_K*POWER(Km_CD_Mun_T1,Var_A_Alfa)*POWER(Tabla_Costos_Transporte[[#This Row],[Peso (Kg)]],Var_A_Beta)*POWER(Tabla_Costos_Transporte[[#This Row],[Densidad (Kg/M3)]],Var_A_Gama)*(1-Descuento_transporte),IF(Mod_CD_Mun_T1=\"F\",Var_F_K*POWER(Km_CD_Mun_T1,Var_F_Alfa),IF(Mod_CD_Mun_T1=\"M\",Var_M_K*POWER(Km_CD_Mun_T1,Var_M_Alfa),0)))))","v":31.672634683973634},{"$f":"IF(OR(Km_CD_Mun_T2=0,Tabla_Costos_Transporte[[#This Row],[Codigo]]=\"NA\"),0,IF(Mod_CD_Mun_T2=\"T\",Var_T_K*POWER(Km_CD_Mun_T2,Var_T_Alfa)*POWER(Tabla_Costos_Transporte[[#This Row],[Peso (Kg)]],Var_T_Beta)*INDEX(Tabla_Tipo_Via[Factor],MATCH(Tipo_CD_Mun_T2,Tabla_Tipo_Via[Tipo via],0))*(1-Descuento_transporte),IF(Mod_CD_Mun_T2=\"A\",Var_A_K*POWER(Km_CD_Mun_T2,Var_A_Alfa)*POWER(Tabla_Costos_Transporte[[#This Row],[Peso (Kg)]],Var_A_Beta)*POWER(Tabla_Costos_Transporte[[#This Row],[Densidad (Kg/M3)]],Var_A_Gama)*(1-Descuento_transporte),IF(Mod_CD_Mun_T2=\"F\",Var_F_K*POWER(Km_CD_Mun_T2,Var_F_Alfa),IF(Mod_CD_Mun_T2=\"M\",Var_M_K*POWER(Km_CD_Mun_T2,Var_M_Alfa),0)))))","v":0},{"$f":"IF(OR(Km_Mun_PI=0,Tabla_Costos_Transporte[[#This Row],[Codigo]]=\"NA\"),0,IF(Mod_Mun_PI=\"T\",Var_T_K*POWER(Km_Mun_PI,Var_T_Alfa)*POWER(Tabla_Costos_Transporte[[#This Row],[Peso (Kg)]],Var_T_Beta)*INDEX(Tabla_Tipo_Via[Factor],MATCH(Tipo_Mun_PI,Tabla_Tipo_Via[Tipo via],0))*(1-Descuento_transporte),IF(Mod_Mun_PI=\"A\",Var_A_K*POWER(Km_Mun_PI,Var_A_Alfa)*POWER(Tabla_Costos_Transporte[[#This Row],[Peso (Kg)]],Var_A_Beta)*POWER(Tabla_Costos_Transporte[[#This Row],[Densidad (Kg/M3)]],Var_A_Gama)*(1-Descuento_transporte),IF(Mod_Mun_PI=\"F\",Var_F_K*POWER(Km_Mun_PI,Var_F_Alfa),IF(Mod_Mun_PI=\"M\",Var_M_K*POWER(Km_Mun_PI,Var_M_Alfa),0)))))","v":65.66823787781297},{"$f":"SUMPRODUCT(TRANSPOSE(Tabla_Ruta_CR_PI[Distancia (km)]),Tabla_Costos_Transporte[[#This Row],[T de CR a CL]:[T de M a PI]])*Tabla_Costos_Transporte[[#This Row],[Peso (Kg)]]","v":144005.94440732157},{"$f":"Tabla_Costos_Transporte[[#This Row],[VI_UC_CR]]+Tabla_Costos_Transporte[[#This Row],[Costo T]]","v":324600.87286326371},{"$f":"Tabla_Costos_Transporte[[#This Row],[VI+CT]]/SUM(Tabla_Costos_Transporte[VI+CT])","v":2.8217667591230643E-2}]
[null,"10. RED DOMICILIARIA",{"$f":"IF(Tipo_Sistema=\"DC\",ROUNDUP(1.7213*POWER(NdS_Whd,0.48)/Mod_UCRD_DC,0)*INDEX(Tabla_UCRD[VI_CR],1),ROUNDUP(2.1914*POWER(NdS_Whd,0.442)/Mod_UCRD_AC,0)*INDEX(Tabla_UCRD[VI_CR],2))","v":1140533.585286987},{"$f":"INDEX(Tabla_UCRD[Codigo],IF(Tipo_Sistema=\"DC\",1,2))","v":"UCRD02"},{"$f":"IF(Tipo_Sistema=\"DC\",ROUNDUP(1.7213*POWER(NdS_Whd,0.48)/Mod_UCRD_DC,0),ROUNDUP(2.1914*POWER(NdS_Whd,0.442)/Mod_UCRD_AC,0))","v":4},{"$f":"IFERROR(INDEX(Tabla_UCRD[Kg],MATCH(Tabla_Costos_Transporte[[#This Row],[Codigo]],Tabla_UCRD[Codigo],0)),0)*Tabla_Costos_Transporte[[#This Row],[Unidades]]","v":43.519999999999996},781.67210293558514,{"$f":"IF(OR(Km_CR_CL=0,Tabla_Costos_Transporte[[#This Row],[Codigo]]=\"NA\"),0,IF(Mod_CR_CL=\"T\",Var_T_K*POWER(Km_CR_CL,Var_T_Alfa)*POWER(Tabla_Costos_Transporte[[#This Row],[Peso (Kg)]],Var_T_Beta)*INDEX(Tabla_Tipo_Via[Factor],MATCH(Tipo_CR_CL,Tabla_Tipo_Via[Tipo via],0))*(1-Descuento_transporte),IF(Mod_CR_CL=\"A\",Var_A_K*POWER(Km_CR_CL,Var_A_Alfa)*POWER(Tabla_Costos_Transporte[[#This Row],[Peso (Kg)]],Var_A_Beta)*POWER(Tabla_Costos_Transporte[[#This Row],[Densidad (Kg/M3)]],Var_A_Gama)*(1-Descuento_transporte),IF(Mod_CR_CL=\"F\",Var_F_K*POWER(Km_CR_CL,Var_F_Alfa),IF(Mod_CR_CL=\"M\",Var_M_K*POWER(Km_CR_CL,Var_M_Alfa),0)))))","v":2.4065241958809076},{"$f":"IF(OR(Km_CL_CD=0,Tabla_Costos_Transporte[[#This Row],[Codigo]]=\"NA\"),0,IF(Mod_CL_CD=\"T\",Var_T_K*POWER(Km_CL_CD,Var_T_Alfa)*POWER(Tabla_Costos_Transporte[[#This Row],[Peso (Kg)]],Var_T_Beta)*INDEX(Tabla_Tipo_Via[Factor],MATCH(Tipo_CL_CD,Tabla_Tipo_Via[Tipo via],0))*(1-Descuento_transporte),IF(Mod_CL_CD=\"A\",Var_A_K*POWER(Km_CL_CD,Var_A_Alfa)*POWER(Tabla_Costos_Transporte[[#This Row],[Peso (Kg)]],Var_A_Beta)*POWER(Tabla_Costos_Transporte[[#This Row],[Densidad (Kg/M3)]],Var_A_Gama)*(1-Descuento_transporte),IF(Mod_CL_CD=\"F\",Var_F_K*POWER(Km_CL_CD,Var_F_Alfa),IF(Mod_CL_CD=\"M\",Var_M_K*POWER(Km_CL_CD,Var_M_Alfa),0)))))","v":0},{"$f":"IF(OR(Km_CD_Mun_T1=0,Tabla_Costos_Transporte[[#This Row],[Codigo]]=\"NA\"),0,IF(Mod_CD_Mun_T1=\"T\",Var_T_K*POWER(Km_CD_Mun_T1,Var_T_Alfa)*POWER(Tabla_Costos_Transporte[[#This Row],[Peso (Kg)]],Var_T_Beta)*INDEX(Tabla_Tipo_Via[Factor],MATCH(Tipo_CD_Mun_T1,Tabla_Tipo_Via[Tipo via],0))*(1-Descuento_transporte),IF(Mod_CD_Mun_T1=\"A\",Var_A_K*POWER(Km_CD_Mun_T1,Var_A_Alfa)*POWER(Tabla_Costos_Transporte[[#This Row],[Peso (Kg)]],Var_A_Beta)*POWER(Tabla_Costos_Transporte[[#This Row],[Densidad (Kg/M3)]],Var_A_Gama)*(1-Descuento_transporte),IF(Mod_CD_Mun_T1=\"F\",Var_F_K*POWER(Km_CD_Mun_T1,Var_F_Alfa),IF(Mod_CD_Mun_T1=\"M\",Var_M_K*POWER(Km_CD_Mun_T1,Var_M_Alfa),0)))))","v":11.924178280122879},{"$f":"IF(OR(Km_CD_Mun_T2=0,Tabla_Costos_Transporte[[#This Row],[Codigo]]=\"NA\"),0,IF(Mod_CD_Mun_T2=\"T\",Var_T_K*POWER(Km_CD_Mun_T2,Var_T_Alfa)*POWER(Tabla_Costos_Transporte[[#This Row],[Peso (Kg)]],Var_T_Beta)*INDEX(Tabla_Tipo_Via[Factor],MATCH(Tipo_CD_Mun_T2,Tabla_Tipo_Via[Tipo via],0))*(1-Descuento_transporte),IF(Mod_CD_Mun_T2=\"A\",Var_A_K*POWER(Km_CD_Mun_T2,Var_A_Alfa)*POWER(Tabla_Costos_Transporte[[#This Row],[Peso (Kg)]],Var_A_Beta)*POWER(Tabla_Costos_Transporte[[#This Row],[Densidad (Kg/M3)]],Var_A_Gama)*(1-Descuento_transporte),IF(Mod_CD_Mun_T2=\"F\",Var_F_K*POWER(Km_CD_Mun_T2,Var_F_Alfa),IF(Mod_CD_Mun_T2=\"M\",Var_M_K*POWER(Km_CD_Mun_T2,Var_M_Alfa),0)))))","v":0},{"$f":"IF(OR(Km_Mun_PI=0,Tabla_Costos_Transporte[[#This Row],[Codigo]]=\"NA\"),0,IF(Mod_Mun_PI=\"T\",Var_T_K*POWER(Km_Mun_PI,Var_T_Alfa)*POWER(Tabla_Costos_Transporte[[#This Row],[Peso (Kg)]],Var_T_Beta)*INDEX(Tabla_Tipo_Via[Factor],MATCH(Tipo_Mun_PI,Tabla_Tipo_Via[Tipo via],0))*(1-Descuento_transporte),IF(Mod_Mun_PI=\"A\",Var_A_K*POWER(Km_Mun_PI,Var_A_Alfa)*POWER(Tabla_Costos_Transporte[[#This Row],[Peso (Kg)]],Var_A_Beta)*POWER(Tabla_Costos_Transporte[[#This Row],[Densidad (Kg/M3)]],Var_A_Gama)*(1-Descuento_transporte),IF(Mod_Mun_PI=\"F\",Var_F_K*POWER(Km_Mun_PI,Var_F_Alfa),IF(Mod_Mun_PI=\"M\",Var_M_K*POWER(Km_Mun_PI,Var_M_Alfa),0)))))","v":24.722912495586556},{"$f":"SUMPRODUCT(TRANSPOSE(Tabla_Ruta_CR_PI[Distancia (km)]),Tabla_Costos_Transporte[[#This Row],[T de CR a CL]:[T de M a PI]])*Tabla_Costos_Transporte[[#This Row],[Peso (Kg)]]","v":208802.22965022421},{"$f":"Tabla_Costos_Transporte[[#This Row],[VI_UC_CR]]+Tabla_Costos_Transporte[[#This Row],[Costo T]]","v":1349335.8149372111},{"$f":"Tabla_Costos_Transporte[[#This Row],[VI+CT]]/SUM(Tabla_Costos_Transporte[VI+CT])","v":0.11729823508786268}]
[null,"11. ELEMENTO DE MEDICIÓN",{"$f":"Tabla_UCMD[VI_CR]","v":254239.69280517436},{"$f":"INDEX(Tabla_UCMD[],1,1)","v":"UCMD01"},1,{"$f":"IFERROR(INDEX(Tabla_UCMD[Kg],MATCH(Tabla_Costos_Transporte[[#This Row],[Codigo]],Tabla_UCMD[Codigo],0)),0)*Tabla_Costos_Transporte[[#This Row],[Unidades]]","v":1},2314.8148148148148,{"$f":"IF(OR(Km_CR_CL=0,Tabla_Costos_Transporte[[#This Row],[Codigo]]=\"NA\"),0,IF(Mod_CR_CL=\"T\",Var_T_K*POWER(Km_CR_CL,Var_T_Alfa)*POWER(Tabla_Costos_Transporte[[#This Row],[Peso (Kg)]],Var_T_Beta)*INDEX(Tabla_Tipo_Via[Factor],MATCH(Tipo_CR_CL,Tabla_Tipo_Via[Tipo via],0))*(1-Descuento_transporte),IF(Mod_CR_CL=\"A\",Var_A_K*POWER(Km_CR_CL,Var_A_Alfa)*POWER(Tabla_Costos_Transporte[[#This Row],[Peso (Kg)]],Var_A_Beta)*POWER(Tabla_Costos_Transporte[[#This Row],[Densidad (Kg/M3)]],Var_A_Gama)*(1-Descuento_transporte),IF(Mod_CR_CL=\"F\",Var_F_K*POWER(Km_CR_CL,Var_F_Alfa),IF(Mod_CR_CL=\"M\",Var_M_K*POWER(Km_CR_CL,Var_M_Alfa),0)))))","v":37.0311386236679},{"$f":"IF(OR(Km_CL_CD=0,Tabla_Costos_Transporte[[#This Row],[Codigo]]=\"NA\"),0,IF(Mod_CL_CD=\"T\",Var_T_K*POWER(Km_CL_CD,Var_T_Alfa)*POWER(Tabla_Costos_Transporte[[#This Row],[Peso (Kg)]],Var_T_Beta)*INDEX(Tabla_Tipo_Via[Factor],MATCH(Tipo_CL_CD,Tabla_Tipo_Via[Tipo via],0))*(1-Descuento_transporte),IF(Mod_CL_CD=\"A\",Var_A_K*POWER(Km_CL_CD,Var_A_Alfa)*POWER(Tabla_Costos_Transporte[[#This Row],[Peso (Kg)]],Var_A_Beta)*POWER(Tabla_Costos_Transporte[[#This Row],[Densidad (Kg/M3)]],Var_A_Gama)*(1-Descuento_transporte),IF(Mod_CL_CD=\"F\",Var_F_K*POWER(Km_CL_CD,Var_F_Alfa),IF(Mod_CL_CD=\"M\",Var_M_K*POWER(Km_CL_CD,Var_M_Alfa),0)))))","v":0},{"$f":"IF(OR(Km_CD_Mun_T1=0,Tabla_Costos_Transporte[[#This Row],[Codigo]]=\"NA\"),0,IF(Mod_CD_Mun_T1=\"T\",Var_T_K*POWER(Km_CD_Mun_T1,Var_T_Alfa)*POWER(Tabla_Costos_Transporte[[#This Row],[Peso (Kg)]],Var_T_Beta)*INDEX(Tabla_Tipo_Via[Factor],MATCH(Tipo_CD_Mun_T1,Tabla_Tipo_Via[Tipo via],0))*(1-Descuento_transporte),IF(Mod_CD_Mun_T1=\"A\",Var_A_K*POWER(Km_CD_Mun_T1,Var_A_Alfa)*POWER(Tabla_Costos_Transporte[[#This Row],[Peso (Kg)]],Var_A_Beta)*POWER(Tabla_Costos_Transporte[[#This Row],[Densidad (Kg/M3)]],Var_A_Gama)*(1-Descuento_transporte),IF(Mod_CD_Mun_T1=\"F\",Var_F_K*POWER(Km_CD_Mun_T1,Var_F_Alfa),IF(Mod_CD_Mun_T1=\"M\",Var_M_K*POWER(Km_CD_Mun_T1,Var_M_Alfa),0)))))","v":183.48699739664369},{"$f":"IF(OR(Km_CD_Mun_T2=0,Tabla_Costos_Transporte[[#This Row],[Codigo]]=\"NA\"),0,IF(Mod_CD_Mun_T2=\"T\",Var_T_K*POWER(Km_CD_Mun_T2,Var_T_Alfa)*POWER(Tabla_Costos_Transporte[[#This Row],[Peso (Kg)]],Var_T_Beta)*INDEX(Tabla_Tipo_Via[Factor],MATCH(Tipo_CD_Mun_T2,Tabla_Tipo_Via[Tipo via],0))*(1-Descuento_transporte),IF(Mod_CD_Mun_T2=\"A\",Var_A_K*POWER(Km_CD_Mun_T2,Var_A_Alfa)*POWER(Tabla_Costos_Transporte[[#This Row],[Peso (Kg)]],Var_A_Beta)*POWER(Tabla_Costos_Transporte[[#This Row],[Densidad (Kg/M3)]],Var_A_Gama)*(1-Descuento_transporte),IF(Mod_CD_Mun_T2=\"F\",Var_F_K*POWER(Km_CD_Mun_T2,Var_F_Alfa),IF(Mod_CD_Mun_T2=\"M\",Var_M_K*POWER(Km_CD_Mun_T2,Var_M_Alfa),0)))))","v":0},{"$f":"IF(OR(Km_Mun_PI=0,Tabla_Costos_Transporte[[#This Row],[Codigo]]=\"NA\"),0,IF(Mod_Mun_PI=\"T\",Var_T_K*POWER(Km_Mun_PI,Var_T_Alfa)*POWER(Tabla_Costos_Transporte[[#This Row],[Peso (Kg)]],Var_T_Beta)*INDEX(Tabla_Tipo_Via[Factor],MATCH(Tipo_Mun_PI,Tabla_Tipo_Via[Tipo via],0))*(1-Descuento_transporte),IF(Mod_Mun_PI=\"A\",Var_A_K*POWER(Km_Mun_PI,Var_A_Alfa)*POWER(Tabla_Costos_Transporte[[#This Row],[Peso (Kg)]],Var_A_Beta)*POWER(Tabla_Costos_Transporte[[#This Row],[Densidad (Kg/M3)]],Var_A_Gama)*(1-Descuento_transporte),IF(Mod_Mun_PI=\"F\",Var_F_K*POWER(Km_Mun_PI,Var_F_Alfa),IF(Mod_Mun_PI=\"M\",Var_M_K*POWER(Km_Mun_PI,Var_M_Alfa),0)))))","v":380.43149591926374},{"$f":"SUMPRODUCT(TRANSPOSE(Tabla_Ruta_CR_PI[Distancia (km)]),Tabla_Costos_Transporte[[#This Row],[T de CR a CL]:[T de M a PI]])*Tabla_Costos_Transporte[[#This Row],[Peso (Kg)]]","v":73828.335726016448},{"$f":"Tabla_Costos_Transporte[[#This Row],[VI_UC_CR]]+Tabla_Costos_Transporte[[#This Row],[Costo T]]","v":328068.02853119082},{"$f":"Tabla_Costos_Transporte[[#This Row],[VI+CT]]/SUM(Tabla_Costos_Transporte[VI+CT])","v":2.8519068648047367E-2}]
[]
[]
[null,"4. PARÁMETROS GASTOS DE ADMINISTRACIÓN, MANTENIMIENTO Y GESTIÓN COMERCIAL"]
[]
[null,"4.1. Parámetros de gastos que dependen del número de usuarios atendidos por el prestador (NU)"]
[]
[null,"Estimación de gastos de personal administrativo, servicios generales y software comercial"]
[null,"Variable","Parámetro","Valor"]
[null,"constante (Col$ 2021-Dic /(Usuario - día))","C",9614.32]
[null,"Usuarios","α",-0.307]
[]
[null,"4.2. Parámetros Seguros Inversiones"]
[]
[null,"Prima anual seguros inversiones",5.117E-3]
[]
[null,"4.3. Parámetros costos de repuestos / mantenimientos correctivos"]
[]
[null,"Unidad constructiva","Tasa de falla anual"]
[null,"1. PANEL",3.0000000000000001E-3]
[null,"2. INVERSOR",7.4999999999999997E-3]
[null,"3. REGULADOR",7.4999999999999997E-3]
[null,"4. BANCO DE BATERIAS",0.01]
[null,"5. ESTRUCTURA SOPORTE",2E-3]
[null,"6. RED PANEL GABINETE",7.4999999999999997E-3]
[null,"7. GABINETE Y ACCESORIOS",7.4999999999999997E-3]
[null,"8. RED BATERÍA A GABINETE Y ACCESORIOS",7.4999999999999997E-3]
[null,"9. PUESTA A TIERRA",7.4999999999999997E-3]
[null,"10. RED DOMICILIARIA",7.4999999999999997E-3]
[null,"11. ELEMENTO DE MEDICIÓN",7.4999999999999997E-3]
[]
[null,"4.4. Parámetros visitas a usuarios (instalación / mantenimiento preventivo / mantenimiento correctivo)"]
[]
[null,"Días laborables al año",240]
[null,"Técnicos x cuadrilla",2]
[null,"Costo cuadrilla ($ / año) ($ 2021-Dic)",120966435.37075321]
[]
[null,"4.5 Tiempo y costo de visita por cuadrilla según el tipo de visita"]
[]
[null,"Wp_Min","Wp_Max","UC Panel (h / tec)","UC Inversor (h / tec)","UC Regulador (h / tec)","UC Banco Baterias (h / tec)","Otras UC (h / tec)","Total SISFV (h / tec)"]
[null,0.01,33.06878306878307,0.33333333333333331,0,0.26666666666666666,0.13333333333333333,0.25,{"$f":"Tabla_Tiempos_Preventivo_UC[[#This Row],[UC Panel (h / tec)]]+Tabla_Tiempos_Preventivo_UC[[#This Row],[Otras UC (h / tec)]]+IF(UCIN_ID<>\"NA\",Tabla_Tiempos_Preventivo_UC[[#This Row],[UC Inversor (h / tec)]],0)+IF(Dda_Pico_Seg>Limite_Inv_Onda_Seno,0,Tabla_Tiempos_Preventivo_UC[[#This Row],[UC Regulador (h / tec)]])+IF(Almacenamiento=\"NO\",0,Tabla_Tiempos_Preventivo_UC[[#This Row],[UC Banco Baterias (h / tec)]])","v":0.98333333333333317}]
[null,33.078783068783068,49.603174603174601,0.33333333333333331,0,0.26666666666666666,0.13333333333333333,0.25,{"$f":"Tabla_Tiempos_Preventivo_UC[[#This Row],[UC Panel (h / tec)]]+Tabla_Tiempos_Preventivo_UC[[#This Row],[Otras UC (h / tec)]]+IF(UCIN_ID<>\"NA\",Tabla_Tiempos_Preventivo_UC[[#This Row],[UC Inversor (h / tec)]],0)+IF(Dda_Pico_Seg>Limite_Inv_Onda_Seno,0,Tabla_Tiempos_Preventivo_UC[[#This Row],[UC Regulador (h / tec)]])+IF(Almacenamiento=\"NO\",0,Tabla_Tiempos_Preventivo_UC[[#This Row],[UC Banco Baterias (h / tec)]])","v":0.98333333333333317}]
[null,49.613174603174599,115.74074074074075,0.36666666666666664,0,0.26666666666666666,0.13333333333333333,0.26666666666666666,{"$f":"Tabla_Tiempos_Preventivo_UC[[#This Row],[UC Panel (h / tec)]]+Tabla_Tiempos_Preventivo_UC[[#This Row],[Otras UC (h / tec)]]+IF(UCIN_ID<>\"NA\",Tabla_Tiempos_Preventivo_UC[[#This Row],[UC Inversor (h / tec)]],0)+IF(Dda_Pico_Seg>Limite_Inv_Onda_Seno,0,Tabla_Tiempos_Preventivo_UC[[#This Row],[UC Regulador (h / tec)]])+IF(Almacenamiento=\"NO\",0,Tabla_Tiempos_Preventivo_UC[[#This Row],[UC Banco Baterias (h / tec)]])","v":1.0333333333333332}]
[null,115.75074074074075,248.01587301587301,0.36666666666666664,0,0.26666666666666666,0.13333333333333333,0.26666666666666666,{"$f":"Tabla_Tiempos_Preventivo_UC[[#This Row],[UC Panel (h / tec)]]+Tabla_Tiempos_Preventivo_UC[[#This Row],[Otras UC (h / tec)]]+IF(UCIN_ID<>\"NA\",Tabla_Tiempos_Preventivo_UC[[#This Row],[UC Inversor (h / tec)]],0)+IF(Dda_Pico_Seg>Limite_Inv_Onda_Seno,0,Tabla_Tiempos_Preventivo_UC[[#This Row],[UC Regulador (h / tec)]])+IF(Almacenamiento=\"NO\",0,Tabla_Tiempos_Preventivo_UC[[#This Row],[UC Banco Baterias (h / tec)]])","v":1.0333333333333332}]
[null,248.025873015873,330.68783068783068,0.38333333333333336,0.36666666666666664,0.3,0.16666666666666666,0.28333333333333333,{"$f":"Tabla_Tiempos_Preventivo_UC[[#This Row],[UC Panel (h / tec)]]+Tabla_Tiempos_Preventivo_UC[[#This Row],[Otras UC (h / tec)]]+IF(UCIN_ID<>\"NA\",Tabla_Tiempos_Preventivo_UC[[#This Row],[UC Inversor (h / tec)]],0)+IF(Dda_Pico_Seg>Limite_Inv_Onda_Seno,0,Tabla_Tiempos_Preventivo_UC[[#This Row],[UC Regulador (h / tec)]])+IF(Almacenamiento=\"NO\",0,Tabla_Tiempos_Preventivo_UC[[#This Row],[UC Banco Baterias (h / tec)]])","v":1.5000000000000002}]
[null,330.69783068783067,496.03174603174602,0.38333333333333336,0.36666666666666664,0.3,0.16666666666666666,0.28333333333333333,{"$f":"Tabla_Tiempos_Preventivo_UC[[#This Row],[UC Panel (h / tec)]]+Tabla_Tiempos_Preventivo_UC[[#This Row],[Otras UC (h / tec)]]+IF(UCIN_ID<>\"NA\",Tabla_Tiempos_Preventivo_UC[[#This Row],[UC Inversor (h / tec)]],0)+IF(Dda_Pico_Seg>Limite_Inv_Onda_Seno,0,Tabla_Tiempos_Preventivo_UC[[#This Row],[UC Regulador (h / tec)]])+IF(Almacenamiento=\"NO\",0,Tabla_Tiempos_Preventivo_UC[[#This Row],[UC Banco Baterias (h / tec)]])","v":1.5000000000000002}]
[null,496.04174603174602,744.04761904761904,0.4,0.38333333333333336,0.3,0.16666666666666666,0.3,{"$f":"Tabla_Tiempos_Preventivo_UC[[#This Row],[UC Panel (h / tec)]]+Tabla_Tiempos_Preventivo_UC[[#This Row],[Otras UC (h / tec)]]+IF(UCIN_ID<>\"NA\",Tabla_Tiempos_Preventivo_UC[[#This Row],[UC Inversor (h / tec)]],0)+IF(Dda_Pico_Seg>Limite_Inv_Onda_Seno,0,Tabla_Tiempos_Preventivo_UC[[#This Row],[UC Regulador (h / tec)]])+IF(Almacenamiento=\"NO\",0,Tabla_Tiempos_Preventivo_UC[[#This Row],[UC Banco Baterias (h / tec)]])","v":1.55}]
[null,744.05761904761903,992.06349206349205,0.41666666666666669,0.38333333333333336,0.3,0.16666666666666666,0.3,{"$f":"Tabla_Tiempos_Preventivo_UC[[#This Row],[UC Panel (h / tec)]]+Tabla_Tiempos_Preventivo_UC[[#This Row],[Otras UC (h / tec)]]+IF(UCIN_ID<>\"NA\",Tabla_Tiempos_Preventivo_UC[[#This Row],[UC Inversor (h / tec)]],0)+IF(Dda_Pico_Seg>Limite_Inv_Onda_Seno,0,Tabla_Tiempos_Preventivo_UC[[#This Row],[UC Regulador (h / tec)]])+IF(Almacenamiento=\"NO\",0,Tabla_Tiempos_Preventivo_UC[[#This Row],[UC Banco Baterias (h / tec)]])","v":1.5666666666666669}]
[null,992.07349206349204,1488.0952380952381,0.48333333333333334,0.45,0.36666666666666664,0.21666666666666667,0.35,{"$f":"Tabla_Tiempos_Preventivo_UC[[#This Row],[UC Panel (h / tec)]]+Tabla_Tiempos_Preventivo_UC[[#This Row],[Otras UC (h / tec)]]+IF(UCIN_ID<>\"NA\",Tabla_Tiempos_Preventivo_UC[[#This Row],[UC Inversor (h / tec)]],0)+IF(Dda_Pico_Seg>Limite_Inv_Onda_Seno,0,Tabla_Tiempos_Preventivo_UC[[#This Row],[UC Regulador (h / tec)]])+IF(Almacenamiento=\"NO\",0,Tabla_Tiempos_Preventivo_UC[[#This Row],[UC Banco Baterias (h / tec)]])","v":1.8666666666666667}]
[null,1488.1052380952381,1984.1269841269841,0.51666666666666672,0.45,0.36666666666666664,0.21666666666666667,0.35,{"$f":"Tabla_Tiempos_Preventivo_UC[[#This Row],[UC Panel (h / tec)]]+Tabla_Tiempos_Preventivo_UC[[#This Row],[Otras UC (h / tec)]]+IF(UCIN_ID<>\"NA\",Tabla_Tiempos_Preventivo_UC[[#This Row],[UC Inversor (h / tec)]],0)+IF(Dda_Pico_Seg>Limite_Inv_Onda_Seno,0,Tabla_Tiempos_Preventivo_UC[[#This Row],[UC Regulador (h / tec)]])+IF(Almacenamiento=\"NO\",0,Tabla_Tiempos_Preventivo_UC[[#This Row],[UC Banco Baterias (h / tec)]])","v":1.9}]
[null,1984.1369841269841,2976.1904761904761,0.6333333333333333,0.5,0.36666666666666664,0.21666666666666667,0.36666666666666664,{"$f":"Tabla_Tiempos_Preventivo_UC[[#This Row],[UC Panel (h / tec)]]+Tabla_Tiempos_Preventivo_UC[[#This Row],[Otras UC (h / tec)]]+IF(UCIN_ID<>\"NA\",Tabla_Tiempos_Preventivo_UC[[#This Row],[UC Inversor (h / tec)]],0)+IF(Dda_Pico_Seg>Limite_Inv_Onda_Seno,0,Tabla_Tiempos_Preventivo_UC[[#This Row],[UC Regulador (h / tec)]])+IF(Almacenamiento=\"NO\",0,Tabla_Tiempos_Preventivo_UC[[#This Row],[UC Banco Baterias (h / tec)]])","v":2.0833333333333335}]
[null,2976.2004761904764,4960.3174603174602,0.71666666666666667,0.5,0.36666666666666664,0.21666666666666667,0.36666666666666664,{"$f":"Tabla_Tiempos_Preventivo_UC[[#This Row],[UC Panel (h / tec)]]+Tabla_Tiempos_Preventivo_UC[[#This Row],[Otras UC (h / tec)]]+IF(UCIN_ID<>\"NA\",Tabla_Tiempos_Preventivo_UC[[#This Row],[UC Inversor (h / tec)]],0)+IF(Dda_Pico_Seg>Limite_Inv_Onda_Seno,0,Tabla_Tiempos_Preventivo_UC[[#This Row],[UC Regulador (h / tec)]])+IF(Almacenamiento=\"NO\",0,Tabla_Tiempos_Preventivo_UC[[#This Row],[UC Banco Baterias (h / tec)]])","v":2.1666666666666665}]
[null,4960.3274603174605,7440.4761904761908,0.91666666666666663,0.53333333333333333,0.38333333333333336,0.25,0.36666666666666664,{"$f":"Tabla_Tiempos_Preventivo_UC[[#This Row],[UC Panel (h / tec)]]+Tabla_Tiempos_Preventivo_UC[[#This Row],[Otras UC (h / tec)]]+IF(UCIN_ID<>\"NA\",Tabla_Tiempos_Preventivo_UC[[#This Row],[UC Inversor (h / tec)]],0)+IF(Dda_Pico_Seg>Limite_Inv_Onda_Seno,0,Tabla_Tiempos_Preventivo_UC[[#This Row],[UC Regulador (h / tec)]])+IF(Almacenamiento=\"NO\",0,Tabla_Tiempos_Preventivo_UC[[#This Row],[UC Banco Baterias (h / tec)]])","v":2.4499999999999997}]
[null,7440.486190476191,9920.6349206349205,1.0333333333333334,0.53333333333333333,0.38333333333333336,0.25,0.36666666666666664,{"$f":"Tabla_Tiempos_Preventivo_UC[[#This Row],[UC Panel (h / tec)]]+Tabla_Tiempos_Preventivo_UC[[#This Row],[Otras UC (h / tec)]]+IF(UCIN_ID<>\"NA\",Tabla_Tiempos_Preventivo_UC[[#This Row],[UC Inversor (h / tec)]],0)+IF(Dda_Pico_Seg>Limite_Inv_Onda_Seno,0,Tabla_Tiempos_Preventivo_UC[[#This Row],[UC Regulador (h / tec)]])+IF(Almacenamiento=\"NO\",0,Tabla_Tiempos_Preventivo_UC[[#This Row],[UC Banco Baterias (h / tec)]])","v":2.5666666666666669}]
[]
[null,"Wp_Min","Wp_Max","Instalacion (h / tec)","Preventivo (h / tec)","Correctivo (h / tec)"]
[null,0.01,33.06878306878307,12,{"$f":"INDEX(Tabla_Tiempos_Preventivo_UC[Total SISFV (h / tec)],MATCH(Tabla_Tiempo_Visitas[[#This Row],[Wp_Max]],Tabla_Tiempos_Preventivo_UC[Wp_Max],0))","v":0.98333333333333317},8]
[null,33.078783068783068,49.603174603174601,12,{"$f":"INDEX(Tabla_Tiempos_Preventivo_UC[Total SISFV (h / tec)],MATCH(Tabla_Tiempo_Visitas[[#This Row],[Wp_Max]],Tabla_Tiempos_Preventivo_UC[Wp_Max],0))","v":0.98333333333333317},8]
[null,49.613174603174599,115.74074074074075,28,{"$f":"INDEX(Tabla_Tiempos_Preventivo_UC[Total SISFV (h / tec)],MATCH(Tabla_Tiempo_Visitas[[#This Row],[Wp_Max]],Tabla_Tiempos_Preventivo_UC[Wp_Max],0))","v":1.0333333333333332},8]
[null,115.75074074074075,248.01587301587301,28,{"$f":"INDEX(Tabla_Tiempos_Preventivo_UC[Total SISFV (h / tec)],MATCH(Tabla_Tiempo_Visitas[[#This Row],[Wp_Max]],Tabla_Tiempos_Preventivo_UC[Wp_Max],0))","v":1.0333333333333332},8]
[null,248.025873015873,330.68783068783068,40,{"$f":"INDEX(Tabla_Tiempos_Preventivo_UC[Total SISFV (h / tec)],MATCH(Tabla_Tiempo_Visitas[[#This Row],[Wp_Max]],Tabla_Tiempos_Preventivo_UC[Wp_Max],0))","v":1.5000000000000002},8]
[null,330.69783068783067,496.03174603174602,40,{"$f":"INDEX(Tabla_Tiempos_Preventivo_UC[Total SISFV (h / tec)],MATCH(Tabla_Tiempo_Visitas[[#This Row],[Wp_Max]],Tabla_Tiempos_Preventivo_UC[Wp_Max],0))","v":1.5000000000000002},8]
[null,496.04174603174602,744.04761904761904,58,{"$f":"INDEX(Tabla_Tiempos_Preventivo_UC[Total SISFV (h / tec)],MATCH(Tabla_Tiempo_Visitas[[#This Row],[Wp_Max]],Tabla_Tiempos_Preventivo_UC[Wp_Max],0))","v":1.55},8]
[null,744.05761904761903,992.06349206349205,58,{"$f":"INDEX(Tabla_Tiempos_Preventivo_UC[Total SISFV (h / tec)],MATCH(Tabla_Tiempo_Visitas[[#This Row],[Wp_Max]],Tabla_Tiempos_Preventivo_UC[Wp_Max],0))","v":1.5666666666666669},8]
[null,992.07349206349204,1488.0952380952381,70,{"$f":"INDEX(Tabla_Tiempos_Preventivo_UC[Total SISFV (h / tec)],MATCH(Tabla_Tiempo_Visitas[[#This Row],[Wp_Max]],Tabla_Tiempos_Preventivo_UC[Wp_Max],0))","v":1.8666666666666667},8]
[null,1488.1052380952381,1984.1269841269841,70,{"$f":"INDEX(Tabla_Tiempos_Preventivo_UC[Total SISFV (h / tec)],MATCH(Tabla_Tiempo_Visitas[[#This Row],[Wp_Max]],Tabla_Tiempos_Preventivo_UC[Wp_Max],0))","v":1.9},8]
[null,1984.1369841269841,2976.1904761904761,118,{"$f":"INDEX(Tabla_Tiempos_Preventivo_UC[Total SISFV (h / tec)],MATCH(Tabla_Tiempo_Visitas[[#This Row],[Wp_Max]],Tabla_Tiempos_Preventivo_UC[Wp_Max],0))","v":2.0833333333333335},8]
[null,2976.2004761904764,4960.3174603174602,118,{"$f":"INDEX(Tabla_Tiempos_Preventivo_UC[Total SISFV (h / tec)],MATCH(Tabla_Tiempo_Visitas[[#This Row],[Wp_Max]],Tabla_Tiempos_Preventivo_UC[Wp_Max],0))","v":2.1666666666666665},8]
[null,4960.3274603174605,7440.4761904761908,160,{"$f":"INDEX(Tabla_Tiempos_Preventivo_UC[Total SISFV (h / tec)],MATCH(Tabla_Tiempo_Visitas[[#This Row],[Wp_Max]],Tabla_Tiempos_Preventivo_UC[Wp_Max],0))","v":2.4499999999999997},8]
[null,7440.486190476191,9920.6349206349205,160,{"$f":"INDEX(Tabla_Tiempos_Preventivo_UC[Total SISFV (h / tec)],MATCH(Tabla_Tiempo_Visitas[[#This Row],[Wp_Max]],Tabla_Tiempos_Preventivo_UC[Wp_Max],0))","v":2.5666666666666669},8]
[]
[null,"Actividad","Tiempo x visita (horas / tec)"]
[null,"Educación al usuario",0.25]
[]
[null,"Horas laborales x día",8]
[]
[null,"Distancia promedio entre usuarios (km)",{"$f":"INDEX(Tabla_Municipios[Distancia promedio a PI (km)],MATCH(Punto_Instalacion,Tabla_Municipios[Codigo_M],0))","v":61.4669868576553}]
[null,"Desplazamiento promedio en la zona (km / h)",{"$f":"INDEX(Tabla_Municipios[Velocidad cuadrilla (km/h)],MATCH(Punto_Instalacion,Tabla_Municipios[Codigo_M],0))","v":15}]
[null,"Tiempo desplazamiento entre usuarios (h)",{"$f":"Distancia_usuario   /   Velocidad_cuadrilla","v":4.0977991238436866}]
[]
[null,"Concepto","Instalación","Preventivo","Correctivo"]
[null,"Tiempo promedio visita (h)",{"$f":"(INDEX(Tabla_Tiempo_Visitas[Instalacion (h / tec)],MATCH(NdS_Wp,Tabla_Tiempo_Visitas[Wp_Min]),0)   +   Tiempo_educacion)   /   Tecs_x_cuadrilla   +   Tiempo_entre_usuarios","v":33.222799123843686},{"$f":"(INDEX(Tabla_Tiempo_Visitas[Preventivo (h / tec)],MATCH(NdS_Wp,Tabla_Tiempo_Visitas[Wp_Min]),0)   +   Tiempo_educacion)   /   Tecs_x_cuadrilla   +   Tiempo_entre_usuarios","v":5.0061324571770198},{"$f":"(INDEX(Tabla_Tiempo_Visitas[Correctivo (h / tec)],MATCH(NdS_Wp,Tabla_Tiempo_Visitas[Wp_Min]),0)   +   Tiempo_educacion)   /   Tecs_x_cuadrilla   +   Tiempo_entre_usuarios","v":8.2227991238436857}]
[null,"Visitas x cuadrilla al año",{"$f":"Horas_dia   *   Dias_año   /   Tiempo_visita_instalacion","v":57.791638592608358},{"$f":"Horas_dia   *   Dias_año   /   Tiempo_visita_preventivo","v":383.52960422519391},{"$f":"Horas_dia   *   Dias_año    /   Tiempo_visita_correctivo","v":233.49713048839632}]
[null,"Costo x visita",{"$f":"Costo_cuadrilla   /   Visitas_cuadrilla_año_instalacion","v":2093147.6995051843},{"$f":"Costo_cuadrilla   /   Visitas_cuadrilla_año_preventivo","v":315403.12413465313},{"$f":"Costo_cuadrilla   /   Visitas_cuadrilla_año_correctivo","v":518063.90561516839}]
[]
[null,"Concepto","Instalación","Preventivo","Correctivo"]
[null,"Visitas x usuario año","NA",2,{"$f":"1-PRODUCT(1-Tabla_Tasa_Falla[Tasa de falla anual])","v":7.2519008370731441E-2}]
[]
[null,"4.6. Parámetros atención usuarios por gestión comercial"]
[]
[null,"Costo x usuario al día ($ / Usuario / día) ($Dic-2021)",51.96]
[]
[null,"4.7. Parámetros gastos que dependen de la facturación - Servicios generales"]
[]
[null,"GASTOS SERVICIOS GENERALES"]
[]
[null,"Seguros, impuestos y contribuciones",2.64E-2]
[]
[null,"4.8. Parámetros remuneración del prestador del servicio"]
[]
[null,null,"Margen"]
[null,"Margen operador",0.1077]
[]
[]
[null,"5. OTROS"]
[]
[null,"5.1. Indexadores"]
[]
[null,"IPP0",147.65]